Workbook

Sheet RESUMO MODULO TOTAL
E1: Ministério do Desenvolvimento Regional
E2: Companhia de Desenvolvimento dos Vales do São Francisco e do Parnaíba
B5: OBRA: | C5: =B61 -> SERVIÇOS DE IMPLANTAÇÃO DE PAVIMENTAÇÃO EM TRATAMENTO SUPERFICIAL DUPLO (TSD), EM VIAS URBANAS E RURAIS INSERIDAS NA ÁREA DE ATUAÇÃO DA CODEVASF, NO ESTADO DO PIAUÍ - REGIÃO SUL | I5: BDI Serviços (%): | L5: =BDI!C13 -> 0.2339
B6: DATA: | C6: 2025-10-01 | I6: BDI Diferenciado Serviços (%): | L6: =BDI!C64 -> 0.15
B7: PRAZO DE EXECUÇÃO: | G7: R$/m² | H7: =L58/H23 ->  | I7: BDI Fornecimentos (%): | L7: =L6 -> 0.15
B8: PLANILHA DE ORÇAMENTAÇÃO
B9: ITEM | C9: CÓDIGO | D9: FONTE | E9: DISCRIMINAÇÃO | F9: TIPO | G9: UNID. | H9: QUANT. | I9: VR.UNIT.S/BDI | J9: PR. UNIT.C/BDI | K9: C. TOT.S/BDI | L9: P. TOT.C/BDI | M9: =L58 -> 
B10: 1 | E10: SERVIÇOS PRELIMINARES | K10: =SUM(K11:K12) -> 941211.36 | L10: =SUM(L11:L12) -> 1161360 | M10: =L10/$L$58 -> 
B11: 1.1 | C11: CPU.1 | D11: Codevasf | E11: Mobilização | F11: SERV | G11: kmxfrente | H11: =Mob!B65*Mob!H6 -> 1800 | I11: =Mob!B62 -> 261.4476033 | J11: =TRUNC(_xlfn.IFS(F11="SERV",I11*(1+$L$5),F11="SERV DIF",I11*(1+$L$6),F11="FORN",I11*(1+$L$7)),2) -> 322.6 | K11: =TRUNC(H11*I11,2) -> 470605.68 | L11: =TRUNC(H11*J11,2) -> 580680 | N11: INCC | P11: TERRAPLENAGEM | Q11: =(SUMIF(N:N,"TERRAPLENAGEM",L:L)/$L$58) ->  | R11: =(SUMIF(N:N,"TERRAPLENAGEM",L:L)) -> 1135134
B12: 1.2 | C12: CPU.2 | D12: Codevasf | E12: Desmobilização | F12: SERV | G12: kmxfrente | H12: =Mob!B65*Mob!H6 -> 1800 | I12: =Mob!B62 -> 261.4476033 | J12: =TRUNC(_xlfn.IFS(F12="SERV",I12*(1+$L$5),F12="SERV DIF",I12*(1+$L$6),F12="FORN",I12*(1+$L$7)),2) -> 322.6 | K12: =TRUNC(H12*I12,2) -> 470605.68 | L12: =TRUNC(H12*J12,2) -> 580680 | N12: INCC | P12: PAVIMENTAÇÃO | Q12: =SUMIF(N:N,"PAVIMENTAÇÃO",L:L)/$L$58 ->  | R12: =(SUMIF(N:N,"PAVIMENTAÇÃO",L:L)) -> 
B13: 2 | E13: INSTALAÇÃO DE CANTEIRO | K13: =SUM(K14:K15) -> 357228.72 | L13: =SUM(L14:L15) -> 440780.04 | P13: CONSULTORIA | R13: =(SUMIF(N:N,"CONSULTORIA",M:M)) -> 0
B14: 2.1 | C14: Canteiro | D14: Codevasf | E14: Canteiro de Obras | F14: SERV | G14: und | H14: ='Memória de Cálculo'!D20 -> 36 | I14: =' Canteiro'!F11 -> 2491.66 | J14: =TRUNC(_xlfn.IFS(F14="SERV",I14*(1+$L$5),F14="SERV DIF",I14*(1+$L$6),F14="FORN",I14*(1+$L$7)),2) -> 3074.45 | K14: =TRUNC(H14*I14,2) -> 89699.76 | L14: =TRUNC(H14*J14,2) -> 110680.2 | N14: INCC | P14: DRENAGEM | Q14: =SUMIF(N:N,"DRENAGEM",L:L)/$L$58 ->  | R14: =(SUMIF(N:N,"DRENAGEM",L:L)) -> 2653200
B15: 2.2 | C15: 103689 | D15: SINAPI | E15: Fornecimento e instalação de placa de obra com chapa galvanizada e estrutura de madeira. af_03/2022_ps | F15: SERV | G15: m² | H15: ='Memória de Cálculo'!H25 -> 576 | I15: =VLOOKUP(C15,'COMP Sint. Sinapi'!$A:$E,4,0) -> 464.46 | J15: =TRUNC(_xlfn.IFS(F15="SERV",I15*(1+$L$5),F15="SERV DIF",I15*(1+$L$6),F15="FORN",I15*(1+$L$7)),2) -> 573.09 | K15: 267528.96 | L15: 330099.84 | N15: INCC | P15: ADMINISTRAÇÃO LOCAL | R15: =(SUMIF(N:N,"ADMINISTRAÇÃO LOCAL",M:M)) -> 0
B16: 3 | E16: ADMINISTRAÇÃO LOCAL DA OBRA | K16: =SUM(K17:K17) -> 1149298.76 | L16: =SUM(L17:L17) -> 1418119.74 | P16: SINALIZAÇÃO VERTICAL | R16: =(SUMIF(N:N,"SINALIZAÇÃO VERTICAL",M:M)) -> 0
B17: 3.1 | C17: Adm Local | D17: Codevasf | E17: Administração Local da Obra | F17: SERV | G17: und | H17: 1 | I17: ='Adm Local'!J246 -> 1149298.761 | J17: =TRUNC(_xlfn.IFS(F17="SERV",I17*(1+$L$5),F17="SERV DIF",I17*(1+$L$6),F17="FORN",I17*(1+$L$7)),2) -> 1418119.74 | K17: =TRUNC(H17*I17,2) -> 1149298.76 | L17: =TRUNC(H17*J17,2) -> 1418119.74 | N17: INCC | P17: SINALIZAÇÃO HORIZONTAL | R17: =(SUMIF(N:N,"SINALIZAÇÃO HORIZONTAL",M:M)) -> 0
B18: 4 | E18: TERRAPLANAGEM | K18: =SUM(K19:K20) -> 920556 | L18: =SUM(L19:L20) -> 1135134 | P18: CAP | R18: =(SUMIF(N:N,"CAP",M:M)) -> 0
B19: 4.1 | C19: 5502114 | D19: SICRO | E19: Escavação, carga e transporte de material de 1ª categoria - DMT de 1.000 a 1.200 m - caminho de serviço em leito natural - com escavadeira e caminhão basculante de 14 m³ | F19: SERV | G19: m³ | H19: ='Memória de Cálculo'!H37 -> 81900 | I19: =ROUND(IF(D19="CODEVASF",VLOOKUP(C19,'CPU CODEVASF'!E:I,5,FALSE),VLOOKUP(C19,'SINTÉTICO SICRO'!A:D,4,FALSE)),6) -> 8.49 | J19: =TRUNC(_xlfn.IFS(F19="SERV",I19*(1+$L$5),F19="SERV DIF",I19*(1+$L$6),F19="FORN",I19*(1+$L$7)),2) -> 10.47 | K19: =TRUNC(H19*I19,2) -> 695331 | L19: =TRUNC(H19*J19,2) -> 857493 | N19: TERRAPLENAGEM | P19: IMPRIMAÇÃO | R19: =(SUMIF(N:N,"IMPRIMAÇÃO",M:M)) -> 0
B20: 4.2 | C20: 4413942 | D20: SICRO | E20: Espalhamento de material em bota-fora | F20: SERV | G20: m³ | H20: ='Memória de Cálculo'!H44 -> 81900 | I20: =ROUND(IF(D20="CODEVASF",VLOOKUP(C20,'CPU CODEVASF'!E:I,5,FALSE),VLOOKUP(C20,'SINTÉTICO SICRO'!A:D,4,FALSE)),6) -> 2.75 | J20: =TRUNC(_xlfn.IFS(F20="SERV",I20*(1+$L$5),F20="SERV DIF",I20*(1+$L$6),F20="FORN",I20*(1+$L$7)),2) -> 3.39 | K20: 225225 | L20: 277641 | N20: TERRAPLENAGEM | P20: EMULSÃO ASFÁLTICA | R20: =(SUMIF(N:N,"EMULSÃO ASFÁLTICA",M:M)) -> 0
B21: 5 | E21: PAVIMENTAÇÃO | K21: =SUM(K22:K27) -> 3923388 | L21: =SUM(L22:L27) -> 4837140 | P21: OBRAS COMPLEMENTARES | R21: =(SUMIF(N:N,"OBRAS COMPLEMENTARES",M:M)) -> 0
B22: 5.1 | C22: 4915637 | D22: SICRO | E22: =VLOOKUP(C22,'SINTÉTICO SICRO'!A:D,2,0) -> Capa selante - areia comercial | F22: SERV | G22: m² | H22: ='Memória de Cálculo'!H51 -> 252000 | I22: =ROUND(IF(D22="CODEVASF",VLOOKUP(C22,'CPU CODEVASF'!E:I,5,FALSE),VLOOKUP(C22,'SINTÉTICO SICRO'!A:D,4,FALSE)),6) -> 1.14 | J22: =TRUNC(_xlfn.IFS(F22="SERV",I22*(1+$L$5),F22="SERV DIF",I22*(1+$L$6),F22="FORN",I22*(1+$L$7)),2) -> 1.4 | K22: =TRUNC(H22*I22,2) -> 287280 | L22: =TRUNC(H22*J22,2) -> 352800 | N22: PAVIMENTAÇÃO | P22: MOBILIZAÇÃO | R22: =(SUMIF(N:N,"MOBILIZAÇÃO",M:M)) -> 0
B23: 5.2 | C23: 4011370 | D23: SICRO | E23: =VLOOKUP(C23,'SINTÉTICO SICRO'!A:D,2,0) -> Tratamento superficial duplo com emulsão - brita comercial | F23: SERV | G23: m² | H23: ='Memória de Cálculo'!H57 -> 252000 | I23: =ROUND(IF(D23="CODEVASF",VLOOKUP(C23,'CPU CODEVASF'!E:I,5,FALSE),VLOOKUP(C23,'SINTÉTICO SICRO'!A:D,4,FALSE)),6) -> 7.15 | J23: =TRUNC(_xlfn.IFS(F23="SERV",I23*(1+$L$5),F23="SERV DIF",I23*(1+$L$6),F23="FORN",I23*(1+$L$7)),2) -> 8.82 | K23: 1801800 | L23: 2222640 | N23: PAVIMENTAÇÃO | P23: INCC | Q23: =(SUMIF(N:N,"INCC",L:L))/$L$58 ->  | R23: =(SUMIF(N:N,"INCC",L:L)) -> 4679906.22
B24: 5.3 | C24: 4011352 | D24: SICRO | E24: =VLOOKUP(C24,'SINTÉTICO SICRO'!A:D,2,0) -> Imprimação com emulsão asfáltica | F24: SERV | G24: m² | H24: ='Memória de Cálculo'!H63 -> 252000 | I24: =ROUND(IF(D24="CODEVASF",VLOOKUP(C24,'CPU CODEVASF'!E:I,5,FALSE),VLOOKUP(C24,'SINTÉTICO SICRO'!A:D,4,FALSE)),6) -> 0.69 | J24: =TRUNC(_xlfn.IFS(F24="SERV",I24*(1+$L$5),F24="SERV DIF",I24*(1+$L$6),F24="FORN",I24*(1+$L$7)),2) -> 0.85 | K24: 173880 | L24: 214200 | N24: PAVIMENTAÇÃO
B25: 5.4 | C25: 4011219 | D25: SICRO | E25: =VLOOKUP(C25,'SINTÉTICO SICRO'!A:D,2,0) -> Base de solo estabilizado granulometricamente sem mistura com material de jazida - 100% Proctor modificado | F25: SERV | G25: m³ | H25: ='Memória de Cálculo'!H68 -> 37800 | I25: =ROUND(IF(D25="CODEVASF",VLOOKUP(C25,'CPU CODEVASF'!E:I,5,FALSE),VLOOKUP(C25,'SINTÉTICO SICRO'!A:D,4,FALSE)),6) -> 16.63 | J25: =TRUNC(_xlfn.IFS(F25="SERV",I25*(1+$L$5),F25="SERV DIF",I25*(1+$L$6),F25="FORN",I25*(1+$L$7)),2) -> 20.51 | K25: 628614 | L25: 775278 | N25: PAVIMENTAÇÃO
B26: 5.5 | C26: 4011227 | D26: SICRO | E26: =VLOOKUP(C26,'SINTÉTICO SICRO'!A:D,2,0) -> Sub-base de solo estabilizado granulometricamente sem mistura com material de jazida - 100% Proctor intermediário | F26: SERV | G26: m³ | H26: ='Memória de Cálculo'!H74 -> 37800 | I26: =ROUND(IF(D26="CODEVASF",VLOOKUP(C26,'CPU CODEVASF'!E:I,5,FALSE),VLOOKUP(C26,'SINTÉTICO SICRO'!A:D,4,FALSE)),6) -> 15.23 | J26: =TRUNC(_xlfn.IFS(F26="SERV",I26*(1+$L$5),F26="SERV DIF",I26*(1+$L$6),F26="FORN",I26*(1+$L$7)),2) -> 18.79 | K26: 575694 | L26: 710262 | N26: PAVIMENTAÇÃO
B27: 5.6 | C27: 4011209 | D27: SICRO | E27: =VLOOKUP(C27,'SINTÉTICO SICRO'!A:D,2,0) -> Regularização do subleito - 100% Proctor intermediário | F27: SERV | G27: m² | H27: ='Memória de Cálculo'!H80 -> 252000 | I27: =ROUND(IF(D27="CODEVASF",VLOOKUP(C27,'CPU CODEVASF'!E:I,5,FALSE),VLOOKUP(C27,'SINTÉTICO SICRO'!A:D,4,FALSE)),6) -> 1.81 | J27: =TRUNC(_xlfn.IFS(F27="SERV",I27*(1+$L$5),F27="SERV DIF",I27*(1+$L$6),F27="FORN",I27*(1+$L$7)),2) -> 2.23 | K27: 456120 | L27: 561960 | N27: PAVIMENTAÇÃO
B28: 6 | E28: AQUISIÇÃO E TRANSPORTE DO MATERIAL BETUMINOSO | K28: =SUM(K29:K32) -> 4038213.64 | L28: =SUM(L29:L32) ->  | P28: OBRAS COMPLEMENTARES | R28: =(SUMIF(N:N,"OBRAS COMPLEMENTARES",M:M)) -> 0
B29: 6.1 | C29: CPU-14 | D29: CODEVASF | E29: AQUISIÇÃO DE EAI | F29: FORN | G29: t | H29: =' CONSUMO DE MAT. B TOTAL'!P11 -> 302.4 | I29: =ROUND(IF(D29="CODEVASF",VLOOKUP(C29,'CPU CODEVASF'!E:I,5,FALSE),VLOOKUP(C29,'SINTÉTICO SICRO'!A:D,4,FALSE)),6) -> 2648.414098 | J29: =TRUNC(_xlfn.IFS(F29="SERV",I29*(1+$L$5),F29="SERV DIF",I29*(1+$L$6),F29="FORN",I29*(1+$L$7)),2) ->  | K29: =TRUNC(H29*I29,2) -> 800880.42 | L29: =TRUNC(H29*J29,2) ->  | N29: PAVIMENTAÇÃO | P29: MOBILIZAÇÃO | R29: =(SUMIF(N:N,"MOBILIZAÇÃO",M:M)) -> 0
B30: 6.2 | C30: CPU-18 | D30: CODEVASF | E30: TRANSPORTE DE EAI | F30: FORN | G30: t | H30: =H29 -> 302.4 | I30: =ROUND(IF(D30="CODEVASF",VLOOKUP(C30,'CPU CODEVASF'!E:I,5,FALSE),VLOOKUP(C30,'SINTÉTICO SICRO'!A:D,4,FALSE)),6) -> 771.82 | J30: =TRUNC(_xlfn.IFS(F30="SERV",I30*(1+$L$5),F30="SERV DIF",I30*(1+$L$6),F30="FORN",I30*(1+$L$7)),2) ->  | K30: 233398.36 | N30: PAVIMENTAÇÃO | P30: INCC | Q30: =(SUMIF(N:N,"INCC",L:L))/$L$58 ->  | R30: =(SUMIF(N:N,"INCC",L:L)) -> 4679906.22
B31: 6.3 | C31: CPU-15 | D31: CODEVASF | E31: AQUISIÇÃO DE EMULSÃO ASFÁLTICA RR-2C | F31: FORN | G31: t | H31: =' CONSUMO DE MAT. B TOTAL'!P13+' CONSUMO DE MAT. B TOTAL'!P15+' CONSUMO DE MAT. B TOTAL'!P17 -> 756 | I31: =ROUND(IF(D31="CODEVASF",VLOOKUP(C31,'CPU CODEVASF'!E:I,5,FALSE),VLOOKUP(C31,'SINTÉTICO SICRO'!A:D,4,FALSE)),6) -> 3201.638814 | J31: =TRUNC(_xlfn.IFS(F31="SERV",I31*(1+$L$5),F31="SERV DIF",I31*(1+$L$6),F31="FORN",I31*(1+$L$7)),2) ->  | K31: 2420438.94 | N31: PAVIMENTAÇÃO
B32: 6.4 | C32: CPU-19 | D32: CODEVASF | E32: TRANSPORTE RR-2C | F32: FORN | G32: t | H32: =H31 -> 756 | I32: =ROUND(IF(D32="CODEVASF",VLOOKUP(C32,'CPU CODEVASF'!E:I,5,FALSE),VLOOKUP(C32,'SINTÉTICO SICRO'!A:D,4,FALSE)),6) -> 771.82 | J32: =TRUNC(_xlfn.IFS(F32="SERV",I32*(1+$L$5),F32="SERV DIF",I32*(1+$L$6),F32="FORN",I32*(1+$L$7)),2) ->  | K32: 583495.92 | N32: PAVIMENTAÇÃO
B33: 6 | E33: SINALIZAÇÃO | K33: =SUM(K34:K37) -> 347109.84 | L33: =SUM(L34:L37) -> 428244.84
B34: 6.1 | C34: 5213440 | D34: SICRO | E34: Placa de regulamentação em aço D = 0,60 m - película retrorrefletiva tipo I + SI - fornecimento e implantação | F34: SERV | G34: und | H34: ='Memória de Cálculo'!H87 -> 108 | I34: =ROUND(IF(D34="CODEVASF",VLOOKUP(C34,'CPU CODEVASF'!E:I,5,FALSE),VLOOKUP(C34,'SINTÉTICO SICRO'!A:D,4,FALSE)),6) -> 288.75 | J34: =TRUNC(_xlfn.IFS(F34="SERV",I34*(1+$L$5),F34="SERV DIF",I34*(1+$L$6),F34="FORN",I34*(1+$L$7)),2) -> 356.28 | K34: =TRUNC(H34*I34,2) -> 31185 | L34: =TRUNC(H34*J34,2) -> 38478.24 | N34: INCC
B35: 6.2 | C35: 5213464 | D35: SICRO | E35: Placa de advertência em aço, lado de 0,60 m - película retrorrefletiva tipo I + SI - fornecimento e implantação | F35: SERV | G35: und | H35: ='Memória de Cálculo'!H92 -> 108 | I35: =ROUND(IF(D35="CODEVASF",VLOOKUP(C35,'CPU CODEVASF'!E:I,5,FALSE),VLOOKUP(C35,'SINTÉTICO SICRO'!A:D,4,FALSE)),6) -> 288.79 | J35: =TRUNC(_xlfn.IFS(F35="SERV",I35*(1+$L$5),F35="SERV DIF",I35*(1+$L$6),F35="FORN",I35*(1+$L$7)),2) -> 356.33 | K35: 31189.32 | L35: 38483.64 | N35: INCC
B36: 6.3 | C36: 5213863 | D36: SICRO | E36: Suporte metálico galvanizado para placa de advertência ou regulamentação - lado ou diâmetro de 0,60 m - fornecimento e implantação | F36: SERV | G36: und | H36: ='Memória de Cálculo'!H98 -> 216 | I36: =ROUND(IF(D36="CODEVASF",VLOOKUP(C36,'CPU CODEVASF'!E:I,5,FALSE),VLOOKUP(C36,'SINTÉTICO SICRO'!A:D,4,FALSE)),6) -> 475.82 | J36: =TRUNC(_xlfn.IFS(F36="SERV",I36*(1+$L$5),F36="SERV DIF",I36*(1+$L$6),F36="FORN",I36*(1+$L$7)),2) -> 587.11 | K36: 102777.12 | L36: 126815.76 | N36: INCC
B37: 6.4 | C37: 5213400 | D37: SICRO | E37: Pintura de faixa com tinta acrílica - espessura de 0,4 mm | F37: SERV | G37: m² | H37: ='Memória de Cálculo'!H103+'Memória de Cálculo'!H108 -> 8640 | I37: =ROUND(IF(D37="CODEVASF",VLOOKUP(C37,'CPU CODEVASF'!E:I,5,FALSE),VLOOKUP(C37,'SINTÉTICO SICRO'!A:D,4,FALSE)),6) -> 21.06 | J37: =TRUNC(_xlfn.IFS(F37="SERV",I37*(1+$L$5),F37="SERV DIF",I37*(1+$L$6),F37="FORN",I37*(1+$L$7)),2) -> 25.98 | K37: 181958.4 | L37: 224467.2 | N37: INCC
B38: 7 | E38: DRENAGEM | K38: =SUM(K39:K40) -> 2169129.6 | L38: =SUM(L39:L40) -> 2676009.6
B39: 7.1 | C39: 2003943 | D39: SICRO | E39: Meio-fio de concreto - MFC 03 moldado no local com extrusora e concreto usinado - areia e brita comerciais | F39: SERV | G39: m | H39: ='Memória de Cálculo'!H132 -> 72000 | I39: =ROUND(IF(D39="CODEVASF",VLOOKUP(C39,'CPU CODEVASF'!E:I,5,FALSE),VLOOKUP(C39,'SINTÉTICO SICRO'!A:D,4,FALSE)),6) -> 29.87 | J39: =TRUNC(_xlfn.IFS(F39="SERV",I39*(1+$L$5),F39="SERV DIF",I39*(1+$L$6),F39="FORN",I39*(1+$L$7)),2) -> 36.85 | K39: =TRUNC(H39*I39,2) -> 2150640 | L39: =TRUNC(H39*J39,2) -> 2653200 | N39: DRENAGEM
B40: 7.2 | C40: 4915724 | D40: SICRO | E40: Caiação mecanizada com fixador de cal | F40: SERV | G40: m² | H40: ='Memória de Cálculo'!H137 -> 8640 | I40: =ROUND(IF(D40="CODEVASF",VLOOKUP(C40,'CPU CODEVASF'!E:I,5,FALSE),VLOOKUP(C40,'SINTÉTICO SICRO'!A:D,4,FALSE)),6) -> 2.14 | J40: =TRUNC(_xlfn.IFS(F40="SERV",I40*(1+$L$5),F40="SERV DIF",I40*(1+$L$6),F40="FORN",I40*(1+$L$7)),2) -> 2.64 | K40: 18489.6 | L40: 22809.6 | N40: INCC
B41: 8 | E41: SERVIÇOS COMPLEMENTARES | K41: =SUM(K42:K42) -> 58415.07 | L41: =SUM(L42:L42) -> 72072 | M41: =L41/$L$58 -> 
B42: 8.1 | C42: CPU-12 | D42: Codevasf | E42: Conserto de quebra no ramal na rua sem pavimento com fornecimento de material hidráulico | F42: SERV | G42: m | H42: ='Memória de Cálculo'!H144 -> 3600 | I42: =ROUND(IF(D42="CODEVASF",VLOOKUP(C42,'CPU CODEVASF'!E:I,5,FALSE),VLOOKUP(C42,'SINTÉTICO SICRO'!A:D,4,FALSE)),6) -> 16.22641 | J42: =TRUNC(_xlfn.IFS(F42="SERV",I42*(1+$L$5),F42="SERV DIF",I42*(1+$L$6),F42="FORN",I42*(1+$L$7)),2) -> 20.02 | K42: =TRUNC(H42*I42,2) -> 58415.07 | L42: =TRUNC(H42*J42,2) -> 72072 | N42: INCC
B43: 9 | E43: PROJETO EXECUTIVO | K43: =SUM(K44:K44) -> 922320 | L43: =SUM(L44:L44) -> 1136520
B44: 9.1 | C44: CPU.7 | D44: Codevasf | E44: Projeto Executivo | F44: SERV | G44: m² | H44: ='Memória de Cálculo'!H151 -> 252000 | I44: ='Projeto Executivo'!G28 -> 3.66 | J44: =TRUNC(_xlfn.IFS(F44="SERV",I44*(1+$L$5),F44="SERV DIF",I44*(1+$L$6),F44="FORN",I44*(1+$L$7)),2) -> 4.51 | K44: =TRUNC(H44*I44,2) -> 922320 | L44: =TRUNC(H44*J44,2) -> 1136520 | N44: INCC
B45: 10 | E45: MOMENTO DE TRANSPORTE | K45: =SUM(K46:K57) -> 1582617.35 | L45: =SUM(L46:L57) -> 1948602.65
B46: 10.1 | C46: 5914359 | D46: SICRO | E46: =VLOOKUP(C46,'SINTÉTICO SICRO'!A:D,2,0) -> Transporte com caminhão basculante de 10 m³ - rodovia em leito natural | F46: SERV | G46: tkm | H46: =SUMIF('MOMENTO DE TRANSPORTE - PRINC'!A:A,'RESUMO MODULO TOTAL'!C46,'MOMENTO DE TRANSPORTE - PRINC'!K:K)+SUMIF('MOMENTO DE TRANSPORTE - AUX'!A:A,'RESUMO MODULO TOTAL'!C46,'MOMENTO DE TRANSPORTE - AUX'!K:K) -> 170632.0022 | I46: =ROUND(IF(D46="CODEVASF",VLOOKUP(C46,'CPU CODEVASF'!E:I,5,FALSE),VLOOKUP(C46,'SINTÉTICO SICRO'!A:D,4,FALSE)),6) -> 1.25 | J46: =TRUNC(_xlfn.IFS(F46="SERV",I46*(1+$L$5),F46="SERV DIF",I46*(1+$L$6),F46="FORN",I46*(1+$L$7)),2) -> 1.54 | K46: =TRUNC(H46*I46,2) -> 213290 | L46: =TRUNC(H46*J46,2) -> 262773.28 | N46: PAVIMENTAÇÃO
B47: 10.2 | C47: 5914374 | D47: SICRO | E47: =VLOOKUP(C47,'SINTÉTICO SICRO'!A:D,2,0) -> Transporte com caminhão basculante de 10 m³ - rodovia em revestimento primário | F47: SERV | G47: tkm | H47: =SUMIF('MOMENTO DE TRANSPORTE - PRINC'!A:A,'RESUMO MODULO TOTAL'!C47,'MOMENTO DE TRANSPORTE - PRINC'!K:K)+SUMIF('MOMENTO DE TRANSPORTE - AUX'!A:A,'RESUMO MODULO TOTAL'!C47,'MOMENTO DE TRANSPORTE - AUX'!K:K) -> 170632.0022 | I47: =ROUND(IF(D47="CODEVASF",VLOOKUP(C47,'CPU CODEVASF'!E:I,5,FALSE),VLOOKUP(C47,'SINTÉTICO SICRO'!A:D,4,FALSE)),6) -> 1 | J47: =TRUNC(_xlfn.IFS(F47="SERV",I47*(1+$L$5),F47="SERV DIF",I47*(1+$L$6),F47="FORN",I47*(1+$L$7)),2) -> 1.23 | K47: 170632 | L47: 209877.36 | N47: PAVIMENTAÇÃO
B48: 10.3 | C48: 5914389 | D48: SICRO | E48: =VLOOKUP(C48,'SINTÉTICO SICRO'!A:D,2,0) -> Transporte com caminhão basculante de 10 m³ - rodovia pavimentada | F48: SERV | G48: tkm | H48: =SUMIF('MOMENTO DE TRANSPORTE - PRINC'!A:A,'RESUMO MODULO TOTAL'!C48,'MOMENTO DE TRANSPORTE - PRINC'!K:K)+SUMIF('MOMENTO DE TRANSPORTE - AUX'!A:A,'RESUMO MODULO TOTAL'!C48,'MOMENTO DE TRANSPORTE - AUX'!K:K) -> 1365056.018 | I48: =ROUND(IF(D48="CODEVASF",VLOOKUP(C48,'CPU CODEVASF'!E:I,5,FALSE),VLOOKUP(C48,'SINTÉTICO SICRO'!A:D,4,FALSE)),6) -> 0.82 | J48: =TRUNC(_xlfn.IFS(F48="SERV",I48*(1+$L$5),F48="SERV DIF",I48*(1+$L$6),F48="FORN",I48*(1+$L$7)),2) -> 1.01 | K48: =TRUNC(H48*I48,2) -> 1119345.93 | L48: =TRUNC(H48*J48,2) -> 1378706.57 | N48: PAVIMENTAÇÃO
B49: 10.4 | C49: 5914314 | D49: SICRO | E49: =VLOOKUP(C49,'SINTÉTICO SICRO'!A:D,2,0) -> Transporte com caminhão basculante de 6 m³ - rodovia em leito natural | F49: SERV | G49: tkm | H49: =SUMIF('MOMENTO DE TRANSPORTE - PRINC'!A:A,'RESUMO MODULO TOTAL'!C49,'MOMENTO DE TRANSPORTE - PRINC'!K:K)+SUMIF('MOMENTO DE TRANSPORTE - AUX'!A:A,'RESUMO MODULO TOTAL'!C49,'MOMENTO DE TRANSPORTE - AUX'!K:K) -> 1096.2 | I49: =ROUND(IF(D49="CODEVASF",VLOOKUP(C49,'CPU CODEVASF'!E:I,5,FALSE),VLOOKUP(C49,'SINTÉTICO SICRO'!A:D,4,FALSE)),6) -> 1.35 | J49: =TRUNC(_xlfn.IFS(F49="SERV",I49*(1+$L$5),F49="SERV DIF",I49*(1+$L$6),F49="FORN",I49*(1+$L$7)),2) -> 1.66 | K49: 1479.87 | L49: 1819.69 | N49: PAVIMENTAÇÃO
B50: 10.5 | C50: 5914329 | D50: SICRO | E50: =VLOOKUP(C50,'SINTÉTICO SICRO'!A:D,2,0) -> Transporte com caminhão basculante de 6 m³ - rodovia em revestimento primário | F50: SERV | G50: tkm | H50: =SUMIF('MOMENTO DE TRANSPORTE - PRINC'!A:A,'RESUMO MODULO TOTAL'!C50,'MOMENTO DE TRANSPORTE - PRINC'!K:K)+SUMIF('MOMENTO DE TRANSPORTE - AUX'!A:A,'RESUMO MODULO TOTAL'!C50,'MOMENTO DE TRANSPORTE - AUX'!K:K) -> 1096.2 | I50: =ROUND(IF(D50="CODEVASF",VLOOKUP(C50,'CPU CODEVASF'!E:I,5,FALSE),VLOOKUP(C50,'SINTÉTICO SICRO'!A:D,4,FALSE)),6) -> 1.08 | J50: =TRUNC(_xlfn.IFS(F50="SERV",I50*(1+$L$5),F50="SERV DIF",I50*(1+$L$6),F50="FORN",I50*(1+$L$7)),2) -> 1.33 | K50: 1183.89 | L50: 1457.94 | N50: PAVIMENTAÇÃO
B51: 10.6 | C51: 5914344 | D51: SICRO | E51: =VLOOKUP(C51,'SINTÉTICO SICRO'!A:D,2,0) -> Transporte com caminhão basculante de 6 m³ - rodovia pavimentada | F51: SERV | G51: tkm | H51: =SUMIF('MOMENTO DE TRANSPORTE - PRINC'!A:A,'RESUMO MODULO TOTAL'!C51,'MOMENTO DE TRANSPORTE - PRINC'!K:K)+SUMIF('MOMENTO DE TRANSPORTE - AUX'!A:A,'RESUMO MODULO TOTAL'!C51,'MOMENTO DE TRANSPORTE - AUX'!K:K) -> 8769.6 | I51: =ROUND(IF(D51="CODEVASF",VLOOKUP(C51,'CPU CODEVASF'!E:I,5,FALSE),VLOOKUP(C51,'SINTÉTICO SICRO'!A:D,4,FALSE)),6) -> 0.88 | J51: =TRUNC(_xlfn.IFS(F51="SERV",I51*(1+$L$5),F51="SERV DIF",I51*(1+$L$6),F51="FORN",I51*(1+$L$7)),2) -> 1.08 | K51: 7717.24 | L51: 9471.16 | N51: PAVIMENTAÇÃO
B52: 10.7 | C52: 5914449 | D52: SICRO | E52: =VLOOKUP(C52,'SINTÉTICO SICRO'!A:D,2,0) -> Transporte com caminhão carroceria de 15 t - rodovia em leito natural | F52: SERV | G52: tkm | H52: =SUMIF('MOMENTO DE TRANSPORTE - PRINC'!A:A,'RESUMO MODULO TOTAL'!C52,'MOMENTO DE TRANSPORTE - PRINC'!K:K)+SUMIF('MOMENTO DE TRANSPORTE - AUX'!A:A,'RESUMO MODULO TOTAL'!C52,'MOMENTO DE TRANSPORTE - AUX'!K:K) -> 837.27504 | I52: =ROUND(IF(D52="CODEVASF",VLOOKUP(C52,'CPU CODEVASF'!E:I,5,FALSE),VLOOKUP(C52,'SINTÉTICO SICRO'!A:D,4,FALSE)),6) -> 1.1 | J52: =TRUNC(_xlfn.IFS(F52="SERV",I52*(1+$L$5),F52="SERV DIF",I52*(1+$L$6),F52="FORN",I52*(1+$L$7)),2) -> 1.35 | K52: 921 | L52: 1130.32 | N52: PAVIMENTAÇÃO
B53: 10.8 | C53: 5914464 | D53: SICRO | E53: =VLOOKUP(C53,'SINTÉTICO SICRO'!A:D,2,0) -> Transporte com caminhão carroceria de 15 t - rodovia em revestimento primário | F53: SERV | G53: tkm | H53: =SUMIF('MOMENTO DE TRANSPORTE - PRINC'!A:A,'RESUMO MODULO TOTAL'!C53,'MOMENTO DE TRANSPORTE - PRINC'!K:K)+SUMIF('MOMENTO DE TRANSPORTE - AUX'!A:A,'RESUMO MODULO TOTAL'!C53,'MOMENTO DE TRANSPORTE - AUX'!K:K) -> 837.27504 | I53: =ROUND(IF(D53="CODEVASF",VLOOKUP(C53,'CPU CODEVASF'!E:I,5,FALSE),VLOOKUP(C53,'SINTÉTICO SICRO'!A:D,4,FALSE)),6) -> 0.88 | J53: =TRUNC(_xlfn.IFS(F53="SERV",I53*(1+$L$5),F53="SERV DIF",I53*(1+$L$6),F53="FORN",I53*(1+$L$7)),2) -> 1.08 | K53: =TRUNC(H53*I53,2) -> 736.8 | L53: =TRUNC(H53*J53,2) -> 904.25 | N53: PAVIMENTAÇÃO
B54: 10.9 | C54: 5914479 | D54: SICRO | E54: =VLOOKUP(C54,'SINTÉTICO SICRO'!A:D,2,0) -> Transporte com caminhão carroceria de 15 t - rodovia pavimentada | F54: SERV | G54: tkm | H54: =SUMIF('MOMENTO DE TRANSPORTE - PRINC'!A:A,'RESUMO MODULO TOTAL'!C54,'MOMENTO DE TRANSPORTE - PRINC'!K:K)+SUMIF('MOMENTO DE TRANSPORTE - AUX'!A:A,'RESUMO MODULO TOTAL'!C54,'MOMENTO DE TRANSPORTE - AUX'!K:K) -> 6698.20032 | I54: =ROUND(IF(D54="CODEVASF",VLOOKUP(C54,'CPU CODEVASF'!E:I,5,FALSE),VLOOKUP(C54,'SINTÉTICO SICRO'!A:D,4,FALSE)),6) -> 0.72 | J54: =TRUNC(_xlfn.IFS(F54="SERV",I54*(1+$L$5),F54="SERV DIF",I54*(1+$L$6),F54="FORN",I54*(1+$L$7)),2) -> 0.88 | K54: 4822.7 | L54: 5894.41 | N54: PAVIMENTAÇÃO
B55: 10.10 | C55: 5914539 | D55: SICRO | E55: =VLOOKUP(C55,'SINTÉTICO SICRO'!A:D,2,0) -> Transporte com caminhão betoneira - rodovia em leito natural | F55: SERV | G55: tkm | H55: =SUMIF('MOMENTO DE TRANSPORTE - PRINC'!A:A,'RESUMO MODULO TOTAL'!C55,'MOMENTO DE TRANSPORTE - PRINC'!K:K)+SUMIF('MOMENTO DE TRANSPORTE - AUX'!A:A,'RESUMO MODULO TOTAL'!C55,'MOMENTO DE TRANSPORTE - AUX'!K:K) -> 7257.6 | I55: =ROUND(IF(D55="CODEVASF",VLOOKUP(C55,'CPU CODEVASF'!E:I,5,FALSE),VLOOKUP(C55,'SINTÉTICO SICRO'!A:D,4,FALSE)),6) -> 1.23 | J55: =TRUNC(_xlfn.IFS(F55="SERV",I55*(1+$L$5),F55="SERV DIF",I55*(1+$L$6),F55="FORN",I55*(1+$L$7)),2) -> 1.51 | K55: 8926.84 | L55: 10958.97 | N55: PAVIMENTAÇÃO
B56: 10.11 | C56: 5914554 | D56: SICRO | E56: =VLOOKUP(C56,'SINTÉTICO SICRO'!A:D,2,0) -> Transporte com caminhão betoneira - rodovia em revestimento primário | F56: SERV | G56: tkm | H56: =SUMIF('MOMENTO DE TRANSPORTE - PRINC'!A:A,'RESUMO MODULO TOTAL'!C56,'MOMENTO DE TRANSPORTE - PRINC'!K:K)+SUMIF('MOMENTO DE TRANSPORTE - AUX'!A:A,'RESUMO MODULO TOTAL'!C56,'MOMENTO DE TRANSPORTE - AUX'!K:K) -> 7257.6 | I56: =ROUND(IF(D56="CODEVASF",VLOOKUP(C56,'CPU CODEVASF'!E:I,5,FALSE),VLOOKUP(C56,'SINTÉTICO SICRO'!A:D,4,FALSE)),6) -> 0.98 | J56: =TRUNC(_xlfn.IFS(F56="SERV",I56*(1+$L$5),F56="SERV DIF",I56*(1+$L$6),F56="FORN",I56*(1+$L$7)),2) -> 1.2 | K56: 7112.44 | L56: 8709.12 | N56: PAVIMENTAÇÃO
B57: 10.12 | C57: 5914569 | D57: SICRO | E57: =VLOOKUP(C57,'SINTÉTICO SICRO'!A:D,2,0) -> Transporte com caminhão betoneira - rodovia pavimentada | F57: SERV | G57: tkm | H57: =SUMIF('MOMENTO DE TRANSPORTE - PRINC'!A:A,'RESUMO MODULO TOTAL'!C57,'MOMENTO DE TRANSPORTE - PRINC'!K:K)+SUMIF('MOMENTO DE TRANSPORTE - AUX'!A:A,'RESUMO MODULO TOTAL'!C57,'MOMENTO DE TRANSPORTE - AUX'!K:K) -> 58060.8 | I57: =ROUND(IF(D57="CODEVASF",VLOOKUP(C57,'CPU CODEVASF'!E:I,5,FALSE),VLOOKUP(C57,'SINTÉTICO SICRO'!A:D,4,FALSE)),6) -> 0.8 | J57: =TRUNC(_xlfn.IFS(F57="SERV",I57*(1+$L$5),F57="SERV DIF",I57*(1+$L$6),F57="FORN",I57*(1+$L$7)),2) -> 0.98 | K57: 46448.64 | L57: 56899.58 | N57: PAVIMENTAÇÃO
B58: TOTAL GERAL DA OBRA COM BDI | K58: =SUM(K10,K13,K16,K18,K21,K28,K33,K38,K41,K43,K45) -> 16409488.34 | L58: =SUM(L10,L13,L16,L18,L21,L28,L33,L38,L41,L43,L45) -> 
B61: SERVIÇOS DE IMPLANTAÇÃO DE PAVIMENTAÇÃO EM TRATAMENTO SUPERFICIAL DUPLO (TSD), EM VIAS URBANAS E RURAIS INSERIDAS NA ÁREA DE ATUAÇÃO DA CODEVASF, NO ESTADO DO PIAUÍ - REGIÃO SUL
L64: 19897920

Sheet CRONOGRAMA TOTAL
A2: ='RESUMO MODULO TOTAL'!B61 -> SERVIÇOS DE IMPLANTAÇÃO DE PAVIMENTAÇÃO EM TRATAMENTO SUPERFICIAL DUPLO (TSD), EM VIAS URBANAS E RURAIS INSERIDAS NA ÁREA DE ATUAÇÃO DA CODEVASF, NO ESTADO DO PIAUÍ - REGIÃO SUL
A3: Cronograma Físico e Financeiro
A4: Item | B4: Descrição | C4: Total Por Etapa | D4: 30 DIAS | E4: 60 DIAS | F4: 90 DIAS | G4: 120 DIAS | H4: 150 DIAS | I4: 180 DIAS | J4: 210 DIAS | K4: 240 DIAS | L4: 270 DIAS | M4: 300 DIAS | N4: 330 DIAS | O4: 360 DIAS
B5: ='RESUMO MODULO TOTAL'!E10 -> SERVIÇOS PRELIMINARES | C5: =SUM(D5:O5) -> 1 | G5: 0.5 | O5: 0.5
C6: ='RESUMO MODULO TOTAL'!L10 -> 1161360 | G6: =$C$6*G5 -> 580680 | O6: =$C$6*O5 -> 580680 | P6: =SUM(D6:O6) -> 1161360 | Q6: =IF(P6=C6,"OK","") -> OK
B7: ='RESUMO MODULO TOTAL'!E13 -> INSTALAÇÃO DE CANTEIRO | C7: =SUM(D7:O7) -> 1 | G7: 0.1 | H7: 0.5 | I7: 0.4
C8: ='RESUMO MODULO TOTAL'!L13 -> 440780.04 | D8: =$C$8*D7 -> 0 | E8: =$C$8*E7 -> 0 | F8: 0 | G8: 44078.004 | H8: 220390.02 | I8: 176312.016 | J8: 0 | K8: 0 | L8: 0 | M8: 0 | N8: 0 | O8: 0 | P8: =SUM(D8:O8) -> 440780.04 | Q8: =IF(P8=C8,"OK","") -> OK
B9: ='RESUMO MODULO TOTAL'!E16 -> ADMINISTRAÇÃO LOCAL DA OBRA | C9: =SUM(D9:O9) ->  | D9: =(D6+D8+D12+D14+D16+D18+D20+D22+D24+D26)/($O$33-$C$10) ->  | O9: =(O6+O8+O12+O14+O16+O18+O20+O22+O24+O26)/($O$33-$C$10) -> 
C10: ='RESUMO MODULO TOTAL'!L16 -> 1418119.74 | D10: =$C$10*D9 ->  | E10: =$C$10*E9 ->  | F10: =$C$10*F9 ->  | P10: =SUM(D10:O10) ->  | Q10: =IF(P10=C10,"OK","") -> 
B11: ='RESUMO MODULO TOTAL'!E18 -> TERRAPLANAGEM | C11: =SUM(D11:O11) -> 1 | G11: =1/4 -> 0.25 | H11: =1/4 -> 0.25 | I11: =1/4 -> 0.25 | J11: 0.25
C12: ='RESUMO MODULO TOTAL'!L18 -> 1135134 | D12: =$C$14*D11 -> 0 | E12: =$C$12*E11 -> 0 | F12: 0 | G12: 283783.5 | H12: 283783.5 | I12: 283783.5 | J12: 283783.5 | K12: 0 | L12: 0 | M12: 0 | N12: 0 | O12: 0 | P12: =SUM(D12:O12) -> 1135134 | Q12: =IF(P12=C12,"OK","") -> OK
B13: ='RESUMO MODULO TOTAL'!E21 -> PAVIMENTAÇÃO | C13: =SUM(D13:O13) -> 1 | I13: =1/6 -> 0.1666666667 | J13: =1/6 -> 0.1666666667 | K13: 0.1666666667 | L13: 0.1666666667 | M13: 0.1666666667 | N13: 0.1666666667
C14: ='RESUMO MODULO TOTAL'!L21 -> 4837140 | D14: =$C$14*D13 -> 0 | E14: =$C$14*E13 -> 0 | F14: 0 | G14: 0 | H14: 0 | I14: 806190 | J14: 806190 | K14: 806190 | L14: 806190 | M14: 806190 | N14: 806190 | O14: 0 | P14: =SUM(D14:O14) -> 4837140 | Q14: =IF(P14=C14,"OK","") -> OK
B15: ='RESUMO MODULO TOTAL'!E28 -> AQUISIÇÃO E TRANSPORTE DO MATERIAL BETUMINOSO | C15: =SUM(D15:O15) -> 1 | I15: =1/6 -> 0.1666666667 | J15: 0.1666666667 | K15: 0.1666666667 | L15: 0.1666666667 | M15: 0.1666666667 | N15: 0.1666666667
C16: ='RESUMO MODULO TOTAL'!L28 ->  | D16: =$C$16*D15 ->  | E16: =$C$16*E15 ->  | P16: =SUM(D16:O16) ->  | Q16: =IF(P16=C16,"OK","") -> 
B17: ='RESUMO MODULO TOTAL'!E33 -> SINALIZAÇÃO | C17: =SUM(D17:O17) -> 1 | O17: 1
C18: ='RESUMO MODULO TOTAL'!L33 -> 428244.84 | D18: =$C$18*D17 -> 0 | E18: =$C$18*E17 -> 0 | F18: 0 | G18: 0 | H18: 0 | I18: 0 | J18: 0 | K18: 0 | L18: 0 | M18: 0 | N18: 0 | O18: 428244.84 | P18: =SUM(D18:O18) -> 428244.84 | Q18: =IF(P18=C18,"OK","") -> OK
B19: ='RESUMO MODULO TOTAL'!E38 -> DRENAGEM | C19: =SUM(D19:O19) -> 1 | N19: 0.5 | O19: 0.5
C20: ='RESUMO MODULO TOTAL'!L38 -> 2676009.6 | D20: =$C$20*D19 -> 0 | E20: =$C$20*E19 -> 0 | F20: 0 | G20: 0 | H20: 0 | I20: 0 | J20: 0 | K20: 0 | L20: 0 | M20: 0 | N20: 1338004.8 | O20: 1338004.8 | P20: =SUM(D20:O20) -> 2676009.6 | Q20: =IF(P20=C20,"OK","") -> OK
B21: ='RESUMO MODULO TOTAL'!E41 -> SERVIÇOS COMPLEMENTARES | C21: =SUM(D21:O21) -> 1 | H21: 0.5 | I21: 0.5
C22: ='RESUMO MODULO TOTAL'!L41 -> 72072 | D22: =$C$22*D21 -> 0 | E22: =$C$22*E21 -> 0 | F22: 0 | G22: 0 | H22: 36036 | I22: 36036 | J22: 0 | K22: 0 | L22: 0 | M22: 0 | N22: 0 | O22: 0 | P22: =SUM(D22:O22) -> 72072 | Q22: =IF(P22=C22,"OK","") -> OK
B23: ='RESUMO MODULO TOTAL'!E43 -> PROJETO EXECUTIVO | C23: =SUM(D23:O23) -> 1 | D23: 0.35 | E23: 0.35 | F23: 0.3
C24: ='RESUMO MODULO TOTAL'!L43 -> 1136520 | D24: =$C$24*D23 -> 397782 | E24: =$C$24*E23 -> 397782 | F24: 340956 | G24: 0 | H24: 0 | I24: 0 | J24: 0 | K24: 0 | L24: 0 | M24: 0 | N24: 0 | O24: 0 | P24: =SUM(D24:O24) -> 1136520 | Q24: =IF(P24=C24,"OK","") -> OK
B25: ='RESUMO MODULO TOTAL'!E45 -> MOMENTO DE TRANSPORTE | C25: =SUM(D25:O25) -> 1 | F25: 0.1 | G25: 0.1 | H25: 0.1 | I25: 0.15 | J25: 0.1 | K25: 0.1 | L25: 0.1 | M25: 0.1 | N25: 0.1 | O25: 0.05
C26: ='RESUMO MODULO TOTAL'!L45 -> 1948602.65 | D26: =$C$26*D25 -> 0 | E26: =$C$26*E25 -> 0 | F26: 194860.265 | G26: 194860.265 | H26: 194860.265 | I26: 292290.3975 | J26: 194860.265 | K26: 194860.265 | L26: 194860.265 | M26: 194860.265 | N26: 194860.265 | O26: 97430.1325 | P26: =SUM(D26:O26) -> 1948602.65 | Q26: =IF(P26=C26,"OK","") -> OK
A28: Porcentagem | D28: =SUM(D6+D8+D10+D12+D14+D16+D18+D20+D22+D24+D26)/$O$33 ->  | E28: =SUM(E6+E8+E10+E12+E14+E16+E18+E20+E22+E24+E26)/$O$33 ->  | O28: =SUM(O6+O8+O10+O12+O14+O16+O18+O20+O22+O24+O26)/$O$33 -> 
A29: Custo | D29: =$O$33*D28 ->  | E29: =$O$33*E28 ->  | F29: =$O$33*F28 -> 
A30: Porcentagem Acumulado | D30: =D28 ->  | E30: =D30+E28 ->  | F30: =E30+F28 ->  | O30: =N30+O28 -> 
A31: Custo Acumulado | D31: =D29 ->  | E31: =D31+E29 ->  | O31: =INT(N31+O29) -> 
D33: Total Geral | N33: R$ | O33: =INT(C6+C8+C10+C12+C14+C16+C18+C20+C22+C24+C26) -> 
O36: =O31-O33 -> 

Sheet MOMENTO DE TRANSPORTE - PRINC
B5: ='RESUMO MODULO TOTAL'!B61 -> SERVIÇOS DE IMPLANTAÇÃO DE PAVIMENTAÇÃO EM TRATAMENTO SUPERFICIAL DUPLO (TSD), EM VIAS URBANAS E RURAIS INSERIDAS NA ÁREA DE ATUAÇÃO DA CODEVASF, NO ESTADO DO PIAUÍ - REGIÃO SUL
B6: DATA BASE: | C6: ='RESUMO MODULO TOTAL'!C6 -> 2025-10-01
C8: RESUMO DO TRANSPORTE PRINCIPAL
B9: CODIGO | C9: DESCRIÇÃO | D9: TKM
B10: 5914359 | C10: =VLOOKUP(B10,'SINTÉTICO SICRO'!$A:$D,2,0) -> Transporte com caminhão basculante de 10 m³ - rodovia em leito natural | D10: =ROUND(SUMIF('MOMENTO DE TRANSPORTE - PRINC'!A:A,B10,'MOMENTO DE TRANSPORTE - PRINC'!K:K),2) -> 164405.56
B11: 5914314 | C11: =VLOOKUP(B11,'SINTÉTICO SICRO'!$A:$D,2,0) -> Transporte com caminhão basculante de 6 m³ - rodovia em leito natural | D11: =ROUND(SUMIF('MOMENTO DE TRANSPORTE - PRINC'!A:A,B11,'MOMENTO DE TRANSPORTE - PRINC'!K:K),2) -> 1096.2
B12: 5914329 | C12: =VLOOKUP(B12,'SINTÉTICO SICRO'!$A:$D,2,0) -> Transporte com caminhão basculante de 6 m³ - rodovia em revestimento primário | D12: =ROUND(SUMIF('MOMENTO DE TRANSPORTE - PRINC'!A:A,B12,'MOMENTO DE TRANSPORTE - PRINC'!K:K),2) -> 1096.2
B13: 5914344 | C13: =VLOOKUP(B13,'SINTÉTICO SICRO'!$A:$D,2,0) -> Transporte com caminhão basculante de 6 m³ - rodovia pavimentada | D13: =ROUND(SUMIF('MOMENTO DE TRANSPORTE - PRINC'!A:A,B13,'MOMENTO DE TRANSPORTE - PRINC'!K:K),2) -> 8769.6
B14: 5914374 | C14: =VLOOKUP(B14,'SINTÉTICO SICRO'!$A:$D,2,0) -> Transporte com caminhão basculante de 10 m³ - rodovia em revestimento primário | D14: =ROUND(SUMIF('MOMENTO DE TRANSPORTE - PRINC'!A:A,B14,'MOMENTO DE TRANSPORTE - PRINC'!K:K),2) -> 164405.56
B15: 5914389 | C15: =VLOOKUP(B15,'SINTÉTICO SICRO'!$A:$D,2,0) -> Transporte com caminhão basculante de 10 m³ - rodovia pavimentada | D15: =ROUND(SUMIF('MOMENTO DE TRANSPORTE - PRINC'!A:A,B15,'MOMENTO DE TRANSPORTE - PRINC'!K:K),2) -> 1315244.45
B16: 5914539 | C16: =VLOOKUP(B16,'SINTÉTICO SICRO'!$A:$D,2,0) -> Transporte com caminhão betoneira - rodovia em leito natural | D16: =ROUND(SUMIF('MOMENTO DE TRANSPORTE - PRINC'!A:A,B16,'MOMENTO DE TRANSPORTE - PRINC'!K:K),2) -> 7257.6
B17: 5914554 | C17: =VLOOKUP(B17,'SINTÉTICO SICRO'!$A:$D,2,0) -> Transporte com caminhão betoneira - rodovia em revestimento primário | D17: =ROUND(SUMIF('MOMENTO DE TRANSPORTE - PRINC'!A:A,B17,'MOMENTO DE TRANSPORTE - PRINC'!K:K),2) -> 7257.6
B18: 5914569 | C18: =VLOOKUP(B18,'SINTÉTICO SICRO'!$A:$D,2,0) -> Transporte com caminhão betoneira - rodovia pavimentada | D18: =ROUND(SUMIF('MOMENTO DE TRANSPORTE - PRINC'!A:A,B18,'MOMENTO DE TRANSPORTE - PRINC'!K:K),2) -> 58060.8
B20: TIPO (P, RP ou LN) | C20: DMT ESTIMADA (DISTRIBUIÇÃO DO ITEM NA PISTA
B21: P | C21: 10
B23: COMPOSIÇÕES PRINCIPAIS
B24: SISTEMA DE CUSTOS REFERENCIAIS DE OBRAS - SICRO
B25: Custo Unitário de Referência | E25: =$C$6 -> 2025-10-01 | I25: Quantitativo | K25: m²
B26: ='RESUMO MODULO TOTAL'!C22 -> 4915637 | C26: =VLOOKUP(B26,'SINTÉTICO SICRO'!$A$4:$D$1048576,2,0) -> Capa selante - areia comercial | I26: =(SUMIF('RESUMO MODULO TOTAL'!C:C,B26,'RESUMO MODULO TOTAL'!H:H))*0.8 -> 201600
B27: F - MOMENTO DE TRANSPORTE | D27: Quantidade | E27: Unidade | F27: CÓDIGO TRANSPORTE
F28: LN | G28: RP | H28: P | I28: TIPO (P, RP ou LN) | J28: DMT ESTIMADA (km) | K28: QUANTITATIVO TOTAL DE TRANSPORTE (tkm)
A29: =IF(I29="P",H29,IF(I29="RP",G29,IF(I29="LN",F29,""))) -> 5914344 | B29: M0028 | C29: Areia média - Caminhão basculante 6 m³ | D29: 0.00435 | E29: tkm | F29: 5914314 | G29: 5914329 | H29: 5914344 | I29: =$B$21 -> P | J29: =C21 -> 10 | K29: =IF(ISBLANK(J29),"",J29*D29)*I26 -> 8769.6
A30: =IF(I30="P",H30,IF(I30="RP",G30,IF(I30="LN",F30,""))) -> 
B31: Obs.
B32: SISTEMA DE CUSTOS REFERENCIAIS DE OBRAS - SICRO
B33: Custo Unitário de Referência | E33: =$C$6 -> 2025-10-01 | I33: Quantitativo | K33: m²
B34: ='RESUMO MODULO TOTAL'!C23 -> 4011370 | C34: =VLOOKUP(B34,'SINTÉTICO SICRO'!$A$4:$D$1048576,2,0) -> Tratamento superficial duplo com emulsão - brita comercial | I34: =(SUMIF('RESUMO MODULO TOTAL'!C:C,B34,'RESUMO MODULO TOTAL'!H:H))*0.8 -> 201600 | L34: 4011370
B35: F - MOMENTO DE TRANSPORTE | D35: Quantidade | E35: Unidade | F35: CÓDIGO TRANSPORTE
F36: LN | G36: RP | H36: P | I36: TIPO (P, RP ou LN) | J36: DMT ESTIMADA (km) | K36: QUANTITATIVO TOTAL DE TRANSPORTE (tkm)
A37: =IF(I37="P",H37,IF(I37="RP",G37,IF(I37="LN",F37,""))) -> 5914389 | B37: M0005 | C37: Brita 0 - Caminhão basculante 10 m³ | D37: 0.011 | E37: tkm | F37: 5914359 | G37: 5914374 | H37: 5914389 | I37: =$B$21 -> P | J37: =C21 -> 10 | K37: =IF(ISBLANK(J37),"",J37*D37)*I34 -> 22176
A38: =IF(I38="P",H38,IF(I38="RP",G38,IF(I38="LN",F38,""))) -> 5914389 | B38: M0191 | C38: Brita 1 - Caminhão basculante 10 m³ | D38: 0.0225 | E38: tkm | F38: 5914359 | G38: 5914374 | H38: 5914389 | I38: =$B$21 -> P | J38: =C21 -> 10 | K38: =IF(ISBLANK(J38),"",J38*D38)*I34 -> 45360
A39: =IF(I39="P",H39,IF(I39="RP",G39,IF(I39="LN",F39,""))) -> 
B42: SISTEMA DE CUSTOS REFERENCIAIS DE OBRAS - SICRO
B43: Custo Unitário de Referência | E43: =$C$6 -> 2025-10-01 | I43: Quantitativo | K43: un
B44: ='RESUMO MODULO TOTAL'!C25 -> 4011219 | C44: =VLOOKUP(B44,'SINTÉTICO SICRO'!$A$4:$D$1048576,2,0) -> Base de solo estabilizado granulometricamente sem mistura com material de jazida - 100% Proctor modificado | I44: =(SUMIF('RESUMO MODULO TOTAL'!C:C,B44,'RESUMO MODULO TOTAL'!H:H))*0.8 -> 30240
B45: D - ATIVIDADES AUXILIARES | D45: Quantidade | E45: Unidade
B46: 4016096 | C46: =VLOOKUP(B46,'SINTÉTICO SICRO'!$A$4:$D$1048576,2,0) -> Escavação e carga de material de jazida com escavadeira hidráulica de 1,56 m³ | D46: 1.10027 | E46: m³
B48: F - MOMENTO DE TRANSPORTE | D48: Quantidade | E48: Unidade | F48: CÓDIGO TRANSPORTE
F49: LN | G49: RP | H49: P | I49: TIPO (P, RP ou LN) | J49: DMT ESTIMADA (km) | K49: QUANTITATIVO TOTAL DE TRANSPORTE (tkm)
A50: 5914389 | B50: 4016096 | C50: =VLOOKUP(B50,'SINTÉTICO SICRO'!$A$4:$D$1048576,2,0) -> Escavação e carga de material de jazida com escavadeira hidráulica de 1,56 m³ | D50: 2.06301 | E50: tkm | F50: 5914359 | G50: 5914374 | H50: 5914389 | I50: =$B$21 -> P | J50: =$C$21 -> 10 | K50: =IF(ISBLANK(J50),"",J50*D50)*I44 -> 623854.224
B52: Obs.
A53: =IF(I53="P",H53,IF(I53="RP",G53,IF(I53="LN",F53,""))) ->  | B53: SISTEMA DE CUSTOS REFERENCIAIS DE OBRAS - SICRO
B54: Custo Unitário de Referência | E54: =$C$6 -> 2025-10-01 | I54: Quantitativo | K54: un
B55: ='RESUMO MODULO TOTAL'!C26 -> 4011227 | C55: =VLOOKUP(B55,'SINTÉTICO SICRO'!$A$4:$D$1048576,2,0) -> Sub-base de solo estabilizado granulometricamente sem mistura com material de jazida - 100% Proctor intermediário | I55: =(SUMIF('RESUMO MODULO TOTAL'!C:C,B55,'RESUMO MODULO TOTAL'!H:H))*0.8 -> 30240
B56: D - ATIVIDADES AUXILIARES | D56: Quantidade | E56: Unidade
B57: 4016096 | C57: =VLOOKUP(B57,'SINTÉTICO SICRO'!$A$4:$D$1048576,2,0) -> Escavação e carga de material de jazida com escavadeira hidráulica de 1,56 m³ | D57: 1.10027 | E57: m³
B59: F - MOMENTO DE TRANSPORTE | D59: Quantidade | E59: Unidade | F59: CÓDIGO TRANSPORTE
F60: LN | G60: RP | H60: P | I60: TIPO (P, RP ou LN) | J60: DMT ESTIMADA (km) | K60: QUANTITATIVO TOTAL DE TRANSPORTE (tkm)
A61: 5914389 | B61: 4016096 | C61: =VLOOKUP(B61,'SINTÉTICO SICRO'!$A$4:$D$1048576,2,0) -> Escavação e carga de material de jazida com escavadeira hidráulica de 1,56 m³ | D61: 2.06301 | E61: tkm | F61: 5914359 | G61: 5914374 | H61: 5914389 | I61: =$B$21 -> P | J61: =$C$21 -> 10 | K61: =IF(ISBLANK(J61),"",J61*D61)*I55 -> 623854.224
B63: Obs.
B66: SISTEMA DE CUSTOS REFERENCIAIS DE OBRAS - SICRO
B67: Custo Unitário de Referência | I67: Quantitativo | K67: m
B68: 2003943 | C68: =VLOOKUP(B68,'SINTÉTICO SICRO'!A:D,2,0) -> Meio-fio de concreto - MFC 03 moldado no local com extrusora e concreto usinado - areia e brita comerciais | I68: =SUMIF('RESUMO MODULO TOTAL'!C:C,B68,'RESUMO MODULO TOTAL'!H:H)*0.8 -> 57600
B69: D - ATIVIDADES AUXILIARES | D69: Quantidade | E69: Unidade
B70: 1107928 | C70: =VLOOKUP(B70,'SINTÉTICO SICRO'!A:D,2,0) -> Concreto fck = 20 MPa - confecção em central dosadora de 30 m³/h - areia e brita comerciais | D70: 0.042 | E70: m³
B71: 2003842 | C71: =VLOOKUP(B71,'SINTÉTICO SICRO'!A:D,2,0) -> Enchimento de junta de concreto com argamassa asfáltica de densidade 1.700 kg/m³ - espessura de 1 cm | D71: 0.0595 | E71: kg
B72: 4805750 | C72: =VLOOKUP(B72,'SINTÉTICO SICRO'!A:D,2,0) -> Escavação manual em material de 1ª categoria na profundidade de até 1 m | D72: 0.03 | E72: m³
B74: F - MOMENTO DE TRANSPORTE | D74: Quantidade | E74: Unidade | F74: CÓDIGO TRANSPORTE
F75: LN | G75: RP | H75: P | I75: TIPO (P, RP ou LN) | J75: DMT ESTIMADA (km) | K75: QUANTITATIVO TOTAL DE TRANSPORTE (tkm)
A76: =IF(I76="P",H76,IF(I76="RP",G76,IF(I76="LN",F76,""))) -> 5914569 | B76: 1107928 | C76: =VLOOKUP(B76,'SINTÉTICO SICRO'!A:D,2,0) -> Concreto fck = 20 MPa - confecção em central dosadora de 30 m³/h - areia e brita comerciais | D76: 0.1008 | E76: tkm | F76: 5914539 | G76: 5914554 | H76: 5914569 | I76: =$B$21 -> P | J76: =C21 -> 10 | K76: =IF(ISBLANK(J76),"",J76*D76)*I68 -> 58060.8
B77: Obs.
B78: TIPO (P, RP ou LN) | C78: DMT ESTIMADA (DISTRIBUIÇÃO DO ITEM NA PISTA
B79: LN | C79: 10
B81: COMPOSIÇÕES PRINCIPAIS
B82: SISTEMA DE CUSTOS REFERENCIAIS DE OBRAS - SICRO
B83: Custo Unitário de Referência | E83: =$C$6 -> 2025-10-01 | I83: Quantitativo | K83: m²
B84: ='RESUMO MODULO TOTAL'!C22 -> 4915637 | C84: =VLOOKUP(B84,'SINTÉTICO SICRO'!$A$4:$D$1048576,2,0) -> Capa selante - areia comercial | I84: =(SUMIF('RESUMO MODULO TOTAL'!C:C,B84,'RESUMO MODULO TOTAL'!H:H))*0.1 -> 25200
B85: F - MOMENTO DE TRANSPORTE | D85: Quantidade | E85: Unidade | F85: CÓDIGO TRANSPORTE
F86: LN | G86: RP | H86: P | I86: TIPO (P, RP ou LN) | J86: DMT ESTIMADA (km) | K86: QUANTITATIVO TOTAL DE TRANSPORTE (tkm)
A87: =IF(I87="P",H87,IF(I87="RP",G87,IF(I87="LN",F87,""))) -> 5914314 | B87: M0028 | C87: Areia média - Caminhão basculante 6 m³ | D87: 0.00435 | E87: tkm | F87: 5914314 | G87: 5914329 | H87: 5914344 | I87: =$B$79 -> LN | J87: =C79 -> 10 | K87: =IF(ISBLANK(J87),"",J87*D87)*I84 -> 1096.2
A88: =IF(I88="P",H88,IF(I88="RP",G88,IF(I88="LN",F88,""))) -> 
B89: Obs.
B90: SISTEMA DE CUSTOS REFERENCIAIS DE OBRAS - SICRO
B91: Custo Unitário de Referência | E91: =$C$6 -> 2025-10-01 | I91: Quantitativo | K91: m²
B92: ='RESUMO MODULO TOTAL'!C23 -> 4011370 | C92: =VLOOKUP(B92,'SINTÉTICO SICRO'!$A$4:$D$1048576,2,0) -> Tratamento superficial duplo com emulsão - brita comercial | I92: =(SUMIF('RESUMO MODULO TOTAL'!C:C,B92,'RESUMO MODULO TOTAL'!H:H))*0.1 -> 25200
B93: F - MOMENTO DE TRANSPORTE | D93: Quantidade | E93: Unidade | F93: CÓDIGO TRANSPORTE
F94: LN | G94: RP | H94: P | I94: TIPO (P, RP ou LN) | J94: DMT ESTIMADA (km) | K94: QUANTITATIVO TOTAL DE TRANSPORTE (tkm)
A95: =IF(I95="P",H95,IF(I95="RP",G95,IF(I95="LN",F95,""))) -> 5914359 | B95: M0005 | C95: Brita 0 - Caminhão basculante 10 m³ | D95: 0.011 | E95: tkm | F95: 5914359 | G95: 5914374 | H95: 5914389 | I95: =$B$79 -> LN | J95: =C79 -> 10 | K95: =IF(ISBLANK(J95),"",J95*D95)*I92 -> 2772
A96: =IF(I96="P",H96,IF(I96="RP",G96,IF(I96="LN",F96,""))) -> 5914359 | B96: M0191 | C96: Brita 1 - Caminhão basculante 10 m³ | D96: 0.0225 | E96: tkm | F96: 5914359 | G96: 5914374 | H96: 5914389 | I96: LN | J96: =C79 -> 10 | K96: =IF(ISBLANK(J96),"",J96*D96)*I92 -> 5670
A97: =IF(I97="P",H97,IF(I97="RP",G97,IF(I97="LN",F97,""))) -> 
A99: =IF(I99="P",H99,IF(I99="RP",G99,IF(I99="LN",F99,""))) ->  | B99: SISTEMA DE CUSTOS REFERENCIAIS DE OBRAS - SICRO
B100: Custo Unitário de Referência | E100: =$C$6 -> 2025-10-01 | I100: Quantitativo | K100: un
B101: ='RESUMO MODULO TOTAL'!C25 -> 4011219 | C101: =VLOOKUP(B101,'SINTÉTICO SICRO'!$A$4:$D$1048576,2,0) -> Base de solo estabilizado granulometricamente sem mistura com material de jazida - 100% Proctor modificado | I101: =(SUMIF('RESUMO MODULO TOTAL'!C:C,B101,'RESUMO MODULO TOTAL'!H:H))*0.1 -> 3780
B102: D - ATIVIDADES AUXILIARES | D102: Quantidade | E102: Unidade
B103: 4016096 | C103: =VLOOKUP(B103,'SINTÉTICO SICRO'!$A$4:$D$1048576,2,0) -> Escavação e carga de material de jazida com escavadeira hidráulica de 1,56 m³ | D103: 1.10027 | E103: m³
B105: F - MOMENTO DE TRANSPORTE | D105: Quantidade | E105: Unidade | F105: CÓDIGO TRANSPORTE
F106: LN | G106: RP | H106: P | I106: TIPO (P, RP ou LN) | J106: DMT ESTIMADA (km) | K106: QUANTITATIVO TOTAL DE TRANSPORTE (tkm)
A107: 5914359 | B107: 4016096 | C107: =VLOOKUP(B107,'SINTÉTICO SICRO'!$A$4:$D$1048576,2,0) -> Escavação e carga de material de jazida com escavadeira hidráulica de 1,56 m³ | D107: 2.06301 | E107: tkm | F107: 5914359 | G107: 5914374 | H107: 5914389 | I107: =$B$79 -> LN | J107: =$C$79 -> 10 | K107: =IF(ISBLANK(J107),"",J107*D107)*I101 -> 77981.778
B109: Obs.
A110: =IF(I110="P",H110,IF(I110="RP",G110,IF(I110="LN",F110,""))) ->  | B110: SISTEMA DE CUSTOS REFERENCIAIS DE OBRAS - SICRO
B111: Custo Unitário de Referência | E111: =$C$6 -> 2025-10-01 | I111: Quantitativo | K111: un
B112: ='RESUMO MODULO TOTAL'!C26 -> 4011227 | C112: =VLOOKUP(B112,'SINTÉTICO SICRO'!$A$4:$D$1048576,2,0) -> Sub-base de solo estabilizado granulometricamente sem mistura com material de jazida - 100% Proctor intermediário | I112: =(SUMIF('RESUMO MODULO TOTAL'!C:C,B112,'RESUMO MODULO TOTAL'!H:H))*0.1 -> 3780
B113: D - ATIVIDADES AUXILIARES | D113: Quantidade | E113: Unidade
B114: 4016096 | C114: =VLOOKUP(B114,'SINTÉTICO SICRO'!$A$4:$D$1048576,2,0) -> Escavação e carga de material de jazida com escavadeira hidráulica de 1,56 m³ | D114: 1.10027 | E114: m³
B116: F - MOMENTO DE TRANSPORTE | D116: Quantidade | E116: Unidade | F116: CÓDIGO TRANSPORTE
F117: LN | G117: RP | H117: P | I117: TIPO (P, RP ou LN) | J117: DMT ESTIMADA (km) | K117: QUANTITATIVO TOTAL DE TRANSPORTE (tkm)
A118: 5914359 | B118: 4016096 | C118: =VLOOKUP(B118,'SINTÉTICO SICRO'!$A$4:$D$1048576,2,0) -> Escavação e carga de material de jazida com escavadeira hidráulica de 1,56 m³ | D118: 2.06301 | E118: tkm | F118: 5914359 | G118: 5914374 | H118: 5914389 | I118: =$B$79 -> LN | J118: =$C$79 -> 10 | K118: =IF(ISBLANK(J118),"",J118*D118)*I112 -> 77981.778
B120: Obs.
B123: SISTEMA DE CUSTOS REFERENCIAIS DE OBRAS - SICRO
B124: Custo Unitário de Referência | I124: Quantitativo | K124: m
B125: 2003943 | C125: =VLOOKUP(B125,'SINTÉTICO SICRO'!A:D,2,0) -> Meio-fio de concreto - MFC 03 moldado no local com extrusora e concreto usinado - areia e brita comerciais | I125: =SUMIF('RESUMO MODULO TOTAL'!C:C,B125,'RESUMO MODULO TOTAL'!H:H)*0.1 -> 7200
B126: D - ATIVIDADES AUXILIARES | D126: Quantidade | E126: Unidade
B127: 1107928 | C127: =VLOOKUP(B127,'SINTÉTICO SICRO'!A:D,2,0) -> Concreto fck = 20 MPa - confecção em central dosadora de 30 m³/h - areia e brita comerciais | D127: 0.042 | E127: m³
B128: 2003842 | C128: =VLOOKUP(B128,'SINTÉTICO SICRO'!A:D,2,0) -> Enchimento de junta de concreto com argamassa asfáltica de densidade 1.700 kg/m³ - espessura de 1 cm | D128: 0.0595 | E128: kg
B129: 4805750 | C129: =VLOOKUP(B129,'SINTÉTICO SICRO'!A:D,2,0) -> Escavação manual em material de 1ª categoria na profundidade de até 1 m | D129: 0.03 | E129: m³
B131: F - MOMENTO DE TRANSPORTE | D131: Quantidade | E131: Unidade | F131: CÓDIGO TRANSPORTE
F132: LN | G132: RP | H132: P | I132: TIPO (P, RP ou LN) | J132: DMT ESTIMADA (km) | K132: QUANTITATIVO TOTAL DE TRANSPORTE (tkm)
A133: =IF(I133="P",H133,IF(I133="RP",G133,IF(I133="LN",F133,""))) -> 5914539 | B133: 1107928 | C133: =VLOOKUP(B133,'SINTÉTICO SICRO'!A:D,2,0) -> Concreto fck = 20 MPa - confecção em central dosadora de 30 m³/h - areia e brita comerciais | D133: 0.1008 | E133: tkm | F133: 5914539 | G133: 5914554 | H133: 5914569 | I133: =$B$79 -> LN | J133: =C79 -> 10 | K133: =IF(ISBLANK(J133),"",J133*D133)*I125 -> 7257.6
B134: Obs.
B135: TIPO (P, RP ou LN) | C135: DMT ESTIMADA (DISTRIBUIÇÃO DO ITEM NA PISTA
B136: RP | C136: 10
B138: COMPOSIÇÕES PRINCIPAIS
B139: SISTEMA DE CUSTOS REFERENCIAIS DE OBRAS - SICRO
B140: Custo Unitário de Referência | E140: =$C$6 -> 2025-10-01 | I140: Quantitativo | K140: m²
B141: ='RESUMO MODULO TOTAL'!C22 -> 4915637 | C141: =VLOOKUP(B141,'SINTÉTICO SICRO'!$A$4:$D$1048576,2,0) -> Capa selante - areia comercial | I141: =(SUMIF('RESUMO MODULO TOTAL'!C:C,B141,'RESUMO MODULO TOTAL'!H:H))*0.1 -> 25200
B142: F - MOMENTO DE TRANSPORTE | D142: Quantidade | E142: Unidade | F142: CÓDIGO TRANSPORTE
F143: LN | G143: RP | H143: P | I143: TIPO (P, RP ou LN) | J143: DMT ESTIMADA (km) | K143: QUANTITATIVO TOTAL DE TRANSPORTE (tkm)
A144: =IF(I144="P",H144,IF(I144="RP",G144,IF(I144="LN",F144,""))) -> 5914329 | B144: M0028 | C144: Areia média - Caminhão basculante 6 m³ | D144: 0.00435 | E144: tkm | F144: 5914314 | G144: 5914329 | H144: 5914344 | I144: =$B$136 -> RP | J144: =C136 -> 10 | K144: =IF(ISBLANK(J144),"",J144*D144)*I141 -> 1096.2
A145: =IF(I145="P",H145,IF(I145="RP",G145,IF(I145="LN",F145,""))) -> 
B146: Obs.
B147: SISTEMA DE CUSTOS REFERENCIAIS DE OBRAS - SICRO
B148: Custo Unitário de Referência | E148: =$C$6 -> 2025-10-01 | I148: Quantitativo | K148: m²
B149: ='RESUMO MODULO TOTAL'!C23 -> 4011370 | C149: =VLOOKUP(B149,'SINTÉTICO SICRO'!$A$4:$D$1048576,2,0) -> Tratamento superficial duplo com emulsão - brita comercial | I149: =(SUMIF('RESUMO MODULO TOTAL'!C:C,B149,'RESUMO MODULO TOTAL'!H:H))*0.1 -> 25200
B150: F - MOMENTO DE TRANSPORTE | D150: Quantidade | E150: Unidade | F150: CÓDIGO TRANSPORTE
F151: LN | G151: RP | H151: P | I151: TIPO (P, RP ou LN) | J151: DMT ESTIMADA (km) | K151: QUANTITATIVO TOTAL DE TRANSPORTE (tkm)
A152: =IF(I152="P",H152,IF(I152="RP",G152,IF(I152="LN",F152,""))) -> 5914374 | B152: M0005 | C152: Brita 0 - Caminhão basculante 10 m³ | D152: 0.011 | E152: tkm | F152: 5914359 | G152: 5914374 | H152: 5914389 | I152: =$B$136 -> RP | J152: =C136 -> 10 | K152: =IF(ISBLANK(J152),"",J152*D152)*I149 -> 2772
A153: =IF(I153="P",H153,IF(I153="RP",G153,IF(I153="LN",F153,""))) -> 5914374 | B153: M0191 | C153: Brita 1 - Caminhão basculante 10 m³ | D153: 0.0225 | E153: tkm | F153: 5914359 | G153: 5914374 | H153: 5914389 | I153: =$B$136 -> RP | J153: =C136 -> 10 | K153: =IF(ISBLANK(J153),"",J153*D153)*I149 -> 5670
A154: =IF(I154="P",H154,IF(I154="RP",G154,IF(I154="LN",F154,""))) -> 
A156: =IF(I156="P",H156,IF(I156="RP",G156,IF(I156="LN",F156,""))) ->  | B156: SISTEMA DE CUSTOS REFERENCIAIS DE OBRAS - SICRO
B157: Custo Unitário de Referência | E157: =$C$6 -> 2025-10-01 | I157: Quantitativo | K157: un
B158: ='RESUMO MODULO TOTAL'!C25 -> 4011219 | C158: =VLOOKUP(B158,'SINTÉTICO SICRO'!$A$4:$D$1048576,2,0) -> Base de solo estabilizado granulometricamente sem mistura com material de jazida - 100% Proctor modificado | I158: =(SUMIF('RESUMO MODULO TOTAL'!C:C,B158,'RESUMO MODULO TOTAL'!H:H))*0.1 -> 3780
B159: D - ATIVIDADES AUXILIARES | D159: Quantidade | E159: Unidade
B160: 4016096 | C160: =VLOOKUP(B160,'SINTÉTICO SICRO'!$A$4:$D$1048576,2,0) -> Escavação e carga de material de jazida com escavadeira hidráulica de 1,56 m³ | D160: 1.10027 | E160: m³
B162: F - MOMENTO DE TRANSPORTE | D162: Quantidade | E162: Unidade | F162: CÓDIGO TRANSPORTE
F163: LN | G163: RP | H163: P | I163: TIPO (P, RP ou LN) | J163: DMT ESTIMADA (km) | K163: QUANTITATIVO TOTAL DE TRANSPORTE (tkm)
A164: 5914374 | B164: 4016096 | C164: =VLOOKUP(B164,'SINTÉTICO SICRO'!$A$4:$D$1048576,2,0) -> Escavação e carga de material de jazida com escavadeira hidráulica de 1,56 m³ | D164: 2.06301 | E164: tkm | F164: 5914359 | G164: 5914374 | H164: 5914389 | I164: =$B$136 -> RP | J164: =$C$136 -> 10 | K164: =IF(ISBLANK(J164),"",J164*D164)*I158 -> 77981.778
B166: Obs.
A167: =IF(I167="P",H167,IF(I167="RP",G167,IF(I167="LN",F167,""))) ->  | B167: SISTEMA DE CUSTOS REFERENCIAIS DE OBRAS - SICRO
B168: Custo Unitário de Referência | E168: =$C$6 -> 2025-10-01 | I168: Quantitativo | K168: un
B169: ='RESUMO MODULO TOTAL'!C26 -> 4011227 | C169: =VLOOKUP(B169,'SINTÉTICO SICRO'!$A$4:$D$1048576,2,0) -> Sub-base de solo estabilizado granulometricamente sem mistura com material de jazida - 100% Proctor intermediário | I169: =(SUMIF('RESUMO MODULO TOTAL'!C:C,B169,'RESUMO MODULO TOTAL'!H:H))*0.1 -> 3780
B170: D - ATIVIDADES AUXILIARES | D170: Quantidade | E170: Unidade
B171: 4016096 | C171: =VLOOKUP(B171,'SINTÉTICO SICRO'!$A$4:$D$1048576,2,0) -> Escavação e carga de material de jazida com escavadeira hidráulica de 1,56 m³ | D171: 1.10027 | E171: m³
B173: F - MOMENTO DE TRANSPORTE | D173: Quantidade | E173: Unidade | F173: CÓDIGO TRANSPORTE
F174: LN | G174: RP | H174: P | I174: TIPO (P, RP ou LN) | J174: DMT ESTIMADA (km) | K174: QUANTITATIVO TOTAL DE TRANSPORTE (tkm)
A175: 5914374 | B175: 4016096 | C175: =VLOOKUP(B175,'SINTÉTICO SICRO'!$A$4:$D$1048576,2,0) -> Escavação e carga de material de jazida com escavadeira hidráulica de 1,56 m³ | D175: 2.06301 | E175: tkm | F175: 5914359 | G175: 5914374 | H175: 5914389 | I175: =$B$136 -> RP | J175: =$C$136 -> 10 | K175: =IF(ISBLANK(J175),"",J175*D175)*I169 -> 77981.778
B177: Obs.
B179: SISTEMA DE CUSTOS REFERENCIAIS DE OBRAS - SICRO
B180: Custo Unitário de Referência | I180: Quantitativo | K180: m
B181: 2003943 | C181: =VLOOKUP(B181,'SINTÉTICO SICRO'!A:D,2,0) -> Meio-fio de concreto - MFC 03 moldado no local com extrusora e concreto usinado - areia e brita comerciais | I181: =SUMIF('RESUMO MODULO TOTAL'!C:C,B181,'RESUMO MODULO TOTAL'!H:H)*0.1 -> 7200
B182: D - ATIVIDADES AUXILIARES | D182: Quantidade | E182: Unidade
B183: 1107928 | C183: =VLOOKUP(B183,'SINTÉTICO SICRO'!A:D,2,0) -> Concreto fck = 20 MPa - confecção em central dosadora de 30 m³/h - areia e brita comerciais | D183: 0.042 | E183: m³
B184: 2003842 | C184: =VLOOKUP(B184,'SINTÉTICO SICRO'!A:D,2,0) -> Enchimento de junta de concreto com argamassa asfáltica de densidade 1.700 kg/m³ - espessura de 1 cm | D184: 0.0595 | E184: kg
B185: 4805750 | C185: =VLOOKUP(B185,'SINTÉTICO SICRO'!A:D,2,0) -> Escavação manual em material de 1ª categoria na profundidade de até 1 m | D185: 0.03 | E185: m³
B187: F - MOMENTO DE TRANSPORTE | D187: Quantidade | E187: Unidade | F187: CÓDIGO TRANSPORTE
F188: LN | G188: RP | H188: P | I188: TIPO (P, RP ou LN) | J188: DMT ESTIMADA (km) | K188: QUANTITATIVO TOTAL DE TRANSPORTE (tkm)
A189: =IF(I189="P",H189,IF(I189="RP",G189,IF(I189="LN",F189,""))) -> 5914554 | B189: 1107928 | C189: =VLOOKUP(B189,'SINTÉTICO SICRO'!A:D,2,0) -> Concreto fck = 20 MPa - confecção em central dosadora de 30 m³/h - areia e brita comerciais | D189: 0.1008 | E189: tkm | F189: 5914539 | G189: 5914554 | H189: 5914569 | I189: =$B$136 -> RP | J189: =C136 -> 10 | K189: =IF(ISBLANK(J189),"",J189*D189)*I181 -> 7257.6
B190: Obs.

Sheet MOMENTO DE TRANSPORTE - AUX
B5: ='RESUMO MODULO TOTAL'!B61 -> SERVIÇOS DE IMPLANTAÇÃO DE PAVIMENTAÇÃO EM TRATAMENTO SUPERFICIAL DUPLO (TSD), EM VIAS URBANAS E RURAIS INSERIDAS NA ÁREA DE ATUAÇÃO DA CODEVASF, NO ESTADO DO PIAUÍ - REGIÃO SUL
B6: DATA BASE: | C6: ='RESUMO MODULO TOTAL'!C6 -> 2025-10-01
C8: RESUMO DO TRANSPORTE AUXILIAR
B9: CODIGO | C9: DESCRIÇÃO | D9: TKM
B10: 5914359 | C10: =VLOOKUP(B10,'SINTÉTICO SICRO'!$A:$D,2,0) -> Transporte com caminhão basculante de 10 m³ - rodovia em leito natural | D10: =ROUND(SUMIF($A:$A,B10,$K:$K),2) -> 6226.45
B11: 5914374 | C11: =VLOOKUP(B11,'SINTÉTICO SICRO'!$A:$D,2,0) -> Transporte com caminhão basculante de 10 m³ - rodovia em revestimento primário | D11: 6226.45
B12: 5914389 | C12: =VLOOKUP(B12,'SINTÉTICO SICRO'!$A:$D,2,0) -> Transporte com caminhão basculante de 10 m³ - rodovia pavimentada | D12: 49811.57
B13: 5914449 | C13: =VLOOKUP(B13,'SINTÉTICO SICRO'!$A:$D,2,0) -> Transporte com caminhão carroceria de 15 t - rodovia em leito natural | D13: 837.28
B14: 5914464 | C14: =VLOOKUP(B14,'SINTÉTICO SICRO'!$A:$D,2,0) -> Transporte com caminhão carroceria de 15 t - rodovia em revestimento primário | D14: 837.28
B15: 5914479 | C15: =VLOOKUP(B15,'SINTÉTICO SICRO'!$A:$D,2,0) -> Transporte com caminhão carroceria de 15 t - rodovia pavimentada | D15: 6698.2
B16: 5914364 | C16: =VLOOKUP(B16,'SINTÉTICO SICRO'!$A:$D,2,0) -> Transporte de cimento ou cal hidratada a granel com caminhão silo de 30 m³ - rodovia em leito natural | D16: 0
B17: 5914365 | C17: =VLOOKUP(B17,'SINTÉTICO SICRO'!$A:$D,2,0) -> Transporte de cimento ou cal hidratada a granel com caminhão silo de 30 m³ - rodovia em revestimento primário | D17: 0
B18: 5914366 | C18: =VLOOKUP(B18,'SINTÉTICO SICRO'!$A:$D,2,0) -> Transporte de cimento ou cal hidratada a granel com caminhão silo de 30 m³ - rodovia pavimentada | D18: 0
B20: TIPO (P, RP ou LN) | C20: DMT ATÉ 50 KM NÃO DEVE SER PAGA | D20: SOMENTE DEVE SER ADICIONADO A DISTÂNCIA EXCEDENTE A 50 KM
B21: P | D21: 10
B23: SISTEMA DE CUSTOS REFERENCIAIS DE OBRAS - SICRO | I23: Quantitivo
B24: Custo Unitário de Referência | E24: =$C$6 -> 2025-10-01 | I24: (Coeficiente na composição principal) x (quantidade da principal no orçamento) | K24: m³
B25: 1107892 | C25: Concreto fck = 20 MPa - confecção em betoneira e lançamento manual - areia e brita comerciais | I25: =('MOMENTO DE TRANSPORTE - PRINC'!D70*VLOOKUP(C34,'RESUMO MODULO TOTAL'!$C$9:$J$57,6,FALSE))*0.8 -> 2419.2
B26: F - MOMENTO DE TRANSPORTE | D26: Quantidade | E26: Unidade | F26: DMT
F27: LN | G27: RP | H27: P | I27: TIPO (P, RP ou LN) | J27: DMT ESTIMADA (km) | K27: QUANTITATIVO TOTAL DE TRANSPORTE DE MATERIAL (tkm)
A28: =IF(I28="P",H28,IF(I28="RP",G28,IF(I28="LN",F28,""))) -> 5914479 | B28: M0030 | C28: Aditivo plastificante e retardador de pega para concreto e argamassa - Caminhão carroceria 15 t | D28: 0.00082 | E28: tkm | F28: 5914449 | G28: 5914464 | H28: 5914479 | I28: =$B$21 -> P | J28: =$D$21 -> 10 | K28: =IF(ISBLANK(J28),"",J28*(D28*$I$25)) -> 19.83744
A29: 5914389 | B29: M0082 | C29: Areia média lavada - Caminhão basculante 10 m³ | D29: 0.95639 | E29: tkm | F29: 5914359 | G29: 5914374 | H29: 5914389 | I29: =$B$21 -> P | J29: =$D$21 -> 10 | K29: =IF(ISBLANK(J29),"",J29*(D29*$I$25)) -> 23136.98688
A30: 5914389 | B30: M0191 | C30: Brita 1 - Caminhão basculante 10 m³ | D30: 0.55131 | E30: tkm | F30: 5914359 | G30: 5914374 | H30: 5914389 | I30: P | J30: 10 | K30: =IF(ISBLANK(J30),"",J30*(D30*$I$25)) -> 13337.29152
A31: 5914389 | B31: M0192 | C31: Brita 2 - Caminhão basculante 10 m³ | D31: 0.55131 | E31: tkm | F31: 5914359 | G31: 5914374 | H31: 5914389 | I31: P | J31: 10 | K31: =IF(ISBLANK(J31),"",J31*(D31*$I$25)) -> 13337.29152
A32: 5914479 | B32: M0424 | C32: Cimento Portland CP II - 32 - saco - Caminhão carroceria 15 t | D32: 0.27464 | E32: tkm | F32: 5914449 | G32: 5914464 | H32: 5914479 | I32: P | J32: 10 | K32: =IF(ISBLANK(J32),"",J32*(D32*$I$25)) -> 6644.09088
B34: PRINCIPAL: | C34: 2003943
B35: SISTEMA DE CUSTOS REFERENCIAIS DE OBRAS - SICRO | I35: Quantitivo
B36: Custo Unitário de Referência | E36: =$C$6 -> 2025-10-01 | I36: (Coeficiente na composição principal) x (quantidade da principal no orçamento) | K36: kg
B37: 2003842 | C37: Enchimento de junta de concreto com argamassa asfáltica de densidade 1.700 kg/m³ - espessura de 1 cm | I37: =('MOMENTO DE TRANSPORTE - PRINC'!D71*VLOOKUP(C42,'RESUMO MODULO TOTAL'!$C$9:$J$57,6,FALSE))*0.8 -> 3427.2
B38: F - MOMENTO DE TRANSPORTE | D38: Quantidade | E38: Unidade | F38: DMT
F39: LN | G39: RP | H39: P | I39: TIPO (P, RP ou LN) | J39: DMT ESTIMADA (km) | K39: QUANTITATIVO TOTAL DE TRANSPORTE DE MATERIAL (tkm)
A40: 5914479 | B40: M2158 | C40: Argamassa asfáltica - Caminhão carroceria com capacidade de 15 t - 188 Kw | D40: 0.001 | E40: tkm | F40: 5914449 | G40: 5914464 | H40: 5914479 | I40: =$B$21 -> P | J40: =$D$21 -> 10 | K40: =IF(ISBLANK(J40),"",J40*(D40*$I$37)) -> 34.272
B42: PRINCIPAL: | C42: 2003943
B44: TIPO (P, RP ou LN) | C44: DMT ATÉ 50 KM NÃO DEVE SER PAGA | D44: SOMENTE DEVE SER ADICIONADO A DISTÂNCIA EXCEDENTE A 50 KM
B45: LN | D45: 10
B47: SISTEMA DE CUSTOS REFERENCIAIS DE OBRAS - SICRO | I47: Quantitivo
B48: Custo Unitário de Referência | E48: =$C$6 -> 2025-10-01 | I48: (Coeficiente na composição principal) x (quantidade da principal no orçamento) | K48: m³
B49: 1107892 | C49: Concreto fck = 20 MPa - confecção em betoneira e lançamento manual - areia e brita comerciais | I49: =('MOMENTO DE TRANSPORTE - PRINC'!D127*VLOOKUP(C58,'RESUMO MODULO TOTAL'!$C$9:$J$57,6,FALSE))*0.1 -> 302.4
B50: F - MOMENTO DE TRANSPORTE | D50: Quantidade | E50: Unidade | F50: DMT
F51: LN | G51: RP | H51: P | I51: TIPO (P, RP ou LN) | J51: DMT ESTIMADA (km) | K51: QUANTITATIVO TOTAL DE TRANSPORTE DE MATERIAL (tkm)
A52: =IF(I52="P",H52,IF(I52="RP",G52,IF(I52="LN",F52,""))) -> 5914449 | B52: M0030 | C52: Aditivo plastificante e retardador de pega para concreto e argamassa - Caminhão carroceria 15 t | D52: 0.00082 | E52: tkm | F52: 5914449 | G52: 5914464 | H52: 5914479 | I52: =$B$45 -> LN | J52: =D45 -> 10 | K52: =IF(ISBLANK(J52),"",J52*(D52*$I$49)) -> 2.47968
A53: 5914359 | B53: M0082 | C53: Areia média lavada - Caminhão basculante 10 m³ | D53: 0.95639 | E53: tkm | F53: 5914359 | G53: 5914374 | H53: 5914389 | I53: =$B$45 -> LN | J53: =D45 -> 10 | K53: =IF(ISBLANK(J53),"",J53*(D53*$I$49)) -> 2892.12336
A54: 5914359 | B54: M0191 | C54: Brita 1 - Caminhão basculante 10 m³ | D54: 0.55131 | E54: tkm | F54: 5914359 | G54: 5914374 | H54: 5914389 | I54: =$B$45 -> LN | J54: =D45 -> 10 | K54: =IF(ISBLANK(J54),"",J54*(D54*$I$49)) -> 1667.16144
A55: 5914359 | B55: M0192 | C55: Brita 2 - Caminhão basculante 10 m³ | D55: 0.55131 | E55: tkm | F55: 5914359 | G55: 5914374 | H55: 5914389 | I55: =$B$45 -> LN | J55: =D45 -> 10 | K55: =IF(ISBLANK(J55),"",J55*(D55*$I$49)) -> 1667.16144
A56: 5914449 | B56: M0424 | C56: Cimento Portland CP II - 32 - saco - Caminhão carroceria 15 t | D56: 0.27464 | E56: tkm | F56: 5914449 | G56: 5914464 | H56: 5914479 | I56: =$B$45 -> LN | J56: =D45 -> 10 | K56: =IF(ISBLANK(J56),"",J56*(D56*$I$49)) -> 830.51136
B58: PRINCIPAL: | C58: 2003943
B59: SISTEMA DE CUSTOS REFERENCIAIS DE OBRAS - SICRO | I59: Quantitivo
B60: Custo Unitário de Referência | E60: =$C$6 -> 2025-10-01 | I60: (Coeficiente na composição principal) x (quantidade da principal no orçamento) | K60: kg
B61: 2003842 | C61: Enchimento de junta de concreto com argamassa asfáltica de densidade 1.700 kg/m³ - espessura de 1 cm | I61: =('MOMENTO DE TRANSPORTE - PRINC'!D128*VLOOKUP(C66,'RESUMO MODULO TOTAL'!$C$9:$J$57,6,FALSE))*0.1 -> 428.4
B62: F - MOMENTO DE TRANSPORTE | D62: Quantidade | E62: Unidade | F62: DMT
F63: LN | G63: RP | H63: P | I63: TIPO (P, RP ou LN) | J63: DMT ESTIMADA (km) | K63: QUANTITATIVO TOTAL DE TRANSPORTE DE MATERIAL (tkm)
A64: 5914449 | B64: M2158 | C64: Argamassa asfáltica - Caminhão carroceria com capacidade de 15 t - 188 Kw | D64: 0.001 | E64: tkm | F64: 5914449 | G64: 5914464 | H64: 5914479 | I64: =$B$45 -> LN | J64: =D45 -> 10 | K64: =IF(ISBLANK(J64),"",J64*(D64*$I$61)) -> 4.284
B66: PRINCIPAL: | C66: 2003943
B67: TIPO (P, RP ou LN) | C67: DMT ATÉ 50 KM NÃO DEVE SER PAGA | D67: SOMENTE DEVE SER ADICIONADO A DISTÂNCIA EXCEDENTE A 50 KM
B68: RP | D68: 10
B70: SISTEMA DE CUSTOS REFERENCIAIS DE OBRAS - SICRO | I70: Quantitivo
B71: Custo Unitário de Referência | E71: =$C$6 -> 2025-10-01 | I71: (Coeficiente na composição principal) x (quantidade da principal no orçamento) | K71: m³
B72: 1107892 | C72: Concreto fck = 20 MPa - confecção em betoneira e lançamento manual - areia e brita comerciais | I72: =('MOMENTO DE TRANSPORTE - PRINC'!D183*VLOOKUP(C81,'RESUMO MODULO TOTAL'!$C$9:$J$57,6,FALSE))*0.1 -> 302.4
B73: F - MOMENTO DE TRANSPORTE | D73: Quantidade | E73: Unidade | F73: DMT
F74: LN | G74: RP | H74: P | I74: TIPO (P, RP ou LN) | J74: DMT ESTIMADA (km) | K74: QUANTITATIVO TOTAL DE TRANSPORTE DE MATERIAL (tkm)
A75: =IF(I75="P",H75,IF(I75="RP",G75,IF(I75="LN",F75,""))) -> 5914464 | B75: M0030 | C75: Aditivo plastificante e retardador de pega para concreto e argamassa - Caminhão carroceria 15 t | D75: 0.00082 | E75: tkm | F75: 5914449 | G75: 5914464 | H75: 5914479 | I75: =$B$68 -> RP | J75: =$D$68 -> 10 | K75: =IF(ISBLANK(J75),"",J75*(D75*$I$72)) -> 2.47968
A76: 5914374 | B76: M0082 | C76: Areia média lavada - Caminhão basculante 10 m³ | D76: 0.95639 | E76: tkm | F76: 5914359 | G76: 5914374 | H76: 5914389 | I76: =$B$68 -> RP | J76: =$D$68 -> 10 | K76: =IF(ISBLANK(J76),"",J76*(D76*$I$72)) -> 2892.12336
A77: 5914374 | B77: M0191 | C77: Brita 1 - Caminhão basculante 10 m³ | D77: 0.55131 | E77: tkm | F77: 5914359 | G77: 5914374 | H77: 5914389 | I77: =$B$68 -> RP | J77: =$D$68 -> 10 | K77: =IF(ISBLANK(J77),"",J77*(D77*$I$72)) -> 1667.16144
A78: 5914374 | B78: M0192 | C78: Brita 2 - Caminhão basculante 10 m³ | D78: 0.55131 | E78: tkm | F78: 5914359 | G78: 5914374 | H78: 5914389 | I78: =$B$68 -> RP | J78: =$D$68 -> 10 | K78: =IF(ISBLANK(J78),"",J78*(D78*$I$72)) -> 1667.16144
A79: 5914464 | B79: M0424 | C79: Cimento Portland CP II - 32 - saco - Caminhão carroceria 15 t | D79: 0.27464 | E79: tkm | F79: 5914449 | G79: 5914464 | H79: 5914479 | I79: =$B$68 -> RP | J79: =$D$68 -> 10 | K79: =IF(ISBLANK(J79),"",J79*(D79*$I$72)) -> 830.51136
B81: PRINCIPAL: | C81: 2003943
B82: SISTEMA DE CUSTOS REFERENCIAIS DE OBRAS - SICRO | I82: Quantitivo
B83: Custo Unitário de Referência | E83: =$C$6 -> 2025-10-01 | I83: (Coeficiente na composição principal) x (quantidade da principal no orçamento) | K83: kg
B84: 2003842 | C84: Enchimento de junta de concreto com argamassa asfáltica de densidade 1.700 kg/m³ - espessura de 1 cm | I84: =('MOMENTO DE TRANSPORTE - PRINC'!D184*VLOOKUP(C89,'RESUMO MODULO TOTAL'!$C$9:$J$57,6,FALSE))*0.1 -> 428.4
B85: F - MOMENTO DE TRANSPORTE | D85: Quantidade | E85: Unidade | F85: DMT
F86: LN | G86: RP | H86: P | I86: TIPO (P, RP ou LN) | J86: DMT ESTIMADA (km) | K86: QUANTITATIVO TOTAL DE TRANSPORTE DE MATERIAL (tkm)
A87: 5914464 | B87: M2158 | C87: Argamassa asfáltica - Caminhão carroceria com capacidade de 15 t - 188 Kw | D87: 0.001 | E87: tkm | F87: 5914449 | G87: 5914464 | H87: 5914479 | I87: =$B$68 -> RP | J87: =$D$68 -> 10 | K87: =IF(ISBLANK(J87),"",J87*(D87*$I$84)) -> 4.284
B89: PRINCIPAL: | C89: 2003943

Sheet Mob
A4: ='RESUMO MODULO TOTAL'!B61 -> SERVIÇOS DE IMPLANTAÇÃO DE PAVIMENTAÇÃO EM TRATAMENTO SUPERFICIAL DUPLO (TSD), EM VIAS URBANAS E RURAIS INSERIDAS NA ÁREA DE ATUAÇÃO DA CODEVASF, NO ESTADO DO PIAUÍ - REGIÃO SUL
A5: MOBILIZAÇÃO/DESMOBILIZAÇÃO (MOB) | F5: Frentes de serviços | H5: ='Memória de Cálculo'!G1 -> 36
F6: Distância da Capital ao Canteiro: | H6: 50 | I6: Fica a cargo de cada SR colocar a distancia adequada de acordo com o historico de mobilização
F8: Velocidade média de transporte (pavim.): | H8: 60
A10: Transporte dos equipamentos
A11: CODIGO | B11: EQUIPAMENTO | C11: VEÍCULO TRANSPORTADOR | D11: QTDE | E11: K | F11: FU | G11: CUSTO DO TRANSPORTE
G12: (R$/h) | H12: (R$)/km
A13: E9524 | B13: =VLOOKUP(A13,Equipamentos!$A:$K,2,FALSE) -> Motoniveladora - 93 kW | C13: =IFERROR(INDEX('Tabelas 2 e 3 mob'!A:K,MATCH(A13,'Tabelas 2 e 3 mob'!A:A,0),9),"ERRO") -> E9665 | D13: 1 | E13: 2 | F13: 1 | G13: =IF(C13="Veículo(s) da própria frota.",0,INDEX(Equipamentos!B:K,MATCH(C13,Equipamentos!A:A,0),9)) -> 422.4322 | H13: =((D13*E13*F13)/$H$8)*G13 -> 14.08107333
A14: E9526 | B14: =VLOOKUP(A14,Equipamentos!$A:$K,2,FALSE) -> Retroescavadeira de pneus - capacidade da caçamba da pá-carregadeira de 0,76 m³ e da retroescavadeira de 0,29 m³ - 58 kW | C14: =IFERROR(INDEX('Tabelas 2 e 3 mob'!A:K,MATCH(A14,'Tabelas 2 e 3 mob'!A:A,0),9),"ERRO") -> E9665 | D14: 1 | E14: 2 | F14: 1 | G14: =IF(C14="Veículo(s) da própria frota.",0,INDEX(Equipamentos!B:K,MATCH(C14,Equipamentos!A:A,0),9)) -> 422.4322 | H14: =((D14*E14*F14)/$H$8)*G14 -> 14.08107333
A15: E9577 | B15: =VLOOKUP(A15,Equipamentos!$A:$K,2,FALSE) -> Trator agrícola sobre pneus - 77 kW | C15: =IFERROR(INDEX('Tabelas 2 e 3 mob'!A:K,MATCH(A15,'Tabelas 2 e 3 mob'!A:A,0),9),"ERRO") -> E9665 | D15: 1 | E15: 2 | F15: 0.5 | G15: =IF(C15="Veículo(s) da própria frota.",0,INDEX(Equipamentos!B:K,MATCH(C15,Equipamentos!A:A,0),9)) -> 422.4322 | H15: 7.040536667
A16: E9518 | B16: =VLOOKUP(A16,Equipamentos!$A:$K,2,FALSE) -> Grade de 24 discos rebocável de D = 60 cm (24") | C16: =IFERROR(INDEX('Tabelas 2 e 3 mob'!A:K,MATCH(A16,'Tabelas 2 e 3 mob'!A:A,0),9),"ERRO") -> Veículo(s) da própria frota. | D16: 1 | E16: 2 | F16: 0 | G16: =IF(C16="Veículo(s) da própria frota.",0,INDEX(Equipamentos!B:K,MATCH(C16,Equipamentos!A:A,0),9)) -> 0 | H16: 0
A17: E9615 | B17: =VLOOKUP(A17,Equipamentos!$A:$K,2,FALSE) -> Usina misturadora de solos com capacidade de 300 t/h - 44 kW | C17: =IFERROR(INDEX('Tabelas 2 e 3 mob'!A:K,MATCH(A17,'Tabelas 2 e 3 mob'!A:A,0),9),"ERRO") -> E9018 | D17: 0 | E17: 2 | F17: 2 | G17: =IF(C17="Veículo(s) da própria frota.",0,INDEX(Equipamentos!B:K,MATCH(C17,Equipamentos!A:A,0),9)) -> 561.7271 | H17: 0
A18: E9530 | B18: =VLOOKUP(A18,Equipamentos!$A:$K,2,FALSE) -> Rolo compactador liso vibratório autopropelido por pneus de 11 t - 97 kW | C18: =IFERROR(INDEX('Tabelas 2 e 3 mob'!A:K,MATCH(A18,'Tabelas 2 e 3 mob'!A:A,0),9),"ERRO") -> E9666 | D18: 1 | E18: 2 | F18: 0.5 | G18: =IF(C18="Veículo(s) da própria frota.",0,INDEX(Equipamentos!B:K,MATCH(C18,Equipamentos!A:A,0),9)) -> 472.1302 | H18: 7.868836667
A19: E9558 | B19: =VLOOKUP(A19,Equipamentos!$A:$K,2,FALSE) -> Tanque de estocagem de asfalto com capacidade de 30.000 l | C19: =IFERROR(INDEX('Tabelas 2 e 3 mob'!A:K,MATCH(A19,'Tabelas 2 e 3 mob'!A:A,0),9),"ERRO") -> E9665 | D19: 1 | E19: 2 | F19: 1 | G19: =IF(C19="Veículo(s) da própria frota.",0,INDEX(Equipamentos!B:K,MATCH(C19,Equipamentos!A:A,0),9)) -> 422.4322 | H19: 14.08107333
A20: E9758 | B20: =VLOOKUP(A20,Equipamentos!$A:$K,2,FALSE) -> Vibroacabadora de asfalto sobre pneus - 97 kW | C20: =IFERROR(INDEX('Tabelas 2 e 3 mob'!A:K,MATCH(A20,'Tabelas 2 e 3 mob'!A:A,0),9),"ERRO") -> E9018 | D20: 1 | E20: 2 | F20: 0.5 | G20: =IF(C20="Veículo(s) da própria frota.",0,INDEX(Equipamentos!B:K,MATCH(C20,Equipamentos!A:A,0),9)) -> 561.7271 | H20: 9.362118333
A21: E9685 | B21: =VLOOKUP(A21,Equipamentos!$A:$K,2,FALSE) -> Rolo compactador pé de carneiro vibratório autopropelido por pneus de 11,6 t - 82 kW | C21: =IFERROR(INDEX('Tabelas 2 e 3 mob'!A:K,MATCH(A21,'Tabelas 2 e 3 mob'!A:A,0),9),"ERRO") -> E9666 | D21: 1 | E21: 2 | F21: 0.5 | G21: =IF(C21="Veículo(s) da própria frota.",0,INDEX(Equipamentos!B:K,MATCH(C21,Equipamentos!A:A,0),9)) -> 472.1302 | H21: 7.868836667
A22: E9605 | B22: =VLOOKUP(A22,Equipamentos!$A:$K,2,FALSE) -> Caminhão tanque com capacidade de 6.000 l - 136 kW | C22: =IFERROR(INDEX('Tabelas 2 e 3 mob'!A:K,MATCH(A22,'Tabelas 2 e 3 mob'!A:A,0),9),"ERRO") -> E9605 | D22: 1 | E22: 1 | F22: 1 | G22: =IF(C22="Veículo(s) da própria frota.",0,INDEX(Equipamentos!B:K,MATCH(C22,Equipamentos!A:A,0),9)) -> 276.8761 | H22: 4.614601667
A23: E9579 | B23: =VLOOKUP(A23,Equipamentos!$A:$K,2,FALSE) -> Caminhão basculante com capacidade de 10 m³ - 210 kW | C23: =IFERROR(INDEX('Tabelas 2 e 3 mob'!A:K,MATCH(A23,'Tabelas 2 e 3 mob'!A:A,0),9),"ERRO") -> E9579 | D23: 5 | E23: 1 | F23: 1 | G23: =IF(C23="Veículo(s) da própria frota.",0,INDEX(Equipamentos!B:K,MATCH(C23,Equipamentos!A:A,0),9)) -> 305.7457 | H23: 25.47880833
A24: E9509 | B24: =VLOOKUP(A24,Equipamentos!$A:$K,2,FALSE) -> Caminhão tanque distribuidor de asfalto com capacidade de 6.000 l - 7 kW/136 kW | C24: =IFERROR(INDEX('Tabelas 2 e 3 mob'!A:K,MATCH(A24,'Tabelas 2 e 3 mob'!A:A,0),9),"ERRO") -> E9509 | D24: 1 | E24: 1 | F24: 1 | G24: =IF(C24="Veículo(s) da própria frota.",0,INDEX(Equipamentos!B:K,MATCH(C24,Equipamentos!A:A,0),9)) -> 331.719 | H24: 5.52865
A25: E9762 | B25: =VLOOKUP(A25,Equipamentos!$A:$K,2,FALSE) -> Rolo compactador de pneus autopropelido de 27 t - 85 kW | C25: =IFERROR(INDEX('Tabelas 2 e 3 mob'!A:K,MATCH(A25,'Tabelas 2 e 3 mob'!A:A,0),9),"ERRO") -> E9666 | D25: 1 | E25: 2 | F25: 0.5 | G25: =IF(C25="Veículo(s) da própria frota.",0,INDEX(Equipamentos!B:K,MATCH(C25,Equipamentos!A:A,0),9)) -> 472.1302 | H25: 7.868836667
A26: E9681 | B26: =VLOOKUP(A26,Equipamentos!$A:$K,2,FALSE) -> Rolo compactador liso tandem vibratório autopropelido de 10,4 t - 82 kW | C26: =IFERROR(INDEX('Tabelas 2 e 3 mob'!A:K,MATCH(A26,'Tabelas 2 e 3 mob'!A:A,0),9),"ERRO") -> E9666 | D26: 1 | E26: 2 | F26: 0.5 | G26: =IF(C26="Veículo(s) da própria frota.",0,INDEX(Equipamentos!B:K,MATCH(C26,Equipamentos!A:A,0),9)) -> 472.1302 | H26: 7.868836667
A27: E9545 | B27: =VLOOKUP(A27,Equipamentos!$A:$K,2,FALSE) -> Vibroacabadora de asfalto sobre esteiras - 97 kW | C27: =IFERROR(INDEX('Tabelas 2 e 3 mob'!A:K,MATCH(A27,'Tabelas 2 e 3 mob'!A:A,0),9),"ERRO") -> E9018 | D27: 1 | E27: 2 | F27: 0.5 | G27: =IF(C27="Veículo(s) da própria frota.",0,INDEX(Equipamentos!B:K,MATCH(C27,Equipamentos!A:A,0),9)) -> 561.7271 | H27: 9.362118333
A28: E9571 | B28: =VLOOKUP(A28,Equipamentos!$A:$K,2,FALSE) -> Caminhão tanque com capacidade de 10.000 l - 188 kW | C28: =IFERROR(INDEX('Tabelas 2 e 3 mob'!A:K,MATCH(A28,'Tabelas 2 e 3 mob'!A:A,0),9),"ERRO") -> E9571 | D28: 1 | E28: 1 | F28: 1 | G28: =IF(C28="Veículo(s) da própria frota.",0,INDEX(Equipamentos!B:K,MATCH(C28,Equipamentos!A:A,0),9)) -> 357.5728 | H28: 5.959546667
A29: E9514 | B29: =VLOOKUP(A29,Equipamentos!$A:$K,2,FALSE) -> Distribuidor de agregados sobre pneus autopropelido - 130 kW | C29: =IFERROR(INDEX('Tabelas 2 e 3 mob'!A:K,MATCH(A29,'Tabelas 2 e 3 mob'!A:A,0),9),"ERRO") -> E9665 | D29: 1 | E29: 2 | F29: 0.5 | G29: =IF(C29="Veículo(s) da própria frota.",0,INDEX(Equipamentos!B:K,MATCH(C29,Equipamentos!A:A,0),9)) -> 422.4322 | H29: 7.040536667
A30: E9511 | B30: =VLOOKUP(A30,Equipamentos!$A:$K,2,FALSE) -> Carregadeira de pneus com capacidade de 3,40 m³ - 195 kW | C30: =IFERROR(INDEX('Tabelas 2 e 3 mob'!A:K,MATCH(A30,'Tabelas 2 e 3 mob'!A:A,0),9),"ERRO") -> E9665 | D30: 1 | E30: 2 | F30: 1 | G30: =IF(C30="Veículo(s) da própria frota.",0,INDEX(Equipamentos!B:K,MATCH(C30,Equipamentos!A:A,0),9)) -> 422.4322 | H30: 14.08107333
A31: E9779 | B31: =VLOOKUP(A31,Equipamentos!$A:$K,2,FALSE) -> Grupo gerador - 113 kVA | C31: =IFERROR(INDEX('Tabelas 2 e 3 mob'!A:K,MATCH(A31,'Tabelas 2 e 3 mob'!A:A,0),9),"ERRO") -> Veículo(s) da própria frota. | D31: 1 | E31: 2 | F31: 0 | G31: =IF(C31="Veículo(s) da própria frota.",0,INDEX(Equipamentos!B:K,MATCH(C31,Equipamentos!A:A,0),9)) -> 0 | H31: 0
A32: E9559 | B32: =VLOOKUP(A32,Equipamentos!$A:$K,2,FALSE) -> Aquecedor de fluido térmico - 12 kW | C32: =IFERROR(INDEX('Tabelas 2 e 3 mob'!A:K,MATCH(A32,'Tabelas 2 e 3 mob'!A:A,0),9),"ERRO") -> Veículo(s) da própria frota. | D32: 1 | E32: 2 | F32: 0 | G32: =IF(C32="Veículo(s) da própria frota.",0,INDEX(Equipamentos!B:K,MATCH(C32,Equipamentos!A:A,0),9)) -> 0 | H32: 0
A33: E9584 | B33: =VLOOKUP(A33,Equipamentos!$A:$K,2,FALSE) -> Carregadeira de pneus com capacidade de 1,72 m³ - 113 kW | C33: =IFERROR(INDEX('Tabelas 2 e 3 mob'!A:K,MATCH(A33,'Tabelas 2 e 3 mob'!A:A,0),9),"ERRO") -> E9665 | D33: 1 | E33: 2 | F33: 1 | G33: =IF(C33="Veículo(s) da própria frota.",0,INDEX(Equipamentos!B:K,MATCH(C33,Equipamentos!A:A,0),9)) -> 422.4322 | H33: 14.08107333
A34: E9021 | B34: =VLOOKUP(A34,Equipamentos!$A:$K,2,FALSE) -> Grupo gerador - 456 kVA | C34: =IFERROR(INDEX('Tabelas 2 e 3 mob'!A:K,MATCH(A34,'Tabelas 2 e 3 mob'!A:A,0),9),"ERRO") -> E9508 | D34: 1 | E34: 2 | F34: 1 | G34: =IF(C34="Veículo(s) da própria frota.",0,INDEX(Equipamentos!B:K,MATCH(C34,Equipamentos!A:A,0),9)) -> 193.0334 | H34: 6.434446667
A35: E9687 | B35: =VLOOKUP(A35,Equipamentos!$A:$K,2,FALSE) -> Caminhão carroceria com capacidade de 5 t - 120 kW | C35: =IFERROR(INDEX('Tabelas 2 e 3 mob'!A:K,MATCH(A35,'Tabelas 2 e 3 mob'!A:A,0),9),"ERRO") -> E9687 | D35: 1 | E35: 1 | F35: 1 | G35: =IF(C35="Veículo(s) da própria frota.",0,INDEX(Equipamentos!B:K,MATCH(C35,Equipamentos!A:A,0),9)) -> 172.265 | H35: 2.871083333
A36: E9667 | B36: =VLOOKUP(A36,Equipamentos!$A:$K,2,FALSE) -> Caminhão basculante com capacidade de 14 m³ - 210 kW | C36: =IFERROR(INDEX('Tabelas 2 e 3 mob'!A:K,MATCH(A36,'Tabelas 2 e 3 mob'!A:A,0),9),"ERRO") -> E9667 | D36: 1 | E36: 1 | F36: 1 | G36: =IF(C36="Veículo(s) da própria frota.",0,INDEX(Equipamentos!B:K,MATCH(C36,Equipamentos!A:A,0),9)) -> 319.0394 | H36: 5.317323333
A37: E9644 | B37: =VLOOKUP(A37,Equipamentos!$A:$K,2,FALSE) -> Caminhão demarcador de faixas com sistema de pintura a frio - 28 kW/129 kW | C37: =IFERROR(INDEX('Tabelas 2 e 3 mob'!A:K,MATCH(A37,'Tabelas 2 e 3 mob'!A:A,0),9),"ERRO") -> E9644 | D37: 1 | E37: 1 | F37: 1 | G37: =IF(C37="Veículo(s) da própria frota.",0,INDEX(Equipamentos!B:K,MATCH(C37,Equipamentos!A:A,0),9)) -> 456.2076 | H37: 7.60346
A38: E9592 | B38: =VLOOKUP(A38,Equipamentos!$A:$K,2,FALSE) -> Caminhão carroceria com capacidade de 15 t - 188 kW | C38: =IFERROR(INDEX('Tabelas 2 e 3 mob'!A:K,MATCH(A38,'Tabelas 2 e 3 mob'!A:A,0),9),"ERRO") -> E9592 | D38: 1 | E38: 1 | F38: 1 | G38: =IF(C38="Veículo(s) da própria frota.",0,INDEX(Equipamentos!B:K,MATCH(C38,Equipamentos!A:A,0),9)) -> 281.2094 | H38: 4.686823333
A39: E9540 | B39: =VLOOKUP(A39,Equipamentos!$A:$K,2,FALSE) -> Trator sobre esteiras com lâmina - 127 kW | C39: =IFERROR(INDEX('Tabelas 2 e 3 mob'!A:K,MATCH(A39,'Tabelas 2 e 3 mob'!A:A,0),9),"ERRO") -> E9018 | D39: 1 | E39: 2 | F39: 0.5 | G39: =IF(C39="Veículo(s) da própria frota.",0,INDEX(Equipamentos!B:K,MATCH(C39,Equipamentos!A:A,0),9)) -> 561.7271 | H39: 9.362118333
A40: E9515 | B40: =VLOOKUP(A40,Equipamentos!$A:$K,2,FALSE) -> Escavadeira hidráulica sobre esteiras com caçamba com capacidade de 1,56 m³ - 118 kW | C40: =IFERROR(INDEX('Tabelas 2 e 3 mob'!A:K,MATCH(A40,'Tabelas 2 e 3 mob'!A:A,0),9),"ERRO") -> E9666 | D40: 1 | E40: 2 | F40: 1 | G40: =IF(C40="Veículo(s) da própria frota.",0,INDEX(Equipamentos!B:K,MATCH(C40,Equipamentos!A:A,0),9)) -> 472.1302 | H40: 15.73767333
A41: E9506 | B41: =VLOOKUP(A41,Equipamentos!$A:$K,2,FALSE) -> Caminhão basculante com capacidade de 6 m³ - 136 kW | C41: =IFERROR(INDEX('Tabelas 2 e 3 mob'!A:K,MATCH(A41,'Tabelas 2 e 3 mob'!A:A,0),9),"ERRO") -> E9506 | D41: 1 | E41: 1 | F41: 1 | G41: =IF(C41="Veículo(s) da própria frota.",0,INDEX(Equipamentos!B:K,MATCH(C41,Equipamentos!A:A,0),9)) -> 198.0705 | H41: 3.301175
A42: E9256 | B42: =VLOOKUP(A42,Equipamentos!$A:$K,2,FALSE) -> Equipamento para pintura com cal rebocável com dois bicos aplicadores e capacidade de 2.200 l | C42: =IFERROR(INDEX('Tabelas 2 e 3 mob'!A:K,MATCH(A42,'Tabelas 2 e 3 mob'!A:A,0),9),"ERRO") -> Veículo(s) da própria frota. | D42: 1 | E42: 2 | F42: 0 | G42: =IF(C42="Veículo(s) da própria frota.",0,INDEX(Equipamentos!B:K,MATCH(C42,Equipamentos!A:A,0),9)) -> 0 | H42: 0
A43: E9156 | B43: =VLOOKUP(A43,Equipamentos!$A:$K,2,FALSE) -> Soprador de ar costal - 2,6 kW | C43: =IFERROR(INDEX('Tabelas 2 e 3 mob'!A:K,MATCH(A43,'Tabelas 2 e 3 mob'!A:A,0),9),"ERRO") -> Veículo(s) da própria frota. | D43: 1 | E43: 2 | F43: 0 | G43: =IF(C43="Veículo(s) da própria frota.",0,INDEX(Equipamentos!B:K,MATCH(C43,Equipamentos!A:A,0),9)) -> 0 | H43: 0
A44: E9146 | B44: =VLOOKUP(A44,Equipamentos!$A:$K,2,FALSE) -> Caminhão silo com capacidade de 30 m³ - 368 kW | C44: =IFERROR(INDEX('Tabelas 2 e 3 mob'!A:K,MATCH(A44,'Tabelas 2 e 3 mob'!A:A,0),9),"ERRO") -> E9146 | D44: 1 | E44: 1 | F44: 1 | G44: =IF(C44="Veículo(s) da própria frota.",0,INDEX(Equipamentos!B:K,MATCH(C44,Equipamentos!A:A,0),9)) -> 668.498 | H44: 11.14163333
A45: E9599 | B45: =VLOOKUP(A45,Equipamentos!$A:$K,2,FALSE) -> Central de concreto com capacidade de 30 m³/h - dosadora RS | C45: =IFERROR(INDEX('Tabelas 2 e 3 mob'!A:K,MATCH(A45,'Tabelas 2 e 3 mob'!A:A,0),9),"ERRO") -> E9018 | D45: 1 | E45: 2 | F45: 1 | G45: =IF(C45="Veículo(s) da própria frota.",0,INDEX(Equipamentos!B:K,MATCH(C45,Equipamentos!A:A,0),9)) -> 561.7271 | H45: 18.72423667
A46: E9103 | B46: =VLOOKUP(A46,Equipamentos!$A:$K,2,FALSE) -> Extrusora para meio-fio de concreto - 10,44 kW | C46: =IFERROR(INDEX('Tabelas 2 e 3 mob'!A:K,MATCH(A46,'Tabelas 2 e 3 mob'!A:A,0),9),"ERRO") -> Veículo(s) da própria frota. | D46: 1 | E46: 2 | F46: 0 | G46: =IF(C46="Veículo(s) da própria frota.",0,INDEX(Equipamentos!B:K,MATCH(C46,Equipamentos!A:A,0),9)) -> 0 | H46: 0
A47: E9071 | B47: =VLOOKUP(A47,Equipamentos!$A:$K,2,FALSE) -> Transportador manual carrinho de mão com capacidade de 80 l | C47: =IFERROR(INDEX('Tabelas 2 e 3 mob'!A:K,MATCH(A47,'Tabelas 2 e 3 mob'!A:A,0),9),"ERRO") -> Veículo(s) da própria frota. | D47: 0 | E47: 2 | F47: 0 | G47: =IF(C47="Veículo(s) da própria frota.",0,INDEX(Equipamentos!B:K,MATCH(C47,Equipamentos!A:A,0),9)) -> 0 | H47: 0
A48: E9064 | B48: =VLOOKUP(A48,Equipamentos!$A:$K,2,FALSE) -> Transportador manual gerica com capacidade de 180 l | C48: =IFERROR(INDEX('Tabelas 2 e 3 mob'!A:K,MATCH(A48,'Tabelas 2 e 3 mob'!A:A,0),9),"ERRO") -> Veículo(s) da própria frota. | D48: 0 | E48: 2 | F48: 0 | G48: =IF(C48="Veículo(s) da própria frota.",0,INDEX(Equipamentos!B:K,MATCH(C48,Equipamentos!A:A,0),9)) -> 0 | H48: 0
A49: E9066 | B49: =VLOOKUP(A49,Equipamentos!$A:$K,2,FALSE) -> Grupo gerador - 14 kVA | C49: =IFERROR(INDEX('Tabelas 2 e 3 mob'!A:K,MATCH(A49,'Tabelas 2 e 3 mob'!A:A,0),9),"ERRO") -> Veículo(s) da própria frota. | D49: 0 | E49: 2 | F49: 0 | G49: =IF(C49="Veículo(s) da própria frota.",0,INDEX(Equipamentos!B:K,MATCH(C49,Equipamentos!A:A,0),9)) -> 0 | H49: 0
A50: E9535 | B50: =VLOOKUP(A50,Equipamentos!$A:$K,2,FALSE) -> Serra circular com bancada - D = 30 cm - 4 kW | C50: =IFERROR(INDEX('Tabelas 2 e 3 mob'!A:K,MATCH(A50,'Tabelas 2 e 3 mob'!A:A,0),9),"ERRO") -> Veículo(s) da própria frota. | D50: 0 | E50: 2 | F50: 0 | G50: =IF(C50="Veículo(s) da própria frota.",0,INDEX(Equipamentos!B:K,MATCH(C50,Equipamentos!A:A,0),9)) -> 0 | H50: 0
A51: E9507 | B51: =VLOOKUP(A51,Equipamentos!$A:$K,2,FALSE) -> Plotadora de recorte com computador e programa computacional | C51: =IFERROR(INDEX('Tabelas 2 e 3 mob'!A:K,MATCH(A51,'Tabelas 2 e 3 mob'!A:A,0),9),"ERRO") -> Veículo(s) da própria frota. | D51: 0 | E51: 2 | F51: 0 | G51: =IF(C51="Veículo(s) da própria frota.",0,INDEX(Equipamentos!B:K,MATCH(C51,Equipamentos!A:A,0),9)) -> 0 | H51: 0
A52: E9568 | B52: =VLOOKUP(A52,Equipamentos!$A:$K,2,FALSE) -> Furadeira de impacto de 12,5 mm - 0,80 kW | C52: =IFERROR(INDEX('Tabelas 2 e 3 mob'!A:K,MATCH(A52,'Tabelas 2 e 3 mob'!A:A,0),9),"ERRO") -> Veículo(s) da própria frota. | D52: 0 | E52: 2 | F52: 0 | G52: =IF(C52="Veículo(s) da própria frota.",0,INDEX(Equipamentos!B:K,MATCH(C52,Equipamentos!A:A,0),9)) -> 0 | H52: 0
A53: E9753 | B53: =VLOOKUP(A53,Equipamentos!$A:$K,2,FALSE) -> Grupo gerador - 23 kVA | C53: =IFERROR(INDEX('Tabelas 2 e 3 mob'!A:K,MATCH(A53,'Tabelas 2 e 3 mob'!A:A,0),9),"ERRO") -> Veículo(s) da própria frota. | D53: 0 | E53: 2 | F53: 0 | G53: =IF(C53="Veículo(s) da própria frota.",0,INDEX(Equipamentos!B:K,MATCH(C53,Equipamentos!A:A,0),9)) -> 0 | H53: 0
A54: E9623 | B54: =VLOOKUP(A54,Equipamentos!$A:$K,2,FALSE) -> Máquina de bancada guilhotina - 4,00 kW | C54: =IFERROR(INDEX('Tabelas 2 e 3 mob'!A:K,MATCH(A54,'Tabelas 2 e 3 mob'!A:A,0),9),"ERRO") -> Veículo(s) da própria frota. | D54: 0 | E54: 2 | F54: 0 | G54: =IF(C54="Veículo(s) da própria frota.",0,INDEX(Equipamentos!B:K,MATCH(C54,Equipamentos!A:A,0),9)) -> 0 | H54: 0
A55: E9622 | B55: =VLOOKUP(A55,Equipamentos!$A:$K,2,FALSE) -> Máquina de bancada universal para corte de chapa - 1,50 kW | C55: =IFERROR(INDEX('Tabelas 2 e 3 mob'!A:K,MATCH(A55,'Tabelas 2 e 3 mob'!A:A,0),9),"ERRO") -> Veículo(s) da própria frota. | D55: 0 | E55: 2 | F55: 0 | G55: =IF(C55="Veículo(s) da própria frota.",0,INDEX(Equipamentos!B:K,MATCH(C55,Equipamentos!A:A,0),9)) -> 0 | H55: 0
A56: E9678 | B56: =VLOOKUP(A56,Equipamentos!$A:$K,2,FALSE) -> Fresadora a frio - 455 kW | C56: =IFERROR(INDEX('Tabelas 2 e 3 mob'!A:K,MATCH(A56,'Tabelas 2 e 3 mob'!A:A,0),9),"ERRO") -> E9666 | D56: 0 | E56: 2 | F56: 1 | G56: =IF(C56="Veículo(s) da própria frota.",0,INDEX(Equipamentos!B:K,MATCH(C56,Equipamentos!A:A,0),9)) -> 472.1302 | H56: 0
G57: TOTAL | H57: =SUM(H13:H56) -> 261.4476033
A60: CUSTO TOTAL MOBILIZAÇÃO E DESMOBILIZAÇÃO
A61: DESCRIÇÃO | B61: VALOR
A62: Custo Mobilização (km) | B62: =H57 -> 261.4476033
A63: BDI (%) | B63: =BDI!C13 -> 0.2339
A64: Custo Mobilização (R$/km) com BDI | B64: =B62+(B62*B63) -> 322.6001978
A65: Total de Frentes | B65: ='Memória de Cálculo'!G1 -> 36
A66: Custo Mobilização (frentes x distancia) | B66: =B64*H6*B65 -> 580680.356

Sheet Canteiro
A4: CANTEIRO DE OBRAS PARA CONSTRUÇAO RODOVIÁRIA
A5: Descrição dos serviços | B5: Tipo de container | C5: Unidade | D5: Quantidade | E5: Preço unitário (R$) | F5: Total (R$)
A6: Escritório e seção técnica
A7: =VLOOKUP(B7,'INSUMOS SINAPI'!$A:$E,2,0) -> LOCACAO DE CONTAINER 2,30 X 6,00 M, ALT. 2,50 M, PARA ESCRITORIO, SEM DIVISORIAS INTERNAS E SEM SANITARIO (NAO INCLUI MOBILIZACAO/DESMOBILIZACAO) | B7: 10776 | C7: und | D7: 1 | E7: =VLOOKUP(B7,'INSUMOS SINAPI'!$A:$E,5,0) -> 1015.62 | F7: =TRUNC(D7*E7,2) -> 1015.62
A8: Banheiro e vestiário
A9: =VLOOKUP(B9,'INSUMOS SINAPI'!$A:$E,2,0) -> LOCACAO DE CONTAINER 2,30 X 4,30 M, ALT. 2,50 M, PARA SANITARIO, COM 3 BACIAS, 4 CHUVEIROS, 1 LAVATORIO E 1 MICTORIO (NAO INCLUI MOBILIZACAO/DESMOBILIZACAO) | B9: 10777 | C9: und | D9: 1 | E9: =VLOOKUP(B9,'INSUMOS SINAPI'!$A:$E,5,0) -> 1476.04 | F9: =TRUNC(D9*E9,2) -> 1476.04
D10: TOTAL DO CANTEIRO | F10: =SUM(F7:F9) -> 2491.66
D11: DURAÇÃO (MESES) | E11: 1 | F11: =F10*E11 -> 2491.66
D12: BDI | F12: =BDI!C13 -> 0.2339
D13: TOTAL DO CANTEIRO (com BDI) | F13: =F11+(F11*F12) -> 3074.459274

Sheet Adm Local
A4: parcela fixa da administração local (mão de obra)
A5: Código | B5: Discriminação | C5: Unidade | D5: Quantidade | F5: Custo Unitário (R$) | H5: Custo Total (R$)
B6: Mão de Obra
B7: Gerência Técnica
B8: Geral
A9: P9955 | B9: Engenheiro chefe | C9: mês | D9: 0.5 | F9: =VLOOKUP(A9,'Pessoal Sicro'!$A$6:$G$118,6,0) -> 34473.2594 | H9: =F9*D9 -> 17236.6297
A10: P9840 | B10: Encarregado geral | C10: mês | D10: 0.5 | F10: =VLOOKUP(A10,'Pessoal Sicro'!$A$6:$G$118,6,0) -> 11501.5121 | H10: =F10*D10 -> 5750.75605
A11: P9897 | B11: Técnico de meio ambiente | C11: mês | D11: 0 | F11: =VLOOKUP(A11,'Pessoal Sicro'!$A$6:$G$118,6,0) -> 8048.5412 | H11: =F11*D11 -> 0
A12: P9948 | B12: Motorista | C12: mês | D12: 0 | F12: =VLOOKUP(A12,'Pessoal Sicro'!$A$6:$G$118,6,0) -> 6008.0336 | H12: =F12*D12 -> 0
A13: P9878 | B13: Secretária | C13: mês | D13: 0 | F13: =VLOOKUP(A13,'Pessoal Sicro'!$A$6:$G$118,6,0) -> 6830.99 | H13: =F13*D13 -> 0
F14: Subtotal do Item 1.1 | H14: =SUM(H9:I13) -> 22987.38575
B15: Auxiliar
A16: P9946 | B16: Engenheiro auxiliar | C16: mês | D16: 1 | F16: =VLOOKUP(A16,'Pessoal Sicro'!$A$6:$G$118,6,0) -> 24874.8163 | H16: =D16*F16 -> 24874.8163
A17: P9903 | B17: Auxiliar técnico | C17: mês | D17: 0 | F17: =VLOOKUP(A17,'Pessoal Sicro'!$A$6:$G$118,6,0) -> 4875.3669 | H17: =D17*F17 -> 0
F18: Subtotal do Item 1.2 | H18: =SUM(H16:I17) -> 24874.8163
B19: Gerência Administrativa
B20: Geral
A21: P9883 | B21: Chefe do setor administrativo | C21: mês | D21: 1 | F21: =VLOOKUP(A21,'Pessoal Sicro'!$A$6:$G$118,6,0) -> 7783.947 | H21: =F21*D21 -> 7783.947
A22: P9809 | B22: Encarregado administrativo | C22: mês | D22: 0 | F22: =VLOOKUP(A22,'Pessoal Sicro'!$A$6:$G$118,6,0) -> 7783.8336 | H22: =F22*D22 -> 0
A23: P9896 | B23: Porteiro | C23: mês | D23: 0 | F23: =VLOOKUP(A23,'Pessoal Sicro'!$A$6:$G$118,6,0) -> 4344.2089 | H23: =F23*D23 -> 0
A24: P9827 | B24: Vigia | C24: mês | D24: 0 | F24: =VLOOKUP(A24,'Pessoal Sicro'!$A$6:$G$118,6,0) -> 5190.1176 | H24: =F24*D24 -> 0
A25: P9948 | B25: Motorista | C25: mês | D25: 0 | F25: =VLOOKUP(A25,'Pessoal Sicro'!$A$6:$G$118,6,0) -> 6008.0336 | H25: =F25*D25 -> 0
F26: Subtotal do Item 1.3 | H26: =SUM(H21:I25) -> 7783.947
B27: Auxiliar
A28: P9806 | B28: Auxiliar administrativo | C28: mês | D28: 1 | F28: =VLOOKUP(A28,'Pessoal Sicro'!$A$6:$G$118,6,0) -> 5091.0802 | H28: =F28*D28 -> 5091.0802
A29: P9842 | B29: Faxineiro | C29: mês | D29: 0 | F29: =VLOOKUP(A29,'Pessoal Sicro'!$A$6:$G$118,6,0) -> 4353.3801 | H29: =F29*D29 -> 0
F30: Subtotal do Item 1.4 | H30: =SUM(H28:I29) -> 5091.0802
H31: Total da Mão de Obra da Parcela Fixa | I31: =H30+H26+H18+H14 -> 60737.22925
A33: parcela fixa da administração local (veículos)
A34: Código | B34: Discriminação | C34: Unidade | D34: Quantidade | E34: Utilização Produtiva | F34: Utilização Improdutiva | G34: Custo Horário Produtivo (R$) | H34: Custo Horário Improdutivo (R$) | I34: Custo Total (R$)
A35: 2 | B35: Veículos
B36: Gerência Técnica
A37: 2.1 | B37: Geral
A38: E9093 | B38: Veículo Leve 53 kw | C38: mês | D38: 1 | E38: 44 | F38: 176 | G38: =VLOOKUP(A38,Equipamentos!$A$4:$K$541,10,0) -> 37.9171 | H38: =VLOOKUP(A38,Equipamentos!$A$4:$K$541,11,0) -> 6.7543 | I38: =((E38*G38)+(F38*H38))*D38 -> 2857.1092
A39: E9560 | B39: Ônibus coletivo - 175 kw | C39: mês | D39: 0 | E39: 44 | F39: 176 | G39: =VLOOKUP(A39,Equipamentos!$A$4:$K$541,10,0) -> 353.6381 | H39: =VLOOKUP(A39,Equipamentos!$A$4:$K$541,11,0) -> 106.3423 | I39: =((E39*G39)+(F39*H39))*D39 -> 0
H40: Subtotal do Item 2 | I40: =SUM(I38:I39) -> 2857.1092
A41: 2.2 | B41: Auxiliar
A42: E9093 | B42: Veículo Leve 53 kw | C42: mês | D42: 0 | E42: 44 | F42: 176 | G42: =G38 -> 37.9171 | H42: =H38 -> 6.7543 | I42: =((E42*G42)+(F42*H42))*D42 -> 0
H43: Subtotal do Item 2 | I43: =SUM(I42) -> 0
A44: 2.3 | B44: Gerência Administrativa
A45: E9093 | B45: Veículo Leve 53 kw | C45: mês | D45: 0 | E45: 44 | F45: 176 | G45: =G38 -> 37.9171 | H45: =H38 -> 6.7543 | I45: =((E45*G45)+(F45*H45))*D45 -> 0
H46: Subtotal do Item 2 | I46: =I45 -> 0
H47: Total dos Veículos da Parcela Fixa | I47: =I46+I43+I40 -> 2857.1092
A49: Composição de custo da equipe de produção de terraplenagem
A50: Código | B50: Discriminação | C50: Unidade | D50: Quantidade | F50: Custo Unitário (R$) | H50: Custo Total (R$)
B51: Equipe de Produção de Terraplenagem
A52: 3.1 | B52: Mão de Obra
A53: P9893 | B53: Encarregado de produção | C53: mês | D53: 0 | F53: =VLOOKUP(A53,'Pessoal Sicro'!$A$6:$G$118,6,0) -> 8281.7942 | H53: =F53*D53 -> 0
F54: Subtotal do Item 3.1 | H54: =SUM(H53:H53) -> 0
A55: Código | B55: Discriminação | C55: Unidade | D55: Quantidade | E55: Utilização Produtiva | F55: Utilização Improdutiva | G55: Custo Horário Produtivo (R$) | H55: Custo Horário Improdutivo (R$) | I55: Custo Total (R$)
A56: 3.2 | B56: Veículos
B57: Veículo Leve 53 kw | C57: mês | D57: 0 | E57: 44 | F57: 176 | G57: =G38 -> 37.9171 | H57: =H38 -> 6.7543 | I57: =((E57*G57)+(F57*H57))*D57 -> 0
H58: Subtotal do Item 3.2 | I58: =SUM(I57:I57) -> 0
H59: Total da Equipe de Produção de Terraplenagem | I59: =I58+H54 -> 0
A61: Composição de custo da equipe de produção de pavimentação
A62: Código | B62: Discriminação | C62: Unidade | D62: Quantidade | F62: Custo Unitário (R$) | H62: Custo Total (R$)
B63: Equipe de Produção de Pavimentação
A64: 3.1 | B64: Mão de Obra
A65: P9893 | B65: Encarregado de produção | C65: mês | D65: 1 | F65: =VLOOKUP(A65,'Pessoal Sicro'!$A$6:$G$118,6,0) -> 8281.7942 | H65: =F65*D65 -> 8281.7942
F66: Subtotal do Item 3.1 | H66: =SUM(H65:H65) -> 8281.7942
A67: Código | B67: Discriminação | C67: Unidade | D67: Quantidade | E67: Utilização Produtiva | F67: Utilização Improdutiva | G67: Custo Horário Produtivo (R$) | H67: Custo Horário Improdutivo (R$) | I67: Custo Total (R$)
A68: 3.2 | B68: Veículos
B69: Veículo Leve 53 kw | C69: mês | D69: 1 | E69: 44 | F69: 176 | G69: =$G$38 -> 37.9171 | H69: =$H$38 -> 6.7543 | I69: =((E69*G69)+(F69*H69))*D69 -> 2857.1092
H70: Subtotal do Item 3.2 | I70: =SUM(I69:I69) -> 2857.1092
H71: Total da Equipe de Produção de Pavimentação | I71: =I70+H66 -> 11138.9034
A73: Composição de custo da equipe de produção de drenagem
A74: Código | B74: Discriminação | C74: Unidade | D74: Quantidade | F74: Custo Unitário (R$) | H74: Custo Total (R$)
B75: Equipe de Produção de Pavimentação
A76: 3.1 | B76: Mão de Obra
A77: P9893 | B77: Encarregado de produção | C77: mês | D77: 0 | F77: =VLOOKUP(A77,'Pessoal Sicro'!$A$6:$G$118,6,0) -> 8281.7942 | H77: =F77*D77 -> 0
F78: Subtotal do Item 3.1 | H78: =SUM(H77:H77) -> 0
A79: Código | B79: Discriminação | C79: Unidade | D79: Quantidade | E79: Utilização Produtiva | F79: Utilização Improdutiva | G79: Custo Horário Produtivo (R$) | H79: Custo Horário Improdutivo (R$) | I79: Custo Total (R$)
A80: 3.2 | B80: Veículos
B81: Veículo Leve 53 kw | C81: mês | D81: 0 | E81: 44 | F81: 176 | G81: =$G$38 -> 37.9171 | H81: =$H$38 -> 6.7543 | I81: =((E81*G81)+(F81*H81))*D81 -> 0
H82: Subtotal do Item 3.2 | I82: =SUM(I81:I81) -> 0
H83: Total da Equipe de Produção de Pavimentação | I83: =I82+H78 -> 0
A85: Composição de custo da equipe de produção de sinalização
A86: Código | B86: Discriminação | C86: Unidade | D86: Quantidade | F86: Custo Unitário (R$) | H86: Custo Total (R$)
B87: Equipe de Produção de Pavimentação
A88: 3.1 | B88: Mão de Obra
A89: P9893 | B89: Encarregado de produção | C89: mês | D89: 0 | F89: =VLOOKUP(A89,'Pessoal Sicro'!$A$6:$G$118,6,0) -> 8281.7942 | H89: =F89*D89 -> 0
F90: Subtotal do Item 3.1 | H90: =SUM(H89:H89) -> 0
A91: Código | B91: Discriminação | C91: Unidade | D91: Quantidade | E91: Utilização Produtiva | F91: Utilização Improdutiva | G91: Custo Horário Produtivo (R$) | H91: Custo Horário Improdutivo (R$) | I91: Custo Total (R$)
A92: 3.2 | B92: Veículos
B93: Veículo Leve 53 kw | C93: mês | D93: 0 | E93: 44 | F93: 176 | G93: =$G$38 -> 37.9171 | H93: =$H$38 -> 6.7543 | I93: =((E93*G93)+(F93*H93))*D93 -> 0
H94: Subtotal do Item 3.2 | I94: =SUM(I93:I93) -> 0
H95: Total da Equipe de Produção de Pavimentação | I95: =I94+H90 -> 0
A97: Composição de custo da equipe topografia | K97: ='RESUMO MODULO TOTAL'!L58 -> 
A98: Código | B98: Discriminação | C98: Unidade | D98: Quantidade | F98: Custo Unitário (R$) | H98: Custo Total (R$)
B99: Equipe de Topografia | K99: ='RESUMO MODULO TOTAL'!L64 -> 19897920
A100: 3.1 | B100: Mão de Obra
A101: P9949 | B101: Topográfo | C101: mês | D101: 0.9956733491 | F101: =VLOOKUP(A101,'Pessoal Sicro'!$A$6:$G$118,6,0) -> 9340.8044 | H101: =F101*D101 -> 9300.39 | K101: =K99-K97 -> 
A102: P9950 | B102: Auxiliar de topografia | C102: mês | D102: 1 | F102: =VLOOKUP(A102,'Pessoal Sicro'!$A$6:$G$118,6,0) -> 6055.7508 | H102: =F102*D102 -> 6055.7508
F103: Subtotal do Item 3.1 | H103: =SUM(H101:I102) -> 15356.1408 | K103: =K101/(1.05*1.2339) -> 
A104: Código | B104: Discriminação | C104: Unidade | D104: Quantidade | E104: Utilização Produtiva | F104: Utilização Improdutiva | G104: Custo Horário Produtivo (R$) | H104: Custo Horário Improdutivo (R$) | I104: Custo Total (R$) | K104: =K103/2 -> 
A105: 3.2 | B105: Veículos
B106: Veículo Leve 53 kw | C106: mês | D106: 1 | E106: 44 | F106: 176 | G106: =G38 -> 37.9171 | H106: =H38 -> 6.7543 | I106: =((E106*G106)+(F106*H106))*D106 -> 2857.1092
H107: Subtotal do Item 3.2 | I107: =SUM(I106:I106) -> 2857.1092
H108: Total da Equipe de Produção de Topografia | I108: =I107+H103 -> 18213.25
A110: Composição de custo do setor de medicina e segurança do trabalho
A111: Código | B111: Discriminação | C111: Unidade | D111: Quantidade | F111: Custo Unitário (R$) | H111: Custo Total (R$)
A112: 4 | B112: Setor de Medicina e Segurança do Trabalho
A113: P9876 | B113: Técnico de segurança do trabalho | C113: mês | D113: 1 | F113: =VLOOKUP(A113,'Pessoal Sicro'!$A$6:$G$118,6,0) -> 7792.2539 | H113: =F113*D113 -> 7792.2539
A114: P9864 | B114: Engenheiro de segurança do trabalho | C114: mês | D114: 0 | F114: =VLOOKUP(A114,'Pessoal Sicro'!$A$6:$G$118,6,0) -> 24956.0135 | H114: =F114*D114 -> 0
A115: P9851 | B115: Médico do trabalho | C115: mês | D115: 0 | F115: =VLOOKUP(A115,'Pessoal Sicro'!$A$6:$G$118,6,0) -> 18672.6242 | H115: =F115*D115 -> 0
A116: P9951 | B116: Médico de câmara hiperbárica | C116: mês | D116: 0 | F116: =VLOOKUP(A116,'Pessoal Sicro'!$A$6:$G$118,6,0) -> 21262.3001 | H116: =F116*D116 -> 0
F117: Subtotal do Item 4 | H117: =SUM(H113:I116) -> 7792.2539
A119: Parcela Variável - Composição de custo da equipe de frente de serviço
A120: Código | B120: Discriminação | C120: Unidade | D120: Quantidade | F120: Custo Unitário (R$) | H120: Custo Total (R$)
A121: 5 | B121: Equipe de Frente de Serviço | C121: equipexmês
A122: P9875 | B122: Encarregado de Turma | C122: mês | D122: 1 | F122: =VLOOKUP(A122,'Pessoal Sicro'!$A$6:$G$118,6,0) -> 5996.5848 | H122: =F122*D122 -> 5996.5848
A123: P9804 | B123: Apontador | C123: mês | D123: 0.5 | F123: =VLOOKUP(A123,'Pessoal Sicro'!$A$6:$G$118,6,0) -> 5124.1419 | H123: =F123*D123 -> 2562.07095
F124: Subtotal do Item 5 | H124: =SUM(H122:I123) -> 8558.65575
A126: Parcela Variável - Composição de custo da equipe de frente de serviço (Terraplenagem) - Somente Compactação
A127: Código | B127: Discriminação | C127: Unidade | D127: Quantidade | F127: Produção Horária (und/h) | H127: Efs
A128: 5.1 | B128: Equipe de Frente de Serviço | C128: equipexmês
C129: mês | H129: =(D129)/(F129*182.49) -> 
C130: mês | H130: =(D130)/(F130*182.49) -> 
C131: mês | H131: =(D131)/(F131*182.49) -> 
F132: Total de Equipes para Terraplenagem | H132: =SUM(H131:I131) -> 
A134: Parcela Variável - Composição de custo da acompanhamento das frentes de serviço de pavimentação
A135: Código | B135: Discriminação | C135: Unidade | D135: Quantidade | F135: Produção Horária (und/h) | H135: Efs
A136: 5.2 | B136: Equipe de Frente de Serviço | C136: equipe x mês
A137: 4915637 | B137: =VLOOKUP(A137,'SINTÉTICO SICRO'!$A$4:$D$6373,2,0) -> Capa selante - areia comercial | C137: m² | D137: ='RESUMO MODULO TOTAL'!H22 -> 252000 | F137: 1350 | H137: =(D137)/(F137*182.49) -> 1.022887099
A138: 4011370 | B138: =VLOOKUP(A138,'SINTÉTICO SICRO'!$A$4:$D$6373,2,0) -> Tratamento superficial duplo com emulsão - brita comercial | C138: m² | D138: ='RESUMO MODULO TOTAL'!H23 -> 252000 | F138: 361.93 | H138: 3.815371987
A139: 4011352 | B139: =VLOOKUP(A139,'SINTÉTICO SICRO'!$A$4:$D$6373,2,0) -> Imprimação com emulsão asfáltica | C139: m² | D139: ='RESUMO MODULO TOTAL'!H24 -> 252000 | F139: 1038.46 | H139: 1.329755198
A140: 4011219 | B140: =VLOOKUP(A140,'SINTÉTICO SICRO'!$A$4:$D$6373,2,0) -> Base de solo estabilizado granulometricamente sem mistura com material de jazida - 100% Proctor modificado | C140: m³ | D140: ='RESUMO MODULO TOTAL'!H25 -> 37800 | F140: 120.7 | H140: 1.71611133
A141: 4011209 | B141: =VLOOKUP(A141,'SINTÉTICO SICRO'!$A$4:$D$6373,2,0) -> Regularização do subleito - 100% Proctor intermediário | C141: m² | D141: ='RESUMO MODULO TOTAL'!H26 -> 37800 | F141: 672.8 | H141: 0.3078695564
F142: Total de Equipes para Pavimentação | H142: =SUM(H137:I141) -> 8.191995171
A144: Parcela Variável - Composição de custo da acompanhamento das frentes de serviço de drenagem
A145: Código | B145: Discriminação | C145: Unidade | D145: Quantidade | F145: Efsdu | H145: Efs
A146: 5.3 | B146: Frentes de Serviço para Drenagem | C146: equipe x mês
A147: ='RESUMO MODULO TOTAL'!C39 -> 2003943 | B147: =VLOOKUP(A147,'SINTÉTICO SICRO'!$A$4:$D$6373,2,0) -> Meio-fio de concreto - MFC 03 moldado no local com extrusora e concreto usinado - areia e brita comerciais | C147: m | D147: ='RESUMO MODULO TOTAL'!H39 -> 72000 | F147: 0.00021 | H147: =D147*F147 -> 15.12
F148: Total de Equipes para Drenagem | H148: =H147 -> 15.12
A150: Parcela Variável - Composição de custo da acompanhamento das frentes de serviço de sinalização
A151: Código | B151: Discriminação | C151: Unidade | D151: Quantidade | F151: Produção Horária (und/h) | H151: Efs
A152: 5.4 | B152: Frentes de Serviço para Sinalização | C152: equipe x mês
A153: 5213440 | B153: =VLOOKUP(A153,'SINTÉTICO SICRO'!$A$4:$D$6373,2,0) -> Placa de regulamentação em aço D = 0,60 m - película retrorrefletiva tipo I + SI - fornecimento e implantação | D153: ='RESUMO MODULO TOTAL'!H34 -> 108 | F153: 3 | H153: =0.2*((D153)/(F153*182.49)) -> 0.03945421667
A154: 5213464 | B154: =VLOOKUP(A154,'SINTÉTICO SICRO'!$A$4:$D$6373,2,0) -> Placa de advertência em aço, lado de 0,60 m - película retrorrefletiva tipo I + SI - fornecimento e implantação | D154: ='RESUMO MODULO TOTAL'!H35 -> 108 | F154: 3 | H154: =0.2*((D154)/(F154*182.49)) -> 0.03945421667
A155: 5213400 | B155: =VLOOKUP(A155,'SINTÉTICO SICRO'!$A$4:$D$6373,2,0) -> Pintura de faixa com tinta acrílica - espessura de 0,4 mm | D155: ='RESUMO MODULO TOTAL'!H37 -> 8640 | F155: 177.07 | H155: =0.2*((D155)/(F155*182.49)) -> 0.0534760942
F156: Total de Equipes para Sinalização | H156: =SUM(H153:I155) -> 0.1323845275 | J156: =H156+H148 -> 15.25238453
A158: 3. PARCELA VARIÁVEL - EQUIPE DE CONTROLE TECNOLÓGICO
A159: LABORATÓRIO DE SOLOS
A160: Item | B160: Discriminação | F160: Unidade | G160: Quantidade | H160: Custo Unitário (R$) | I160: Custo Total (R$)
B161: Laboratório de Solos (equipe x mês)
B162: Mão de Obra
A163: P9858 | B163: Laboratorista | F163: func./mês | G163: 1 | H163: =VLOOKUP(A163,'Pessoal Sicro'!$A$6:$G$118,6,0) -> 7946.5291 | I163: =TRUNC(G163*H163,2) -> 7946.52
A164: P9833 | B164: Auxiliar de laboratório | F164: func./mês | G164: 1 | H164: =VLOOKUP(A164,'Pessoal Sicro'!$A$6:$G$118,6,0) -> 6036.3052 | I164: =TRUNC(G164*H164,2) -> 6036.3
H165: Subtotal do Item | I165: =SUM(I163:I164) -> 13982.82
A166: Item | B166: Discriminação | C166: Und | D166: Quant | E166: Utilização Produtiva | F166: Utilização Improdutiva | G166: Horário Produtivo (R$) | H166: Horário Improdutivo (R$) | I166: Total (R$)
B167: Equipe de Controle Tecnológico
B168: Veículos
A169: E9125 | B169: Van furgão a diesel - 93 kW | C169: veic./mês | D169: 1 | E169: 44 | F169: 176 | G169: =VLOOKUP(A169,Equipamentos!$A$4:$K$533,10,0) -> 88.0815 | H169: =VLOOKUP(A169,Equipamentos!$A$4:$K$533,11,0) -> 49.6677 | I169: =D169*((E169*G169)+(F169*H169)) -> 12617.1012
H170: Subtotal do Item | I170: =SUM(I169:I169) -> 12617.1012
H171: Total da Equipe do Laboratório de Solos | I171: =I165+I170 -> 26599.9212
A173: 3. PARCELA VARIÁVEL - EQUIPE DE CONTROLE TECNOLÓGICO
A174: LABORATÓRIO DE ASFALTOS
A175: Item | B175: Discriminação | F175: Unidade | G175: Quantidade | H175: Custo Unitário (R$) | I175: Custo Total (R$)
B176: Laboratório de Solos (equipe x mês)
B177: Mão de Obra
A178: P9858 | B178: Laboratorista | F178: func./mês | G178: 1 | H178: =VLOOKUP(A178,'Pessoal Sicro'!$A$6:$G$118,6,0) -> 7946.5291 | I178: =TRUNC(G178*H178,2) -> 7946.52
A179: P9833 | B179: Auxiliar de laboratório | F179: func./mês | G179: 1 | H179: =VLOOKUP(A179,'Pessoal Sicro'!$A$6:$G$118,6,0) -> 6036.3052 | I179: =TRUNC(G179*H179,2) -> 6036.3
H180: Subtotal do Item | I180: =SUM(I178:I179) -> 13982.82
A181: Item | B181: Discriminação | C181: Und | D181: Quant | E181: Utilização Produtiva | F181: Utilização Improdutiva | G181: Horário Produtivo (R$) | H181: Horário Improdutivo (R$) | I181: Total (R$)
B182: Equipe de Controle Tecnológico
B183: Veículos
A184: E9125 | B184: Van furgão a diesel - 93 kW | C184: veic./mês | D184: 1 | E184: 44 | F184: 176 | G184: =VLOOKUP(A184,Equipamentos!$A$4:$K$533,10,0) -> 88.0815 | H184: =VLOOKUP(A184,Equipamentos!$A$4:$K$533,11,0) -> 49.6677 | I184: =D184*((E184*G184)+(F184*H184)) -> 12617.1012
H185: Subtotal do Item | I185: =SUM(I184:I184) -> 12617.1012
H186: Total da Equipe do Laboratório de Asfaltos | I186: =I180+I185 -> 26599.9212
A188: Equipes de laboratório de solos para pavimentação
A189: Item | B189: Discriminação | F189: Und | G189: Quant | H189: QE | I189: Els
A190: 4011219 | B190: =VLOOKUP(A190,'SINTÉTICO SICRO'!A:D,2,0) -> Base de solo estabilizado granulometricamente sem mistura com material de jazida - 100% Proctor modificado | F190: =VLOOKUP(A190,'SINTÉTICO SICRO'!A:D,3,0) -> m³ | G190: ='RESUMO MODULO TOTAL'!H25+'RESUMO MODULO TOTAL'!H26 -> 75600 | H190: 21900 | I190: =G190/H190 -> 3.452054795
H191: Total de equipes de Laboratório de Solos para Pavimentação | I191: =SUM(I190:I190) -> 3.452054795
A193: Equipes de laboratório de Asfalto
A194: Item | B194: Discriminação | F194: Und | G194: Quant | H194: QE | I194: Ela
A195: 4011370 | B195: =VLOOKUP(A195,'SINTÉTICO SICRO'!A:D,2,0) -> Tratamento superficial duplo com emulsão - brita comercial | F195: =VLOOKUP(A195,'SINTÉTICO SICRO'!A:D,3,0) -> m² | G195: ='RESUMO MODULO TOTAL'!H23 -> 252000 | H195: 123000 | I195: =G195/H195 -> 2.048780488
A196: 4011352 | B196: =VLOOKUP(A196,'SINTÉTICO SICRO'!A:D,2,0) -> Imprimação com emulsão asfáltica | F196: =VLOOKUP(A196,'SINTÉTICO SICRO'!A:D,3,0) -> m² | G196: ='RESUMO MODULO TOTAL'!H24 -> 252000 | H196: 3610000 | I196: =G196/H196 -> 0.06980609418
H197: Total de equipes de Laboratório de Asfaltos | I197: =SUM(I195:I196) -> 2.118586582
A199: manutenção do canteiro de obras e acampamentos
A200: Código | B200: Discriminação | C200: Unidade | D200: Quantidade | F200: Custo Unitário (R$) | H200: Custo Total (R$)
B201: Manutenção do Canteiro de Obras e Acampamentos
A202: 6.1 | B202: Mão de Obra
A203: P9952 | B203: Pedreiro | C203: mês | D203: 0 | F203: =VLOOKUP(A203,'Pessoal Sicro'!$A$6:$G$118,6,0) -> 5136.466 | H203: =F203*D203 -> 0
A204: P9954 | B204: Servente | C204: mês | D204: 0 | F204: =VLOOKUP(A204,'Pessoal Sicro'!$A$6:$G$118,6,0) -> 4093.0918 | H204: =F204*D204 -> 0
A205: P9953 | B205: Eletricista | C205: mês | D205: 0 | F205: =VLOOKUP(A205,'Pessoal Sicro'!$A$6:$G$118,6,0) -> 5406.8028 | H205: =F205*D205 -> 0
F206: Subtotal do Item 6.1 | H206: =SUM(H203:I205) -> 0
A208: Código | B208: Discriminação | C208: Unidade | D208: Quantidade | F208: Custo Produtivo (R$) | H208: Custo Total (R$)
A209: 6.2 | B209: Equipamentos
B210: Caminhão guindauto de 6 toneladas | C210: h/mês | D210: 0 | H210: =F210*D210 -> 0
B211: Caminhão tanque de 8.000 litros | C211: h/mês | D211: 0 | H211: =F211*D211 -> 0
A212: E9524 | B212: Motoniveladora | C212: h/mês | D212: 0 | F212: =Equipamentos!J168 -> 70.4857 | H212: =F212*D212 -> 0
F213: Subtotal do Item 6.2 | H213: =SUM(H210:I212) -> 0
G214: Total da Manutenção do Canteiro de Obras e Acampamentos | H214: =H213+H206 -> 0
A218: Resumo das parcelas de administração local
A219: Código | B219: Discriminação | C219: Unidade | D219: Quantidade | F219: Custo Unitário (R$) | H219: Custo Total (R$)
B220: Parcela Fixa
B221: Mão de Obra | C221: mês | D221: 9 | F221: =H14+H18+H26+H30 -> 60737.22925 | H221: =F221*D221 -> 546635.0633
B222: Veículos | C222: mês | D222: 9 | F222: =I47 -> 2857.1092 | H222: =F222*D222 -> 25713.9828
F223: Subtotal do Item 1 | H223: =SUM(H221:I222) -> 572349.0461
B224: Parcela Vinculada
... 24 more rows

Sheet Projeto Executivo
A4: COMPOSIÇAO PREÇO PROJETO EXECUTIVO
A6: DISCRIMINAÇAO | F6: Pr. Unit. | G6: Pr. Total
A8: A· EOUIPE TECNICA | G8: =G9+G12 -> 16384.108
B9: A. 1 - Pessoal de Nível Superior | C9: Unidade | D9: Quantitativo | E9: SICRO e Rel.Custos Gerais | G9: =G10+G11 -> 13189.4557
B10: Engenheiro | C10: mês | D10: 0.4 | E10: P9812 | F10: =VLOOKUP(E10,'Pessoal Sicro'!A:G,6,0) -> 27135.6365 | G10: =F10*D10 -> 10854.2546
B11: Topógrafo | C11: mês | D11: 0.25 | E11: P9949 | F11: =VLOOKUP(E11,'Pessoal Sicro'!A:G,6,0) -> 9340.8044 | G11: =F11*D11 -> 2335.2011
B12: A.2 - Pessoal de Nível Técnico e Aux. | G12: =G13+G14 -> 3194.6523
B13: Auxiliar de topógrafo | C13: mês | D13: 0.125 | E13: P9950 | F13: =VLOOKUP(E13,'Pessoal Sicro'!A:G,6,0) -> 6055.7508 | G13: =F13*D13 -> 756.96885
B14: Auxiliar Técnico/Assistente de Engenharia | C14: mês | D14: 0.5 | E14: P9903 | F14: =VLOOKUP(E14,'Pessoal Sicro'!A:G,6,0) -> 4875.3669 | G14: =F14*D14 -> 2437.68345
A15: B - ENCARGOS SOCIAIS | G15: =G16 -> 0
B16: =CONCATENATE("Taxas ",'ENC. SOCIAIS'!E48,"%") -> Taxas 113,33% | C16: JÁ INCLUSAS EM "A"
A17: C - DESPESAS GERAIS | G17: =G18+G20+G19 -> 5316.813468
B18: C.1 - MATERIAIS DE CONSUMO | C18: Estimativa % como referência de equipe técnica com encargos sociais | D18: 0.03 | F18: =G8+G16 -> 16384.108 | G18: =F18*D18 -> 491.52324
B19: C.2 - VEÍCULOS (Veículo leve picape 4 x 4 com capacidade de 1,10 t - 147 kW) | C19: h | D19: 40 | E19: E9684 | F19: =VLOOKUP(E19,Equipamentos!A:K,10,0) -> 112.9174 | G19: =F19*D19 -> 4516.696
B20: C.3 - Estação total eletrônica com alcance máximo de 3.000 m | C20: h | D20: 38.12393948 | E20: E9553 | F20: =VLOOKUP(E20,Equipamentos!A:K,10,0) -> 8.0945 | G20: =F20*D20 -> 308.5942281
A21: D - ENSAIOS | G21: =SUM(G22:G25) -> 3925.781675
B22: Laboratorista | C22: mês | D22: =1/4 -> 0.25 | E22: P9858 | F22: =VLOOKUP(E22,'Pessoal Sicro'!A:G,6,0) -> 7946.5291 | G22: =F22*D22 -> 1986.632275
B23: Auxiliar de Laboratório | C23: mês | D23: =1/8 -> 0.125 | E23: P9833 | F23: =VLOOKUP(E23,'Pessoal Sicro'!A:G,6,0) -> 6036.3052 | G23: =F23*D23 -> 754.53815
B24: Laboratório de solos | C24: mês | D24: =1/8 -> 0.125 | E24: B8957 | F24: =VLOOKUP(E24,'Tabelas 1 e 2'!C14:G23,5,0) -> 3597.39 | G24: =F24*D24 -> 449.67375
B25: Laboratório de asfalto | C25: mês | D25: 0.125 | E25: B8955 | F25: =VLOOKUP(E25,'Tabelas 1 e 2'!C15:G24,5,0) -> 5879.5 | G25: =F25*D25 -> 734.9375
A26: I - SOMA (A+B+C+D) | G26: =G8+G15+G17+G21 -> 25626.70314
F27: Produtividade (m2) | G27: ='Memória de Cálculo'!C1*'Memória de Cálculo'!C2 -> 7000
F28: Por m²: | G28: =TRUNC(G26/G27,2) -> 3.66

Sheet CPU CODEVASF
A4: ='RESUMO MODULO TOTAL'!B61 -> SERVIÇOS DE IMPLANTAÇÃO DE PAVIMENTAÇÃO EM TRATAMENTO SUPERFICIAL DUPLO (TSD), EM VIAS URBANAS E RURAIS INSERIDAS NA ÁREA DE ATUAÇÃO DA CODEVASF, NO ESTADO DO PIAUÍ - REGIÃO SUL
F5: BDI %: | G5: =BDI!$C$13 -> 0.2339
E6: Encargos Sociais: | G6: Horista | H6: Mensalista
G7: ='ENC. SOCIAIS'!E48/100 -> 1.1333 | H7: ='ENC. SOCIAIS'!F48/100 -> 0.7112
A8: COMPOSIÇÕES DE CUSTO UNITARIO
A9: CPU-12 | B9: CODEVASF | D9: Correção de vazamentos no ramal na rua sem pavimento com fornecimento do material hidráulico | E9: m | F9: COEF. | G9: PRECO UNITÁRIO (R$) | H9: TOTAL (R$)
A11: SICRO | B11: SICRO | C11: P9824 | D11: =VLOOKUP(C11,'Pessoal Sicro'!$A$5:$G$1048576,2,0) -> Servente | E11: H | F11: 0.2 | G11: =VLOOKUP(C11,'Pessoal Sicro'!$A$5:$G$1048576,6,0) -> 22.1067 | H11: =F11*G11 -> 4.42134
A12: SICRO | B12: SICRO | C12: P9807 | D12: =VLOOKUP(C12,'Pessoal Sicro'!$A$5:$G$1048576,2,0) -> Bombeiro hidráulico | E12: H | F12: 0.1 | G12: =VLOOKUP(C12,'Pessoal Sicro'!$A$5:$G$1048576,6,0) -> 33.4507 | H12: 3.34507
A13: INS. SINAPI | B13: SINAPI | C13: 9867 | D13: TUBO PVC, SOLDAVEL, DN 20 MM, AGUA FRIA (NBR-5648) | E13: m | F13: 1 | G13: =IFERROR(VLOOKUP(C13,'INSUMOS SINAPI'!A:E,5,FALSE),VLOOKUP(C13,'COMP Sint. Sinapi'!$A:$E,4,FALSE)) -> 3.77 | H13: 3.77
A14: INSUMO | B14: ORSE | C14: 10585 | D14: Arco de serra | E14: un | F14: 0.1 | G14: 19.9 | H14: 1.99
A15: INS. SINAPI | B15: SINAPI | C15: 3859 | D15: LUVA SOLDAVEL COM ROSCA, PVC, 20 MM X 1/2", PARA AGUA FRIA PREDIAL | E15: un | F15: 2 | G15: =IFERROR(VLOOKUP(C15,'INSUMOS SINAPI'!A:E,5,FALSE),VLOOKUP(C15,'COMP Sint. Sinapi'!$A:$E,4,FALSE)) -> 1.35 | H15: 2.7
E16: Sub total: | H16: =SUM(H11:H15) -> 16.22641
F17: BDI | G17: =BDI!$C$13 -> 0.2339 | H17: =H16*G17 -> 3.795357299
G18: Total Serviços: | H18: =H16+H17 -> 20.0217673
E19: =A9 -> CPU-12 | F19: PREÇO UNITÁRIO TOTAL: | H19: =H18 -> 20.0217673 | I19: =H16 -> 16.22641
A21: CPU-14 | B21: CODEVASF | D21: AQUISIÇÃO DE EAI | E21: t | F21: COEF. | G21: PRECO UNITÁRIO (R$) | H21: TOTAL (R$)
D23: EAI | E23: t | F23: 1 | G23: =RESUMO_Transp!$V$17 -> 2648.414098 | H23: =F23*G23 -> 2648.414098
E24: Sub total: | H24: =SUM(H23) -> 2648.414098
F25: BDI | G25: 0.15 | H25: =H24*G25 -> 397.2621147
G26: Total Serviços: | H26: =H24+H25 -> 3045.676212
E27: =A21 -> CPU-14 | F27: PREÇO UNITÁRIO TOTAL: | H27: =H26 -> 3045.676212 | I27: =H24 -> 2648.414098
A29: CPU-15 | B29: CODEVASF | D29: AQUISIÇÃO DE EMULSÃO ASFÁLTICA RR-2C | E29: t | F29: COEF. | G29: PRECO UNITÁRIO (R$) | H29: TOTAL (R$)
D31: EMULSÃO ASFÁLTICA RR-2C | E31: t | F31: 1 | G31: =RESUMO_Transp!$V$24 -> 3201.638814 | H31: =F31*G31 -> 3201.638814
E32: Sub total: | H32: =SUM(H31) -> 3201.638814
F33: BDI | G33: 0.15 | H33: =H32*G33 -> 480.2458221
G34: Total Serviços: | H34: =H32+H33 -> 3681.884636
E35: =A29 -> CPU-15 | F35: PREÇO UNITÁRIO TOTAL: | H35: =H34 -> 3681.884636 | I35: =H32 -> 3201.638814
A37: CPU-18 | B37: CODEVASF | D37: TRANSPORTE DE EAI | E37: t | F37: COEF. | G37: PRECO UNITÁRIO (R$) | H37: TOTAL (R$)
D39: TRANSPORTE DE EAI | E39: t | F39: 1 | G39: =RESUMO_Transp!$U$17 -> 771.82 | H39: =F39*G39 -> 771.82
E40: Sub total: | H40: =SUM(H39) -> 771.82
F41: BDI | G41: 0.15 | H41: =H40*G41 -> 115.773
G42: Total Serviços: | H42: =H40+H41 -> 887.593
E43: =A37 -> CPU-18 | F43: PREÇO UNITÁRIO TOTAL: | H43: =H42 -> 887.593 | I43: =H40 -> 771.82
A45: CPU-19 | B45: CODEVASF | D45: TRANSPORTE DE EMULSÃO ASFÁLTICA RR-2C | E45: t | F45: COEF. | G45: PRECO UNITÁRIO (R$) | H45: TOTAL (R$)
D47: TRANSPORTE DE EMULSÃO ASFÁLTICA RR-2C | E47: t | F47: 1 | G47: =RESUMO_Transp!$U$24 -> 771.82 | H47: =F47*G47 -> 771.82
E48: Sub total: | H48: =SUM(H47) -> 771.82
F49: BDI | G49: 0.15 | H49: =H48*G49 -> 115.773
G50: Total Serviços: | H50: =H48+H49 -> 887.593
E51: =A45 -> CPU-19 | F51: PREÇO UNITÁRIO TOTAL: | H51: =H50 -> 887.593 | I51: =H48 -> 771.82

Sheet BDI
A2: ='RESUMO MODULO TOTAL'!B61 -> SERVIÇOS DE IMPLANTAÇÃO DE PAVIMENTAÇÃO EM TRATAMENTO SUPERFICIAL DUPLO (TSD), EM VIAS URBANAS E RURAIS INSERIDAS NA ÁREA DE ATUAÇÃO DA CODEVASF, NO ESTADO DO PIAUÍ - REGIÃO SUL
A3: Descrição dos serviços | B3: Preço de Venda (%) | C3: Custo Direto (%)
A4: ADMINISTRAÇÃO CENTRAL | C4: 0.06
A5: CUSTOS FINANCEIROS | B5: 0.0102
A6: RISCOS | B6: 0.0025
A7: SEGUROS E GARANTIAS CONTRATUAIS | B7: 0.005
A8: LUCRO OPERACIONAL | C8: 0.07
A9: PIS | B9: 0.0065
A10: COFINS | B10: 0.03
A11: ISSQN | B11: 0.03
A12: Contribuição Previdenciaria | B12: 0
B13: BDI | C13: =ROUND((1+(C4+C8))/(1-(B5+B6+B7+B9+B10+B11+B12))-1,4) -> 0.2339
A14: Observação: O percentual de ISSQN aqui utilizado consiste apenas em um referencial médio.
A15: O valor real do ISSQN a ser adotado deve ser aquele proveniente das alíquotas dos municípios situados na área de
A16: influência das obras.
A51: DETALHAMENTO DO BDI DIFERENCIADO - SEM DESONERAÇÃO
A52: ='RESUMO MODULO TOTAL'!B61 -> SERVIÇOS DE IMPLANTAÇÃO DE PAVIMENTAÇÃO EM TRATAMENTO SUPERFICIAL DUPLO (TSD), EM VIAS URBANAS E RURAIS INSERIDAS NA ÁREA DE ATUAÇÃO DA CODEVASF, NO ESTADO DO PIAUÍ - REGIÃO SUL
A54: DESCRIÇÃO DOS SERVIÇOS | B54: PREÇO DE VENDA (%) | C54: CUSTO DIRETO (%)
A55: ADMINISTRAÇÃO CENTRAL | C55: 0.0377
A56: DESPESA FINANCEIRAS | B56: 0.0102
A57: SEGUROS E GARANTIAS CONTRATUAIS | B57: 0.0025
A58: RISCOS | B58: 0.005
A59: LUCRO OPERACIONAL | C59: 0.05
A60: PIS | B60: 0.0065
A61: COFINS | B61: 0.03
A62: ISSQN | B62: 0
A63: Contribuição Previdenciaria | B63: 0
B64: BDI | C64: =ROUND((1+(C55+C59))/(1-(B56+B57+B58+B60+B61+B62+B63))-1,4) -> 0.15
A65: Fonte da composição, valores de referência e fórmula do BDI: Instrução Normativa N° 62/DNIT SEDE

Sheet ENC. SOCIAIS
A6: ='RESUMO MODULO TOTAL'!B61 -> SERVIÇOS DE IMPLANTAÇÃO DE PAVIMENTAÇÃO EM TRATAMENTO SUPERFICIAL DUPLO (TSD), EM VIAS URBANAS E RURAIS INSERIDAS NA ÁREA DE ATUAÇÃO DA CODEVASF, NO ESTADO DO PIAUÍ - REGIÃO SUL
A8: DETALHAMENTO DOS ENCARGOS SOCIAIS (%)
A9: VIGÊNCIA A PARTIR DE 12/2023 | C9: COM DESONERAÇÃO | E9: SEM DESONERAÇÃO
C11: HORISTA | D11: MENSALISTA | E11: HORISTA | F11: MENSALISTA
A13: GRUPO A
A14: A1 | B14: INSS | C14: 0 | D14: 0 | E14: 20 | F14: 20
A15: A2 | B15: SESI | C15: 1.5 | D15: 1.5 | E15: 1.5 | F15: 1.5
A16: A3 | B16: SENAI | C16: 1 | D16: 1 | E16: 1 | F16: 1
A17: A4 | B17: INCRA | C17: 0.2 | D17: 0.2 | E17: 0.2 | F17: 0.2
A18: A5 | B18: SEBRAE | C18: 0.6 | D18: 0.6 | E18: 0.6 | F18: 0.6
A19: A6 | B19: Salário Educação | C19: 2.5 | D19: 2.5 | E19: 2.5 | F19: 2.5
A20: A7 | B20: Seguro Contra Acidentes de Trabalho | C20: 3 | D20: 3 | E20: 3 | F20: 3
A21: A8 | B21: FGTS | C21: 8 | D21: 8 | E21: 8 | F21: 8
A22: A9 | B22: SECONCI | C22: 1 | D22: 1 | E22: 0
A23: A | B23: Total | C23: =SUM(C14:C22) -> 17.8 | D23: =SUM(D14:D22) -> 17.8 | E23: =SUM(E14:E22) -> 36.8 | F23: =SUM(F14:F22) -> 36.8
A24: GRUPO B
A25: B1 | B25: Repouso Semanal Remunerado | C25: 17.88 | D25: - | E25: 17.82 | F25: -
A26: B2 | B26: Feriados | C26: 3.94 | D26: - | E26: 3.95 | F26: -
A27: B3 | B27: Auxílio-enfermidade | C27: 0.91 | D27: 0.69 | E27: 0.86 | F27: 0.65
A28: B4 | B28: 13° salário | C28: 10.98 | D28: 8.33 | E28: 10.96 | F28: 8.33
A29: B5 | B29: Licença-paternidade | C29: 0.07 | D29: 0.06 | E29: 0.07 | F29: 0.05
A30: B6 | B30: Faltas Justificadas | C30: 0.73 | D30: 0.56 | E30: 0.73 | F30: 0.56
A31: B7 | B31: Dias de chuva | C31: 1.45 | D31: - | E31: 1.17 | F31: -
A32: B8 | B32: Auxílio Acidente de Trabalho | C32: 0.11 | D32: 0.09 | E32: 0.1 | F32: 0.07
A33: B9 | B33: Férias Gozadas | C33: 11.35 | D33: 8.62 | E33: 11.71 | F33: 8.9
A34: B10 | B34: Salário Maternidade | C34: 0.03 | D34: 0.03 | E34: 0.03 | F34: 0.03
A35: B | B35: Total | C35: =SUM(C25:C34) -> 47.45 | D35: =SUM(D25:D34) -> 18.38 | E35: =SUM(E25:E34) -> 47.4 | F35: =SUM(F25:F34) -> 18.59
A36: GRUPO C
A37: C1 | B37: Aviso Prévio Indenizado | C37: 6.76 | D37: 5.14 | E37: 5.3 | F37: 4.03
A38: C2 | B38: Aviso Prévio Trabalhado | C38: 0.16 | D38: 0.12 | E38: 0.12 | F38: 0.09
A39: C3 | B39: Férias Indenizadas | C39: 2.28 | D39: 1.73 | E39: 2.46 | F39: 1.87
A40: C4 | B40: Depósito Rescisão Sem Justa Causa | C40: 3.81 | D40: 2.89 | E40: 2.89 | F40: 2.2
A41: C5 | B41: Indenização Adicional | C41: 0.57 | D41: 0.43 | E41: 0.45 | F41: 0.34
A42: C | B42: Total | C42: =SUM(C37:C41) -> 13.58 | D42: =SUM(D37:D41) -> 10.31 | E42: =SUM(E37:E41) -> 11.22 | F42: =SUM(F37:F41) -> 8.53
A43: GRUPO D
A44: D1 | B44: Reincidência de A sobre B | C44: 8.45 | D44: 3.27 | E44: 17.44 | F44: 6.84
A45: D2 | B45: Reincidência de Grupo A sobre Aviso Prévio Trabalhado e Reincidência do FGTS sobre Aviso Prévio Indenizado | C45: 0.57 | D45: 0.43 | E45: 0.47 | F45: 0.36
A46: D | B46: Total | C46: =SUM(C44:C45) -> 9.02 | D46: =SUM(D44:D45) -> 3.7 | E46: =SUM(E44:E45) -> 17.91 | F46: =SUM(F44:F45) -> 7.2
A48: T O T A L (%) | C48: =C23+C35+C42+C46 -> 87.85 | D48: =D23+D35+D42+D46 -> 50.19 | E48: =E23+E35+E42+E46 -> 113.33 | F48: =F23+F35+F42+F46 -> 71.12
H53: Fonte: Sinapi Cálculos e Parâmetros 5ª Edição - Atualizada em Agosto 2023

Sheet CONSUMO DE MAT. B TOTAL
B5: CONSUMO DO MATERIAL BETUMINOSO TOTAL
B7: TRECHO | D7: QUANTIDADES | M7: MAT. BETUMINOSO
B8: Inicio (km) | C8: Fim (km) | D8: Extensão (m) | E8: Largura (m) | F8: Espess. (m) | G8: Área (m2) | H8: Volume (m3) | I8: Densidade (t/m3) | J8: Massa (t) | K8: Unid | L8: Quant. | M8: Tipo | N8: Consumo Taxa de Aplicação | O8: Unid. | P8: Quant.
B9: IMPRIMAÇÃO
F11: 1 | G11: ='Memória de Cálculo'!H63 -> 252000 | H11: =G11*F11 -> 252000 | M11: CM-30 | N11: 1,2 l/m2 | O11: t | P11: =ROUND((G11*1.2)/1000,2) -> 302.4
B12: CAPA SELANTE
F13: 1 | G13: ='Memória de Cálculo'!H51 -> 252000 | H13: =G13*F13 -> 252000 | M13: RR-2C | N13: 0,5 l/m2 | O13: t | P13: =ROUND((G13*0.5)/1000,2) -> 126
B14: TRATAMENTO SUPERFICIAL DUPLO - 1ª CAMADA
F15: 1 | G15: ='Memória de Cálculo'!H57 -> 252000 | H15: =G15*F15 -> 252000 | M15: RR-2C | N15: 1,5 l/m² | O15: t | P15: =ROUND((G15*1.5)/1000,2) -> 378
B16: TRATAMENTO SUPERFICIAL DUPLO - 2ª CAMADA
F17: 1 | G17: ='Memória de Cálculo'!H57 -> 252000 | H17: =G17*F17 -> 252000 | M17: RR-2C | N17: 1,0 l/m² | O17: t | P17: =ROUND((G17*1)/1000,2) -> 252
H19: =G19*F19 -> 0

Sheet Transporte EAI
C3: MEMÓRIA DE CÁLCULO
C8: REAJUSTE | F8: TIPOLOGIA DO MATERIAL | I8: EMULSÃO ASFÁLTICA PARA SERVIÇO DE IMPRIMAÇÃO | M8: IMPOSTOS | N8: COFINS | O8: 0.0065 | P8: 0.0065
G9: ÍNDICE DE PAVIMENTAÇÃO DNIT | H9: 2014-07-01 | I9: ÍNDICE INICIAL | J9: 270.237 | N9: PIS | O9: 0.03 | P9: 0.03 | T9: LEGENDA | AC9: As empresas tributadas pelo Lucro Presumido pagam 0,65% de PIS e 3% de COFINS
H10: 2025-08-01 | I10: ÍNDICE FINAL | J10: 589.643 | N10: ICMS | O10: 0.18 | P10: 0.18 | Q10: =1-(O10/1) -> 0.82 | R10: =1-(P10/1) -> 0.82 | S10: =1-(Q10/1) -> 0.18 | T10: ENTRADA DE DADOS | AC10: As empresas tributadas pelo Lucro Real pagam 1,65% de PIS e 7,60% de COFINS
G11: Data ANP | H11: 2025-07-01
C12: DATA-BASE | D12: PRODUTOS | E12: LOCALIDADES | J12: CUSTO ANP (R$/Kg) | L12: CUSTO ANP | M12: IMPOSTOS DO PRODUTO | N12: CUSTO DO PRODUTO COM IMPOSTOS | O12: DMT's | P12: DMT'S FLUVIAL | Q12: CUSTO DO TRANSPORTE RODOVIA PAVIMENTADA | R12: CUSTO DO TRANSPORTE FLUVIAL | S12: CUSTO DO TRANSPORTE TOTAL | T12: ICMS | U12: ATUALIZAÇÃO DO CUSTO DE TRANSPORTE | V12: CUSTO DO TRANSPORTE RODOVIA PAVIMENTADA COM IMPOSTOS E ATUALIZAÇÃO MONETÁRIA | W12: PEDÁGIO | Y12: TOTAL TRANSPORTE | Z12: AQUISIÇÃO DO PRODUTO | AA12: TOTAL GERAL ( TRANSP + AQUISIÇÃO) | AC12: 1 | AD12: 2 | AE12: 3
C13: =H10 -> 2025-08-01 | E13: REFINARIAS | F13: ENDEREÇO | G13: ESTADO | H13: CIDADE | I13: DESTINO | J13: ESTADO | K13: REGIÃO | L13: R$/t | M13: R$/t | N13: R$/t | O13: KM | P13: KM | Q13: R$/t | R13: R$/t | S13: R$/t | T13: R$/t | U13: R$/t | V13: R$/t | W13: CUSTO | X13: R$/t | Y13: R$/t | Z13: R$/t | AA13: R$/t | AC13: TOTAL GERAL ( TRANSP + AQUISIÇÃO) | AD13: TOTAL TRANSPORTE | AE13: AQUISIÇÃO DO PRODUTO
B14: =AA14 -> 3702.51432 | C14: 1 | D14: =I8 -> EMULSÃO ASFÁLTICA PARA SERVIÇO DE IMPRIMAÇÃO | E14: Refinaria Abreu e Lima | F14: Rodovia PE 60, Km 10 - Ipojuca - PE CEP:55590-000 | G14: Pernambuco | H14: IPOJUCA - PE | I14: BOM JESUS-PI | J14: =VLOOKUP(G14,OFFSET('ANP ESTADO'!$A$1,MATCH($I$8,'ANP ESTADO'!B:B,0)+MATCH($H$11,OFFSET('ANP ESTADO'!$A$1,MATCH($I$8,'ANP ESTADO'!B:B,0),0,100000,1),0),2,100000,2),2,FALSE) -> - | K14: =VLOOKUP($H$11,OFFSET('ANP REGIÃO'!$A$9,MATCH('Transporte EAI'!$I$8,'ANP REGIÃO'!A:A,0),1,10000,10000),MATCH('Transporte EAI'!AH14,'ANP REGIÃO'!$B$8:$G$8,0),FALSE) -> 2.18249432 | L14: =IF(AND(J14="-",K14="-"),"",IF(AND(J14<>0,K14="-"),J14*1000,IF(AND(J14="-",K14<>0),K14*1000,IF(AND(J14<>0,K14<>0),J14*1000,"")))) -> 2182.49432 | M14: =ROUND(((L14/(1-$O$8-$O$9-$O$10+($O$9+$O$8)*$O$10)-L14)),2) -> 579.91 | N14: =L14+M14 -> 2762.40432 | O14: 1290 | P14: 0 | Q14: =ROUND((26.939+0.253*O14),2) -> 353.31 | S14: =ROUND((26.939+0.253*Q14),2) -> 116.33 | T14: =TRUNC(Q14*($O$10/(1-$O$10)),2) -> 77.55 | U14: =TRUNC(IF($J$9="","",(($J$10-$J$9)/$J$9)*(Q14+T14)),2) -> 509.25 | V14: =Q14+T14+U14 -> 940.11 | X14: =EVEN((' CONSUMO DE MAT. B TOTAL'!$P$15+' CONSUMO DE MAT. B TOTAL'!P17)*2/28)*W14/(' CONSUMO DE MAT. B TOTAL'!$P$15+' CONSUMO DE MAT. B TOTAL'!P17) -> 0 | Y14: =IF(AND(Q14="",T14=""),"",V14+X14) -> 940.11 | Z14: =IF(OR(L14="",M14=""),"",L14+M14) -> 2762.40432 | AA14: =IF(OR(Y14="",Z14=""),"",Y14+Z14) -> 3702.51432 | AC14: =AA14 -> 3702.51432 | AD14: =Y14 -> 940.11 | AE14: =Z14 -> 2762.40432 | AH14: =IF(OR(G14=$D$59,G14=$D$60,G14=$D$62,G14=$D$68,G14=$D$52,G14=$D$48,G14=$D$44,G14=$D$57,G14=$D$47),"NORDESTE",IF(OR(G14=$D$43,G14=$D$45,G14=$D$46,G14=$D$56,G14=$D$64,G14=$D$65,G14=$D$69),"NORTE",IF(OR(G14=$D$49,G14=$D$51,G14=$D$53,G14=$D$54),"CENTRO-OESTE",IF(OR(G14=$D$67,G14=$D$61,G14=$D$55,G14=$D$50),"SUDESTE",IF(OR(G14=$D$66,G14=$D$58,G14=$D$63),"SUL",""))))) -> NORDESTE
B15: =AA15 -> 3640.358083 | C15: 2 | E15: STRATURA ASFALTOS S/A | F15: AVENIDA PRESIDENTE WILSON, 08 - JUNDIAÍ - CEP:75115-100 | G15: Goiás | H15: ANÁPOLIS - GO | I15: =I14 -> BOM JESUS-PI | J15: =VLOOKUP(G15,OFFSET('ANP ESTADO'!$A$1,MATCH($I$8,'ANP ESTADO'!B:B,0)+MATCH($H$11,OFFSET('ANP ESTADO'!$A$1,MATCH($I$8,'ANP ESTADO'!B:B,0),0,100000,1),0),2,100000,2),2,FALSE) -> 2.167968083 | K15: =VLOOKUP($H$11,OFFSET('ANP REGIÃO'!$A$9,MATCH('Transporte EAI'!$I$8,'ANP REGIÃO'!A:A,0),1,10000,10000),MATCH('Transporte EAI'!AH15,'ANP REGIÃO'!$B$8:$G$8,0),FALSE) -> 2.623457098 | L15: =IF(AND(J15="-",K15="-"),"",IF(AND(J15<>0,K15="-"),J15*1000,IF(AND(J15="-",K15<>0),K15*1000,IF(AND(J15<>0,K15<>0),J15*1000,"")))) -> 2167.968083 | M15: =ROUND(((L15/(1-$O$8-$O$9-$O$10+($O$9+$O$8)*$O$10)-L15)),2) -> 576.05 | N15: =L15+M15 -> 2744.018083 | O15: 1225 | P15: 0 | Q15: =ROUND((26.939+0.253*O15),2) -> 336.86 | S15: 112.16 | T15: =TRUNC(Q15*($O$10/(1-$O$10)),2) -> 73.94 | U15: =TRUNC(IF($J$9="","",(($J$10-$J$9)/$J$9)*(Q15+T15)),2) -> 485.54 | V15: =Q15+T15+U15 -> 896.34 | X15: =EVEN((' CONSUMO DE MAT. B TOTAL'!$P$15+' CONSUMO DE MAT. B TOTAL'!P19)*2/28)*W15/(' CONSUMO DE MAT. B TOTAL'!$P$15+' CONSUMO DE MAT. B TOTAL'!P19) -> 0 | Y15: 896.34 | Z15: 2744.018083 | AA15: =IF(OR(Y15="",Z15=""),"",Y15+Z15) -> 3640.358083 | AC15: =AA15 -> 3640.358083 | AD15: =Y15 -> 896.34 | AE15: 2744.018083 | AH15: =IF(OR(G15=$D$59,G15=$D$60,G15=$D$62,G15=$D$68,G15=$D$52,G15=$D$48,G15=$D$44,G15=$D$57,G15=$D$47),"NORDESTE",IF(OR(G15=$D$43,G15=$D$45,G15=$D$46,G15=$D$56,G15=$D$64,G15=$D$65,G15=$D$69),"NORTE",IF(OR(G15=$D$49,G15=$D$51,G15=$D$53,G15=$D$54),"CENTRO-OESTE",IF(OR(G15=$D$67,G15=$D$61,G15=$D$55,G15=$D$50),"SUDESTE",IF(OR(G15=$D$66,G15=$D$58,G15=$D$63),"SUL",""))))) -> CENTRO-OESTE
B16: 3685.478083 | C16: 3 | E16: DISTRIBUIDORA BRASILEIRA DE ASFALTO SA - DISBRAL | F16: VIA PRIMARIA 8, S/N QD-18, MODS. 24/47 - DAIAG - CEP:74980-970 | G16: Goiás | H16: APARECIDA DE GOIANIA - GO | I16: =I15 -> BOM JESUS-PI | J16: =VLOOKUP(G16,OFFSET('ANP ESTADO'!$A$1,MATCH($I$8,'ANP ESTADO'!B:B,0)+MATCH($H$11,OFFSET('ANP ESTADO'!$A$1,MATCH($I$8,'ANP ESTADO'!B:B,0),0,100000,1),0),2,100000,2),2,FALSE) -> 2.167968083 | K16: =VLOOKUP($H$11,OFFSET('ANP REGIÃO'!$A$9,MATCH('Transporte EAI'!$I$8,'ANP REGIÃO'!A:A,0),1,10000,10000),MATCH('Transporte EAI'!AH16,'ANP REGIÃO'!$B$8:$G$8,0),FALSE) -> 2.623457098 | L16: 2167.968083 | M16: 576.05 | N16: 2744.018083 | O16: 1292 | P16: 0 | Q16: 353.82 | S16: 116.46 | T16: 77.66 | U16: 509.98 | V16: 941.46 | X16: =EVEN((' CONSUMO DE MAT. B TOTAL'!$P$15+' CONSUMO DE MAT. B TOTAL'!P20)*2/28)*W16/(' CONSUMO DE MAT. B TOTAL'!$P$15+' CONSUMO DE MAT. B TOTAL'!P20) -> 0 | Y16: 941.46 | Z16: 2744.018083 | AA16: 3685.478083 | AC16: 3685.478083 | AD16: 941.46 | AE16: 2744.018083 | AH16: CENTRO-OESTE
A17: 2403 | B17: 3689.498083 | C17: 4 | E17: INDÚSTRIA NACIONAL DE ASFALTOS LTDA. | F17: VIA PRIMEIRA E SEGUNDA 3, S/N.º LOTES 01 A 10 - DISTRITO AGROINDUSTRIAL - CEP:75370-000 | G17: Goiás | H17: GOIANIRA - GO | I17: BOM JESUS-PI | J17: =VLOOKUP(G17,OFFSET('ANP ESTADO'!$A$1,MATCH($I$8,'ANP ESTADO'!B:B,0)+MATCH($H$11,OFFSET('ANP ESTADO'!$A$1,MATCH($I$8,'ANP ESTADO'!B:B,0),0,100000,1),0),2,100000,2),2,FALSE) -> 2.167968083 | K17: =VLOOKUP($H$11,OFFSET('ANP REGIÃO'!$A$9,MATCH('Transporte EAI'!$I$8,'ANP REGIÃO'!A:A,0),1,10000,10000),MATCH('Transporte EAI'!AH17,'ANP REGIÃO'!$B$8:$G$8,0),FALSE) -> 2.623457098 | L17: 2167.968083 | M17: 576.05 | N17: 2744.018083 | O17: 1298 | P17: 0 | Q17: 355.33 | S17: 116.84 | T17: 77.99 | U17: 512.16 | V17: 945.48 | X17: =EVEN((' CONSUMO DE MAT. B TOTAL'!$P$15+' CONSUMO DE MAT. B TOTAL'!P21)*2/28)*W17/(' CONSUMO DE MAT. B TOTAL'!$P$15+' CONSUMO DE MAT. B TOTAL'!P21) -> 0 | Y17: 945.48 | Z17: 2744.018083 | AA17: 3689.498083 | AC17: 3689.498083 | AD17: 945.48 | AE17: 2744.018083 | AH17: CENTRO-OESTE
B18: 3768.924487 | C18: 5 | E18: STRATURA ASFALTOS S/A | F18: RUA VICTOR RODRIGUES RESENDE, 333 - DISTRITO IND. DE UBERLÂNDIA - CEP:38405-440 | G18: Minas Gerais | H18: UBERLANDIA - MG | I18: BOM JESUS-PI | J18: =VLOOKUP(G18,OFFSET('ANP ESTADO'!$A$1,MATCH($I$8,'ANP ESTADO'!B:B,0)+MATCH($H$11,OFFSET('ANP ESTADO'!$A$1,MATCH($I$8,'ANP ESTADO'!B:B,0),0,100000,1),0),2,100000,2),2,FALSE) -> 2.140814487 | K18: =VLOOKUP($H$11,OFFSET('ANP REGIÃO'!$A$9,MATCH('Transporte EAI'!$I$8,'ANP REGIÃO'!A:A,0),1,10000,10000),MATCH('Transporte EAI'!AH18,'ANP REGIÃO'!$B$8:$G$8,0),FALSE) -> 2.308211963 | L18: 2140.814487 | M18: 568.84 | N18: 2709.654487 | O18: 1467 | P18: 0 | Q18: 398.09 | S18: 127.66 | T18: 87.38 | U18: 573.8 | V18: 1059.27 | X18: =EVEN((' CONSUMO DE MAT. B TOTAL'!$P$15+' CONSUMO DE MAT. B TOTAL'!P22)*2/28)*W18/(' CONSUMO DE MAT. B TOTAL'!$P$15+' CONSUMO DE MAT. B TOTAL'!P22) -> 0 | Y18: 1059.27 | Z18: 2709.654487 | AA18: 3768.924487 | AC18: 3768.924487 | AD18: 1059.27 | AE18: 2709.654487 | AH18: SUDESTE
B19: 3768.924487 | C19: 6 | E19: BETUNEL INDÚSTRIA E COMÉRCIO LTDA. | F19: RUA VICTOR RODRIGUES DE REZENDE, 185 - DISTRITO INDUSTRIAL - CEP:38402-334 | G19: Minas Gerais | H19: UBERLANDIA - MG | I19: BOM JESUS-PI | J19: =VLOOKUP(G19,OFFSET('ANP ESTADO'!$A$1,MATCH($I$8,'ANP ESTADO'!B:B,0)+MATCH($H$11,OFFSET('ANP ESTADO'!$A$1,MATCH($I$8,'ANP ESTADO'!B:B,0),0,100000,1),0),2,100000,2),2,FALSE) -> 2.140814487 | K19: =VLOOKUP($H$11,OFFSET('ANP REGIÃO'!$A$9,MATCH('Transporte EAI'!$I$8,'ANP REGIÃO'!A:A,0),1,10000,10000),MATCH('Transporte EAI'!AH19,'ANP REGIÃO'!$B$8:$G$8,0),FALSE) -> 2.308211963 | L19: 2140.814487 | M19: 568.84 | N19: 2709.654487 | O19: 1467 | P19: 0 | Q19: 398.09 | S19: 127.66 | T19: 87.38 | U19: 573.8 | V19: 1059.27 | X19: =EVEN((' CONSUMO DE MAT. B TOTAL'!$P$15+' CONSUMO DE MAT. B TOTAL'!P23)*2/28)*W19/(' CONSUMO DE MAT. B TOTAL'!$P$15+' CONSUMO DE MAT. B TOTAL'!P23) -> 0 | Y19: 1059.27 | Z19: 2709.654487 | AA19: 3768.924487 | AC19: 3768.924487 | AD19: 1059.27 | AE19: 2709.654487 | AH19: SUDESTE
B20: 3682.98432 | C20: 7 | E20: Refinaria Potiguar Clara Camarão | F20: Rodovia RN 221, KM 25 - Guamaré - RN CEP:59598-000 | G20: Rio Grande do Norte | H20: GUAMARÉ - RN | I20: BOM JESUS-PI | J20: =VLOOKUP(G20,OFFSET('ANP ESTADO'!$A$1,MATCH($I$8,'ANP ESTADO'!B:B,0)+MATCH($H$11,OFFSET('ANP ESTADO'!$A$1,MATCH($I$8,'ANP ESTADO'!B:B,0),0,100000,1),0),2,100000,2),2,FALSE) -> - | K20: =VLOOKUP($H$11,OFFSET('ANP REGIÃO'!$A$9,MATCH('Transporte EAI'!$I$8,'ANP REGIÃO'!A:A,0),1,10000,10000),MATCH('Transporte EAI'!AH20,'ANP REGIÃO'!$B$8:$G$8,0),FALSE) -> 2.18249432 | L20: =IF(AND(J20="-",K20="-"),"",IF(AND(J20<>0,K20="-"),J20*1000,IF(AND(J20="-",K20<>0),K20*1000,IF(AND(J20<>0,K20<>0),J20*1000,"")))) -> 2182.49432 | M20: 579.91 | N20: 2762.40432 | O20: 1261 | P20: 0 | Q20: 345.97 | S20: 114.47 | T20: 75.94 | U20: 498.67 | V20: 920.58 | X20: =EVEN((' CONSUMO DE MAT. B TOTAL'!$P$15+' CONSUMO DE MAT. B TOTAL'!P24)*2/28)*W20/(' CONSUMO DE MAT. B TOTAL'!$P$15+' CONSUMO DE MAT. B TOTAL'!P24) -> 0 | Y20: 920.58 | Z20: 2762.40432 | AA20: 3682.98432 | AH20: NORDESTE
B21: 3841.624487 | C21: 8 | E21: DISTRIBUIDORA BRASILEIRA DE ASFALTO SA - DISBRAL | F21: SÃO JUDAS TADEU, 288 - DISTRITO INDUSTRIAL - CEP:32450-000 | G21: Minas Gerais | H21: SARZEDO - MG | I21: BOM JESUS-PI | J21: =VLOOKUP(G21,OFFSET('ANP ESTADO'!$A$1,MATCH($I$8,'ANP ESTADO'!B:B,0)+MATCH($H$11,OFFSET('ANP ESTADO'!$A$1,MATCH($I$8,'ANP ESTADO'!B:B,0),0,100000,1),0),2,100000,2),2,FALSE) -> 2.140814487 | K21: =VLOOKUP($H$11,OFFSET('ANP REGIÃO'!$A$9,MATCH('Transporte EAI'!$I$8,'ANP REGIÃO'!A:A,0),1,10000,10000),MATCH('Transporte EAI'!AH21,'ANP REGIÃO'!$B$8:$G$8,0),FALSE) -> 2.308211963 | L21: 2140.814487 | M21: 568.84 | N21: 2709.654487 | O21: 1575 | P21: 0 | Q21: 425.41 | S21: 134.57 | T21: 93.38 | U21: 613.18 | V21: 1131.97 | X21: =EVEN((' CONSUMO DE MAT. B TOTAL'!$P$15+' CONSUMO DE MAT. B TOTAL'!P25)*2/28)*W21/(' CONSUMO DE MAT. B TOTAL'!$P$15+' CONSUMO DE MAT. B TOTAL'!P25) -> 0 | Y21: 1131.97 | Z21: 2709.654487 | AA21: 3841.624487 | AH21: SUDESTE
B22: 4439.325163 | C22: 9 | E22: 'INDÚSTRIA NACIONAL DE ASFALTOS LTDA. | F22: INDÚSTRIA NACIONAL DE ASFALTOS LTDA - CEP:77053-080 | G22: Tocantins | H22: PALMAS - TO | I22: BOM JESUS-PI | J22: =VLOOKUP(G22,OFFSET('ANP ESTADO'!$A$1,MATCH($I$8,'ANP ESTADO'!B:B,0)+MATCH($H$11,OFFSET('ANP ESTADO'!$A$1,MATCH($I$8,'ANP ESTADO'!B:B,0),0,100000,1),0),2,100000,2),2,FALSE) -> - | K22: =VLOOKUP($H$11,OFFSET('ANP REGIÃO'!$A$9,MATCH('Transporte EAI'!$I$8,'ANP REGIÃO'!A:A,0),1,10000,10000),MATCH('Transporte EAI'!AH22,'ANP REGIÃO'!$B$8:$G$8,0),FALSE) -> 3.040675163 | L22: 3040.675163 | M22: 807.94 | N22: 3848.615163 | O22: 771 | P22: 0 | Q22: 222 | S22: 83.11 | T22: 48.73 | U22: 319.98 | V22: 590.71 | X22: =EVEN((' CONSUMO DE MAT. B TOTAL'!$P$15+' CONSUMO DE MAT. B TOTAL'!P26)*2/28)*W22/(' CONSUMO DE MAT. B TOTAL'!$P$15+' CONSUMO DE MAT. B TOTAL'!P26) -> 0 | Y22: 590.71 | Z22: 3848.615163 | AA22: 4439.325163 | AH22: NORTE
B23: 4517.605624 | C23: 10 | E23: 'NTA - NOVAS TÉCNICAS DE ASFALTOS S/A | F23: RUA SOFIA ATAURI FADIN, 150 SALA A - B. SANTA TEREZINHA - CEP:13140-000 | G23: São Paulo | H23: PAULINIA - SP | I23: BOM JESUS-PI | J23: =VLOOKUP(G23,OFFSET('ANP ESTADO'!$A$1,MATCH($I$8,'ANP ESTADO'!B:B,0)+MATCH($H$11,OFFSET('ANP ESTADO'!$A$1,MATCH($I$8,'ANP ESTADO'!B:B,0),0,100000,1),0),2,100000,2),2,FALSE) -> 2.475955624 | K23: =VLOOKUP($H$11,OFFSET('ANP REGIÃO'!$A$9,MATCH('Transporte EAI'!$I$8,'ANP REGIÃO'!A:A,0),1,10000,10000),MATCH('Transporte EAI'!AH23,'ANP REGIÃO'!$B$8:$G$8,0),FALSE) -> 2.308211963 | L23: 2475.955624 | M23: 657.89 | N23: 3133.845624 | O23: 1949 | P23: 0 | Q23: 520.04 | S23: 158.51 | T23: 114.15 | U23: 749.57 | V23: 1383.76 | X23: =EVEN((' CONSUMO DE MAT. B TOTAL'!$P$15+' CONSUMO DE MAT. B TOTAL'!P27)*2/28)*W23/(' CONSUMO DE MAT. B TOTAL'!$P$15+' CONSUMO DE MAT. B TOTAL'!P27) -> 0 | Y23: 1383.76 | Z23: 3133.845624 | AA23: 4517.605624 | AC23: 4517.605624 | AD23: 1383.76 | AE23: 3133.845624 | AH23: SUDESTE
B24: 4568.755624 | C24: 11 | E24: COMPANHIA BRASILEIRA DE ASFALTOS DA AMAZÔNIA - IMPORTAÇÃO E EXPORTAÇÃO | F24: Avenida Doutor Olindo Dártora 2451, Galpão 02, Morro Grande - CEP:07726-555 | G24: São Paulo | H24: CAIEIRAS - SP | I24: BOM JESUS-PI | J24: =VLOOKUP(G24,OFFSET('ANP ESTADO'!$A$1,MATCH($I$8,'ANP ESTADO'!B:B,0)+MATCH($H$11,OFFSET('ANP ESTADO'!$A$1,MATCH($I$8,'ANP ESTADO'!B:B,0),0,100000,1),0),2,100000,2),2,FALSE) -> 2.475955624 | K24: =VLOOKUP($H$11,OFFSET('ANP REGIÃO'!$A$9,MATCH('Transporte EAI'!$I$8,'ANP REGIÃO'!A:A,0),1,10000,10000),MATCH('Transporte EAI'!AH24,'ANP REGIÃO'!$B$8:$G$8,0),FALSE) -> 2.308211963 | L24: 2475.955624 | M24: 657.89 | N24: 3133.845624 | O24: 2025 | P24: 0 | Q24: 539.26 | S24: 163.37 | T24: 118.37 | U24: 777.28 | V24: 1434.91 | X24: =EVEN((' CONSUMO DE MAT. B TOTAL'!$P$15+' CONSUMO DE MAT. B TOTAL'!P28)*2/28)*W24/(' CONSUMO DE MAT. B TOTAL'!$P$15+' CONSUMO DE MAT. B TOTAL'!P28) -> 0 | Y24: 1434.91 | Z24: 3133.845624 | AA24: 4568.755624 | AH24: SUDESTE
B25: 3499.20432 | C25: 12 | E25: Refinaria Landulpho Alves (RLAM) | F25: Rodovia BA 523, KM 4 – Mataripe São Francisco do Conde - BA CEP:43900-000 | G25: Bahia | H25: SÃO FRANCISCO DO CONDE - BA | I25: BOM JESUS-PI | J25: =VLOOKUP(G25,OFFSET('ANP ESTADO'!$A$1,MATCH($I$8,'ANP ESTADO'!B:B,0)+MATCH($H$11,OFFSET('ANP ESTADO'!$A$1,MATCH($I$8,'ANP ESTADO'!B:B,0),0,100000,1),0),2,100000,2),2,FALSE) -> - | K25: =VLOOKUP($H$11,OFFSET('ANP REGIÃO'!$A$9,MATCH('Transporte EAI'!$I$8,'ANP REGIÃO'!A:A,0),1,10000,10000),MATCH('Transporte EAI'!AH25,'ANP REGIÃO'!$B$8:$G$8,0),FALSE) -> 2.18249432 | L25: 2182.49432 | M25: 579.91 | N25: 2762.40432 | O25: 988 | P25: 0 | Q25: 276.9 | S25: 96.99 | T25: 60.78 | U25: 399.12 | V25: 736.8 | X25: =EVEN((' CONSUMO DE MAT. B TOTAL'!$P$15+' CONSUMO DE MAT. B TOTAL'!P29)*2/28)*W25/(' CONSUMO DE MAT. B TOTAL'!$P$15+' CONSUMO DE MAT. B TOTAL'!P29) -> 0 | Y25: 736.8 | Z25: 2762.40432 | AA25: 3499.20432 | AH25: NORDESTE
B26: 3420.234098 | C26: 13 | E26: Refinaria Lubrificantes e Derivados do Nordeste (Lubnor) | F26: Av. Leite Barbosa, s/nº - Mucuripe Fortaleza - Ceará CEP:60180-420 | G26: Ceará | H26: FORTALEZA - CE | I26: BOM JESUS-PI | J26: =VLOOKUP(G26,OFFSET('ANP ESTADO'!$A$1,MATCH($I$8,'ANP ESTADO'!B:B,0)+MATCH($H$11,OFFSET('ANP ESTADO'!$A$1,MATCH($I$8,'ANP ESTADO'!B:B,0),0,100000,1),0),2,100000,2),2,FALSE) -> 2.092434098 | K26: =VLOOKUP($H$11,OFFSET('ANP REGIÃO'!$A$9,MATCH('Transporte EAI'!$I$8,'ANP REGIÃO'!A:A,0),1,10000,10000),MATCH('Transporte EAI'!AH26,'ANP REGIÃO'!$B$8:$G$8,0),FALSE) -> 2.18249432 | L26: 2092.434098 | M26: 555.98 | N26: 2648.414098 | O26: 1040 | P26: 0 | Q26: 290.06 | S26: 100.32 | T26: 63.67 | U26: 418.09 | V26: 771.82 | X26: =EVEN((' CONSUMO DE MAT. B TOTAL'!$P$15+' CONSUMO DE MAT. B TOTAL'!P30)*2/28)*W26/(' CONSUMO DE MAT. B TOTAL'!$P$15+' CONSUMO DE MAT. B TOTAL'!P30) -> 0 | Y26: 771.82 | Z26: 2648.414098 | AA26: 3420.234098 | AH26: NORDESTE
B27: 5023.67191 | C27: 14 | E27: BETUNEL INDÚSTRIA E COMÉRCIO LTDA. | F27: RUA N ESQUINA COM RUA X, S/N QD. IND. 7 L 01/08 - DIST. IND. - CEP:78015-285 | G27: Mato Grosso | H27: CUIABA - MT | I27: BOM JESUS-PI | J27: =VLOOKUP(G27,OFFSET('ANP ESTADO'!$A$1,MATCH($I$8,'ANP ESTADO'!B:B,0)+MATCH($H$11,OFFSET('ANP ESTADO'!$A$1,MATCH($I$8,'ANP ESTADO'!B:B,0),0,100000,1),0),2,100000,2),2,FALSE) -> 2.78112191 | K27: =VLOOKUP($H$11,OFFSET('ANP REGIÃO'!$A$9,MATCH('Transporte EAI'!$I$8,'ANP REGIÃO'!A:A,0),1,10000,10000),MATCH('Transporte EAI'!AH27,'ANP REGIÃO'!$B$8:$G$8,0),FALSE) -> 2.623457098 | L27: 2781.12191 | M27: 738.97 | N27: 3520.09191 | O27: 2127 | P27: 0 | Q27: 565.07 | S27: 169.9 | T27: 124.03 | U27: 814.48 | V27: 1503.58 | X27: =EVEN((' CONSUMO DE MAT. B TOTAL'!$P$15+' CONSUMO DE MAT. B TOTAL'!P31)*2/28)*W27/(' CONSUMO DE MAT. B TOTAL'!$P$15+' CONSUMO DE MAT. B TOTAL'!P31) -> 0 | Y27: 1503.58 | Z27: 3520.09191 | AA27: 5023.67191 | AH27: CENTRO-OESTE
B28: 5027.72191 | C28: 15 | E28: EMAM - EMULSÕES E TRANSPORTES LTDA. | F28: RODOVIA DOS IMIGRANTES, S/Nº KM 8,6 - - CEP:60035-351 | G28: Mato Grosso | H28: VARZEA GRANDE - MT | I28: BOM JESUS-PI | J28: =VLOOKUP(G28,OFFSET('ANP ESTADO'!$A$1,MATCH($I$8,'ANP ESTADO'!B:B,0)+MATCH($H$11,OFFSET('ANP ESTADO'!$A$1,MATCH($I$8,'ANP ESTADO'!B:B,0),0,100000,1),0),2,100000,2),2,FALSE) -> 2.78112191 | K28: =VLOOKUP($H$11,OFFSET('ANP REGIÃO'!$A$9,MATCH('Transporte EAI'!$I$8,'ANP REGIÃO'!A:A,0),1,10000,10000),MATCH('Transporte EAI'!AH28,'ANP REGIÃO'!$B$8:$G$8,0),FALSE) -> 2.623457098 | L28: 2781.12191 | M28: 738.97 | N28: 3520.09191 | O28: 2133 | P28: 0 | Q28: 566.59 | S28: 170.29 | T28: 124.37 | U28: 816.67 | V28: 1507.63 | X28: =EVEN((' CONSUMO DE MAT. B TOTAL'!$P$15+' CONSUMO DE MAT. B TOTAL'!P32)*2/28)*W28/(' CONSUMO DE MAT. B TOTAL'!$P$15+' CONSUMO DE MAT. B TOTAL'!P32) -> 0 | Y28: 1507.63 | Z28: 3520.09191 | AA28: 5027.72191 | AC28: 5027.72191 | AD28: 1507.63 | AE28: 3520.09191 | AH28: CENTRO-OESTE
B29: 4640.805624 | C29: 16 | E29: VIAPOL LTDA. | F29: VITO ARDITO, 6401 KM 118,5 - JARDIM CAMPO GRANDE - CEP:12282-535 | G29: São Paulo | H29: CACAPAVA - SP | I29: BOM JESUS-PI | J29: =VLOOKUP(G29,OFFSET('ANP ESTADO'!$A$1,MATCH($I$8,'ANP ESTADO'!B:B,0)+MATCH($H$11,OFFSET('ANP ESTADO'!$A$1,MATCH($I$8,'ANP ESTADO'!B:B,0),0,100000,1),0),2,100000,2),2,FALSE) -> 2.475955624 | K29: =VLOOKUP($H$11,OFFSET('ANP REGIÃO'!$A$9,MATCH('Transporte EAI'!$I$8,'ANP REGIÃO'!A:A,0),1,10000,10000),MATCH('Transporte EAI'!AH29,'ANP REGIÃO'!$B$8:$G$8,0),FALSE) -> 2.308211963 | L29: 2475.955624 | M29: 657.89 | N29: 3133.845624 | O29: 2132 | P29: 0 | Q29: 566.34 | S29: 170.22 | T29: 124.31 | U29: 816.31 | V29: 1506.96 | X29: =EVEN((' CONSUMO DE MAT. B TOTAL'!$P$15+' CONSUMO DE MAT. B TOTAL'!P33)*2/28)*W29/(' CONSUMO DE MAT. B TOTAL'!$P$15+' CONSUMO DE MAT. B TOTAL'!P33) -> 0 | Y29: 1506.96 | Z29: 3133.845624 | AA29: 4640.805624 | AC29: 4640.805624 | AD29: 1506.96 | AE29: 3133.845624 | AH29: SUDESTE
B30: 4322.121963 | C30: 17 | E30: STRATURA ASFALTOS S/A | F30: RUA LUIS DE CAMÕES, 26 - CAMPOS ELÍSEOS - CEP:25225-030 | G30: Rio de Janeiro | H30: DUQUE DE CAXIAS - RJ | I30: =I29 -> BOM JESUS-PI | J30: =VLOOKUP(G30,OFFSET('ANP ESTADO'!$A$1,MATCH($I$8,'ANP ESTADO'!B:B,0)+MATCH($H$11,OFFSET('ANP ESTADO'!$A$1,MATCH($I$8,'ANP ESTADO'!B:B,0),0,100000,1),0),2,100000,2),2,FALSE) -> - | K30: =VLOOKUP($H$11,OFFSET('ANP REGIÃO'!$A$9,MATCH('Transporte EAI'!$I$8,'ANP REGIÃO'!A:A,0),1,10000,10000),MATCH('Transporte EAI'!AH30,'ANP REGIÃO'!$B$8:$G$8,0),FALSE) -> 2.308211963 | L30: 2308.211963 | M30: 613.32 | N30: 2921.531963 | O30: 1974 | P30: 0 | Q30: 526.36 | S30: 160.11 | T30: 115.54 | U30: 758.69 | V30: 1400.59 | X30: =EVEN((' CONSUMO DE MAT. B TOTAL'!$P$15+' CONSUMO DE MAT. B TOTAL'!P34)*2/28)*W30/(' CONSUMO DE MAT. B TOTAL'!$P$15+' CONSUMO DE MAT. B TOTAL'!P34) -> 0 | Y30: 1400.59 | Z30: 2921.531963 | AA30: 4322.121963 | AC30: 4322.121963 | AD30: 1400.59 | AE30: 2921.531963 | AH30: SUDESTE
B31: 4332.901963 | C31: 18 | E31: PROBITEC - PRODUTOS BETUMINOSOS E TECNOLOGIA DE APLICAÇÃO LTDA. | F31: AVENIDA CANAL DA PAVUNA, 620 - PAVUNA - CEP:21535-630 | G31: Rio de Janeiro | H31: RIO DE JANEIRO - RJ | I31: BOM JESUS-PI | J31: =VLOOKUP(G31,OFFSET('ANP ESTADO'!$A$1,MATCH($I$8,'ANP ESTADO'!B:B,0)+MATCH($H$11,OFFSET('ANP ESTADO'!$A$1,MATCH($I$8,'ANP ESTADO'!B:B,0),0,100000,1),0),2,100000,2),2,FALSE) -> - | K31: =VLOOKUP($H$11,OFFSET('ANP REGIÃO'!$A$9,MATCH('Transporte EAI'!$I$8,'ANP REGIÃO'!A:A,0),1,10000,10000),MATCH('Transporte EAI'!AH31,'ANP REGIÃO'!$B$8:$G$8,0),FALSE) -> 2.308211963 | L31: 2308.211963 | M31: 613.32 | N31: 2921.531963 | O31: 1990 | P31: 0 | Q31: 530.41 | S31: 161.13 | T31: 116.43 | U31: 764.53 | V31: 1411.37 | X31: =EVEN((' CONSUMO DE MAT. B TOTAL'!$P$15+' CONSUMO DE MAT. B TOTAL'!P35)*2/28)*W31/(' CONSUMO DE MAT. B TOTAL'!$P$15+' CONSUMO DE MAT. B TOTAL'!P35) -> 0 | Y31: 1411.37 | Z31: 2921.531963 | AA31: 4332.901963 | AC31: 4332.901963 | AD31: 1411.37 | AE31: 2921.531963 | AH31: SUDESTE
B32: 4921.11347 | C32: 19 | E32: CASA DO ASFALTO DISTRIBUIDORA, INDÚSTRIA E COMÉRCIO DE ASFALTO LTDA. | F32: BR 376, PARQUE INDUSTRIAL, S/N LOTE 6/7/7-A-3-1 - GL.PATR.MARIALVA - CEP:86990-000 | G32: Paraná | H32: MARIALVA - PR | I32: BOM JESUS-PI | J32: =VLOOKUP(G32,OFFSET('ANP ESTADO'!$A$1,MATCH($I$8,'ANP ESTADO'!B:B,0)+MATCH($H$11,OFFSET('ANP ESTADO'!$A$1,MATCH($I$8,'ANP ESTADO'!B:B,0),0,100000,1),0),2,100000,2),2,FALSE) -> 2.65860347 | K32: =VLOOKUP($H$11,OFFSET('ANP REGIÃO'!$A$9,MATCH('Transporte EAI'!$I$8,'ANP REGIÃO'!A:A,0),1,10000,10000),MATCH('Transporte EAI'!AH32,'ANP REGIÃO'!$B$8:$G$8,0),FALSE) -> 2.684130785 | L32: 2658.60347 | M32: 706.42 | N32: 3365.02347 | O32: 2205 | P32: 0 | Q32: 584.8 | S32: 174.89 | T32: 128.37 | U32: 842.92 | V32: 1556.09 | X32: =EVEN((' CONSUMO DE MAT. B TOTAL'!$P$15+' CONSUMO DE MAT. B TOTAL'!P36)*2/28)*W32/(' CONSUMO DE MAT. B TOTAL'!$P$15+' CONSUMO DE MAT. B TOTAL'!P36) -> 0 | Y32: 1556.09 | Z32: 3365.02347 | AA32: 4921.11347 | AC32: 4921.11347 | AD32: 1556.09 | AE32: 3365.02347 | AH32: SUL
B33: 4998.53347 | C33: 20 | E33: PETROBRAS DISTRIBUIDORA S.A. | F33: RUA MAQUINISTA ELEODORO JACINTO, 100 - OFICINAS - CEP:84045-170 | G33: Paraná | H33: PONTA GROSSA - PR | I33: BOM JESUS-PI | J33: =VLOOKUP(G33,OFFSET('ANP ESTADO'!$A$1,MATCH($I$8,'ANP ESTADO'!B:B,0)+MATCH($H$11,OFFSET('ANP ESTADO'!$A$1,MATCH($I$8,'ANP ESTADO'!B:B,0),0,100000,1),0),2,100000,2),2,FALSE) -> 2.65860347 | K33: =VLOOKUP($H$11,OFFSET('ANP REGIÃO'!$A$9,MATCH('Transporte EAI'!$I$8,'ANP REGIÃO'!A:A,0),1,10000,10000),MATCH('Transporte EAI'!AH33,'ANP REGIÃO'!$B$8:$G$8,0),FALSE) -> 2.684130785 | L33: 2658.60347 | M33: 706.42 | N33: 3365.02347 | O33: 2320 | P33: 0 | Q33: 613.9 | S33: 182.26 | T33: 134.75 | U33: 884.86 | V33: 1633.51 | X33: =EVEN((' CONSUMO DE MAT. B TOTAL'!$P$15+' CONSUMO DE MAT. B TOTAL'!P37)*2/28)*W33/(' CONSUMO DE MAT. B TOTAL'!$P$15+' CONSUMO DE MAT. B TOTAL'!P37) -> 0 | Y33: 1633.51 | Z33: 3365.02347 | AA33: 4998.53347 | AC33: 4998.53347 | AD33: 1633.51 | AE33: 3365.02347 | AH33: SUL
D43: Acre
D44: Alagoas
D45: Amapá
D46: Amazonas
D47: Bahia
D48: Ceará
D49: Distrito Federal
D50: Espírito Santo
D51: Goiás
D52: Maranhão
D53: Mato Grosso
D54: Mato Grosso do Sul
D55: Minas Gerais
D56: Pará
D57: Paraíba
D58: Paraná
D59: Pernambuco
D60: Piauí
D61: Rio de Janeiro
D62: Rio Grande do Norte
D63: Rio Grande do Sul
D64: Rondônia
D65: Roraima
D66: Santa Catarina
D67: São Paulo
D68: Sergipe
D69: Tocantins
D73: ASFALTOS DILUÍDOS CM-30
D74: ASFALTOS DILUÍDOS CM-70
D75: ASFALTOS DILUÍDOS CR-250
D76: ASFALTOS DILUÍDOS CR-70
D77: CAP MODIFICADO POR BORRACHA DE PNEU AB22
D78: CAP MODIFICADO POR BORRACHA DE PNEU AB8
D79: CAP MODIFICADO POR POLÍMERO 55-75-E
D80: CAP MODIFICADO POR POLÍMERO 60-85-E
D81: CAP MODIFICADO POR POLÍMERO 65-90-E
D82: CIMENTOS ASFÁLTICOS CAP-150-200
D83: CIMENTOS ASFÁLTICOS CAP-30-45
D84: CIMENTOS ASFÁLTICOS CAP-50-70
D85: CIMENTOS ASFÁLTICOS CAP-85-100
D86: EMULSÃO ASFÁLTICA CATIÔNICA DE RUPTURA CONTROLADA PARA SERVIÇO DE LAMA ASFÁLTICA
D87: EMULSÃO ASFÁLTICA DE RUPTURA LENTA CATIÔNICA PARA SERVIÇO DE LAMA ASFÁLTICA
D88: EMULSÃO ASFÁLTICA DE RUPTURA LENTA DE CARGA NEUTRA PARA SERVIÇO DE LAMA ASFÁLTICA
D89: EMULSÃO ASFÁLTICA PARA SERVIÇO DE IMPRIMAÇÃO
D90: EMULSÕES ASF. MOD. POR POLÍMEROS RC1C-E
D91: EMULSÕES ASF. MOD. POR POLÍMEROS RL1C-E
D92: EMULSÕES ASF. MOD. POR POLÍMEROS RM1C-E
D93: EMULSÕES ASF. MOD. POR POLÍMEROS RR1C-E
D94: EMULSÕES ASF. MOD. POR POLÍMEROS RR2C-E
D95: EMULSÕES ASFÁLTICAS RL-1C
D96: EMULSÕES ASFÁLTICAS RM-1C
D97: EMULSÕES ASFÁLTICAS RM-2C
D98: EMULSÕES ASFÁLTICAS RR-1C
D99: EMULSÕES ASFÁLTICAS RR-2C

Sheet Transporte RR-2C
C3: MEMÓRIA DE CÁLCULO
C8: REAJUSTE | F8: TIPOLOGIA DO MATERIAL | I8: EMULSÕES ASFÁLTICAS RR-2C | M8: IMPOSTOS | N8: COFINS | O8: 0.0065 | P8: 0.0065
G9: ÍNDICE DE PAVIMENTAÇÃO DNIT | H9: 2014-07-01 | I9: ÍNDICE INICIAL | J9: 270.237 | N9: PIS | O9: 0.03 | P9: 0.03 | T9: LEGENDA | AC9: As empresas tributadas pelo Lucro Presumido pagam 0,65% de PIS e 3% de COFINS
H10: ='Transporte EAI'!H10 -> 2025-08-01 | I10: ÍNDICE FINAL | J10: ='Transporte EAI'!J10 -> 589.643 | N10: ICMS | O10: 0.18 | P10: 0.18 | Q10: =1-(O10/1) -> 0.82 | R10: =1-(P10/1) -> 0.82 | S10: =1-(Q10/1) -> 0.18 | T10: ENTRADA DE DADOS | AC10: As empresas tributadas pelo Lucro Real pagam 1,65% de PIS e 7,60% de COFINS
G11: Data ANP | H11: ='Transporte EAI'!H11 -> 2025-07-01
C12: DATA-BASE | D12: PRODUTOS | E12: LOCALIDADES | J12: CUSTO ANP (R$/Kg) | L12: CUSTO ANP | M12: IMPOSTOS DO PRODUTO | N12: CUSTO DO PRODUTO COM IMPOSTOS | O12: DMT's | P12: DMT'S FLUVIAL | Q12: CUSTO DO TRANSPORTE RODOVIA PAVIMENTADA | R12: CUSTO DO TRANSPORTE FLUVIAL | S12: CUSTO DO TRANSPORTE TOTAL | T12: ICMS | U12: ATUALIZAÇÃO DO CUSTO DE TRANSPORTE | V12: CUSTO DO TRANSPORTE RODOVIA PAVIMENTADA COM IMPOSTOS E ATUALIZAÇÃO MONETÁRIA | W12: PEDÁGIO | Y12: TOTAL TRANSPORTE | Z12: AQUISIÇÃO DO PRODUTO | AA12: TOTAL GERAL ( TRANSP + AQUISIÇÃO) | AC12: 1 | AD12: 2 | AE12: 3
C13: =H10 -> 2025-08-01 | E13: REFINARIAS | F13: ENDEREÇO | G13: ESTADO | H13: CIDADE | I13: DESTINO | J13: ESTADO | K13: REGIÃO | L13: R$/t | M13: R$/t | N13: R$/t | O13: KM | P13: KM | Q13: R$/t | R13: R$/t | S13: R$/t | T13: R$/t | U13: R$/t | V13: R$/t | W13: CUSTO | X13: R$/t | Y13: R$/t | Z13: R$/t | AA13: R$/t | AC13: TOTAL GERAL ( TRANSP + AQUISIÇÃO) | AD13: TOTAL TRANSPORTE | AE13: AQUISIÇÃO DO PRODUTO
B14: =AA14 -> 4281.614338 | C14: 1 | D14: =I8 -> EMULSÕES ASFÁLTICAS RR-2C | E14: Refinaria Abreu e Lima | F14: Rodovia PE 60, Km 10 - Ipojuca - PE CEP:55590-000 | G14: Pernambuco | H14: IPOJUCA - PE | I14: ='Transporte EAI'!I14 -> BOM JESUS-PI | J14: =VLOOKUP(G14,OFFSET('ANP ESTADO'!$A$1,MATCH($I$8,'ANP ESTADO'!B:B,0)+MATCH($H$11,OFFSET('ANP ESTADO'!$A$1,MATCH($I$8,'ANP ESTADO'!B:B,0),0,100000,1),0),2,100000,2),2,FALSE) -> - | K14: =VLOOKUP($H$11,OFFSET('ANP REGIÃO'!$A$9,MATCH('Transporte RR-2C'!$I$8,'ANP REGIÃO'!A:A,0),1,10000,10000),MATCH('Transporte RR-2C'!AH14,'ANP REGIÃO'!$B$8:$G$8,0),FALSE) -> 2.640024338 | L14: =IF(AND(J14="-",K14="-"),"",IF(AND(J14<>0,K14="-"),J14*1000,IF(AND(J14="-",K14<>0),K14*1000,IF(AND(J14<>0,K14<>0),J14*1000,"")))) -> 2640.024338 | M14: =ROUND(((L14/(1-$O$8-$O$9-$O$10+($O$9+$O$8)*$O$10)-L14)),2) -> 701.48 | N14: =L14+M14 -> 3341.504338 | O14: 1290 | P14: ='Transporte EAI'!P14 -> 0 | Q14: =ROUND((26.939+0.253*O14),2) -> 353.31 | S14: =ROUND((26.939+0.253*Q14),2) -> 116.33 | T14: =TRUNC(Q14*($O$10/(1-$O$10)),2) -> 77.55 | U14: =TRUNC(IF($J$9="","",(($J$10-$J$9)/$J$9)*(Q14+T14)),2) -> 509.25 | V14: =Q14+T14+U14 -> 940.11 | X14: =EVEN((' CONSUMO DE MAT. B TOTAL'!$P$15+' CONSUMO DE MAT. B TOTAL'!P17)*2/28)*W14/(' CONSUMO DE MAT. B TOTAL'!$P$15+' CONSUMO DE MAT. B TOTAL'!P17) -> 0 | Y14: =IF(AND(Q14="",T14=""),"",V14+X14) -> 940.11 | Z14: =IF(OR(L14="",M14=""),"",L14+M14) -> 3341.504338 | AA14: =IF(OR(Y14="",Z14=""),"",Y14+Z14) -> 4281.614338 | AC14: =AA14 -> 4281.614338 | AD14: =Y14 -> 940.11 | AE14: =Z14 -> 3341.504338 | AH14: =IF(OR(G14=$D$59,G14=$D$60,G14=$D$62,G14=$D$68,G14=$D$52,G14=$D$48,G14=$D$44,G14=$D$57,G14=$D$47),"NORDESTE",IF(OR(G14=$D$43,G14=$D$45,G14=$D$46,G14=$D$56,G14=$D$64,G14=$D$65,G14=$D$69),"NORTE",IF(OR(G14=$D$49,G14=$D$51,G14=$D$53,G14=$D$54),"CENTRO-OESTE",IF(OR(G14=$D$67,G14=$D$61,G14=$D$55,G14=$D$50),"SUDESTE",IF(OR(G14=$D$66,G14=$D$58,G14=$D$63),"SUL",""))))) -> NORDESTE
B15: =AA15 -> 4657.490793 | C15: 2 | E15: STRATURA ASFALTOS S/A | F15: AVENIDA PRESIDENTE WILSON, 08 - JUNDIAÍ - CEP:75115-100 | G15: Goiás | H15: ANÁPOLIS - GO | I15: =I14 -> BOM JESUS-PI | J15: =VLOOKUP(G15,OFFSET('ANP ESTADO'!$A$1,MATCH($I$8,'ANP ESTADO'!B:B,0)+MATCH($H$11,OFFSET('ANP ESTADO'!$A$1,MATCH($I$8,'ANP ESTADO'!B:B,0),0,100000,1),0),2,100000,2),2,FALSE) -> 2.971570793 | K15: =VLOOKUP($H$11,OFFSET('ANP REGIÃO'!$A$9,MATCH('Transporte RR-2C'!$I$8,'ANP REGIÃO'!A:A,0),1,10000,10000),MATCH('Transporte RR-2C'!AH15,'ANP REGIÃO'!$B$8:$G$8,0),FALSE) -> 3.371056978 | L15: =IF(AND(J15="-",K15="-"),"",IF(AND(J15<>0,K15="-"),J15*1000,IF(AND(J15="-",K15<>0),K15*1000,IF(AND(J15<>0,K15<>0),J15*1000,"")))) -> 2971.570793 | M15: =ROUND(((L15/(1-$O$8-$O$9-$O$10+($O$9+$O$8)*$O$10)-L15)),2) -> 789.58 | N15: =L15+M15 -> 3761.150793 | O15: 1225 | P15: ='Transporte EAI'!P15 -> 0 | Q15: =ROUND((26.939+0.253*O15),2) -> 336.86 | S15: 112.16 | T15: =TRUNC(Q15*($O$10/(1-$O$10)),2) -> 73.94 | U15: =TRUNC(IF($J$9="","",(($J$10-$J$9)/$J$9)*(Q15+T15)),2) -> 485.54 | V15: =Q15+T15+U15 -> 896.34 | X15: =EVEN((' CONSUMO DE MAT. B TOTAL'!$P$15+' CONSUMO DE MAT. B TOTAL'!P19)*2/28)*W15/(' CONSUMO DE MAT. B TOTAL'!$P$15+' CONSUMO DE MAT. B TOTAL'!P19) -> 0 | Y15: 896.34 | Z15: 3761.150793 | AA15: =IF(OR(Y15="",Z15=""),"",Y15+Z15) -> 4657.490793 | AC15: =AA15 -> 4657.490793 | AD15: =Y15 -> 896.34 | AE15: 3761.150793 | AH15: =IF(OR(G15=$D$59,G15=$D$60,G15=$D$62,G15=$D$68,G15=$D$52,G15=$D$48,G15=$D$44,G15=$D$57,G15=$D$47),"NORDESTE",IF(OR(G15=$D$43,G15=$D$45,G15=$D$46,G15=$D$56,G15=$D$64,G15=$D$65,G15=$D$69),"NORTE",IF(OR(G15=$D$49,G15=$D$51,G15=$D$53,G15=$D$54),"CENTRO-OESTE",IF(OR(G15=$D$67,G15=$D$61,G15=$D$55,G15=$D$50),"SUDESTE",IF(OR(G15=$D$66,G15=$D$58,G15=$D$63),"SUL",""))))) -> CENTRO-OESTE
B16: 4702.610793 | C16: 3 | E16: DISTRIBUIDORA BRASILEIRA DE ASFALTO SA - DISBRAL | F16: VIA PRIMARIA 8, S/N QD-18, MODS. 24/47 - DAIAG - CEP:74980-970 | G16: Goiás | H16: APARECIDA DE GOIANIA - GO | I16: =I15 -> BOM JESUS-PI | J16: =VLOOKUP(G16,OFFSET('ANP ESTADO'!$A$1,MATCH($I$8,'ANP ESTADO'!B:B,0)+MATCH($H$11,OFFSET('ANP ESTADO'!$A$1,MATCH($I$8,'ANP ESTADO'!B:B,0),0,100000,1),0),2,100000,2),2,FALSE) -> 2.971570793 | K16: =VLOOKUP($H$11,OFFSET('ANP REGIÃO'!$A$9,MATCH('Transporte RR-2C'!$I$8,'ANP REGIÃO'!A:A,0),1,10000,10000),MATCH('Transporte RR-2C'!AH16,'ANP REGIÃO'!$B$8:$G$8,0),FALSE) -> 3.371056978 | L16: 2971.570793 | M16: 789.58 | N16: 3761.150793 | O16: 1292 | P16: ='Transporte EAI'!P16 -> 0 | Q16: 353.82 | S16: 116.46 | T16: 77.66 | U16: 509.98 | V16: 941.46 | X16: =EVEN((' CONSUMO DE MAT. B TOTAL'!$P$15+' CONSUMO DE MAT. B TOTAL'!P20)*2/28)*W16/(' CONSUMO DE MAT. B TOTAL'!$P$15+' CONSUMO DE MAT. B TOTAL'!P20) -> 0 | Y16: 941.46 | Z16: 3761.150793 | AA16: 4702.610793 | AC16: 4702.610793 | AD16: 941.46 | AE16: 3761.150793 | AH16: CENTRO-OESTE
A17: 2403 | B17: 4706.630793 | C17: 4 | E17: INDÚSTRIA NACIONAL DE ASFALTOS LTDA. | F17: VIA PRIMEIRA E SEGUNDA 3, S/N.º LOTES 01 A 10 - DISTRITO AGROINDUSTRIAL - CEP:75370-000 | G17: Goiás | H17: GOIANIRA - GO | I17: BOM JESUS-PI | J17: =VLOOKUP(G17,OFFSET('ANP ESTADO'!$A$1,MATCH($I$8,'ANP ESTADO'!B:B,0)+MATCH($H$11,OFFSET('ANP ESTADO'!$A$1,MATCH($I$8,'ANP ESTADO'!B:B,0),0,100000,1),0),2,100000,2),2,FALSE) -> 2.971570793 | K17: =VLOOKUP($H$11,OFFSET('ANP REGIÃO'!$A$9,MATCH('Transporte RR-2C'!$I$8,'ANP REGIÃO'!A:A,0),1,10000,10000),MATCH('Transporte RR-2C'!AH17,'ANP REGIÃO'!$B$8:$G$8,0),FALSE) -> 3.371056978 | L17: 2971.570793 | M17: 789.58 | N17: 3761.150793 | O17: 1298 | P17: ='Transporte EAI'!P17 -> 0 | Q17: 355.33 | S17: 116.84 | T17: 77.99 | U17: 512.16 | V17: 945.48 | X17: =EVEN((' CONSUMO DE MAT. B TOTAL'!$P$15+' CONSUMO DE MAT. B TOTAL'!P21)*2/28)*W17/(' CONSUMO DE MAT. B TOTAL'!$P$15+' CONSUMO DE MAT. B TOTAL'!P21) -> 0 | Y17: 945.48 | Z17: 3761.150793 | AA17: 4706.630793 | AC17: 4706.630793 | AD17: 945.48 | AE17: 3761.150793 | AH17: CENTRO-OESTE
B18: 4750.961648 | C18: 5 | E18: STRATURA ASFALTOS S/A | F18: RUA VICTOR RODRIGUES RESENDE, 333 - DISTRITO IND. DE UBERLÂNDIA - CEP:38405-440 | G18: Minas Gerais | H18: UBERLANDIA - MG | I18: BOM JESUS-PI | J18: =VLOOKUP(G18,OFFSET('ANP ESTADO'!$A$1,MATCH($I$8,'ANP ESTADO'!B:B,0)+MATCH($H$11,OFFSET('ANP ESTADO'!$A$1,MATCH($I$8,'ANP ESTADO'!B:B,0),0,100000,1),0),2,100000,2),2,FALSE) -> 2.916691648 | K18: =VLOOKUP($H$11,OFFSET('ANP REGIÃO'!$A$9,MATCH('Transporte RR-2C'!$I$8,'ANP REGIÃO'!A:A,0),1,10000,10000),MATCH('Transporte RR-2C'!AH18,'ANP REGIÃO'!$B$8:$G$8,0),FALSE) -> 2.873173613 | L18: 2916.691648 | M18: 775 | N18: 3691.691648 | O18: 1467 | P18: ='Transporte EAI'!P18 -> 0 | Q18: 398.09 | S18: 127.66 | T18: 87.38 | U18: 573.8 | V18: 1059.27 | X18: =EVEN((' CONSUMO DE MAT. B TOTAL'!$P$15+' CONSUMO DE MAT. B TOTAL'!P22)*2/28)*W18/(' CONSUMO DE MAT. B TOTAL'!$P$15+' CONSUMO DE MAT. B TOTAL'!P22) -> 0 | Y18: 1059.27 | Z18: 3691.691648 | AA18: 4750.961648 | AC18: 4750.961648 | AD18: 1059.27 | AE18: 3691.691648 | AH18: SUDESTE
B19: 4750.961648 | C19: 6 | E19: BETUNEL INDÚSTRIA E COMÉRCIO LTDA. | F19: RUA VICTOR RODRIGUES DE REZENDE, 185 - DISTRITO INDUSTRIAL - CEP:38402-334 | G19: Minas Gerais | H19: UBERLANDIA - MG | I19: BOM JESUS-PI | J19: =VLOOKUP(G19,OFFSET('ANP ESTADO'!$A$1,MATCH($I$8,'ANP ESTADO'!B:B,0)+MATCH($H$11,OFFSET('ANP ESTADO'!$A$1,MATCH($I$8,'ANP ESTADO'!B:B,0),0,100000,1),0),2,100000,2),2,FALSE) -> 2.916691648 | K19: =VLOOKUP($H$11,OFFSET('ANP REGIÃO'!$A$9,MATCH('Transporte RR-2C'!$I$8,'ANP REGIÃO'!A:A,0),1,10000,10000),MATCH('Transporte RR-2C'!AH19,'ANP REGIÃO'!$B$8:$G$8,0),FALSE) -> 2.873173613 | L19: 2916.691648 | M19: 775 | N19: 3691.691648 | O19: 1467 | P19: ='Transporte EAI'!P19 -> 0 | Q19: 398.09 | S19: 127.66 | T19: 87.38 | U19: 573.8 | V19: 1059.27 | X19: =EVEN((' CONSUMO DE MAT. B TOTAL'!$P$15+' CONSUMO DE MAT. B TOTAL'!P23)*2/28)*W19/(' CONSUMO DE MAT. B TOTAL'!$P$15+' CONSUMO DE MAT. B TOTAL'!P23) -> 0 | Y19: 1059.27 | Z19: 3691.691648 | AA19: 4750.961648 | AC19: 4750.961648 | AD19: 1059.27 | AE19: 3691.691648 | AH19: SUDESTE
B20: 4262.084338 | C20: 7 | E20: Refinaria Potiguar Clara Camarão | F20: Rodovia RN 221, KM 25 - Guamaré - RN CEP:59598-000 | G20: Rio Grande do Norte | H20: GUAMARÉ - RN | I20: BOM JESUS-PI | J20: =VLOOKUP(G20,OFFSET('ANP ESTADO'!$A$1,MATCH($I$8,'ANP ESTADO'!B:B,0)+MATCH($H$11,OFFSET('ANP ESTADO'!$A$1,MATCH($I$8,'ANP ESTADO'!B:B,0),0,100000,1),0),2,100000,2),2,FALSE) -> - | K20: =VLOOKUP($H$11,OFFSET('ANP REGIÃO'!$A$9,MATCH('Transporte RR-2C'!$I$8,'ANP REGIÃO'!A:A,0),1,10000,10000),MATCH('Transporte RR-2C'!AH20,'ANP REGIÃO'!$B$8:$G$8,0),FALSE) -> 2.640024338 | L20: =IF(AND(J20="-",K20="-"),"",IF(AND(J20<>0,K20="-"),J20*1000,IF(AND(J20="-",K20<>0),K20*1000,IF(AND(J20<>0,K20<>0),J20*1000,"")))) -> 2640.024338 | M20: 701.48 | N20: 3341.504338 | O20: 1261 | P20: ='Transporte EAI'!P20 -> 0 | Q20: 345.97 | S20: 114.47 | T20: 75.94 | U20: 498.67 | V20: 920.58 | X20: =EVEN((' CONSUMO DE MAT. B TOTAL'!$P$15+' CONSUMO DE MAT. B TOTAL'!P24)*2/28)*W20/(' CONSUMO DE MAT. B TOTAL'!$P$15+' CONSUMO DE MAT. B TOTAL'!P24) -> 0 | Y20: 920.58 | Z20: 3341.504338 | AA20: 4262.084338 | AH20: NORDESTE
B21: 4823.661648 | C21: 8 | E21: DISTRIBUIDORA BRASILEIRA DE ASFALTO SA - DISBRAL | F21: SÃO JUDAS TADEU, 288 - DISTRITO INDUSTRIAL - CEP:32450-000 | G21: Minas Gerais | H21: SARZEDO - MG | I21: BOM JESUS-PI | J21: =VLOOKUP(G21,OFFSET('ANP ESTADO'!$A$1,MATCH($I$8,'ANP ESTADO'!B:B,0)+MATCH($H$11,OFFSET('ANP ESTADO'!$A$1,MATCH($I$8,'ANP ESTADO'!B:B,0),0,100000,1),0),2,100000,2),2,FALSE) -> 2.916691648 | K21: =VLOOKUP($H$11,OFFSET('ANP REGIÃO'!$A$9,MATCH('Transporte RR-2C'!$I$8,'ANP REGIÃO'!A:A,0),1,10000,10000),MATCH('Transporte RR-2C'!AH21,'ANP REGIÃO'!$B$8:$G$8,0),FALSE) -> 2.873173613 | L21: 2916.691648 | M21: 775 | N21: 3691.691648 | O21: 1575 | P21: ='Transporte EAI'!P21 -> 0 | Q21: 425.41 | S21: 134.57 | T21: 93.38 | U21: 613.18 | V21: 1131.97 | X21: =EVEN((' CONSUMO DE MAT. B TOTAL'!$P$15+' CONSUMO DE MAT. B TOTAL'!P25)*2/28)*W21/(' CONSUMO DE MAT. B TOTAL'!$P$15+' CONSUMO DE MAT. B TOTAL'!P25) -> 0 | Y21: 1131.97 | Z21: 3691.691648 | AA21: 4823.661648 | AH21: SUDESTE
B22: 4049.969937 | C22: 9 | E22: 'INDÚSTRIA NACIONAL DE ASFALTOS LTDA. | F22: INDÚSTRIA NACIONAL DE ASFALTOS LTDA - CEP:77053-080 | G22: Tocantins | H22: PALMAS - TO | I22: BOM JESUS-PI | J22: =VLOOKUP(G22,OFFSET('ANP ESTADO'!$A$1,MATCH($I$8,'ANP ESTADO'!B:B,0)+MATCH($H$11,OFFSET('ANP ESTADO'!$A$1,MATCH($I$8,'ANP ESTADO'!B:B,0),0,100000,1),0),2,100000,2),2,FALSE) -> 2.733059937 | K22: =VLOOKUP($H$11,OFFSET('ANP REGIÃO'!$A$9,MATCH('Transporte RR-2C'!$I$8,'ANP REGIÃO'!A:A,0),1,10000,10000),MATCH('Transporte RR-2C'!AH22,'ANP REGIÃO'!$B$8:$G$8,0),FALSE) -> 3.219925724 | L22: 2733.059937 | M22: 726.2 | N22: 3459.259937 | O22: 771 | P22: ='Transporte EAI'!P22 -> 0 | Q22: 222 | S22: 83.11 | T22: 48.73 | U22: =TRUNC(IF($J$9="","",(($J$10-$J$9)/$J$9)*(Q22+T22)),2) -> 319.98 | V22: 590.71 | X22: =EVEN((' CONSUMO DE MAT. B TOTAL'!$P$15+' CONSUMO DE MAT. B TOTAL'!P26)*2/28)*W22/(' CONSUMO DE MAT. B TOTAL'!$P$15+' CONSUMO DE MAT. B TOTAL'!P26) -> 0 | Y22: 590.71 | Z22: 3459.259937 | AA22: 4049.969937 | AH22: NORTE
B23: 4973.633802 | C23: 10 | E23: 'NTA - NOVAS TÉCNICAS DE ASFALTOS S/A | F23: RUA SOFIA ATAURI FADIN, 150 SALA A - B. SANTA TEREZINHA - CEP:13140-000 | G23: São Paulo | H23: PAULINIA - SP | I23: BOM JESUS-PI | J23: =VLOOKUP(G23,OFFSET('ANP ESTADO'!$A$1,MATCH($I$8,'ANP ESTADO'!B:B,0)+MATCH($H$11,OFFSET('ANP ESTADO'!$A$1,MATCH($I$8,'ANP ESTADO'!B:B,0),0,100000,1),0),2,100000,2),2,FALSE) -> 2.836253802 | K23: =VLOOKUP($H$11,OFFSET('ANP REGIÃO'!$A$9,MATCH('Transporte RR-2C'!$I$8,'ANP REGIÃO'!A:A,0),1,10000,10000),MATCH('Transporte RR-2C'!AH23,'ANP REGIÃO'!$B$8:$G$8,0),FALSE) -> 2.873173613 | L23: 2836.253802 | M23: 753.62 | N23: 3589.873802 | O23: 1949 | P23: ='Transporte EAI'!P23 -> 0 | Q23: 520.04 | S23: 158.51 | T23: 114.15 | U23: 749.57 | V23: 1383.76 | X23: =EVEN((' CONSUMO DE MAT. B TOTAL'!$P$15+' CONSUMO DE MAT. B TOTAL'!P27)*2/28)*W23/(' CONSUMO DE MAT. B TOTAL'!$P$15+' CONSUMO DE MAT. B TOTAL'!P27) -> 0 | Y23: 1383.76 | Z23: 3589.873802 | AA23: 4973.633802 | AC23: 4973.633802 | AD23: 1383.76 | AE23: 3589.873802 | AH23: SUDESTE
B24: 5024.783802 | C24: 11 | E24: COMPANHIA BRASILEIRA DE ASFALTOS DA AMAZÔNIA - IMPORTAÇÃO E EXPORTAÇÃO | F24: Avenida Doutor Olindo Dártora 2451, Galpão 02, Morro Grande - CEP:07726-555 | G24: São Paulo | H24: CAIEIRAS - SP | I24: BOM JESUS-PI | J24: =VLOOKUP(G24,OFFSET('ANP ESTADO'!$A$1,MATCH($I$8,'ANP ESTADO'!B:B,0)+MATCH($H$11,OFFSET('ANP ESTADO'!$A$1,MATCH($I$8,'ANP ESTADO'!B:B,0),0,100000,1),0),2,100000,2),2,FALSE) -> 2.836253802 | K24: =VLOOKUP($H$11,OFFSET('ANP REGIÃO'!$A$9,MATCH('Transporte RR-2C'!$I$8,'ANP REGIÃO'!A:A,0),1,10000,10000),MATCH('Transporte RR-2C'!AH24,'ANP REGIÃO'!$B$8:$G$8,0),FALSE) -> 2.873173613 | L24: 2836.253802 | M24: 753.62 | N24: 3589.873802 | O24: 2025 | P24: ='Transporte EAI'!P24 -> 0 | Q24: 539.26 | S24: 163.37 | T24: 118.37 | U24: 777.28 | V24: 1434.91 | X24: =EVEN((' CONSUMO DE MAT. B TOTAL'!$P$15+' CONSUMO DE MAT. B TOTAL'!P28)*2/28)*W24/(' CONSUMO DE MAT. B TOTAL'!$P$15+' CONSUMO DE MAT. B TOTAL'!P28) -> 0 | Y24: 1434.91 | Z24: 3589.873802 | AA24: 5024.783802 | AH24: SUDESTE
B25: 4610.106851 | C25: 12 | E25: Refinaria Landulpho Alves (RLAM) | F25: Rodovia BA 523, KM 4 – Mataripe São Francisco do Conde - BA CEP:43900-000 | G25: Bahia | H25: SÃO FRANCISCO DO CONDE - BA | I25: BOM JESUS-PI | J25: =VLOOKUP(G25,OFFSET('ANP ESTADO'!$A$1,MATCH($I$8,'ANP ESTADO'!B:B,0)+MATCH($H$11,OFFSET('ANP ESTADO'!$A$1,MATCH($I$8,'ANP ESTADO'!B:B,0),0,100000,1),0),2,100000,2),2,FALSE) -> 3.060186851 | K25: =VLOOKUP($H$11,OFFSET('ANP REGIÃO'!$A$9,MATCH('Transporte RR-2C'!$I$8,'ANP REGIÃO'!A:A,0),1,10000,10000),MATCH('Transporte RR-2C'!AH25,'ANP REGIÃO'!$B$8:$G$8,0),FALSE) -> 2.640024338 | L25: 3060.186851 | M25: 813.12 | N25: 3873.306851 | O25: 988 | P25: ='Transporte EAI'!P25 -> 0 | Q25: 276.9 | S25: 96.99 | T25: 60.78 | U25: 399.12 | V25: 736.8 | X25: =EVEN((' CONSUMO DE MAT. B TOTAL'!$P$15+' CONSUMO DE MAT. B TOTAL'!P29)*2/28)*W25/(' CONSUMO DE MAT. B TOTAL'!$P$15+' CONSUMO DE MAT. B TOTAL'!P29) -> 0 | Y25: 736.8 | Z25: 3873.306851 | AA25: 4610.106851 | AH25: NORDESTE
B26: 3973.458814 | C26: 13 | E26: Refinaria Lubrificantes e Derivados do Nordeste (Lubnor) | F26: Av. Leite Barbosa, s/nº - Mucuripe Fortaleza - Ceará CEP:60180-420 | G26: Ceará | H26: FORTALEZA - CE | I26: BOM JESUS-PI | J26: =VLOOKUP(G26,OFFSET('ANP ESTADO'!$A$1,MATCH($I$8,'ANP ESTADO'!B:B,0)+MATCH($H$11,OFFSET('ANP ESTADO'!$A$1,MATCH($I$8,'ANP ESTADO'!B:B,0),0,100000,1),0),2,100000,2),2,FALSE) -> 2.529518814 | K26: =VLOOKUP($H$11,OFFSET('ANP REGIÃO'!$A$9,MATCH('Transporte RR-2C'!$I$8,'ANP REGIÃO'!A:A,0),1,10000,10000),MATCH('Transporte RR-2C'!AH26,'ANP REGIÃO'!$B$8:$G$8,0),FALSE) -> 2.640024338 | L26: 2529.518814 | M26: 672.12 | N26: 3201.638814 | O26: 1040 | P26: ='Transporte EAI'!P26 -> 0 | Q26: 290.06 | S26: 100.32 | T26: 63.67 | U26: 418.09 | V26: 771.82 | X26: =EVEN((' CONSUMO DE MAT. B TOTAL'!$P$15+' CONSUMO DE MAT. B TOTAL'!P30)*2/28)*W26/(' CONSUMO DE MAT. B TOTAL'!$P$15+' CONSUMO DE MAT. B TOTAL'!P30) -> 0 | Y26: 771.82 | Z26: 3201.638814 | AA26: 3973.458814 | AH26: NORDESTE
B27: 6074.284806 | C27: 14 | E27: BETUNEL INDÚSTRIA E COMÉRCIO LTDA. | F27: RUA N ESQUINA COM RUA X, S/N QD. IND. 7 L 01/08 - DIST. IND. - CEP:78015-285 | G27: Mato Grosso | H27: CUIABA - MT | I27: BOM JESUS-PI | J27: =VLOOKUP(G27,OFFSET('ANP ESTADO'!$A$1,MATCH($I$8,'ANP ESTADO'!B:B,0)+MATCH($H$11,OFFSET('ANP ESTADO'!$A$1,MATCH($I$8,'ANP ESTADO'!B:B,0),0,100000,1),0),2,100000,2),2,FALSE) -> 3.611174806 | K27: =VLOOKUP($H$11,OFFSET('ANP REGIÃO'!$A$9,MATCH('Transporte RR-2C'!$I$8,'ANP REGIÃO'!A:A,0),1,10000,10000),MATCH('Transporte RR-2C'!AH27,'ANP REGIÃO'!$B$8:$G$8,0),FALSE) -> 3.371056978 | L27: 3611.174806 | M27: 959.53 | N27: 4570.704806 | O27: 2127 | P27: ='Transporte EAI'!P27 -> 0 | Q27: 565.07 | S27: 169.9 | T27: 124.03 | U27: 814.48 | V27: 1503.58 | X27: =EVEN((' CONSUMO DE MAT. B TOTAL'!$P$15+' CONSUMO DE MAT. B TOTAL'!P31)*2/28)*W27/(' CONSUMO DE MAT. B TOTAL'!$P$15+' CONSUMO DE MAT. B TOTAL'!P31) -> 0 | Y27: 1503.58 | Z27: 4570.704806 | AA27: 6074.284806 | AH27: CENTRO-OESTE
B28: 6078.334806 | C28: 15 | E28: EMAM - EMULSÕES E TRANSPORTES LTDA. | F28: RODOVIA DOS IMIGRANTES, S/Nº KM 8,6 - - CEP:60035-351 | G28: Mato Grosso | H28: VARZEA GRANDE - MT | I28: =I27 -> BOM JESUS-PI | J28: =VLOOKUP(G28,OFFSET('ANP ESTADO'!$A$1,MATCH($I$8,'ANP ESTADO'!B:B,0)+MATCH($H$11,OFFSET('ANP ESTADO'!$A$1,MATCH($I$8,'ANP ESTADO'!B:B,0),0,100000,1),0),2,100000,2),2,FALSE) -> 3.611174806 | K28: =VLOOKUP($H$11,OFFSET('ANP REGIÃO'!$A$9,MATCH('Transporte RR-2C'!$I$8,'ANP REGIÃO'!A:A,0),1,10000,10000),MATCH('Transporte RR-2C'!AH28,'ANP REGIÃO'!$B$8:$G$8,0),FALSE) -> 3.371056978 | L28: 3611.174806 | M28: 959.53 | N28: 4570.704806 | O28: 2133 | P28: ='Transporte EAI'!P28 -> 0 | Q28: 566.59 | S28: 170.29 | T28: 124.37 | U28: 816.67 | V28: 1507.63 | X28: =EVEN((' CONSUMO DE MAT. B TOTAL'!$P$15+' CONSUMO DE MAT. B TOTAL'!P32)*2/28)*W28/(' CONSUMO DE MAT. B TOTAL'!$P$15+' CONSUMO DE MAT. B TOTAL'!P32) -> 0 | Y28: 1507.63 | Z28: 4570.704806 | AA28: 6078.334806 | AC28: 6078.334806 | AD28: 1507.63 | AE28: 4570.704806 | AH28: CENTRO-OESTE
B29: 5096.833802 | C29: 16 | E29: VIAPOL LTDA. | F29: VITO ARDITO, 6401 KM 118,5 - JARDIM CAMPO GRANDE - CEP:12282-535 | G29: São Paulo | H29: CACAPAVA - SP | I29: BOM JESUS-PI | J29: =VLOOKUP(G29,OFFSET('ANP ESTADO'!$A$1,MATCH($I$8,'ANP ESTADO'!B:B,0)+MATCH($H$11,OFFSET('ANP ESTADO'!$A$1,MATCH($I$8,'ANP ESTADO'!B:B,0),0,100000,1),0),2,100000,2),2,FALSE) -> 2.836253802 | K29: =VLOOKUP($H$11,OFFSET('ANP REGIÃO'!$A$9,MATCH('Transporte RR-2C'!$I$8,'ANP REGIÃO'!A:A,0),1,10000,10000),MATCH('Transporte RR-2C'!AH29,'ANP REGIÃO'!$B$8:$G$8,0),FALSE) -> 2.873173613 | L29: 2836.253802 | M29: 753.62 | N29: 3589.873802 | O29: 2132 | P29: ='Transporte EAI'!P29 -> 0 | Q29: 566.34 | S29: 170.22 | T29: 124.31 | U29: 816.31 | V29: 1506.96 | X29: =EVEN((' CONSUMO DE MAT. B TOTAL'!$P$15+' CONSUMO DE MAT. B TOTAL'!P33)*2/28)*W29/(' CONSUMO DE MAT. B TOTAL'!$P$15+' CONSUMO DE MAT. B TOTAL'!P33) -> 0 | Y29: 1506.96 | Z29: 3589.873802 | AA29: 5096.833802 | AC29: 5096.833802 | AD29: 1506.96 | AE29: 3589.873802 | AH29: SUDESTE
B30: 5037.193613 | C30: 17 | E30: STRATURA ASFALTOS S/A | F30: RUA LUIS DE CAMÕES, 26 - CAMPOS ELÍSEOS - CEP:25225-030 | G30: Rio de Janeiro | H30: DUQUE DE CAXIAS - RJ | I30: BOM JESUS-PI | J30: =VLOOKUP(G30,OFFSET('ANP ESTADO'!$A$1,MATCH($I$8,'ANP ESTADO'!B:B,0)+MATCH($H$11,OFFSET('ANP ESTADO'!$A$1,MATCH($I$8,'ANP ESTADO'!B:B,0),0,100000,1),0),2,100000,2),2,FALSE) -> - | K30: =VLOOKUP($H$11,OFFSET('ANP REGIÃO'!$A$9,MATCH('Transporte RR-2C'!$I$8,'ANP REGIÃO'!A:A,0),1,10000,10000),MATCH('Transporte RR-2C'!AH30,'ANP REGIÃO'!$B$8:$G$8,0),FALSE) -> 2.873173613 | L30: 2873.173613 | M30: 763.43 | N30: 3636.603613 | O30: 1974 | P30: ='Transporte EAI'!P30 -> 0 | Q30: 526.36 | S30: 160.11 | T30: 115.54 | U30: 758.69 | V30: 1400.59 | X30: =EVEN((' CONSUMO DE MAT. B TOTAL'!$P$15+' CONSUMO DE MAT. B TOTAL'!P34)*2/28)*W30/(' CONSUMO DE MAT. B TOTAL'!$P$15+' CONSUMO DE MAT. B TOTAL'!P34) -> 0 | Y30: 1400.59 | Z30: 3636.603613 | AA30: 5037.193613 | AC30: 5037.193613 | AD30: 1400.59 | AE30: 3636.603613 | AH30: SUDESTE
B31: 5047.973613 | C31: 18 | E31: PROBITEC - PRODUTOS BETUMINOSOS E TECNOLOGIA DE APLICAÇÃO LTDA. | F31: AVENIDA CANAL DA PAVUNA, 620 - PAVUNA - CEP:21535-630 | G31: Rio de Janeiro | H31: RIO DE JANEIRO - RJ | I31: BOM JESUS-PI | J31: =VLOOKUP(G31,OFFSET('ANP ESTADO'!$A$1,MATCH($I$8,'ANP ESTADO'!B:B,0)+MATCH($H$11,OFFSET('ANP ESTADO'!$A$1,MATCH($I$8,'ANP ESTADO'!B:B,0),0,100000,1),0),2,100000,2),2,FALSE) -> - | K31: =VLOOKUP($H$11,OFFSET('ANP REGIÃO'!$A$9,MATCH('Transporte RR-2C'!$I$8,'ANP REGIÃO'!A:A,0),1,10000,10000),MATCH('Transporte RR-2C'!AH31,'ANP REGIÃO'!$B$8:$G$8,0),FALSE) -> 2.873173613 | L31: 2873.173613 | M31: 763.43 | N31: 3636.603613 | O31: 1990 | P31: ='Transporte EAI'!P31 -> 0 | Q31: 530.41 | S31: 161.13 | T31: 116.43 | U31: 764.53 | V31: 1411.37 | X31: =EVEN((' CONSUMO DE MAT. B TOTAL'!$P$15+' CONSUMO DE MAT. B TOTAL'!P35)*2/28)*W31/(' CONSUMO DE MAT. B TOTAL'!$P$15+' CONSUMO DE MAT. B TOTAL'!P35) -> 0 | Y31: 1411.37 | Z31: 3636.603613 | AA31: 5047.973613 | AC31: 5047.973613 | AD31: 1411.37 | AE31: 3636.603613 | AH31: SUDESTE
B32: 5150.88854 | C32: 19 | E32: CASA DO ASFALTO DISTRIBUIDORA, INDÚSTRIA E COMÉRCIO DE ASFALTO LTDA. | F32: BR 376, PARQUE INDUSTRIAL, S/N LOTE 6/7/7-A-3-1 - GL.PATR.MARIALVA - CEP:86990-000 | G32: Paraná | H32: MARIALVA - PR | I32: BOM JESUS-PI | J32: =VLOOKUP(G32,OFFSET('ANP ESTADO'!$A$1,MATCH($I$8,'ANP ESTADO'!B:B,0)+MATCH($H$11,OFFSET('ANP ESTADO'!$A$1,MATCH($I$8,'ANP ESTADO'!B:B,0),0,100000,1),0),2,100000,2),2,FALSE) -> 2.84013854 | K32: =VLOOKUP($H$11,OFFSET('ANP REGIÃO'!$A$9,MATCH('Transporte RR-2C'!$I$8,'ANP REGIÃO'!A:A,0),1,10000,10000),MATCH('Transporte RR-2C'!AH32,'ANP REGIÃO'!$B$8:$G$8,0),FALSE) -> 2.890034554 | L32: 2840.13854 | M32: 754.66 | N32: 3594.79854 | O32: 2205 | P32: ='Transporte EAI'!P32 -> 0 | Q32: 584.8 | S32: 174.89 | T32: 128.37 | U32: 842.92 | V32: 1556.09 | X32: =EVEN((' CONSUMO DE MAT. B TOTAL'!$P$15+' CONSUMO DE MAT. B TOTAL'!P36)*2/28)*W32/(' CONSUMO DE MAT. B TOTAL'!$P$15+' CONSUMO DE MAT. B TOTAL'!P36) -> 0 | Y32: 1556.09 | Z32: 3594.79854 | AA32: 5150.88854 | AC32: 5150.88854 | AD32: 1556.09 | AE32: 3594.79854 | AH32: SUL
B33: 5228.30854 | C33: 20 | E33: PETROBRAS DISTRIBUIDORA S.A. | F33: RUA MAQUINISTA ELEODORO JACINTO, 100 - OFICINAS - CEP:84045-170 | G33: Paraná | H33: PONTA GROSSA - PR | I33: BOM JESUS-PI | J33: =VLOOKUP(G33,OFFSET('ANP ESTADO'!$A$1,MATCH($I$8,'ANP ESTADO'!B:B,0)+MATCH($H$11,OFFSET('ANP ESTADO'!$A$1,MATCH($I$8,'ANP ESTADO'!B:B,0),0,100000,1),0),2,100000,2),2,FALSE) -> 2.84013854 | K33: =VLOOKUP($H$11,OFFSET('ANP REGIÃO'!$A$9,MATCH('Transporte RR-2C'!$I$8,'ANP REGIÃO'!A:A,0),1,10000,10000),MATCH('Transporte RR-2C'!AH33,'ANP REGIÃO'!$B$8:$G$8,0),FALSE) -> 2.890034554 | L33: 2840.13854 | M33: 754.66 | N33: 3594.79854 | O33: 2320 | P33: ='Transporte EAI'!P33 -> 0 | Q33: 613.9 | S33: 182.26 | T33: 134.75 | U33: 884.86 | V33: 1633.51 | X33: =EVEN((' CONSUMO DE MAT. B TOTAL'!$P$15+' CONSUMO DE MAT. B TOTAL'!P37)*2/28)*W33/(' CONSUMO DE MAT. B TOTAL'!$P$15+' CONSUMO DE MAT. B TOTAL'!P37) -> 0 | Y33: 1633.51 | Z33: 3594.79854 | AA33: 5228.30854 | AC33: 5228.30854 | AD33: 1633.51 | AE33: 3594.79854 | AH33: SUL
D43: Acre
D44: Alagoas
D45: Amapá
D46: Amazonas
D47: Bahia
D48: Ceará
D49: Distrito Federal
D50: Espírito Santo
D51: Goiás
D52: Maranhão
D53: Mato Grosso
D54: Mato Grosso do Sul
D55: Minas Gerais
D56: Pará
D57: Paraíba
D58: Paraná
D59: Pernambuco
D60: Piauí
D61: Rio de Janeiro
D62: Rio Grande do Norte
D63: Rio Grande do Sul
D64: Rondônia
D65: Roraima
D66: Santa Catarina
D67: São Paulo
D68: Sergipe
D69: Tocantins
D73: ASFALTOS DILUÍDOS CM-30
D74: ASFALTOS DILUÍDOS CM-70
D75: ASFALTOS DILUÍDOS CR-250
D76: ASFALTOS DILUÍDOS CR-70
D77: CAP MODIFICADO POR BORRACHA DE PNEU AB22
D78: CAP MODIFICADO POR BORRACHA DE PNEU AB8
D79: CAP MODIFICADO POR POLÍMERO 55-75-E
D80: CAP MODIFICADO POR POLÍMERO 60-85-E
D81: CAP MODIFICADO POR POLÍMERO 65-90-E
D82: CIMENTOS ASFÁLTICOS CAP-150-200
D83: CIMENTOS ASFÁLTICOS CAP-30-45
D84: CIMENTOS ASFÁLTICOS CAP-50-70
D85: CIMENTOS ASFÁLTICOS CAP-85-100
D86: EMULSÃO ASFÁLTICA CATIÔNICA DE RUPTURA CONTROLADA PARA SERVIÇO DE LAMA ASFÁLTICA
D87: EMULSÃO ASFÁLTICA DE RUPTURA LENTA CATIÔNICA PARA SERVIÇO DE LAMA ASFÁLTICA
D88: EMULSÃO ASFÁLTICA DE RUPTURA LENTA DE CARGA NEUTRA PARA SERVIÇO DE LAMA ASFÁLTICA
D89: EMULSÃO ASFÁLTICA PARA SERVIÇO DE IMPRIMAÇÃO
D90: EMULSÕES ASF. MOD. POR POLÍMEROS RC1C-E
D91: EMULSÕES ASF. MOD. POR POLÍMEROS RL1C-E
D92: EMULSÕES ASF. MOD. POR POLÍMEROS RM1C-E
D93: EMULSÕES ASF. MOD. POR POLÍMEROS RR1C-E
D94: EMULSÕES ASF. MOD. POR POLÍMEROS RR2C-E
D95: EMULSÕES ASFÁLTICAS RL-1C
D96: EMULSÕES ASFÁLTICAS RM-1C
D97: EMULSÕES ASFÁLTICAS RM-2C
D98: EMULSÕES ASFÁLTICAS RR-1C
D99: EMULSÕES ASFÁLTICAS RR-2C

Sheet RESUMO_Transp
B11: ÍNDICE DE PAVIMENTAÇÃO DNIT | E11: TIPOLOGIA DO MATERIAL | G11: LIGANTE BETUMINOSO | K11: IMPOSTOS | L11: COFINS | M11: ='Transporte RR-2C'!O8 -> 0.0065 | N11: ='Transporte RR-2C'!P8 -> 0.0065
C12: DATA INICIAL | F12: 2014-07-01 | G12: ÍNDICE INICIAL | H12: ='Transporte RR-2C'!J9 -> 270.237 | L12: PIS | M12: ='Transporte RR-2C'!O9 -> 0.03 | N12: ='Transporte RR-2C'!P9 -> 0.03 | P12: LEGENDA
C13: DATA FINAL | F13: ='Transporte EAI'!H11 -> 2025-07-01 | G13: ÍNDICE FINAL | H13: ='Transporte RR-2C'!J10 -> 589.643 | L13: ICMS | M13: ='Transporte RR-2C'!O10 -> 0.18 | N13: ='Transporte RR-2C'!P10 -> 0.18 | P13: ENTRADA DE DADOS
B15: DATA-BASE | C15: PRODUTOS | D15: LOCALIDADES | H15: CUSTO ANP (R$/Kg) | J15: CUSTO ANP | K15: IMPOSTOS DO PRODUTO | L15: CUSTO DO PRODUTO COM IMPOSTOS | M15: DMT's | N15: DMT's | O15: CUSTO DO TRANSPORTE TOTAL | P15: ICMS | Q15: ATUALIZAÇÃO DO CUSTO DE TRANSPORTE | R15: CUSTO DO TRANSPORTE RODOVIA PAVIMENTADA COM IMPOSTOS E ATUALIZAÇÃO MONETÁRIA | S15: PEDÁGIO | U15: TOTAL TRANSPORTE | V15: TOTAL PRODUTO | W15: TOTAL GERAL
B16: =F13 -> 2025-07-01 | D16: REFINARIAS | E16: ENDEREÇO | F16: ORIGEM REFINARIAS / DISTRIBUIDORAS | G16: DESTINO | H16: ESTADO | I16: REGIÃO | J16: R$/t | K16: R$/t | L16: R$/t | M16: KM | N16: KM | O16: R$/t | P16: R$/t | Q16: R$/t | R16: R$/t | S16: CUSTO POR EIXO | T16: R$/t | U16: R$/t | V16: R$/t | W16: R$/t
B17: 1 | C17: EAI | D17: Refinaria Abreu e Lima | E17: Rodovia PE 60, Km 10 - Ipojuca - PE CEP:55590-000 | F17: =VLOOKUP($W17,'Transporte EAI'!$B:$AA,7,FALSE) -> FORTALEZA - CE | G17: =VLOOKUP($W17,'Transporte EAI'!$B:$AA,8,FALSE) -> BOM JESUS-PI | H17: =VLOOKUP($W17,'Transporte EAI'!$B:$AA,9,FALSE) -> 2.092434098 | I17: =VLOOKUP($W17,'Transporte EAI'!$B:$AA,10,FALSE) -> 2.18249432 | J17: =VLOOKUP($W17,'Transporte EAI'!$B:$AA,11,FALSE) -> 2092.434098 | K17: =VLOOKUP($W17,'Transporte EAI'!$B:$AA,12,FALSE) -> 555.98 | L17: =VLOOKUP($W17,'Transporte EAI'!$B:$AA,13,FALSE) -> 2648.414098 | M17: =VLOOKUP($W17,'Transporte EAI'!$B:$AA,14,FALSE) -> 1040 | N17: =VLOOKUP($W17,'Transporte EAI'!$B:$AA,15,FALSE) -> 0 | O17: =VLOOKUP($W17,'Transporte EAI'!$B:$AA,18,FALSE) -> 100.32 | P17: =VLOOKUP($W17,'Transporte EAI'!$B:$AA,19,FALSE) -> 63.67 | Q17: =VLOOKUP($W17,'Transporte EAI'!$B:$AA,20,FALSE) -> 418.09 | R17: =VLOOKUP($W17,'Transporte EAI'!$B:$AA,21,FALSE) -> 771.82 | S17: =VLOOKUP($W17,'Transporte EAI'!$B:$AA,22,FALSE) -> 0 | T17: =VLOOKUP($W17,'Transporte EAI'!$B:$AA,23,FALSE) -> 0 | U17: =VLOOKUP($W17,'Transporte EAI'!$B:$AA,24,FALSE) -> 771.82 | V17: =VLOOKUP($W17,'Transporte EAI'!$B:$AA,25,FALSE) -> 2648.414098 | W17: =SMALL('Transporte EAI'!$AA$14:$AA$33,1) -> 3420.234098
B18: 2 | D18: Refinaria Potiguar Clara Camarão | E18: Rodovia RN 221, KM 25 - Guamaré - RN CEP:59598-000 | F18: =VLOOKUP($W18,'Transporte EAI'!$B:$AA,7,FALSE) -> SÃO FRANCISCO DO CONDE - BA | G18: =VLOOKUP($W18,'Transporte EAI'!$B:$AA,8,FALSE) -> BOM JESUS-PI | H18: =VLOOKUP($W18,'Transporte EAI'!$B:$AA,9,FALSE) -> - | I18: =VLOOKUP($W18,'Transporte EAI'!$B:$AA,10,FALSE) -> 2.18249432 | J18: =VLOOKUP($W18,'Transporte EAI'!$B:$AA,11,FALSE) -> 2182.49432 | K18: =VLOOKUP($W18,'Transporte EAI'!$B:$AA,12,FALSE) -> 579.91 | L18: =VLOOKUP($W18,'Transporte EAI'!$B:$AA,13,FALSE) -> 2762.40432 | M18: =VLOOKUP($W18,'Transporte EAI'!$B:$AA,14,FALSE) -> 988 | N18: =VLOOKUP($W18,'Transporte EAI'!$B:$AA,15,FALSE) -> 0 | O18: =VLOOKUP($W18,'Transporte EAI'!$B:$AA,18,FALSE) -> 96.99 | P18: =VLOOKUP($W18,'Transporte EAI'!$B:$AA,19,FALSE) -> 60.78 | Q18: =VLOOKUP($W18,'Transporte EAI'!$B:$AA,20,FALSE) -> 399.12 | R18: =VLOOKUP($W18,'Transporte EAI'!$B:$AA,21,FALSE) -> 736.8 | S18: =VLOOKUP($W18,'Transporte EAI'!$B:$AA,22,FALSE) -> 0 | T18: =VLOOKUP($W18,'Transporte EAI'!$B:$AA,23,FALSE) -> 0 | U18: =VLOOKUP($W18,'Transporte EAI'!$B:$AA,24,FALSE) -> 736.8 | V18: =VLOOKUP($W18,'Transporte EAI'!$B:$AA,25,FALSE) -> 2762.40432 | W18: =SMALL('Transporte EAI'!$AA$14:$AA$33,2) -> 3499.20432
B19: 3 | D19: Complexo Petroquímico do Rio de Janeiro (Comperj) | E19: Rodovia Estadual RJ-116 - Km 5,2 - Acesso A-1, s/n, Complemento Sambaetiba - Zona Urbana do 4º Distrito de Itaboraí - RJ CEP:24841-203 | F19: =VLOOKUP($W19,'Transporte EAI'!$B:$AA,7,FALSE) -> ANÁPOLIS - GO | G19: =VLOOKUP($W19,'Transporte EAI'!$B:$AA,8,FALSE) -> BOM JESUS-PI | H19: =VLOOKUP($W19,'Transporte EAI'!$B:$AA,9,FALSE) -> 2.167968083 | I19: =VLOOKUP($W19,'Transporte EAI'!$B:$AA,10,FALSE) -> 2.623457098 | J19: =VLOOKUP($W19,'Transporte EAI'!$B:$AA,11,FALSE) -> 2167.968083 | K19: =VLOOKUP($W19,'Transporte EAI'!$B:$AA,12,FALSE) -> 576.05 | L19: =VLOOKUP($W19,'Transporte EAI'!$B:$AA,13,FALSE) -> 2744.018083 | M19: =VLOOKUP($W19,'Transporte EAI'!$B:$AA,14,FALSE) -> 1225 | N19: =VLOOKUP($W19,'Transporte EAI'!$B:$AA,15,FALSE) -> 0 | O19: =VLOOKUP($W19,'Transporte EAI'!$B:$AA,18,FALSE) -> 112.16 | P19: =VLOOKUP($W19,'Transporte EAI'!$B:$AA,19,FALSE) -> 73.94 | Q19: =VLOOKUP($W19,'Transporte EAI'!$B:$AA,20,FALSE) -> 485.54 | R19: =VLOOKUP($W19,'Transporte EAI'!$B:$AA,21,FALSE) -> 896.34 | S19: =VLOOKUP($W19,'Transporte EAI'!$B:$AA,22,FALSE) -> 0 | T19: =VLOOKUP($W19,'Transporte EAI'!$B:$AA,23,FALSE) -> 0 | U19: =VLOOKUP($W19,'Transporte EAI'!$B:$AA,24,FALSE) -> 896.34 | V19: =VLOOKUP($W19,'Transporte EAI'!$B:$AA,25,FALSE) -> 2744.018083 | W19: =SMALL('Transporte EAI'!$AA$14:$AA$33,3) -> 3640.358083
B20: 4 | F20: =VLOOKUP($W20,'Transporte EAI'!$B:$AA,7,FALSE) -> GUAMARÉ - RN | G20: =VLOOKUP($W20,'Transporte EAI'!$B:$AA,8,FALSE) -> BOM JESUS-PI | H20: =VLOOKUP($W20,'Transporte EAI'!$B:$AA,9,FALSE) -> - | I20: =VLOOKUP($W20,'Transporte EAI'!$B:$AA,10,FALSE) -> 2.18249432 | J20: =VLOOKUP($W20,'Transporte EAI'!$B:$AA,11,FALSE) -> 2182.49432 | K20: =VLOOKUP($W20,'Transporte EAI'!$B:$AA,12,FALSE) -> 579.91 | L20: =VLOOKUP($W20,'Transporte EAI'!$B:$AA,13,FALSE) -> 2762.40432 | M20: =VLOOKUP($W20,'Transporte EAI'!$B:$AA,14,FALSE) -> 1261 | N20: =VLOOKUP($W20,'Transporte EAI'!$B:$AA,15,FALSE) -> 0 | O20: =VLOOKUP($W20,'Transporte EAI'!$B:$AA,18,FALSE) -> 114.47 | P20: =VLOOKUP($W20,'Transporte EAI'!$B:$AA,19,FALSE) -> 75.94 | Q20: =VLOOKUP($W20,'Transporte EAI'!$B:$AA,20,FALSE) -> 498.67 | R20: =VLOOKUP($W20,'Transporte EAI'!$B:$AA,21,FALSE) -> 920.58 | S20: =VLOOKUP($W20,'Transporte EAI'!$B:$AA,22,FALSE) -> 0 | T20: =VLOOKUP($W20,'Transporte EAI'!$B:$AA,23,FALSE) -> 0 | U20: =VLOOKUP($W20,'Transporte EAI'!$B:$AA,24,FALSE) -> 920.58 | V20: =VLOOKUP($W20,'Transporte EAI'!$B:$AA,25,FALSE) -> 2762.40432 | W20: =SMALL('Transporte EAI'!$AA$14:$AA$33,4) -> 3682.98432
B21: 5 | F21: =VLOOKUP($W21,'Transporte EAI'!$B:$AA,7,FALSE) -> APARECIDA DE GOIANIA - GO | G21: =VLOOKUP($W21,'Transporte EAI'!$B:$AA,8,FALSE) -> BOM JESUS-PI | H21: =VLOOKUP($W21,'Transporte EAI'!$B:$AA,9,FALSE) -> 2.167968083 | I21: =VLOOKUP($W21,'Transporte EAI'!$B:$AA,10,FALSE) -> 2.623457098 | J21: =VLOOKUP($W21,'Transporte EAI'!$B:$AA,11,FALSE) -> 2167.968083 | K21: =VLOOKUP($W21,'Transporte EAI'!$B:$AA,12,FALSE) -> 576.05 | L21: =VLOOKUP($W21,'Transporte EAI'!$B:$AA,13,FALSE) -> 2744.018083 | M21: =VLOOKUP($W21,'Transporte EAI'!$B:$AA,14,FALSE) -> 1292 | N21: =VLOOKUP($W21,'Transporte EAI'!$B:$AA,15,FALSE) -> 0 | O21: =VLOOKUP($W21,'Transporte EAI'!$B:$AA,18,FALSE) -> 116.46 | P21: =VLOOKUP($W21,'Transporte EAI'!$B:$AA,19,FALSE) -> 77.66 | Q21: =VLOOKUP($W21,'Transporte EAI'!$B:$AA,20,FALSE) -> 509.98 | R21: =VLOOKUP($W21,'Transporte EAI'!$B:$AA,21,FALSE) -> 941.46 | S21: =VLOOKUP($W21,'Transporte EAI'!$B:$AA,22,FALSE) -> 0 | T21: =VLOOKUP($W21,'Transporte EAI'!$B:$AA,23,FALSE) -> 0 | U21: =VLOOKUP($W21,'Transporte EAI'!$B:$AA,24,FALSE) -> 941.46 | V21: =VLOOKUP($W21,'Transporte EAI'!$B:$AA,25,FALSE) -> 2744.018083 | W21: =SMALL('Transporte EAI'!$AA$14:$AA$33,5) -> 3685.478083
B22: 6 | F22: =VLOOKUP($W22,'Transporte EAI'!$B:$AA,7,FALSE) -> GOIANIRA - GO | G22: =VLOOKUP($W22,'Transporte EAI'!$B:$AA,8,FALSE) -> BOM JESUS-PI | H22: =VLOOKUP($W22,'Transporte EAI'!$B:$AA,9,FALSE) -> 2.167968083 | I22: =VLOOKUP($W22,'Transporte EAI'!$B:$AA,10,FALSE) -> 2.623457098 | J22: =VLOOKUP($W22,'Transporte EAI'!$B:$AA,11,FALSE) -> 2167.968083 | K22: =VLOOKUP($W22,'Transporte EAI'!$B:$AA,12,FALSE) -> 576.05 | L22: =VLOOKUP($W22,'Transporte EAI'!$B:$AA,13,FALSE) -> 2744.018083 | M22: =VLOOKUP($W22,'Transporte EAI'!$B:$AA,14,FALSE) -> 1298 | N22: =VLOOKUP($W22,'Transporte EAI'!$B:$AA,15,FALSE) -> 0 | O22: =VLOOKUP($W22,'Transporte EAI'!$B:$AA,18,FALSE) -> 116.84 | P22: =VLOOKUP($W22,'Transporte EAI'!$B:$AA,19,FALSE) -> 77.99 | Q22: =VLOOKUP($W22,'Transporte EAI'!$B:$AA,20,FALSE) -> 512.16 | R22: =VLOOKUP($W22,'Transporte EAI'!$B:$AA,21,FALSE) -> 945.48 | S22: =VLOOKUP($W22,'Transporte EAI'!$B:$AA,22,FALSE) -> 0 | T22: =VLOOKUP($W22,'Transporte EAI'!$B:$AA,23,FALSE) -> 0 | U22: =VLOOKUP($W22,'Transporte EAI'!$B:$AA,24,FALSE) -> 945.48 | V22: =VLOOKUP($W22,'Transporte EAI'!$B:$AA,25,FALSE) -> 2744.018083 | W22: =SMALL('Transporte EAI'!$AA$14:$AA$33,6) -> 3689.498083
B24: 1 | C24: RR2-C | D24: Refinaria Abreu e Lima | E24: Rodovia PE 60, Km 10 - Ipojuca - PE CEP:55590-000 | F24: =VLOOKUP($W24,'Transporte RR-2C'!$B:$AA,7,FALSE) -> FORTALEZA - CE | G24: =VLOOKUP($W24,'Transporte RR-2C'!$B:$AA,8,FALSE) -> BOM JESUS-PI | H24: =VLOOKUP($W24,'Transporte RR-2C'!$B:$AA,9,FALSE) -> 2.529518814 | I24: =VLOOKUP($W24,'Transporte RR-2C'!$B:$AA,10,FALSE) -> 2.640024338 | J24: =VLOOKUP($W24,'Transporte RR-2C'!$B:$AA,11,FALSE) -> 2529.518814 | K24: =VLOOKUP($W24,'Transporte RR-2C'!$B:$AA,12,FALSE) -> 672.12 | L24: =VLOOKUP($W24,'Transporte RR-2C'!$B:$AA,13,FALSE) -> 3201.638814 | M24: =VLOOKUP($W24,'Transporte RR-2C'!$B:$AA,14,FALSE) -> 1040 | N24: =VLOOKUP($W24,'Transporte RR-2C'!$B:$AA,15,FALSE) -> 0 | O24: =VLOOKUP($W24,'Transporte RR-2C'!$B:$AA,18,FALSE) -> 100.32 | P24: =VLOOKUP($W24,'Transporte RR-2C'!$B:$AA,19,FALSE) -> 63.67 | Q24: =VLOOKUP($W24,'Transporte RR-2C'!$B:$AA,20,FALSE) -> 418.09 | R24: =VLOOKUP($W24,'Transporte RR-2C'!$B:$AA,21,FALSE) -> 771.82 | S24: =VLOOKUP($W24,'Transporte RR-2C'!$B:$AA,22,FALSE) -> 0 | T24: =VLOOKUP($W24,'Transporte RR-2C'!$B:$AA,23,FALSE) -> 0 | U24: =VLOOKUP($W24,'Transporte RR-2C'!$B:$AA,24,FALSE) -> 771.82 | V24: =VLOOKUP($W24,'Transporte RR-2C'!$B:$AA,25,FALSE) -> 3201.638814 | W24: =SMALL('Transporte RR-2C'!$AA$14:$AA$33,1) -> 3973.458814
B25: 2 | D25: Refinaria Potiguar Clara Camarão | E25: Rodovia RN 221, KM 25 - Guamaré - RN CEP:59598-000 | F25: =VLOOKUP($W25,'Transporte RR-2C'!$B:$AA,7,FALSE) -> PALMAS - TO | G25: =VLOOKUP($W25,'Transporte RR-2C'!$B:$AA,8,FALSE) -> BOM JESUS-PI | H25: =VLOOKUP($W25,'Transporte RR-2C'!$B:$AA,9,FALSE) -> 2.733059937 | I25: =VLOOKUP($W25,'Transporte RR-2C'!$B:$AA,10,FALSE) -> 3.219925724 | J25: =VLOOKUP($W25,'Transporte RR-2C'!$B:$AA,11,FALSE) -> 2733.059937 | K25: =VLOOKUP($W25,'Transporte RR-2C'!$B:$AA,12,FALSE) -> 726.2 | L25: =VLOOKUP($W25,'Transporte RR-2C'!$B:$AA,13,FALSE) -> 3459.259937 | M25: =VLOOKUP($W25,'Transporte RR-2C'!$B:$AA,14,FALSE) -> 771 | N25: =VLOOKUP($W25,'Transporte RR-2C'!$B:$AA,15,FALSE) -> 0 | O25: =VLOOKUP($W25,'Transporte RR-2C'!$B:$AA,18,FALSE) -> 83.11 | P25: =VLOOKUP($W25,'Transporte RR-2C'!$B:$AA,19,FALSE) -> 48.73 | Q25: =VLOOKUP($W25,'Transporte RR-2C'!$B:$AA,20,FALSE) -> 319.98 | R25: =VLOOKUP($W25,'Transporte RR-2C'!$B:$AA,21,FALSE) -> 590.71 | S25: =VLOOKUP($W25,'Transporte RR-2C'!$B:$AA,22,FALSE) -> 0 | T25: =VLOOKUP($W25,'Transporte RR-2C'!$B:$AA,23,FALSE) -> 0 | U25: =VLOOKUP($W25,'Transporte RR-2C'!$B:$AA,24,FALSE) -> 590.71 | V25: =VLOOKUP($W25,'Transporte RR-2C'!$B:$AA,25,FALSE) -> 3459.259937 | W25: =SMALL('Transporte RR-2C'!$AA$14:$AA$33,2) -> 4049.969937
B26: 3 | D26: Complexo Petroquímico do Rio de Janeiro (Comperj) | E26: Rodovia Estadual RJ-116 - Km 5,2 - Acesso A-1, s/n, Complemento Sambaetiba - Zona Urbana do 4º Distrito de Itaboraí - RJ CEP:24841-203 | F26: =VLOOKUP($W26,'Transporte RR-2C'!$B:$AA,7,FALSE) -> GUAMARÉ - RN | G26: =VLOOKUP($W26,'Transporte RR-2C'!$B:$AA,8,FALSE) -> BOM JESUS-PI | H26: =VLOOKUP($W26,'Transporte RR-2C'!$B:$AA,9,FALSE) -> - | I26: =VLOOKUP($W26,'Transporte RR-2C'!$B:$AA,10,FALSE) -> 2.640024338 | J26: =VLOOKUP($W26,'Transporte RR-2C'!$B:$AA,11,FALSE) -> 2640.024338 | K26: =VLOOKUP($W26,'Transporte RR-2C'!$B:$AA,12,FALSE) -> 701.48 | L26: =VLOOKUP($W26,'Transporte RR-2C'!$B:$AA,13,FALSE) -> 3341.504338 | M26: =VLOOKUP($W26,'Transporte RR-2C'!$B:$AA,14,FALSE) -> 1261 | N26: =VLOOKUP($W26,'Transporte RR-2C'!$B:$AA,15,FALSE) -> 0 | O26: =VLOOKUP($W26,'Transporte RR-2C'!$B:$AA,18,FALSE) -> 114.47 | P26: =VLOOKUP($W26,'Transporte RR-2C'!$B:$AA,19,FALSE) -> 75.94 | Q26: =VLOOKUP($W26,'Transporte RR-2C'!$B:$AA,20,FALSE) -> 498.67 | R26: =VLOOKUP($W26,'Transporte RR-2C'!$B:$AA,21,FALSE) -> 920.58 | S26: =VLOOKUP($W26,'Transporte RR-2C'!$B:$AA,22,FALSE) -> 0 | T26: =VLOOKUP($W26,'Transporte RR-2C'!$B:$AA,23,FALSE) -> 0 | U26: =VLOOKUP($W26,'Transporte RR-2C'!$B:$AA,24,FALSE) -> 920.58 | V26: =VLOOKUP($W26,'Transporte RR-2C'!$B:$AA,25,FALSE) -> 3341.504338 | W26: =SMALL('Transporte RR-2C'!$AA$14:$AA$33,3) -> 4262.084338
B27: 4 | D27: Refinaria Abreu e Lima | E27: Rodovia PE 60, Km 10 - Ipojuca - PE CEP:55590-000 | F27: =VLOOKUP($W27,'Transporte RR-2C'!$B:$AA,7,FALSE) -> IPOJUCA - PE | G27: =VLOOKUP($W27,'Transporte RR-2C'!$B:$AA,8,FALSE) -> BOM JESUS-PI | H27: =VLOOKUP($W27,'Transporte RR-2C'!$B:$AA,9,FALSE) -> - | I27: =VLOOKUP($W27,'Transporte RR-2C'!$B:$AA,10,FALSE) -> 2.640024338 | J27: =VLOOKUP($W27,'Transporte RR-2C'!$B:$AA,11,FALSE) -> 2640.024338 | K27: =VLOOKUP($W27,'Transporte RR-2C'!$B:$AA,12,FALSE) -> 701.48 | L27: =VLOOKUP($W27,'Transporte RR-2C'!$B:$AA,13,FALSE) -> 3341.504338 | M27: =VLOOKUP($W27,'Transporte RR-2C'!$B:$AA,14,FALSE) -> 1290 | N27: =VLOOKUP($W27,'Transporte RR-2C'!$B:$AA,15,FALSE) -> 0 | O27: =VLOOKUP($W27,'Transporte RR-2C'!$B:$AA,18,FALSE) -> 116.33 | P27: =VLOOKUP($W27,'Transporte RR-2C'!$B:$AA,19,FALSE) -> 77.55 | Q27: =VLOOKUP($W27,'Transporte RR-2C'!$B:$AA,20,FALSE) -> 509.25 | R27: =VLOOKUP($W27,'Transporte RR-2C'!$B:$AA,21,FALSE) -> 940.11 | S27: =VLOOKUP($W27,'Transporte RR-2C'!$B:$AA,22,FALSE) -> 0 | T27: =VLOOKUP($W27,'Transporte RR-2C'!$B:$AA,23,FALSE) -> 0 | U27: =VLOOKUP($W27,'Transporte RR-2C'!$B:$AA,24,FALSE) -> 940.11 | V27: =VLOOKUP($W27,'Transporte RR-2C'!$B:$AA,25,FALSE) -> 3341.504338 | W27: =SMALL('Transporte RR-2C'!$AA$14:$AA$33,4) -> 4281.614338
B28: 5 | D28: Refinaria Potiguar Clara Camarão | E28: Rodovia RN 221, KM 25 - Guamaré - RN CEP:59598-000 | F28: =VLOOKUP($W28,'Transporte RR-2C'!$B:$AA,7,FALSE) -> SÃO FRANCISCO DO CONDE - BA | G28: =VLOOKUP($W28,'Transporte RR-2C'!$B:$AA,8,FALSE) -> BOM JESUS-PI | H28: =VLOOKUP($W28,'Transporte RR-2C'!$B:$AA,9,FALSE) -> 3.060186851 | I28: =VLOOKUP($W28,'Transporte RR-2C'!$B:$AA,10,FALSE) -> 2.640024338 | J28: =VLOOKUP($W28,'Transporte RR-2C'!$B:$AA,11,FALSE) -> 3060.186851 | K28: =VLOOKUP($W28,'Transporte RR-2C'!$B:$AA,12,FALSE) -> 813.12 | L28: =VLOOKUP($W28,'Transporte RR-2C'!$B:$AA,13,FALSE) -> 3873.306851 | M28: =VLOOKUP($W28,'Transporte RR-2C'!$B:$AA,14,FALSE) -> 988 | N28: =VLOOKUP($W28,'Transporte RR-2C'!$B:$AA,15,FALSE) -> 0 | O28: =VLOOKUP($W28,'Transporte RR-2C'!$B:$AA,18,FALSE) -> 96.99 | P28: =VLOOKUP($W28,'Transporte RR-2C'!$B:$AA,19,FALSE) -> 60.78 | Q28: =VLOOKUP($W28,'Transporte RR-2C'!$B:$AA,20,FALSE) -> 399.12 | R28: =VLOOKUP($W28,'Transporte RR-2C'!$B:$AA,21,FALSE) -> 736.8 | S28: =VLOOKUP($W28,'Transporte RR-2C'!$B:$AA,22,FALSE) -> 0 | T28: =VLOOKUP($W28,'Transporte RR-2C'!$B:$AA,23,FALSE) -> 0 | U28: =VLOOKUP($W28,'Transporte RR-2C'!$B:$AA,24,FALSE) -> 736.8 | V28: =VLOOKUP($W28,'Transporte RR-2C'!$B:$AA,25,FALSE) -> 3873.306851 | W28: =SMALL('Transporte RR-2C'!$AA$14:$AA$33,5) -> 4610.106851
B29: 6 | D29: Complexo Petroquímico do Rio de Janeiro (Comperj) | E29: Rodovia Estadual RJ-116 - Km 5,2 - Acesso A-1, s/n, Complemento Sambaetiba - Zona Urbana do 4º Distrito de Itaboraí - RJ CEP:24841-203 | F29: =VLOOKUP($W29,'Transporte RR-2C'!$B:$AA,7,FALSE) -> ANÁPOLIS - GO | G29: =VLOOKUP($W29,'Transporte RR-2C'!$B:$AA,8,FALSE) -> BOM JESUS-PI | H29: =VLOOKUP($W29,'Transporte RR-2C'!$B:$AA,9,FALSE) -> 2.971570793 | I29: =VLOOKUP($W29,'Transporte RR-2C'!$B:$AA,10,FALSE) -> 3.371056978 | J29: =VLOOKUP($W29,'Transporte RR-2C'!$B:$AA,11,FALSE) -> 2971.570793 | K29: =VLOOKUP($W29,'Transporte RR-2C'!$B:$AA,12,FALSE) -> 789.58 | L29: =VLOOKUP($W29,'Transporte RR-2C'!$B:$AA,13,FALSE) -> 3761.150793 | M29: =VLOOKUP($W29,'Transporte RR-2C'!$B:$AA,14,FALSE) -> 1225 | N29: =VLOOKUP($W29,'Transporte RR-2C'!$B:$AA,15,FALSE) -> 0 | O29: =VLOOKUP($W29,'Transporte RR-2C'!$B:$AA,18,FALSE) -> 112.16 | P29: =VLOOKUP($W29,'Transporte RR-2C'!$B:$AA,19,FALSE) -> 73.94 | Q29: =VLOOKUP($W29,'Transporte RR-2C'!$B:$AA,20,FALSE) -> 485.54 | R29: =VLOOKUP($W29,'Transporte RR-2C'!$B:$AA,21,FALSE) -> 896.34 | S29: =VLOOKUP($W29,'Transporte RR-2C'!$B:$AA,22,FALSE) -> 0 | T29: =VLOOKUP($W29,'Transporte RR-2C'!$B:$AA,23,FALSE) -> 0 | U29: =VLOOKUP($W29,'Transporte RR-2C'!$B:$AA,24,FALSE) -> 896.34 | V29: =VLOOKUP($W29,'Transporte RR-2C'!$B:$AA,25,FALSE) -> 3761.150793 | W29: =SMALL('Transporte RR-2C'!$AA$14:$AA$33,6) -> 4657.490793

Sheet MEDICAO EM TKM
A5: PLANILHA DE MEDIÇAO DE TKM
A6: 903808 | B6: =VLOOKUP(A6,'SINTÉTICO SICRO'!A:D,2,0) -> Instalação da usina misturadora de solos com capacidade de 300 t/h
A7: MOMENTO DE TRANSPORTE | D7: Quantidade (tkm) | E7: quantidade medida(un.)
E8: 1
A9: 5914479 | B9: =VLOOKUP(A9,'SINTÉTICO SICRO'!A:D,2,0) -> Transporte com caminhão carroceria de 15 t - rodovia pavimentada | D9: =SUMIF('MOMENTO DE TRANSPORTE - AUX'!#REF!,'MEDICAO EM TKM'!A9,'MOMENTO DE TRANSPORTE - AUX'!#REF!) ->  | E9: =D9*$E$8 -> 
A10: 5914389 | B10: =VLOOKUP(A10,'SINTÉTICO SICRO'!A:D,2,0) -> Transporte com caminhão basculante de 10 m³ - rodovia pavimentada | D10: ='MOMENTO DE TRANSPORTE - AUX'!#REF!+'MOMENTO DE TRANSPORTE - AUX'!#REF! -> 
A11: 5914449 | B11: =VLOOKUP(A11,'SINTÉTICO SICRO'!A:D,2,0) -> Transporte com caminhão carroceria de 15 t - rodovia em leito natural | D11: =SUMIF('MOMENTO DE TRANSPORTE - AUX'!#REF!,'MEDICAO EM TKM'!A11,'MOMENTO DE TRANSPORTE - AUX'!#REF!) -> 
A12: 5914359 | B12: =VLOOKUP(A12,'SINTÉTICO SICRO'!A:D,2,0) -> Transporte com caminhão basculante de 10 m³ - rodovia em leito natural | D12: ='MOMENTO DE TRANSPORTE - AUX'!#REF!+'MOMENTO DE TRANSPORTE - AUX'!#REF! -> 
A13: 5914464 | B13: =VLOOKUP(A13,'SINTÉTICO SICRO'!A:D,2,0) -> Transporte com caminhão carroceria de 15 t - rodovia em revestimento primário | D13: =SUMIF('MOMENTO DE TRANSPORTE - AUX'!#REF!,'MEDICAO EM TKM'!A13,'MOMENTO DE TRANSPORTE - AUX'!#REF!) -> 
A14: 5914374 | B14: =VLOOKUP(A14,'SINTÉTICO SICRO'!A:D,2,0) -> Transporte com caminhão basculante de 10 m³ - rodovia em revestimento primário | D14: ='MOMENTO DE TRANSPORTE - AUX'!#REF!+'MOMENTO DE TRANSPORTE - AUX'!#REF! -> 
A16: 5502114 | B16: =VLOOKUP(A16,'SINTÉTICO SICRO'!A:D,2,0) -> Escavação, carga e transporte de material de 1ª categoria - DMT de 1.000 a 1.200 m - caminho de serviço em leito natural - com escavadeira e caminhão basculante de 14 m³
A17: MOMENTO DE TRANSPORTE | D17: Quantidade (tkm) | E17: -
E18: -
A21: 4413942 | B21: =VLOOKUP(A21,'SINTÉTICO SICRO'!A:D,2,0) -> Espalhamento de material em bota-fora
A22: MOMENTO DE TRANSPORTE | D22: Quantidade (tkm) | E22: -
E23: -
A26: 4915637 | B26: =VLOOKUP(A26,'SINTÉTICO SICRO'!A:D,2,0) -> Capa selante - areia comercial
A27: MOMENTO DE TRANSPORTE | C27: Quantidade (tkm) | D27: Area executada (m2) | E27: 7000
F28: ='Memória de Cálculo'!C1*'Memória de Cálculo'!C2 -> 7000
A29: 5914344 | B29: =VLOOKUP(A29,'SINTÉTICO SICRO'!A:D,2,0) -> Transporte com caminhão basculante de 6 m³ - rodovia pavimentada | C29: ='MOMENTO DE TRANSPORTE - PRINC'!K29 -> 8769.6 | D29: =C29*$F$28 -> 61387200
A30: 5914329 | B30: =VLOOKUP(A30,'SINTÉTICO SICRO'!A:D,2,0) -> Transporte com caminhão basculante de 6 m³ - rodovia em revestimento primário | C30: ='MOMENTO DE TRANSPORTE - PRINC'!K144 -> 1096.2 | D30: 7673400
A31: 5914314 | B31: =VLOOKUP(A31,'SINTÉTICO SICRO'!A:D,2,0) -> Transporte com caminhão basculante de 6 m³ - rodovia em leito natural | C31: ='MOMENTO DE TRANSPORTE - PRINC'!K87 -> 1096.2 | D31: 7673400
A33: 4011370 | B33: =VLOOKUP(A33,'SINTÉTICO SICRO'!A:D,2,0) -> Tratamento superficial duplo com emulsão - brita comercial
A34: MOMENTO DE TRANSPORTE | C34: Quantidade (tkm) | D34: Area executada (m2) | E34: 7000
F35: ='Memória de Cálculo'!C1*'Memória de Cálculo'!C2 -> 7000
A36: 5914389 | B36: =VLOOKUP(A36,'SINTÉTICO SICRO'!A:D,2,0) -> Transporte com caminhão basculante de 10 m³ - rodovia pavimentada | C36: ='MOMENTO DE TRANSPORTE - PRINC'!K37+'MOMENTO DE TRANSPORTE - PRINC'!K38 -> 67536 | D36: =C36*$F$35 -> 472752000
A37: 5914374 | B37: =VLOOKUP(A37,'SINTÉTICO SICRO'!A:D,2,0) -> Transporte com caminhão basculante de 10 m³ - rodovia em revestimento primário | C37: ='MOMENTO DE TRANSPORTE - PRINC'!K152+'MOMENTO DE TRANSPORTE - PRINC'!K153 -> 8442 | D37: =C37*$F$35 -> 59094000
A38: 5914359 | B38: =VLOOKUP(A38,'SINTÉTICO SICRO'!A:D,2,0) -> Transporte com caminhão basculante de 10 m³ - rodovia em leito natural | C38: ='MOMENTO DE TRANSPORTE - PRINC'!K95+'MOMENTO DE TRANSPORTE - PRINC'!K96 -> 8442 | D38: 59094000
A40: 4011352 | B40: =VLOOKUP(A40,'SINTÉTICO SICRO'!A:D,2,0) -> Imprimação com emulsão asfáltica
A41: MOMENTO DE TRANSPORTE | C41: Quantidade (tkm)
A44: 4011318 | B44: =VLOOKUP(A44,'SINTÉTICO SICRO'!A:D,2,0) -> Base ou sub-base estabilizada granulometricamente com mistura solo brita (70% - 30%) em usina com material de jazida e brita comercial - 100% Proctor modificado
A45: MOMENTO DE TRANSPORTE | C45: Quantidade (tkm) | D45: Área Executada (m2) | E45: =E27 -> 7000
D46: espessura (m) | E46: 0.15 | F46: =(E45*E46)/('RESUMO MODULO TOTAL'!H25+'RESUMO MODULO TOTAL'!H26) -> 0.01388888889
A47: 5914389 | B47: =VLOOKUP(A47,'SINTÉTICO SICRO'!A:D,2,0) -> Transporte com caminhão basculante de 10 m³ - rodovia pavimentada | C47: ='MOMENTO DE TRANSPORTE - PRINC'!K50 -> 623854.224 | D47: =C47*$F$46 -> 8664.642
A48: 5914359 | B48: =VLOOKUP(A48,'SINTÉTICO SICRO'!A:D,2,0) -> Transporte com caminhão basculante de 10 m³ - rodovia em leito natural | C48: ='MOMENTO DE TRANSPORTE - PRINC'!K107 -> 77981.778 | D48: =C48*$F$46 -> 1083.08025
A49: 5914374 | B49: =VLOOKUP(A49,'SINTÉTICO SICRO'!A:D,2,0) -> Transporte com caminhão basculante de 10 m³ - rodovia em revestimento primário | C49: ='MOMENTO DE TRANSPORTE - PRINC'!K164 -> 77981.778 | D49: =C49*$F$46 -> 1083.08025
A51: 4011209 | B51: =VLOOKUP(A51,'SINTÉTICO SICRO'!A:D,2,0) -> Regularização do subleito - 100% Proctor intermediário
A52: MOMENTO DE TRANSPORTE | D52: Quantidade (tkm)
A56: 5213440 | B56: Placa de regulamentação em aço D = 0,60 m - película retrorrefletiva tipo I + SI - fornecimento e implantação
A57: MOMENTO DE TRANSPORTE | D57: Quantidade (tkm)
A61: 5213464 | B61: =VLOOKUP(A61,'SINTÉTICO SICRO'!A:D,2,0) -> Placa de advertência em aço, lado de 0,60 m - película retrorrefletiva tipo I + SI - fornecimento e implantação
A62: MOMENTO DE TRANSPORTE | D62: Quantidade (tkm)
A66: 5213863 | B66: =VLOOKUP(A66,'SINTÉTICO SICRO'!A:D,2,0) -> Suporte metálico galvanizado para placa de advertência ou regulamentação - lado ou diâmetro de 0,60 m - fornecimento e implantação
A67: MOMENTO DE TRANSPORTE | D67: Quantidade (tkm)
A71: 5213400 | B71: =VLOOKUP(A71,'SINTÉTICO SICRO'!A:D,2,0) -> Pintura de faixa com tinta acrílica - espessura de 0,4 mm
A72: MOMENTO DE TRANSPORTE | D72: Quantidade (tkm)
A76: 2003943 | B76: =VLOOKUP(A76,'SINTÉTICO SICRO'!A:D,2,0) -> Meio-fio de concreto - MFC 03 moldado no local com extrusora e concreto usinado - areia e brita comerciais
A77: MOMENTO DE TRANSPORTE | D77: Quantidade (tkm) | E77: Extensao executada (m)
E78: 1000 | F78: =E78/('Memória de Cálculo'!C1*2) -> 0.5
A79: 5914569 | B79: =VLOOKUP(A79,'SINTÉTICO SICRO'!A:D,2,0) -> Transporte com caminhão betoneira - rodovia pavimentada | D79: ='MOMENTO DE TRANSPORTE - PRINC'!K76 -> 58060.8 | E79: =D79*$F$78 -> 29030.4
A80: 5914539 | B80: =VLOOKUP(A80,'SINTÉTICO SICRO'!A:D,2,0) -> Transporte com caminhão betoneira - rodovia em leito natural | D80: ='MOMENTO DE TRANSPORTE - PRINC'!K133 -> 7257.6 | E80: 3628.8
A81: 5914554 | B81: =VLOOKUP(A81,'SINTÉTICO SICRO'!A:D,2,0) -> Transporte com caminhão betoneira - rodovia em revestimento primário | D81: ='MOMENTO DE TRANSPORTE - PRINC'!K189 -> 7257.6 | E81: 3628.8
A82: 5914479 | B82: =VLOOKUP(A82,'SINTÉTICO SICRO'!A:D,2,0) -> Transporte com caminhão carroceria de 15 t - rodovia pavimentada | D82: =SUMIF('MOMENTO DE TRANSPORTE - AUX'!$A$28:$A$32,'MEDICAO EM TKM'!A82,'MOMENTO DE TRANSPORTE - AUX'!$K$28:$K$32)+'MOMENTO DE TRANSPORTE - AUX'!K40 -> 6698.20032 | E82: 3349.10016
A83: 5914389 | B83: =VLOOKUP(A83,'SINTÉTICO SICRO'!A:D,2,0) -> Transporte com caminhão basculante de 10 m³ - rodovia pavimentada | D83: =SUMIF('MOMENTO DE TRANSPORTE - AUX'!$A$28:$A$32,'MEDICAO EM TKM'!A83,'MOMENTO DE TRANSPORTE - AUX'!$K$28:$K$32) -> 49811.56992 | E83: 24905.78496
A84: 5914449 | B84: =VLOOKUP(A84,'SINTÉTICO SICRO'!A:D,2,0) -> Transporte com caminhão carroceria de 15 t - rodovia em leito natural | D84: =SUMIF('MOMENTO DE TRANSPORTE - AUX'!$A$52:$A$56,'MEDICAO EM TKM'!A84,'MOMENTO DE TRANSPORTE - AUX'!$K$52:$K$56)+'MOMENTO DE TRANSPORTE - AUX'!K64 -> 837.27504 | E84: 418.63752
A85: 5914359 | B85: =VLOOKUP(A85,'SINTÉTICO SICRO'!A:D,2,0) -> Transporte com caminhão basculante de 10 m³ - rodovia em leito natural | D85: =SUMIF('MOMENTO DE TRANSPORTE - AUX'!$A$52:$A$56,'MEDICAO EM TKM'!A85,'MOMENTO DE TRANSPORTE - AUX'!$K$52:$K$56) -> 6226.44624 | E85: 3113.22312
A86: 5914464 | B86: =VLOOKUP(A86,'SINTÉTICO SICRO'!A:D,2,0) -> Transporte com caminhão carroceria de 15 t - rodovia em revestimento primário | D86: =SUMIF('MOMENTO DE TRANSPORTE - AUX'!$A$75:$A$79,'MEDICAO EM TKM'!A86,'MOMENTO DE TRANSPORTE - AUX'!$K$75:$K$79)+'MOMENTO DE TRANSPORTE - AUX'!K87 -> 837.27504 | E86: 418.63752
A87: 5914374 | B87: =VLOOKUP(A87,'SINTÉTICO SICRO'!A:D,2,0) -> Transporte com caminhão basculante de 10 m³ - rodovia em revestimento primário | D87: =SUMIF('MOMENTO DE TRANSPORTE - AUX'!$A$75:$A$79,'MEDICAO EM TKM'!A87,'MOMENTO DE TRANSPORTE - AUX'!$K$75:$K$79) -> 6226.44624 | E87: 3113.22312
A89: 4915724 | B89: =VLOOKUP(A89,'SINTÉTICO SICRO'!A:D,2,0) -> Caiação mecanizada com fixador de cal
A90: MOMENTO DE TRANSPORTE | D90: Quantidade (tkm)

Sheet Memória de Cálculo
A1: Extensão | B1: = | C1: 1000 | D1: m | F1: QUANTIDADE DE MODULOS | G1: 36
A2: Largura | B2: = | C2: 7 | D2: m
N3: ='RESUMO MODULO TOTAL'!L58 -> 
A4: Extensão | B4: = | C4: 1 | D4: km
B6: MOBUILIZAÇÃO
A7: 1 | B7: Implantação da obra
B9: Módulos(un) | D9: Módulos(un)
B10: =G1 -> 36 | C10: = | D10: =B10 -> 36
A12: 2 | B12: Administração da obra
B14: Módulos(un) | D14: Módulos(un)
B15: =G1 -> 36 | C15: = | D15: =B15 -> 36
A17: 3 | B17: Canteiro de Obras e Almoxarifado
B19: Módulos(un) | D19: Módulos(un)
B20: =G1 -> 36 | C20: = | D20: =B20 -> 36
A22: 4 | B22: Placa de Obra em Chapa de Aço Galvanizado
B24: Módulos(un) | C24: Comprimento(m) | D24: Largura (m) | H24: Total de Area de placa (m²)
B25: =G1 -> 36 | C25: 2 | D25: 4 | H25: =C25*D25*B25*2 -> 576
B27: TERRAPLENAGEM
A29: 5 | B29: serviços topográficos para pavimentação, inclusive notas de serviços, acompanhamento e greide
B31: Extensão (m) | D31: Largura (m) | H31: area (m2)
B32: =C1*$G$1 -> 36000 | C32: x | D32: =$C$2 -> 7 | G32: = | H32: =B32*D32 -> 252000
A34: 6 | B34: Escavação, carga e transporte de material de 1ª categoria - DMT de 1.000 a 1.200 m - caminho de serviço em leito natural - com escavadeira e caminhão basculante de 14 m³
B36: Extensão (m) | D36: Largura (m) | F36: Espessura (m) | H36: Volume (m3)
B37: =C1*$G$1 -> 36000 | C37: x | D37: =$C$2 -> 7 | E37: x | F37: 0.325 | G37: = | H37: =B37*D37*F37 -> 81900
A41: 7 | B41: Espalhamento de material em bota-fora
B43: Extensão (m) | D43: Largura (m) | F43: Espessura (m) | H43: Volume (m3)
B44: =C1*$G$1 -> 36000 | C44: x | D44: =$C$2 -> 7 | E44: x | F44: 0.325 | G44: = | H44: =B44*D44*F44 -> 81900
B46: PAVIMENTAÇÃO
A48: 8 | B48: Capa Selante
B50: Extensão (m) | C50: Largura (m) | H50: area (m2)
B51: =$C$1*G1 -> 36000 | C51: =$C$2 -> 7 | G51: = | H51: =B51*C51 -> 252000
A54: 9 | B54: Tratamento Superficial Duplo com Emulsão - Brita Comercial
B56: Extensão (m) | D56: Largura (m) | H56: area (m2)
B57: =$C$1*G1 -> 36000 | C57: x | D57: =$C$2 -> 7 | G57: = | H57: =B57*D57 -> 252000
A60: 10 | B60: Imprimação com asfalto diluído
B62: Extensão (m) | D62: Largura (m) | H62: area (m2)
B63: =$C$1*G1 -> 36000 | C63: x | D63: =$C$2 -> 7 | G63: = | H63: =B63*D63 -> 252000
A65: 11 | B65: Base de solo estabilizado granulometricamente sem mistura com material de jazida - 100% Proctor modificado
B67: Extensão (m) | D67: Largura (m) | F67: Espessura (m) | H67: Volume (m3)
B68: =C1*$G$1 -> 36000 | C68: x | D68: =$C$2 -> 7 | E68: x | F68: 0.15 | G68: = | H68: =B68*D68*F68 -> 37800
A71: 12 | B71: Sub-base de solo estabilizado granulometricamente sem mistura com material de jazida
B73: Extensão (m) | D73: Largura (m) | F73: Espessura (m) | H73: Volume (m3)
B74: =C1*$G$1 -> 36000 | C74: x | D74: =$C$2 -> 7 | E74: x | F74: 0.15 | G74: = | H74: =B74*D74*F74 -> 37800
A77: 13 | B77: Regularização do subleito
B79: Extensão (m) | D79: Largura (m) | H79: area (m2)
B80: =C1*$G$1 -> 36000 | C80: x | D80: =$C$2 -> 7 | G80: = | H80: =B80*D80 -> 252000
B82: SINALIZAÇÃO
A84: 20 | B84: Fornecimento e implantação de placa de regulamentação em aço D = 0,60 m - película retrorrefletiva tipo I + SI
B86: Extensão (km) | D86: Quant. (un) | H86: Quant. (un)
B87: =$C$4*$G$1 -> 36 | C87: x | D87: 3 | G87: = | H87: =B87*D87 -> 108
A89: 20 | B89: Fornecimento e implantação de placa de advertencia
B91: Extensão (km) | D91: Quant. (un) | H91: Quant. (un)
B92: =$C$4*$G$1 -> 36 | C92: x | D92: 3 | G92: = | H92: =B92*D92 -> 108
A95: 21 | B95: Fornecimento e implantação de suporte metálico galvanizado para placa de regulamentação - D = 0,60 m
B97: Extensão (km) | D97: Quant. (un) | H97: Quant. (un)
B98: =$C$4*$G$1 -> 36 | C98: x | D98: 0.5 | G98: = | H98: =H87+H92 -> 216
A100: 22 | B100: Pintura de faixa com tinta acrílica - espessura de 0,4 mm (bordos)
B102: Extensão (m) | D102: Espessura (m) | H102: Quant. (m²)
B103: =C1*G1 -> 36000 | C103: x | D103: 0.1 | G103: = | H103: =B103*D103*2 -> 7200
B105: Pintura de faixa com tinta acrílica - espessura de 0,4 mm (faixa central)
H107: Quant. (m²)
H108: =B103*D103*0.4 -> 1440
B110: SINALIZAÇÃO DE OBRAS
A112: 20 | B112: Placa para sinalização de obras montada em cavalete metálico - 1,00 x 1,00 m - utilização de 600 ciclos - fornecimento, 01 implantação e 01 retirada diária
B114: Extensão (m) | C114: Extensão (Km) | D114: Placa | E114: Dias | H114: Quant. (Un.DIA)
B115: =C1*G1 -> 36000 | C115: =B115/1000 -> 36 | D115: 1 | E115: 360 | G115: = | H115: =D115*C115*E115 -> 12960
A118: 21 | B118: Placa de advertência para sinalização de obras montada em suporte metálico móvel, lado 1,00 m - utilização de 600 ciclos - fornecimento, 01 implantação e 01 retirada diária
B120: Extensão (m) | C120: Extensão (Km) | D120: Placa | E120: Dias | H120: Quant. (Un.DIA)
B121: =C1*G1 -> 36000 | C121: =B121/1000 -> 36 | D121: 1 | E121: 360 | G121: = | H121: =D121*C121*E121 -> 12960
A123: 22 | B123: Cone plástico para canalização de trânsito - utilização de 150 ciclos - fornecimento, 01 implantação e 01 retirada diária
B124: 4 cones a cada 2km x 360 dias
B125: Extensão (m) | C125: Extensão (Km) | D125: Cone | E125: Dias | H125: Quant. (Un.DIA)
B126: =C1*D10 -> 36000 | C126: =B126/1000 -> 36 | D126: 4 | E126: 360 | G126: = | H126: =((C126*D126)/2)*E126 -> 25920
B128: DRENAGEM
A129: 23 | B129: Meio-fio de concreto - MFC 03 - areia e brita comerciais - fôrma de madeira
B131: Extensão (m) | D131: Quant. (un) | H131: Extensão(m)
B132: =$C$1*$G$1 -> 36000 | C132: x | D132: 2 | G132: = | H132: =B132*D132 -> 72000
A134: 19 | B134: Caiação mecanizada com fixador de cal
B136: Extensão (m) | D136: Perimetro (m) | H136: Area (m²)
B137: =$C$1*$G$1 -> 36000 | C137: x | D137: =0.24 -> 0.24 | G137: = | H137: =B137*D137 -> 8640
B140: SERVIÇOS COMPLEMENTARES
A141: 24
B143: Extensão (m) | D143: Largura (m) | G143: 0.1 | H143: extensão (m)
B144: =$C$1*G1 -> 36000 | C144: x | D144: 1 | E144: x | G144: = | H144: =G143*B144 -> 3600
B147: PROJETO EXECUTIVO
A148: 25 | B148: Projeto Executivo
B150: Extensão (m) | D150: Largura (m) | F150: Quant. (un) | H150: Área (m²)
B151: =$C$1*G1 -> 36000 | C151: x | D151: =C2 -> 7 | E151: x | F151: 1 | G151: = | H151: =B151*D151 -> 252000
B153: CONTROLE TECNOLOGICO - OBRA
A154: 26 | B154: Projeto Executivo
B156: Extensão (m) | D156: Largura (m) | F156: Quant. (un) | H156: meses
G157: = | H157: =0.5*G1 -> 18
F160: Perímetro caiação = 0,09 + 0,15

Sheet ANP ESTADO
A1: Agência Nacional do Petróleo, Gás Natural e Biocombustíveis
A2: Superintendência de Defesa da Concorrência
A5: PREÇO MÉDIO MENSAL PONDERADO PRATICADO PELOS DISTRIBUIDORES DE PRODUTOS ASFÁLTICOS (R$/KG)
A7: Importante: | B7: Quando não houver declaração de venda do produto selecionado, ou quando a declaração de venda do produto ocorrer por menos de 03 (três) distribuidoras, a tabela indicará campo vazio.
A8: Mês | B8: Produto | C8: Estado | D8: Preço
A9: 2013-01-01 | B9: ASFALTOS DILUÍDOS CM-30 | C9: Acre | D9: -
A10: 2013-01-01 | B10: ASFALTOS DILUÍDOS CM-30 | C10: Alagoas | D10: -
A11: 2013-01-01 | B11: ASFALTOS DILUÍDOS CM-30 | C11: Amapá | D11: -
A12: 2013-01-01 | B12: ASFALTOS DILUÍDOS CM-30 | C12: Amazonas | D12: 1.453527021
A13: 2013-01-01 | B13: ASFALTOS DILUÍDOS CM-30 | C13: Bahia | D13: 1.464044142
A14: 2013-01-01 | B14: ASFALTOS DILUÍDOS CM-30 | C14: Ceará | D14: 1.447997934
A15: 2013-01-01 | B15: ASFALTOS DILUÍDOS CM-30 | C15: Distrito Federal | D15: -
A16: 2013-01-01 | B16: ASFALTOS DILUÍDOS CM-30 | C16: Espírito Santo | D16: -
A17: 2013-01-01 | B17: ASFALTOS DILUÍDOS CM-30 | C17: Goiás | D17: 1.686383065
A18: 2013-01-01 | B18: ASFALTOS DILUÍDOS CM-30 | C18: Maranhão | D18: -
A19: 2013-01-01 | B19: ASFALTOS DILUÍDOS CM-30 | C19: Mato Grosso | D19: -
A20: 2013-01-01 | B20: ASFALTOS DILUÍDOS CM-30 | C20: Mato Grosso do Sul | D20: -
A21: 2013-01-01 | B21: ASFALTOS DILUÍDOS CM-30 | C21: Minas Gerais | D21: 1.451106114
A22: 2013-01-01 | B22: ASFALTOS DILUÍDOS CM-30 | C22: Pará | D22: -
A23: 2013-01-01 | B23: ASFALTOS DILUÍDOS CM-30 | C23: Paraíba | D23: -
A24: 2013-01-01 | B24: ASFALTOS DILUÍDOS CM-30 | C24: Paraná | D24: 1.520125031
A25: 2013-01-01 | B25: ASFALTOS DILUÍDOS CM-30 | C25: Pernambuco | D25: -
A26: 2013-01-01 | B26: ASFALTOS DILUÍDOS CM-30 | C26: Piauí | D26: -
A27: 2013-01-01 | B27: ASFALTOS DILUÍDOS CM-30 | C27: Rio de Janeiro | D27: 1.330475106
A28: 2013-01-01 | B28: ASFALTOS DILUÍDOS CM-30 | C28: Rio Grande do Norte | D28: -
A29: 2013-01-01 | B29: ASFALTOS DILUÍDOS CM-30 | C29: Rio Grande do Sul | D29: 1.598611074
A30: 2013-01-01 | B30: ASFALTOS DILUÍDOS CM-30 | C30: Rondônia | D30: -
A31: 2013-01-01 | B31: ASFALTOS DILUÍDOS CM-30 | C31: Roraima | D31: -
A32: 2013-01-01 | B32: ASFALTOS DILUÍDOS CM-30 | C32: Santa Catarina | D32: -
A33: 2013-01-01 | B33: ASFALTOS DILUÍDOS CM-30 | C33: São Paulo | D33: 1.471008423
A34: 2013-01-01 | B34: ASFALTOS DILUÍDOS CM-30 | C34: Sergipe | D34: -
A35: 2013-01-01 | B35: ASFALTOS DILUÍDOS CM-30 | C35: Tocantins | D35: -
A36: 2013-02-01 | B36: ASFALTOS DILUÍDOS CM-30 | C36: Acre | D36: -
A37: 2013-02-01 | B37: ASFALTOS DILUÍDOS CM-30 | C37: Alagoas | D37: -
A38: 2013-02-01 | B38: ASFALTOS DILUÍDOS CM-30 | C38: Amapá | D38: -
A39: 2013-02-01 | B39: ASFALTOS DILUÍDOS CM-30 | C39: Amazonas | D39: 1.485578179
A40: 2013-02-01 | B40: ASFALTOS DILUÍDOS CM-30 | C40: Bahia | D40: 1.457014101
A41: 2013-02-01 | B41: ASFALTOS DILUÍDOS CM-30 | C41: Ceará | D41: 1.413192336
A42: 2013-02-01 | B42: ASFALTOS DILUÍDOS CM-30 | C42: Distrito Federal | D42: -
A43: 2013-02-01 | B43: ASFALTOS DILUÍDOS CM-30 | C43: Espírito Santo | D43: -
A44: 2013-02-01 | B44: ASFALTOS DILUÍDOS CM-30 | C44: Goiás | D44: 1.667459711
A45: 2013-02-01 | B45: ASFALTOS DILUÍDOS CM-30 | C45: Maranhão | D45: -
A46: 2013-02-01 | B46: ASFALTOS DILUÍDOS CM-30 | C46: Mato Grosso | D46: -
A47: 2013-02-01 | B47: ASFALTOS DILUÍDOS CM-30 | C47: Mato Grosso do Sul | D47: -
A48: 2013-02-01 | B48: ASFALTOS DILUÍDOS CM-30 | C48: Minas Gerais | D48: 1.452121117
A49: 2013-02-01 | B49: ASFALTOS DILUÍDOS CM-30 | C49: Pará | D49: -
A50: 2013-02-01 | B50: ASFALTOS DILUÍDOS CM-30 | C50: Paraíba | D50: -
A51: 2013-02-01 | B51: ASFALTOS DILUÍDOS CM-30 | C51: Paraná | D51: 1.493783173
A52: 2013-02-01 | B52: ASFALTOS DILUÍDOS CM-30 | C52: Pernambuco | D52: -
A53: 2013-02-01 | B53: ASFALTOS DILUÍDOS CM-30 | C53: Piauí | D53: -
A54: 2013-02-01 | B54: ASFALTOS DILUÍDOS CM-30 | C54: Rio de Janeiro | D54: 1.418234901
A55: 2013-02-01 | B55: ASFALTOS DILUÍDOS CM-30 | C55: Rio Grande do Norte | D55: -
A56: 2013-02-01 | B56: ASFALTOS DILUÍDOS CM-30 | C56: Rio Grande do Sul | D56: 1.435861782
A57: 2013-02-01 | B57: ASFALTOS DILUÍDOS CM-30 | C57: Rondônia | D57: -
A58: 2013-02-01 | B58: ASFALTOS DILUÍDOS CM-30 | C58: Roraima | D58: -
A59: 2013-02-01 | B59: ASFALTOS DILUÍDOS CM-30 | C59: Santa Catarina | D59: -
A60: 2013-02-01 | B60: ASFALTOS DILUÍDOS CM-30 | C60: São Paulo | D60: 1.434190204
A61: 2013-02-01 | B61: ASFALTOS DILUÍDOS CM-30 | C61: Sergipe | D61: -
A62: 2013-02-01 | B62: ASFALTOS DILUÍDOS CM-30 | C62: Tocantins | D62: -
A63: 2013-03-01 | B63: ASFALTOS DILUÍDOS CM-30 | C63: Acre | D63: -
A64: 2013-03-01 | B64: ASFALTOS DILUÍDOS CM-30 | C64: Alagoas | D64: -
A65: 2013-03-01 | B65: ASFALTOS DILUÍDOS CM-30 | C65: Amapá | D65: -
A66: 2013-03-01 | B66: ASFALTOS DILUÍDOS CM-30 | C66: Amazonas | D66: 1.507923921
A67: 2013-03-01 | B67: ASFALTOS DILUÍDOS CM-30 | C67: Bahia | D67: 1.449440325
A68: 2013-03-01 | B68: ASFALTOS DILUÍDOS CM-30 | C68: Ceará | D68: 1.401607485
A69: 2013-03-01 | B69: ASFALTOS DILUÍDOS CM-30 | C69: Distrito Federal | D69: -
A70: 2013-03-01 | B70: ASFALTOS DILUÍDOS CM-30 | C70: Espírito Santo | D70: -
A71: 2013-03-01 | B71: ASFALTOS DILUÍDOS CM-30 | C71: Goiás | D71: 1.661758701
A72: 2013-03-01 | B72: ASFALTOS DILUÍDOS CM-30 | C72: Maranhão | D72: -
A73: 2013-03-01 | B73: ASFALTOS DILUÍDOS CM-30 | C73: Mato Grosso | D73: -
A74: 2013-03-01 | B74: ASFALTOS DILUÍDOS CM-30 | C74: Mato Grosso do Sul | D74: -
A75: 2013-03-01 | B75: ASFALTOS DILUÍDOS CM-30 | C75: Minas Gerais | D75: 1.44324333
A76: 2013-03-01 | B76: ASFALTOS DILUÍDOS CM-30 | C76: Pará | D76: -
A77: 2013-03-01 | B77: ASFALTOS DILUÍDOS CM-30 | C77: Paraíba | D77: -
A78: 2013-03-01 | B78: ASFALTOS DILUÍDOS CM-30 | C78: Paraná | D78: 1.468995996
A79: 2013-03-01 | B79: ASFALTOS DILUÍDOS CM-30 | C79: Pernambuco | D79: -
A80: 2013-03-01 | B80: ASFALTOS DILUÍDOS CM-30 | C80: Piauí | D80: -
A81: 2013-03-01 | B81: ASFALTOS DILUÍDOS CM-30 | C81: Rio de Janeiro | D81: 1.438055574
A82: 2013-03-01 | B82: ASFALTOS DILUÍDOS CM-30 | C82: Rio Grande do Norte | D82: -
A83: 2013-03-01 | B83: ASFALTOS DILUÍDOS CM-30 | C83: Rio Grande do Sul | D83: 1.581425878
A84: 2013-03-01 | B84: ASFALTOS DILUÍDOS CM-30 | C84: Rondônia | D84: -
A85: 2013-03-01 | B85: ASFALTOS DILUÍDOS CM-30 | C85: Roraima | D85: -
A86: 2013-03-01 | B86: ASFALTOS DILUÍDOS CM-30 | C86: Santa Catarina | D86: -
A87: 2013-03-01 | B87: ASFALTOS DILUÍDOS CM-30 | C87: São Paulo | D87: 1.466061702
A88: 2013-03-01 | B88: ASFALTOS DILUÍDOS CM-30 | C88: Sergipe | D88: -
A89: 2013-03-01 | B89: ASFALTOS DILUÍDOS CM-30 | C89: Tocantins | D89: -
A90: 2013-04-01 | B90: ASFALTOS DILUÍDOS CM-30 | C90: Acre | D90: -
A91: 2013-04-01 | B91: ASFALTOS DILUÍDOS CM-30 | C91: Alagoas | D91: -
A92: 2013-04-01 | B92: ASFALTOS DILUÍDOS CM-30 | C92: Amapá | D92: -
A93: 2013-04-01 | B93: ASFALTOS DILUÍDOS CM-30 | C93: Amazonas | D93: 1.484796656
A94: 2013-04-01 | B94: ASFALTOS DILUÍDOS CM-30 | C94: Bahia | D94: 1.454836546
A95: 2013-04-01 | B95: ASFALTOS DILUÍDOS CM-30 | C95: Ceará | D95: 1.387073962
A96: 2013-04-01 | B96: ASFALTOS DILUÍDOS CM-30 | C96: Distrito Federal | D96: -
A97: 2013-04-01 | B97: ASFALTOS DILUÍDOS CM-30 | C97: Espírito Santo | D97: -
A98: 2013-04-01 | B98: ASFALTOS DILUÍDOS CM-30 | C98: Goiás | D98: 1.673481836
A99: 2013-04-01 | B99: ASFALTOS DILUÍDOS CM-30 | C99: Maranhão | D99: -
A100: 2013-04-01 | B100: ASFALTOS DILUÍDOS CM-30 | C100: Mato Grosso | D100: 1.921938422
A101: 2013-04-01 | B101: ASFALTOS DILUÍDOS CM-30 | C101: Mato Grosso do Sul | D101: -
A102: 2013-04-01 | B102: ASFALTOS DILUÍDOS CM-30 | C102: Minas Gerais | D102: 1.456556683
A103: 2013-04-01 | B103: ASFALTOS DILUÍDOS CM-30 | C103: Pará | D103: -
A104: 2013-04-01 | B104: ASFALTOS DILUÍDOS CM-30 | C104: Paraíba | D104: -
A105: 2013-04-01 | B105: ASFALTOS DILUÍDOS CM-30 | C105: Paraná | D105: 1.534419498
A106: 2013-04-01 | B106: ASFALTOS DILUÍDOS CM-30 | C106: Pernambuco | D106: -
A107: 2013-04-01 | B107: ASFALTOS DILUÍDOS CM-30 | C107: Piauí | D107: -
A108: 2013-04-01 | B108: ASFALTOS DILUÍDOS CM-30 | C108: Rio de Janeiro | D108: 1.418419516
A109: 2013-04-01 | B109: ASFALTOS DILUÍDOS CM-30 | C109: Rio Grande do Norte | D109: -
A110: 2013-04-01 | B110: ASFALTOS DILUÍDOS CM-30 | C110: Rio Grande do Sul | D110: 1.572582456
A111: 2013-04-01 | B111: ASFALTOS DILUÍDOS CM-30 | C111: Rondônia | D111: -
A112: 2013-04-01 | B112: ASFALTOS DILUÍDOS CM-30 | C112: Roraima | D112: -
A113: 2013-04-01 | B113: ASFALTOS DILUÍDOS CM-30 | C113: Santa Catarina | D113: -
A114: 2013-04-01 | B114: ASFALTOS DILUÍDOS CM-30 | C114: São Paulo | D114: 1.475764348
A115: 2013-04-01 | B115: ASFALTOS DILUÍDOS CM-30 | C115: Sergipe | D115: -
A116: 2013-04-01 | B116: ASFALTOS DILUÍDOS CM-30 | C116: Tocantins | D116: -
A117: 2013-05-01 | B117: ASFALTOS DILUÍDOS CM-30 | C117: Acre | D117: -
A118: 2013-05-01 | B118: ASFALTOS DILUÍDOS CM-30 | C118: Alagoas | D118: -
A119: 2013-05-01 | B119: ASFALTOS DILUÍDOS CM-30 | C119: Amapá | D119: -
A120: 2013-05-01 | B120: ASFALTOS DILUÍDOS CM-30 | C120: Amazonas | D120: -
A121: 2013-05-01 | B121: ASFALTOS DILUÍDOS CM-30 | C121: Bahia | D121: 1.492587424
A122: 2013-05-01 | B122: ASFALTOS DILUÍDOS CM-30 | C122: Ceará | D122: 1.376263021
A123: 2013-05-01 | B123: ASFALTOS DILUÍDOS CM-30 | C123: Distrito Federal | D123: -
A124: 2013-05-01 | B124: ASFALTOS DILUÍDOS CM-30 | C124: Espírito Santo | D124: -
A125: 2013-05-01 | B125: ASFALTOS DILUÍDOS CM-30 | C125: Goiás | D125: 1.668214819
A126: 2013-05-01 | B126: ASFALTOS DILUÍDOS CM-30 | C126: Maranhão | D126: -
A127: 2013-05-01 | B127: ASFALTOS DILUÍDOS CM-30 | C127: Mato Grosso | D127: 1.903098159
A128: 2013-05-01 | B128: ASFALTOS DILUÍDOS CM-30 | C128: Mato Grosso do Sul | D128: -
A129: 2013-05-01 | B129: ASFALTOS DILUÍDOS CM-30 | C129: Minas Gerais | D129: 1.464709716
A130: 2013-05-01 | B130: ASFALTOS DILUÍDOS CM-30 | C130: Pará | D130: -
A131: 2013-05-01 | B131: ASFALTOS DILUÍDOS CM-30 | C131: Paraíba | D131: -
A132: 2013-05-01 | B132: ASFALTOS DILUÍDOS CM-30 | C132: Paraná | D132: 1.489027849
A133: 2013-05-01 | B133: ASFALTOS DILUÍDOS CM-30 | C133: Pernambuco | D133: -
A134: 2013-05-01 | B134: ASFALTOS DILUÍDOS CM-30 | C134: Piauí | D134: -
A135: 2013-05-01 | B135: ASFALTOS DILUÍDOS CM-30 | C135: Rio de Janeiro | D135: 1.399256048
A136: 2013-05-01 | B136: ASFALTOS DILUÍDOS CM-30 | C136: Rio Grande do Norte | D136: -
A137: 2013-05-01 | B137: ASFALTOS DILUÍDOS CM-30 | C137: Rio Grande do Sul | D137: 1.539636961
A138: 2013-05-01 | B138: ASFALTOS DILUÍDOS CM-30 | C138: Rondônia | D138: -
A139: 2013-05-01 | B139: ASFALTOS DILUÍDOS CM-30 | C139: Roraima | D139: -
A140: 2013-05-01 | B140: ASFALTOS DILUÍDOS CM-30 | C140: Santa Catarina | D140: -
A141: 2013-05-01 | B141: ASFALTOS DILUÍDOS CM-30 | C141: São Paulo | D141: 1.451215936
A142: 2013-05-01 | B142: ASFALTOS DILUÍDOS CM-30 | C142: Sergipe | D142: -
A143: 2013-05-01 | B143: ASFALTOS DILUÍDOS CM-30 | C143: Tocantins | D143: -
A144: 2013-06-01 | B144: ASFALTOS DILUÍDOS CM-30 | C144: Acre | D144: -
A145: 2013-06-01 | B145: ASFALTOS DILUÍDOS CM-30 | C145: Alagoas | D145: -
A146: 2013-06-01 | B146: ASFALTOS DILUÍDOS CM-30 | C146: Amapá | D146: -
A147: 2013-06-01 | B147: ASFALTOS DILUÍDOS CM-30 | C147: Amazonas | D147: 1.586325818
A148: 2013-06-01 | B148: ASFALTOS DILUÍDOS CM-30 | C148: Bahia | D148: 1.44812907
A149: 2013-06-01 | B149: ASFALTOS DILUÍDOS CM-30 | C149: Ceará | D149: 1.382700989
A150: 2013-06-01 | B150: ASFALTOS DILUÍDOS CM-30 | C150: Distrito Federal | D150: -
A151: 2013-06-01 | B151: ASFALTOS DILUÍDOS CM-30 | C151: Espírito Santo | D151: -
A152: 2013-06-01 | B152: ASFALTOS DILUÍDOS CM-30 | C152: Goiás | D152: 1.699613867
A153: 2013-06-01 | B153: ASFALTOS DILUÍDOS CM-30 | C153: Maranhão | D153: -
A154: 2013-06-01 | B154: ASFALTOS DILUÍDOS CM-30 | C154: Mato Grosso | D154: 1.915975658
A155: 2013-06-01 | B155: ASFALTOS DILUÍDOS CM-30 | C155: Mato Grosso do Sul | D155: -
A156: 2013-06-01 | B156: ASFALTOS DILUÍDOS CM-30 | C156: Minas Gerais | D156: 1.475366896
A157: 2013-06-01 | B157: ASFALTOS DILUÍDOS CM-30 | C157: Pará | D157: -
A158: 2013-06-01 | B158: ASFALTOS DILUÍDOS CM-30 | C158: Paraíba | D158: -
A159: 2013-06-01 | B159: ASFALTOS DILUÍDOS CM-30 | C159: Paraná | D159: 1.432166974
A160: 2013-06-01 | B160: ASFALTOS DILUÍDOS CM-30 | C160: Pernambuco | D160: -
A161: 2013-06-01 | B161: ASFALTOS DILUÍDOS CM-30 | C161: Piauí | D161: -
A162: 2013-06-01 | B162: ASFALTOS DILUÍDOS CM-30 | C162: Rio de Janeiro | D162: 1.527420226
A163: 2013-06-01 | B163: ASFALTOS DILUÍDOS CM-30 | C163: Rio Grande do Norte | D163: -
A164: 2013-06-01 | B164: ASFALTOS DILUÍDOS CM-30 | C164: Rio Grande do Sul | D164: 1.59868349
A165: 2013-06-01 | B165: ASFALTOS DILUÍDOS CM-30 | C165: Rondônia | D165: -
A166: 2013-06-01 | B166: ASFALTOS DILUÍDOS CM-30 | C166: Roraima | D166: -
A167: 2013-06-01 | B167: ASFALTOS DILUÍDOS CM-30 | C167: Santa Catarina | D167: -
A168: 2013-06-01 | B168: ASFALTOS DILUÍDOS CM-30 | C168: São Paulo | D168: 1.432748187
A169: 2013-06-01 | B169: ASFALTOS DILUÍDOS CM-30 | C169: Sergipe | D169: -
A170: 2013-06-01 | B170: ASFALTOS DILUÍDOS CM-30 | C170: Tocantins | D170: -
A171: 2013-07-01 | B171: ASFALTOS DILUÍDOS CM-30 | C171: Acre | D171: -
A172: 2013-07-01 | B172: ASFALTOS DILUÍDOS CM-30 | C172: Alagoas | D172: -
A173: 2013-07-01 | B173: ASFALTOS DILUÍDOS CM-30 | C173: Amapá | D173: -
A174: 2013-07-01 | B174: ASFALTOS DILUÍDOS CM-30 | C174: Amazonas | D174: 1.509890931
A175: 2013-07-01 | B175: ASFALTOS DILUÍDOS CM-30 | C175: Bahia | D175: 1.436150016
A176: 2013-07-01 | B176: ASFALTOS DILUÍDOS CM-30 | C176: Ceará | D176: 1.424835845
A177: 2013-07-01 | B177: ASFALTOS DILUÍDOS CM-30 | C177: Distrito Federal | D177: -
A178: 2013-07-01 | B178: ASFALTOS DILUÍDOS CM-30 | C178: Espírito Santo | D178: -
A179: 2013-07-01 | B179: ASFALTOS DILUÍDOS CM-30 | C179: Goiás | D179: 1.663778454
A180: 2013-07-01 | B180: ASFALTOS DILUÍDOS CM-30 | C180: Maranhão | D180: -
A181: 2013-07-01 | B181: ASFALTOS DILUÍDOS CM-30 | C181: Mato Grosso | D181: 1.930589551
A182: 2013-07-01 | B182: ASFALTOS DILUÍDOS CM-30 | C182: Mato Grosso do Sul | D182: -
A183: 2013-07-01 | B183: ASFALTOS DILUÍDOS CM-30 | C183: Minas Gerais | D183: 1.476572352
A184: 2013-07-01 | B184: ASFALTOS DILUÍDOS CM-30 | C184: Pará | D184: -
A185: 2013-07-01 | B185: ASFALTOS DILUÍDOS CM-30 | C185: Paraíba | D185: -
A186: 2013-07-01 | B186: ASFALTOS DILUÍDOS CM-30 | C186: Paraná | D186: 1.477167274
A187: 2013-07-01 | B187: ASFALTOS DILUÍDOS CM-30 | C187: Pernambuco | D187: -
A188: 2013-07-01 | B188: ASFALTOS DILUÍDOS CM-30 | C188: Piauí | D188: -
A189: 2013-07-01 | B189: ASFALTOS DILUÍDOS CM-30 | C189: Rio de Janeiro | D189: 1.584464713
A190: 2013-07-01 | B190: ASFALTOS DILUÍDOS CM-30 | C190: Rio Grande do Norte | D190: -
A191: 2013-07-01 | B191: ASFALTOS DILUÍDOS CM-30 | C191: Rio Grande do Sul | D191: 1.612487925
A192: 2013-07-01 | B192: ASFALTOS DILUÍDOS CM-30 | C192: Rondônia | D192: -
A193: 2013-07-01 | B193: ASFALTOS DILUÍDOS CM-30 | C193: Roraima | D193: -
A194: 2013-07-01 | B194: ASFALTOS DILUÍDOS CM-30 | C194: Santa Catarina | D194: -
A195: 2013-07-01 | B195: ASFALTOS DILUÍDOS CM-30 | C195: São Paulo | D195: 1.507844909
A196: 2013-07-01 | B196: ASFALTOS DILUÍDOS CM-30 | C196: Sergipe | D196: -
A197: 2013-07-01 | B197: ASFALTOS DILUÍDOS CM-30 | C197: Tocantins | D197: -
A198: 2013-08-01 | B198: ASFALTOS DILUÍDOS CM-30 | C198: Acre | D198: -
A199: 2013-08-01 | B199: ASFALTOS DILUÍDOS CM-30 | C199: Alagoas | D199: -
A200: 2013-08-01 | B200: ASFALTOS DILUÍDOS CM-30 | C200: Amapá | D200: -
A201: 2013-08-01 | B201: ASFALTOS DILUÍDOS CM-30 | C201: Amazonas | D201: 1.509275641
A202: 2013-08-01 | B202: ASFALTOS DILUÍDOS CM-30 | C202: Bahia | D202: 1.416699323
A203: 2013-08-01 | B203: ASFALTOS DILUÍDOS CM-30 | C203: Ceará | D203: 1.447403364
... 4297 more rows

Sheet ANP REGIÃO
A1: Agência Nacional do Petróleo, Gás Natural e Biocombustíveis
A2: Superintendência de Defesa da Concorrência
A6: PREÇO MÉDIO MENSAL PONDERADO PRATICADO PELOS DISTRIBUIDORES DE PRODUTOS ASFÁLTICOS (R$/KG)
A8: Produto | B8: Mês | C8: Norte | D8: Nordeste | E8: Centro-Oeste | F8: Sudeste | G8: Sul | H8: Brasil
A9: ASFALTOS DILUÍDOS CM-30 | B9: 2008-11-01 | C9: 1.775468292 | D9: 1.55087853 | E9: 2.022143291 | F9: 1.55449367 | G9: 1.584532899 | H9: 1.64286837
A10: ASFALTOS DILUÍDOS CM-30 | B10: 2008-12-01 | C10: 1.806837667 | D10: 1.509118192 | E10: 2.013020124 | F10: 1.610902223 | G10: 1.607187591 | H10: 1.637581471
A11: ASFALTOS DILUÍDOS CM-30 | B11: 2009-01-01 | C11: 1.497052858 | D11: 1.504296346 | E11: 1.963097671 | F11: 1.524672247 | G11: 1.585137209 | H11: 1.564945876
A12: ASFALTOS DILUÍDOS CM-30 | B12: 2009-02-01 | C12: 1.42787112 | D12: 1.497693283 | E12: 1.981065098 | F12: 1.583490231 | G12: 1.595924062 | H12: 1.565451036
A13: ASFALTOS DILUÍDOS CM-30 | B13: 2009-03-01 | C13: 1.404941405 | D13: 1.497647987 | E13: 1.893430263 | F13: 1.52754782 | G13: 1.588720029 | H13: 1.532713147
A14: ASFALTOS DILUÍDOS CM-30 | B14: 2009-04-01 | C14: 1.410510748 | D14: 1.484826261 | E14: 1.909226429 | F14: 1.464149371 | G14: 1.553831928 | H14: 1.516717648
A15: ASFALTOS DILUÍDOS CM-30 | B15: 2009-05-01 | C15: 1.480355678 | D15: 1.466898928 | E15: 1.891590435 | F15: 1.435443718 | G15: 1.54161118 | H15: 1.537574371
A16: ASFALTOS DILUÍDOS CM-30 | B16: 2009-06-01 | C16: 1.580751039 | D16: 1.444888837 | E16: 1.842074119 | F16: 1.424264315 | G16: 1.501526696 | H16: 1.541315575
A17: ASFALTOS DILUÍDOS CM-30 | B17: 2009-07-01 | C17: 1.905432476 | D17: 1.482618211 | E17: 1.949046345 | F17: 1.584435299 | G17: 1.610310436 | H17: 1.651032523
A18: ASFALTOS DILUÍDOS CM-30 | B18: 2009-08-01 | C18: 1.716995184 | D18: 1.423854915 | E18: 1.712385478 | F18: 1.418000805 | G18: 1.520643497 | H18: 1.504911469
A19: ASFALTOS DILUÍDOS CM-30 | B19: 2009-09-01 | C19: 1.64329494 | D19: 1.445317761 | E19: 1.731518803 | F19: 1.419374251 | G19: 1.500735895 | H19: 1.50552312
A20: ASFALTOS DILUÍDOS CM-30 | B20: 2009-10-01 | C20: 1.588031924 | D20: 1.458932649 | E20: 1.762015056 | F20: 1.429024419 | G20: 1.513753831 | H20: 1.511681904
A21: ASFALTOS DILUÍDOS CM-30 | B21: 2009-11-01 | C21: 1.639348604 | D21: 1.449059777 | E21: 1.772650817 | F21: 1.434122677 | G21: 1.526043188 | H21: 1.499657392
A22: ASFALTOS DILUÍDOS CM-30 | B22: 2009-12-01 | C22: 1.664266853 | D22: 1.441966636 | E22: 1.890574802 | F22: 1.429077727 | G22: 1.520539334 | H22: 1.508864598
A23: ASFALTOS DILUÍDOS CM-30 | B23: 2010-01-01 | C23: 1.842506144 | D23: 1.454977129 | E23: 1.865022447 | F23: 1.414817608 | G23: 1.474450765 | H23: 1.497735227
A24: ASFALTOS DILUÍDOS CM-30 | B24: 2010-02-01 | C24: 1.709886915 | D24: 1.442956487 | E24: 1.919844741 | F24: 1.433146251 | G24: 1.500882448 | H24: 1.496542251
A25: ASFALTOS DILUÍDOS CM-30 | B25: 2010-03-01 | C25: 1.535743416 | D25: 1.448880499 | E25: 1.935062728 | F25: 1.435026116 | G25: 1.480618635 | H25: 1.486789802
A26: ASFALTOS DILUÍDOS CM-30 | B26: 2010-04-01 | C26: 1.710046479 | D26: 1.440300254 | E26: 1.911935961 | F26: 1.421102153 | G26: 1.481270937 | H26: 1.511086431
A27: ASFALTOS DILUÍDOS CM-30 | B27: 2010-05-01 | C27: 1.755610465 | D27: 1.435277221 | E27: 1.873293889 | F27: 1.406944432 | G27: 1.48177605 | H27: 1.537170565
A28: ASFALTOS DILUÍDOS CM-30 | B28: 2010-06-01 | C28: 1.602224314 | D28: 1.396004336 | E28: 1.731734721 | F28: 1.399996227 | G28: 1.49193962 | H28: 1.498073418
A29: ASFALTOS DILUÍDOS CM-30 | B29: 2010-07-01 | C29: 1.559901627 | D29: 1.381016708 | E29: 1.732688214 | F29: 1.402904856 | G29: 1.473854427 | H29: 1.490075269
A30: ASFALTOS DILUÍDOS CM-30 | B30: 2010-08-01 | C30: 1.526639389 | D30: 1.38817836 | E30: 1.738946087 | F30: 1.398751236 | G30: 1.455749849 | H30: 1.495828516
A31: ASFALTOS DILUÍDOS CM-30 | B31: 2010-09-01 | C31: 1.565378829 | D31: 1.408204664 | E31: 1.757027378 | F31: 1.411642875 | G31: 1.487257745 | H31: 1.512257128
A32: ASFALTOS DILUÍDOS CM-30 | B32: 2010-10-01 | C32: 1.481711294 | D32: 1.404357715 | E32: 1.751159947 | F32: 1.403489437 | G32: 1.469340847 | H32: 1.49988826
A33: ASFALTOS DILUÍDOS CM-30 | B33: 2010-11-01 | C33: 1.519267672 | D33: 1.410130904 | E33: 1.779405625 | F33: 1.421283822 | G33: 1.458559112 | H33: 1.481658635
A34: ASFALTOS DILUÍDOS CM-30 | B34: 2010-12-01 | C34: 1.559287556 | D34: 1.40982051 | E34: 1.825185618 | F34: 1.417673572 | G34: 1.473243884 | H34: 1.469113031
A35: ASFALTOS DILUÍDOS CM-30 | B35: 2011-01-01 | C35: 1.525923305 | D35: 1.445794092 | E35: 1.774600924 | F35: 1.403274235 | G35: 1.466002814 | H35: 1.457256066
A36: ASFALTOS DILUÍDOS CM-30 | B36: 2011-02-01 | C36: 1.552825112 | D36: 1.392094259 | E36: 1.763836123 | F36: 1.385194937 | G36: 1.44955884 | H36: 1.426250478
A37: ASFALTOS DILUÍDOS CM-30 | B37: 2011-03-01 | C37: 1.469219693 | D37: 1.369442916 | E37: 1.696017922 | F37: 1.353812804 | G37: 1.435170694 | H37: 1.400130249
A38: ASFALTOS DILUÍDOS CM-30 | B38: 2011-04-01 | C38: 1.470570262 | D38: 1.373220492 | E38: 1.650829394 | F38: 1.345928103 | G38: 1.42199894 | H38: 1.400493522
A39: ASFALTOS DILUÍDOS CM-30 | B39: 2011-05-01 | C39: 1.428528955 | D39: 1.322646267 | E39: 1.700380913 | F39: 1.345068163 | G39: 1.439361431 | H39: 1.428058019
A40: ASFALTOS DILUÍDOS CM-30 | B40: 2011-06-01 | C40: 1.407622163 | D40: 1.305708657 | E40: 1.741843669 | F40: 1.354620495 | G40: 1.399501693 | H40: 1.44029982
A41: ASFALTOS DILUÍDOS CM-30 | B41: 2011-07-01 | C41: 1.259234065 | D41: 1.312033305 | E41: 1.737489696 | F41: 1.33656388 | G41: 1.422474887 | H41: 1.420839252
A42: ASFALTOS DILUÍDOS CM-30 | B42: 2011-08-01 | C42: 1.470680061 | D42: 1.299778765 | E42: 1.727443485 | F42: 1.341477821 | G42: 1.353018352 | H42: 1.425675534
A43: ASFALTOS DILUÍDOS CM-30 | B43: 2011-09-01 | C43: 1.56132872 | D43: 1.321196084 | E43: 1.729821548 | F43: 1.357451483 | G43: 1.395684798 | H43: 1.455202413
A44: ASFALTOS DILUÍDOS CM-30 | B44: 2011-10-01 | C44: 1.520569722 | D44: 1.326218736 | E44: 1.71738046 | F44: 1.332691392 | G44: 1.3577774 | H44: 1.442295871
A45: ASFALTOS DILUÍDOS CM-30 | B45: 2011-11-01 | C45: 1.465886334 | D45: 1.337041154 | E45: 1.741004886 | F45: 1.345486103 | G45: 1.447580565 | H45: 1.445354137
A46: ASFALTOS DILUÍDOS CM-30 | B46: 2011-12-01 | C46: 1.470883899 | D46: 1.335587636 | E46: 1.778724141 | F46: 1.408293068 | G46: 1.428112306 | H46: 1.422418604
A47: ASFALTOS DILUÍDOS CM-30 | B47: 2012-01-01 | C47: 1.384955015 | D47: 1.350130156 | E47: 1.780783883 | F47: 1.421354107 | G47: 1.430352474 | H47: 1.394658167
A48: ASFALTOS DILUÍDOS CM-30 | B48: 2012-02-01 | C48: 1.332181678 | D48: 1.368143891 | E48: 1.741020394 | F48: 1.400200985 | G48: 1.425400986 | H48: 1.410605707
A49: ASFALTOS DILUÍDOS CM-30 | B49: 2012-03-01 | C49: 1.411621867 | D49: 1.349122214 | E49: 1.620096006 | F49: 1.393295764 | G49: 1.406130569 | H49: 1.409768786
A50: ASFALTOS DILUÍDOS CM-30 | B50: 2012-04-01 | C50: 1.549007912 | D50: 1.383976456 | E50: 1.640712752 | F50: 1.404716397 | G50: 1.440617793 | H50: 1.45608482
A51: ASFALTOS DILUÍDOS CM-30 | B51: 2012-05-01 | C51: 1.596178941 | D51: 1.386362272 | E51: 1.712061183 | F51: 1.39923955 | G51: 1.448350887 | H51: 1.498461969
A52: ASFALTOS DILUÍDOS CM-30 | B52: 2012-06-01 | C52: 1.701432576 | D52: 1.388053518 | E52: 1.740352007 | F52: 1.422118749 | G52: 1.449196072 | H52: 1.527722717
A53: ASFALTOS DILUÍDOS CM-30 | B53: 2012-07-01 | C53: 1.652026742 | D53: 1.39436857 | E53: 1.718644846 | F53: 1.439670261 | G53: 1.46187567 | H53: 1.523069159
A54: ASFALTOS DILUÍDOS CM-30 | B54: 2012-08-01 | C54: 1.689998835 | D54: 1.40333785 | E54: 1.741895041 | F54: 1.421723369 | G54: 1.445685799 | H54: 1.536533078
A55: ASFALTOS DILUÍDOS CM-30 | B55: 2012-09-01 | C55: 1.690177972 | D55: 1.421500003 | E55: 1.780920724 | F55: 1.445180432 | G55: 1.483645866 | H55: 1.549410653
A56: ASFALTOS DILUÍDOS CM-30 | B56: 2012-10-01 | C56: 1.574840342 | D56: 1.417066109 | E56: 1.794832036 | F56: 1.451304526 | G56: 1.482037109 | H56: 1.550631802
A57: ASFALTOS DILUÍDOS CM-30 | B57: 2012-11-01 | C57: 1.655163526 | D57: 1.455878748 | E57: 1.840129766 | F57: 1.461204615 | G57: 1.483499722 | H57: 1.552500776
A58: ASFALTOS DILUÍDOS CM-30 | B58: 2012-12-01 | C58: 1.714876125 | D58: 1.435854741 | E58: 1.804066573 | F58: 1.45222765 | G58: 1.509417648 | H58: 1.523411999
A59: ASFALTOS DILUÍDOS CM-30 | B59: 2013-01-01 | C59: 1.495776335 | D59: 1.449494588 | E59: 1.854050525 | F59: 1.44638752 | G59: 1.563753675 | H59: 1.502137259
A60: ASFALTOS DILUÍDOS CM-30 | B60: 2013-02-01 | C60: 1.635067666 | D60: 1.420609638 | E60: 1.731071498 | F60: 1.442746356 | G60: 1.461828405 | H60: 1.4739561
A61: ASFALTOS DILUÍDOS CM-30 | B61: 2013-03-01 | C61: 1.646229098 | D61: 1.413299983 | E61: 1.83828087 | F61: 1.450015152 | G61: 1.525760413 | H61: 1.506542904
A62: ASFALTOS DILUÍDOS CM-30 | B62: 2013-04-01 | C62: 1.581864474 | D62: 1.399189564 | E62: 1.793825113 | F62: 1.458704755 | G62: 1.551913702 | H62: 1.523623636
A63: ASFALTOS DILUÍDOS CM-30 | B63: 2013-05-01 | C63: 1.815646773 | D63: 1.390143517 | E63: 1.812783313 | F63: 1.44951052 | G63: 1.504233457 | H63: 1.549918592
A64: ASFALTOS DILUÍDOS CM-30 | B64: 2013-06-01 | C64: 1.631101583 | D64: 1.383186536 | E64: 1.816642105 | F64: 1.474232641 | G64: 1.503043689 | H64: 1.581049429
A65: ASFALTOS DILUÍDOS CM-30 | B65: 2013-07-01 | C65: 1.86596563 | D65: 1.422051117 | E65: 1.793072753 | F65: 1.498018808 | G65: 1.533391901 | H65: 1.59880513
A66: ASFALTOS DILUÍDOS CM-30 | B66: 2013-08-01 | C66: 1.700325546 | D66: 1.435094415 | E66: 1.821452614 | F66: 1.511722868 | G66: 1.530793596 | H66: 1.606176585
A67: ASFALTOS DILUÍDOS CM-30 | B67: 2013-09-01 | C67: 1.562873733 | D67: 1.472197748 | E67: 1.879842712 | F67: 1.542652867 | G67: 1.490667543 | H67: 1.627945893
A68: ASFALTOS DILUÍDOS CM-30 | B68: 2013-10-01 | C68: 1.648504013 | D68: 1.472152345 | E68: 1.825494997 | F68: 1.501177682 | G68: 1.48378912 | H68: 1.597538775
A69: ASFALTOS DILUÍDOS CM-30 | B69: 2013-11-01 | C69: 1.619179062 | D69: 1.486413317 | E69: 1.844012679 | F69: 1.496326809 | G69: 1.506096878 | H69: 1.581665844
A70: ASFALTOS DILUÍDOS CM-30 | B70: 2013-12-01 | C70: 1.633358293 | D70: 1.494818097 | E70: 1.897197176 | F70: 1.502864538 | G70: 1.517074296 | H70: 1.572475244
A71: ASFALTOS DILUÍDOS CM-30 | B71: 2014-01-01 | C71: 1.688311265 | D71: 1.494181305 | E71: 1.798355903 | F71: 1.484202293 | G71: 1.533353813 | H71: 1.542909737
A72: ASFALTOS DILUÍDOS CM-30 | B72: 2014-02-01 | C72: 1.598304434 | D72: 1.479706587 | E72: 1.814390215 | F72: 1.514829392 | G72: 1.522800588 | H72: 1.528970287
A73: ASFALTOS DILUÍDOS CM-30 | B73: 2014-03-01 | C73: 1.648287687 | D73: 1.472852501 | E73: 1.76657319 | F73: 1.513020673 | G73: 1.506185248 | H73: 1.530181178
A74: ASFALTOS DILUÍDOS CM-30 | B74: 2014-04-01 | C74: 1.534459987 | D74: 1.493898767 | E74: 1.757271278 | F74: 1.533021309 | G74: 1.524275274 | H74: 1.550566305
A75: ASFALTOS DILUÍDOS CM-30 | B75: 2014-05-01 | C75: 1.58658327 | D75: 1.490834685 | E75: 1.804339251 | F75: 1.501138131 | G75: 1.567043824 | H75: 1.586452272
A76: ASFALTOS DILUÍDOS CM-30 | B76: 2014-06-01 | C76: 1.658277164 | D76: 1.505801121 | E76: 1.839593445 | F76: 1.5068632 | G76: 1.523776953 | H76: 1.636070702
A77: ASFALTOS DILUÍDOS CM-30 | B77: 2014-07-01 | C77: 1.890299542 | D77: 1.500730514 | E77: 1.708277865 | F77: 1.487293964 | G77: 1.505956069 | H77: 1.587065158
A78: ASFALTOS DILUÍDOS CM-30 | B78: 2014-08-01 | C78: 1.632741832 | D78: 1.501945324 | E78: 1.671203189 | F78: 1.482359341 | G78: 1.506327366 | H78: 1.557910377
A79: ASFALTOS DILUÍDOS CM-30 | B79: 2014-09-01 | C79: 1.66956717 | D79: 1.546830427 | E79: 1.864797016 | F79: 1.496764585 | G79: 1.570533242 | H79: 1.639281057
A80: ASFALTOS DILUÍDOS CM-30 | B80: 2014-10-01 | C80: 1.742876916 | D80: 1.508978569 | E80: 1.746650466 | F80: 1.470773645 | G80: 1.454273462 | H80: 1.57912022
A81: ASFALTOS DILUÍDOS CM-30 | B81: 2014-11-01 | C81: 1.864723419 | D81: 1.57943059 | E81: 1.749156218 | F81: 1.465084479 | G81: 1.529147988 | H81: 1.601359821
A82: ASFALTOS DILUÍDOS CM-30 | B82: 2014-12-01 | C82: 1.812671914 | D82: 1.704844348 | E82: 1.963310066 | F82: 1.623676702 | G82: 1.649644659 | H82: 1.718826981
A83: ASFALTOS DILUÍDOS CM-30 | B83: 2015-01-01 | C83: 2.154807062 | D83: 2.023760447 | E83: 2.318863736 | F83: 1.866588967 | G83: 1.898380434 | H83: 2.007792032
A84: ASFALTOS DILUÍDOS CM-30 | B84: 2015-02-01 | C84: 2.260238625 | D84: 2.005673765 | E84: 2.393875762 | F84: 1.854519766 | G84: 1.927395107 | H84: 2.007653781
A85: ASFALTOS DILUÍDOS CM-30 | B85: 2015-03-01 | C85: 2.124176462 | D85: 1.968822849 | E85: 2.279643254 | F85: 1.887760911 | G85: 1.930217145 | H85: 1.984816916
A86: ASFALTOS DILUÍDOS CM-30 | B86: 2015-04-01 | C86: 2.030049505 | D86: 2.001506448 | E86: 2.379118903 | F86: 1.85245167 | G86: 1.949025254 | H86: 1.98064321
A87: ASFALTOS DILUÍDOS CM-30 | B87: 2015-05-01 | C87: 2.507271651 | D87: 1.946869908 | E87: 2.254758192 | F87: 1.807470001 | G87: 2.016929536 | H87: 2.005474234
A88: ASFALTOS DILUÍDOS CM-30 | B88: 2015-06-01 | C88: 2.248320042 | D88: 1.944259736 | E88: 2.314331796 | F88: 1.846998595 | G88: 1.968565125 | H88: 2.042581344
A89: ASFALTOS DILUÍDOS CM-30 | B89: 2015-07-01 | C89: 1.992222758 | D89: 1.992791635 | E89: 2.046769953 | F89: 1.782648603 | G89: 1.931671385 | H89: 1.942627362
A90: ASFALTOS DILUÍDOS CM-30 | B90: 2015-08-01 | C90: 2.307605931 | D90: 2.038089127 | E90: 2.252748105 | F90: 1.828097705 | G90: 1.939824481 | H90: 2.08193616
A91: ASFALTOS DILUÍDOS CM-30 | B91: 2015-09-01 | C91: 2.314289704 | D91: 2.095307531 | E91: 2.344561987 | F91: 1.942551091 | G91: 2.005352614 | H91: 2.168175541
A92: ASFALTOS DILUÍDOS CM-30 | B92: 2015-10-01 | C92: 2.329456663 | D92: 2.170570012 | E92: 2.43273012 | F92: 2.035624751 | G92: 2.110261148 | H92: 2.237533782
A93: ASFALTOS DILUÍDOS CM-30 | B93: 2015-11-01 | C93: 2.606056566 | D93: 2.437098304 | E93: 2.711612141 | F93: 2.280113896 | G93: 2.326446297 | H93: 2.474998781
A94: ASFALTOS DILUÍDOS CM-30 | B94: 2015-12-01 | C94: 2.635374006 | D94: 2.395920309 | E94: 2.693528386 | F94: 2.272528129 | G94: 2.330740659 | H94: 2.452848156
A95: ASFALTOS DILUÍDOS CM-30 | B95: 2016-01-01 | C95: 2.715863993 | D95: 2.373861647 | E95: 2.844670602 | F95: 2.263650658 | G95: 2.232631691 | H95: 2.400563394
A96: ASFALTOS DILUÍDOS CM-30 | B96: 2016-02-01 | C96: 2.80468316 | D96: 2.466846816 | E96: 2.791787007 | F96: 2.295637115 | G96: 2.346556173 | H96: 2.464348548
A97: ASFALTOS DILUÍDOS CM-30 | B97: 2016-03-01 | C97: 2.5805021 | D97: 2.470678753 | E97: 2.707688025 | F97: 2.235301999 | G97: 2.383115972 | H97: 2.423563924
A98: ASFALTOS DILUÍDOS CM-30 | B98: 2016-04-01 | C98: 2.942006312 | D98: 2.740742032 | E98: 2.759071855 | F98: 2.544439178 | G98: 2.710751632 | H98: 2.680274833
A99: ASFALTOS DILUÍDOS CM-30 | B99: 2016-05-01 | C99: 3.010579472 | D99: 2.650277047 | E99: 2.857121361 | F99: 2.575583152 | G99: 2.770413362 | H99: 2.70973327
A100: ASFALTOS DILUÍDOS CM-30 | B100: 2016-06-01 | C100: 2.909179844 | D100: 2.621385041 | E100: 2.943487281 | F100: 2.659109515 | G100: 2.684759555 | H100: 2.743619517
A101: ASFALTOS DILUÍDOS CM-30 | B101: 2016-07-01 | C101: 2.985740381 | D101: 2.591644045 | E101: 2.98927803 | F101: 2.604396599 | G101: 2.660884423 | H101: 2.745135539
A102: ASFALTOS DILUÍDOS CM-30 | B102: 2016-08-01 | C102: 2.935243919 | D102: 2.623917329 | E102: 2.970490854 | F102: 2.679486504 | G102: 2.727025649 | H102: 2.781385962
A103: ASFALTOS DILUÍDOS CM-30 | B103: 2016-09-01 | C103: 2.649136821 | D103: 2.521054851 | E103: 2.781583925 | F103: 2.51393313 | G103: 2.371271501 | H103: 2.595617128
A104: ASFALTOS DILUÍDOS CM-30 | B104: 2016-10-01 | C104: 2.626109257 | D104: 2.444469093 | E104: 2.781617873 | F104: 2.507383127 | G104: 2.38325399 | H104: 2.566999037
A105: ASFALTOS DILUÍDOS CM-30 | B105: 2016-11-01 | C105: 2.535087408 | D105: 2.374145527 | E105: 2.952768674 | F105: 2.481263765 | G105: 2.382206771 | H105: 2.542842366
A106: ASFALTOS DILUÍDOS CM-30 | B106: 2016-12-01 | C106: 2.50039107 | D106: 2.253413483 | E106: 3.038519458 | F106: 2.589438892 | G106: 2.395593424 | H106: 2.476439295
A107: ASFALTOS DILUÍDOS CM-30 | B107: 2017-01-01 | C107: 2.392875504 | D107: 2.232695674 | E107: 3.089080971 | F107: 2.535744039 | G107: 2.378694833 | H107: 2.374216192
A108: ASFALTOS DILUÍDOS CM-30 | B108: 2017-02-01 | C108: 2.68039414 | D108: 2.271897225 | E108: 2.764408032 | F108: 2.573933685 | G108: 2.384644398 | H108: 2.470721466
A109: ASFALTOS DILUÍDOS CM-30 | B109: 2017-03-01 | C109: 2.23884121 | D109: 2.386958079 | E109: 2.667220252 | F109: 2.372165947 | G109: 2.30121887 | H109: 2.378796986
A110: ASFALTOS DILUÍDOS CM-30 | B110: 2017-04-01 | C110: 2.420191398 | D110: 2.307969596 | E110: 2.794093014 | F110: 2.258409912 | G110: 2.256434297 | H110: 2.380268484
A111: ASFALTOS DILUÍDOS CM-30 | B111: 2017-05-01 | C111: 2.432106692 | D111: 2.167919128 | E111: 2.699836936 | F111: 2.255387192 | G111: 2.204026958 | H111: 2.361515909
A112: ASFALTOS DILUÍDOS CM-30 | B112: 2017-06-01 | C112: 2.428301776 | D112: 2.181938689 | E112: 2.756672055 | F112: 2.234549022 | G112: 2.305778546 | H112: 2.44553453
A113: ASFALTOS DILUÍDOS CM-30 | B113: 2017-07-01 | C113: 2.453752061 | D113: 2.218075334 | E113: 2.694625022 | F113: 2.414329247 | G113: 2.269601102 | H113: 2.473436106
A114: ASFALTOS DILUÍDOS CM-30 | B114: 2017-08-01 | C114: 2.447930976 | D114: 2.153112031 | E114: 2.595349952 | F114: 2.302919065 | G114: 2.170148667 | H114: 2.380876423
A115: ASFALTOS DILUÍDOS CM-30 | B115: 2017-09-01 | C115: 2.494551504 | D115: 2.14243989 | E115: 2.623166503 | F115: 2.371308095 | G115: 2.303698507 | H115: 2.393542204
A116: ASFALTOS DILUÍDOS CM-30 | B116: 2017-10-01 | C116: 2.349953944 | D116: 2.18056004 | E116: 2.614160957 | F116: 2.415254962 | G116: 2.20079573 | H116: 2.367947121
A117: ASFALTOS DILUÍDOS CM-30 | B117: 2017-11-01 | C117: 2.670126991 | D117: 2.433169195 | E117: 2.908627464 | F117: 2.58469482 | G117: 2.415192709 | H117: 2.602101348
A118: ASFALTOS DILUÍDOS CM-30 | B118: 2017-12-01 | C118: 2.587352645 | D118: 2.425358882 | E118: 2.906633765 | F118: 2.602890298 | G118: 2.42288976 | H118: 2.531764464
A119: ASFALTOS DILUÍDOS CM-30 | B119: 2018-01-01 | C119: 2.950360755 | D119: 2.662862923 | E119: 2.875953993 | F119: 2.620738484 | G119: 2.646955252 | H119: 2.735956369
A120: ASFALTOS DILUÍDOS CM-30 | B120: 2018-02-01 | C120: 2.677899567 | D120: 2.672498164 | E120: 2.942595474 | F120: 2.62043113 | G120: 2.567885662 | H120: 2.668369933
A121: ASFALTOS DILUÍDOS CM-30 | B121: 2018-03-01 | C121: 2.733363025 | D121: 2.589050022 | E121: 2.809172556 | F121: 2.561928393 | G121: 2.575946067 | H121: 2.634876584
A122: ASFALTOS DILUÍDOS CM-30 | B122: 2018-04-01 | C122: 2.75780112 | D122: 2.669553602 | E122: 2.773908242 | F122: 2.59547006 | G122: 2.556042394 | H122: 2.6643302
A123: ASFALTOS DILUÍDOS CM-30 | B123: 2018-05-01 | C123: 2.841213362 | D123: 2.672025877 | E123: 2.884501482 | F123: 2.686718021 | G123: 2.736485103 | H123: 2.77737896
A124: ASFALTOS DILUÍDOS CM-30 | B124: 2018-06-01 | C124: 3.008444789 | D124: 2.919605178 | E124: 3.158454886 | F124: 2.84673108 | G124: 2.953523993 | H124: 2.982291635
A125: ASFALTOS DILUÍDOS CM-30 | B125: 2018-07-01 | C125: 3.268237549 | D125: 3.036524094 | E125: 3.399360399 | F125: 3.026467598 | G125: 3.19779631 | H125: 3.164126546
A126: ASFALTOS DILUÍDOS CM-30 | B126: 2018-08-01 | C126: 3.56441315 | D126: 3.415193769 | E126: 3.707706206 | F126: 3.425079349 | G126: 3.356722461 | H126: 3.515558112
A127: ASFALTOS DILUÍDOS CM-30 | B127: 2018-09-01 | C127: 3.173913778 | D127: 3.445064118 | E127: 3.73526324 | F127: 3.385816186 | G127: 3.607309454 | H127: 3.483238429
A128: ASFALTOS DILUÍDOS CM-30 | B128: 2018-10-01 | C128: 3.487778119 | D128: 3.460508804 | E128: 3.721444057 | F128: 3.432525565 | G128: 3.60602088 | H128: 3.545390344
A129: ASFALTOS DILUÍDOS CM-30 | B129: 2018-11-01 | C129: 4.047272484 | D129: 3.814893312 | E129: 4.280131586 | F129: 4.178126777 | G129: 3.967681367 | H129: 3.990147183
A130: ASFALTOS DILUÍDOS CM-30 | B130: 2018-12-01 | C130: 3.951491146 | D130: 3.967113195 | E130: 4.341144202 | F130: 3.916766066 | G130: 3.911993357 | H130: 3.999742654
A131: ASFALTOS DILUÍDOS CM-30 | B131: 2019-01-01 | C131: 3.796855325 | D131: 3.870018889 | E131: 4.201901762 | F131: 3.954196997 | G131: 3.976786028 | H131: 3.933951911
A132: ASFALTOS DILUÍDOS CM-30 | B132: 2019-02-01 | C132: 3.516584073 | D132: 4.090361178 | E132: 4.498422953 | F132: 4.469942475 | G132: 4.254590254 | H132: 4.188544679
A133: ASFALTOS DILUÍDOS CM-30 | B133: 2019-03-01 | C133: 4.216758117 | D133: 4.361910728 | E133: 4.907194889 | F133: 4.398717729 | G133: 4.290823922 | H133: 4.360295279
A134: ASFALTOS DILUÍDOS CM-30 | B134: 2019-04-01 | C134: 4.281648205 | D134: 4.234661428 | E134: 4.531627215 | F134: 4.43722653 | G134: 4.466881471 | H134: 4.38082044
A135: ASFALTOS DILUÍDOS CM-30 | B135: 2019-05-01 | C135: 4.287644659 | D135: 4.190699738 | E135: 4.857910872 | F135: 4.267461963 | G135: 4.633806379 | H135: 4.366402151
A136: ASFALTOS DILUÍDOS CM-30 | B136: 2019-06-01 | C136: 4.475609892 | D136: 3.965052934 | E136: 4.66272934 | F136: 4.350600604 | G136: 4.211229921 | H136: 4.319323669
A137: ASFALTOS DILUÍDOS CM-30 | B137: 2019-07-01 | C137: 4.394498989 | D137: 4.058039305 | E137: 4.834221945 | F137: 4.094659414 | G137: 4.233003281 | H137: 4.346977757
A138: ASFALTOS DILUÍDOS CM-30 | B138: 2019-08-01 | C138: 4.48173504 | D138: 3.910662496 | E138: 4.576329081 | F138: 4.11161654 | G138: 4.255419985 | H138: 4.258345083
A139: ASFALTOS DILUÍDOS CM-30 | B139: 2019-09-01 | C139: 4.439578796 | D139: 3.859904896 | E139: 4.495256968 | F139: 4.111321475 | G139: 4.117359152 | H139: 4.251607085
A140: ASFALTOS DILUÍDOS CM-30 | B140: 2019-10-01 | C140: 4.335888631 | D140: 3.772324962 | E140: 4.459242357 | F140: 4.056084115 | G140: 3.942458011 | H140: 4.07740702
A141: ASFALTOS DILUÍDOS CM-30 | B141: 2019-11-01 | C141: 4.316238692 | D141: 3.910245509 | E141: 4.581841077 | F141: 4.07902404 | G141: 4.106621274 | H141: 4.094561212
A142: ASFALTOS DILUÍDOS CM-30 | B142: 2019-12-01 | C142: 4.199435972 | D142: 3.980119663 | E142: 4.673774805 | F142: 4.434268142 | G142: 3.986410312 | H142: 4.164691616
A143: ASFALTOS DILUÍDOS CM-30 | B143: 2020-01-01 | C143: 3.59298003 | D143: 3.895320617 | E143: 4.685420623 | F143: 4.387074674 | G143: 4.124467668 | H143: 4.053338937
A144: ASFALTOS DILUÍDOS CM-30 | B144: 2020-02-01 | C144: 3.642667016 | D144: 3.877395187 | E144: 4.438194543 | F144: 3.699944607 | G144: 3.778164011 | H144: 3.839010438
A145: ASFALTOS DILUÍDOS CM-30 | B145: 2020-03-01 | C145: 4.676668339 | D145: 3.791138977 | E145: 4.289222343 | F145: 3.718402734 | G145: 3.60908619 | H145: 3.93117068
A146: ASFALTOS DILUÍDOS CM-30 | B146: 2020-04-01 | C146: 4.313362837 | D146: 3.6957655 | E146: 4.255395321 | F146: 3.865895531 | G146: 3.732253382 | H146: 3.964125211
A147: ASFALTOS DILUÍDOS CM-30 | B147: 2020-05-01 | C147: 3.249134658 | D147: 3.637769912 | E147: 4.113544882 | F147: 3.760550026 | G147: 3.710618099 | H147: 3.65617504
A148: ASFALTOS DILUÍDOS CM-30 | B148: 2020-06-01 | C148: 4.017903076 | D148: 3.567031492 | E148: 4.277369171 | F148: 3.937886485 | G148: 3.625830069 | H148: 3.924524506
A149: ASFALTOS DILUÍDOS CM-30 | B149: 2020-07-01 | C149: 3.840497509 | D149: 3.51327048 | E149: 4.21549069 | F149: 3.954223886 | G149: 3.688841275 | H149: 3.843774448
A150: ASFALTOS DILUÍDOS CM-30 | B150: 2020-08-01 | C150: 4.174467203 | D150: 3.465394219 | E150: 4.277710211 | F150: 4.06746494 | G150: 3.62858863 | H150: 3.947166917
A151: ASFALTOS DILUÍDOS CM-30 | B151: 2020-09-01 | C151: 4.167371331 | D151: 3.746360816 | E151: 4.167424356 | F151: 3.795621791 | G151: 3.627729935 | H151: 3.973129945
A152: ASFALTOS DILUÍDOS CM-30 | B152: 2020-10-01 | C152: 4.408099527 | D152: 3.718989878 | E152: 4.278979192 | F152: 4.008746906 | G152: 3.591048183 | H152: 4.03964377
A153: ASFALTOS DILUÍDOS CM-30 | B153: 2020-11-01 | C153: 4.056306006 | D153: 3.969209281 | E153: 4.547900893 | F153: 4.27945542 | G153: 3.973347244 | H153: 4.175826149
A154: ASFALTOS DILUÍDOS CM-30 | B154: 2020-12-01 | C154: 4.132064138 | D154: 3.851632751 | E154: 4.426704386 | F154: 3.906236422 | G154: 3.8709398 | H154: 4.035347374
A155: ASFALTOS DILUÍDOS CM-30 | B155: 2021-01-01 | C155: 3.489836333 | D155: 3.951525937 | E155: 4.628269702 | F155: 4.011577011 | G155: 3.935136638 | H155: 3.917092391
A156: ASFALTOS DILUÍDOS CM-30 | B156: 2021-02-01 | C156: 4.099318116 | D156: 4.267109523 | E156: 4.832061615 | F156: 4.414202706 | G156: 4.149048932 | H156: 4.26819704
A157: ASFALTOS DILUÍDOS CM-30 | B157: 2021-03-01 | C157: 4.528355792 | D157: 4.239831731 | E157: 4.926314562 | F157: 4.269697839 | G157: 4.130655409 | H157: 4.377833785
A158: ASFALTOS DILUÍDOS CM-30 | B158: 2021-04-01 | C158: 4.349271867 | D158: 4.086995154 | E158: 4.477597522 | F158: 4.156113398 | G158: 4.044189822 | H158: 4.253361798
A159: ASFALTOS DILUÍDOS CM-30 | B159: 2021-05-01 | C159: 4.488889413 | D159: 4.707945815 | E159: 5.101489686 | F159: 4.784034896 | G159: 4.523986615 | H159: 4.790548085
A160: ASFALTOS DILUÍDOS CM-30 | B160: 2021-06-01 | C160: 4.010467711 | D160: 4.479592126 | E160: 5.113041212 | F160: 4.779739905 | G160: 4.721214307 | H160: 4.764890884
A161: ASFALTOS DILUÍDOS CM-30 | B161: 2021-07-01 | C161: 4.752234128 | D161: 4.559350506 | E161: 5.004758283 | F161: 4.80272972 | G161: 4.748550678 | H161: 4.817586047
A162: ASFALTOS DILUÍDOS CM-30 | B162: 2021-08-01 | C162: 5.085284532 | D162: 4.772501255 | E162: 5.198537142 | F162: 5.244735259 | G162: 4.76131175 | H162: 5.0981692
A163: ASFALTOS DILUÍDOS CM-30 | B163: 2021-09-01 | C163: 5.110300267 | D163: 4.538072365 | E163: 5.241721185 | F163: 5.017144197 | G163: 4.862861245 | H163: 5.016958886
A164: ASFALTOS DILUÍDOS CM-30 | B164: 2021-10-01 | C164: 5.080697261 | D164: 4.66826742 | E164: 5.119544199 | F164: 5.384779065 | G164: 4.658516432 | H164: 5.021294312
A165: ASFALTOS DILUÍDOS CM-30 | B165: 2021-11-01 | C165: 5.436518753 | D165: 5.08776781 | E165: 5.150063985 | F165: 5.634257884 | G165: 5.174530131 | H165: 5.228141289
A166: ASFALTOS DILUÍDOS CM-30 | B166: 2021-12-01 | C166: 5.184291386 | D166: 4.975486975 | E166: 5.572122251 | F166: 6.135655205 | G166: 5.01180992 | H166: 5.339565801
A167: ASFALTOS DILUÍDOS CM-30 | B167: 2022-01-01 | C167: 4.928191974 | D167: 5.023555623 | E167: 6.018407512 | F167: 5.214773026 | G167: 5.481979244 | H167: 5.250789679
A168: ASFALTOS DILUÍDOS CM-30 | B168: 2022-02-01 | C168: 5.545684189 | D168: 5.708628413 | E168: 6.011065894 | F168: 4.8651 | G168: 5.763367147 | H168: 5.736057428
A169: ASFALTOS DILUÍDOS CM-30 | B169: 2022-03-01 | C169: 6.326844735 | D169: 5.644687904 | E169: 5.930807225 | F169: 6.181141143 | G169: 5.498041682 | H169: 5.922781038
A170: ASFALTOS DILUÍDOS CM-30 | B170: 2022-04-01 | C170: 5.974220681 | D170: 5.832747324 | E170: 6.206692615 | F170: 5.720329997 | G170: 6.17800291 | H170: 6.012354229
A171: ASFALTOS DILUÍDOS CM-30 | B171: 2022-05-01 | C171: 5.354015586 | D171: 5.464335309 | E171: 6.007611639 | F171: 5.995095583 | G171: 5.49095009 | H171: 5.670722744
A172: ASFALTOS DILUÍDOS CM-30 | B172: 2022-06-01 | C172: 5.802443798 | D172: 5.316964203 | E172: 5.25267889 | F172: 5.813931518 | G172: 5.644996328 | H172: 5.469498687
A173: ASFALTOS DILUÍDOS CM-30 | B173: 2022-07-01 | C173: 5.965614765 | D173: 5.829314879 | E173: 5.919099711 | F173: 5.742484775 | G173: 5.674430543 | H173: 5.862020702
A174: ASFALTOS DILUÍDOS CM-30 | B174: 2022-08-01 | C174: 6.424230463 | D174: 5.758256878 | E174: 5.752352843 | F174: 5.791905352 | G174: 5.31271724 | H174: 5.823186051
A175: ASFALTOS DILUÍDOS CM-30 | B175: 2022-09-01 | C175: 5.540097074 | D175: 5.609921619 | E175: 5.963592489 | F175: 5.302181194 | G175: 4.977929161 | H175: 5.699429921
A176: ASFALTOS DILUÍDOS CM-30 | B176: 2022-10-01 | C176: 4.785670999 | D176: 4.727521094 | E176: 5.339105147 | F176: 4.851160007 | G176: 4.532580513 | H176: 5.041661715
A177: ASFALTOS DILUÍDOS CM-30 | B177: 2022-11-01 | C177: 7.765855923 | D177: 4.775654982 | E177: 5.237626127 | F177: 4.636383138 | G177: 4.460593179 | H177: 5.074993862
A178: ASFALTOS DILUÍDOS CM-30 | B178: 2022-12-01 | C178: 4.65725 | D178: 4.966905362 | E178: 5.655161554 | F178: 4.840935672 | G178: 4.661007861 | H178: 5.11324949
A179: ASFALTOS DILUÍDOS CM-30 | B179: 2023-01-01 | C179: 4.948950319 | D179: 5.056264922 | E179: 5.359597966 | F179: 4.426497959 | G179: 4.103267888 | H179: 4.715605129
A180: ASFALTOS DILUÍDOS CM-30 | B180: 2023-02-01 | C180: 5.407494667 | D180: 4.335771195 | E180: 4.746646601 | F180: 4.674884727 | G180: 4.014547173 | H180: 4.417800736
A181: ASFALTOS DILUÍDOS CM-30 | B181: 2023-03-01 | C181: 4.99131 | D181: 4.01354912 | E181: 4.74625028 | F181: 4.08071937 | G181: 4.082484954 | H181: 4.270345723
A182: ASFALTOS DILUÍDOS CM-30 | B182: 2023-04-01 | C182: 4.438479015 | D182: 4.094201354 | E182: 5.135816186 | F182: 4.368265095 | G182: 3.859308149 | H182: 4.153818797
A183: ASFALTOS DILUÍDOS CM-30 | B183: 2023-05-01 | C183: 5.018589297 | D183: 4.506282643 | E183: 5.616638293 | F183: 4.034756925 | G183: 4.063701717 | H183: 4.686492725
A184: ASFALTOS DILUÍDOS CM-30 | B184: 2023-06-01 | C184: 4.439644526 | D184: 4.495805354 | E184: 5.228174524 | F184: 3.772028745 | G184: 4.009042073 | H184: 4.588045148
A185: ASFALTOS DILUÍDOS CM-30 | B185: 2023-07-01 | C185: 4.360399352 | D185: 4.250187634 | E185: 6.188049155 | F185: 3.699216781 | G185: 4.315773768 | H185: 4.790717553
A186: ASFALTOS DILUÍDOS CM-30 | B186: 2023-08-01 | C186: 4.043215999 | D186: 4.100901709 | E186: 5.414198228 | F186: 3.964297949 | G186: 4.055989778 | H186: 4.607810697
A187: ASFALTOS DILUÍDOS CM-30 | B187: 2023-09-01 | C187: 5.69501625 | D187: 4.358586276 | E187: 5.187252517 | F187: 4.112508656 | G187: 4.211646236 | H187: 4.748640211
A188: ASFALTOS DILUÍDOS CM-30 | B188: 2023-10-01 | C188: 5.685185 | D188: 4.294075647 | E188: 4.912919476 | F188: 4.365095101 | G188: 4.257370162 | H188: 4.609445905
A189: ASFALTOS DILUÍDOS CM-30 | B189: 2023-11-01 | C189: 4.815085397 | D189: 4.345599447 | E189: 5.404502747 | F189: 4.045271104 | G189: 4.164697405 | H189: 4.781498943
A190: ASFALTOS DILUÍDOS CM-30 | B190: 2023-12-01 | C190: 5.411492308 | D190: 4.700043896 | E190: 5.306415734 | F190: 4.313216862 | G190: 4.188732062 | H190: 4.664845353
A191: ASFALTOS DILUÍDOS CM-30 | B191: 2024-01-01 | C191: 3.716178391 | D191: 4.395163811 | E191: 4.888126947 | F191: 3.977196797 | G191: 4.057095331 | H191: 4.290228903
A192: ASFALTOS DILUÍDOS CM-30 | B192: 2024-02-01 | C192: 5.349588571 | D192: 4.281881871 | E192: 5.36118056 | F192: 4.287786155 | G192: 4.151112946 | H192: 4.366194996
A193: ASFALTOS DILUÍDOS CM-30 | B193: 2024-03-01 | C193: 6.437624165 | D193: 4.512948358 | E193: 4.994035932 | F193: 4.680610304 | G193: 4.197388123 | H193: 4.725137967
A194: ASFALTOS DILUÍDOS CM-30 | B194: 2024-04-01 | C194: 6.524010018 | D194: 5.333668875 | E194: 5.011370357 | F194: 3.991999626 | G194: 4.15116124 | H194: 4.439406986
A195: ASFALTOS DILUÍDOS CM-30 | B195: 2024-05-01 | C195: 6.61993633 | D195: *** | E195: 5.21538288 | F195: 4.24855796 | G195: 4.478170767 | H195: 4.960078568
A196: ASFALTOS DILUÍDOS CM-30 | B196: 2024-06-01 | C196: 6.461820806 | D196: 4.288169263 | E196: 4.921606124 | F196: 4.517339741 | G196: 4.897585787 | H196: 4.922850803
A197: ASFALTOS DILUÍDOS CM-30 | B197: 2024-07-01 | C197: 6.120612239 | D197: 4.599255433 | E197: 5.497451069 | F197: 4.667838533 | G197: 4.514452653 | H197: 4.962740397
A198: ASFALTOS DILUÍDOS CM-30 | B198: 2024-08-01 | C198: 4.993225349 | D198: 4.428025283 | E198: 5.661947528 | F198: 4.958688154 | G198: 4.60903985 | H198: 5.143625042
A199: ASFALTOS DILUÍDOS CM-30 | B199: 2024-09-01 | C199: 6.554494856 | D199: 4.508326987 | E199: 5.819155159 | F199: 5.012107159 | G199: 4.596016256 | H199: 5.205694528
A200: ASFALTOS DILUÍDOS CM-30 | B200: 2024-10-01 | C200: 4.99217156 | D200: 4.867223371 | E200: 5.762705278 | F200: 4.908511444 | G200: 4.687758332 | H200: 5.077992426
A201: ASFALTOS DILUÍDOS CM-30 | B201: 2024-11-01 | C201: 6.103818377 | D201: 4.655198914 | E201: 5.505517561 | F201: 4.665170771 | G201: 4.558090866 | H201: 4.839804883
A202: ASFALTOS DILUÍDOS CM-30 | B202: 2024-12-01 | C202: 5.653116406 | D202: 4.621474651 | E202: 5.960894123 | F202: 4.849592977 | G202: 4.601260181 | H202: 4.838978355
A203: ASFALTOS DILUÍDOS CM-30 | B203: 2025-01-01 | C203: 6.087525 | D203: 5.336506141 | E203: 5.738529982 | F203: 5.60387 | G203: 4.653549092 | H203: 4.948881966
A204: ASFALTOS DILUÍDOS CM-30 | B204: 2025-02-01 | C204: 4.577817305 | D204: 4.987171059 | E204: 5.962615967 | F204: 5.074821011 | G204: 4.766997534 | H204: 4.911084425
... 4924 more rows

Sheet Material Sicro
A1: CGCIT | B1: SISTEMA DE CUSTOS REFERENCIAIS DE OBRAS - SICRO | D1: DNIT
B2: Piauí - Julho/2025
A3: Código | B3: Descrição | C3: Unidade | D3: Preço Unitário (R$)
A4: M0003 | B4: Aço CA 25 | C4: kg | D4: 6.835
A5: M0004 | B5: Aço CA 50 | C5: kg | D5: 6.68
A6: M0005 | B6: Brita 0 | C6: m³ | D6: 184.217
A7: M0006 | B7: Fibra de poliamida para concreto | C7: kg | D7: 27.9838
A8: M0007 | B8: Fibra de aço para concreto | C8: kg | D8: 17.4231
A9: M0008 | B9: Detergente líquido neutro | C9: l | D9: 4.4324
A10: M0009 | B10: Aço CP 175 RB | C10: kg | D10: 9.831
A11: M0010 | B11: Aditivo superplastificante para concreto e argamassa | C11: kg | D11: 17.2177
A12: M0011 | B12: Aditivo modificador de viscosidade para concreto e argamassa | C12: kg | D12: 11.2784
A13: M0012 | B13: Silicato de alumínio | C13: kg | D13: 2.338
A14: M0013 | B14: Grampo de ancoragem em aço CA 50 - D = 12,5 mm | C14: kg | D14: 6.3477
A15: M0014 | B15: Aço CA 60 | C15: kg | D15: 8.1648
A16: M0015 | B16: Espoleta elétrica Nº 8 - D = 6,0 mm | C16: un | D16: 19.296
A17: M0016 | B17: Grampo sargento em ferro fundido tipo C com abertura útil de 105 mm (4") | C17: un | D17: 42.463
A18: M0017 | B18: Saco de aniagem ou de ráfia de 50 kg - C = 95 cm e L = 65 cm | C18: un | D18: 2.6656
A19: M0018 | B19: Grampo pesado em aço-carbono para cabo de aço - D = 13 mm (1/2") | C19: un | D19: 18.1191
A20: M0019 | B20: Esticador em aço tipo olhal x olhal para cabo de aço - D = 13 mm | C20: un | D20: 135.199
A21: M0020 | B21: Grampo de ancoragem em aço CA 50 - D = 6,3 mm | C21: kg | D21: 7.1266
A22: M0021 | B22: Herbicida glifosato para áreas contínuas | C22: l | D22: 25.0899
A23: M0025 | B23: Adesivo plástico para tubos de PVC | C23: kg | D23: 52.3151
A24: M0026 | B24: Aditivo aglutinante para argamassa | C24: l | D24: 10.0377
A25: M0028 | B25: Areia média | C25: m³ | D25: 88.576
A26: M0029 | B26: Sílica ativa para concreto e argamassa (microssílica) | C26: kg | D26: 2.2529
A27: M0030 | B27: Aditivo plastificante e retardador de pega para concreto e argamassa | C27: kg | D27: 8.3893
A28: M0032 | B28: Adesivo de contato para laminado elastoplástico | C28: kg | D28: 47.9638
A29: M0035 | B29: Diluente tipo aguarrás para tintas e vernizes | C29: l | D29: 14.7478
A30: M0039 | B30: Gasolina comum | C30: l | D30: 5.5453
A31: M0041 | B31: Contêiner com 2 banheiros - L = 2,44 m e C = 6,09 m (1 TEU) | C31: un | D31: 103835.0185
A32: M0042 | B32: Contêiner com janela - L = 2,44 m e C = 6,09 m (1 TEU) | C32: un | D32: 44288.7879
A33: M0043 | B33: Óleo diesel | C33: l | D33: 5.4116
A34: M0044 | B34: Abrasivo de vidro com granulometria de 210 a 420 micra | C34: kg | D34: 10.9123
A35: M0045 | B35: Barreira plástica monobloco para canalização de trânsito - C = 100 cm, L = 50 cm e H = 55 cm | C35: un | D35: 446.2251
A36: M0046 | B36: Barreira plástica para canalização de trânsito - C = 60 cm, L = 45 cm e H = 60 cm | C36: un | D36: 313.2111
A37: M0047 | B37: Cone de sinalização em polietileno - H = 75 cm e base quadrada de 40 x 40 cm | C37: un | D37: 95.6171
A38: M0048 | B38: Balizador cônico refletivo em polietileno semiflexível - H = 114 cm e base octogonal de D = 40 cm | C38: un | D38: 156.499
A39: M0049 | B39: Delimitador de tráfego flexível com chumbador e duas faixas refletivas - H = 77 cm e D = 21 cm | C39: un | D39: 168.7576
A40: M0050 | B40: Aditivo natural tipo goma xantana para hidrossemeadura | C40: kg | D40: 80.2882
A41: M0051 | B41: Cilindro canalizador de tráfego em polietileno - H = 117 cm e base quadrada de 60 x 60 cm | C41: un | D41: 188.9459
A42: M0052 | B42: Fita adesiva de PVC - L = 50 mm e C = 50 m | C42: m | D42: 0.1157
A43: M0053 | B43: Tela plástica em polipropileno na cor laranja para tapume - L = 1,2 m | C43: m | D43: 1.7977
A44: M0054 | B44: Fita zebrada de cor laranja e branca - L = 7 a 8 cm | C44: m | D44: 0.0745
A45: M0055 | B45: Barreira plástica articulável modular - C = 240 cm e H = 100 cm | C45: un | D45: 1329.9706
A46: M0056 | B46: Ferramenta de corte para removedora de faixa de sinalização (Smith Cutter) | C46: un | D46: 7566.9579
A47: M0057 | B47: Contêiner com janela - L = 4,88 m e C = 6,09 m (1 TEU duplo) | C47: un | D47: 151502.037
A48: M0058 | B48: Contêiner com janela e 2 banheiros - L = 4,88 m e C = 6,09 m (1 TEU duplo) | C48: un | D48: 156517.037
A49: M0059 | B49: Contêiner com revestimento térmico, janela e banheiro - L = 2,44 m e C = 6,09 m (1 TEU) | C49: un | D49: 64248.4879
A50: M0060 | B50: Contêiner com janela - L = 2,44 m e C = 4,58 m (3/4 TEU) | C50: un | D50: 65219.5185
A51: M0065 | B51: Contêiner com janela e banheiro - L = 2,44 m e 4,58 m (3/4 TEU) | C51: un | D51: 83273.5185
A52: M0066 | B52: Contêiner com revestimento térmico, janela e banheiro - L = 2,44 m e C = 12,90 m (2 TEU) | C52: un | D52: 142976.537
A53: M0067 | B53: Tubo PEAD PE 100 PN 10 com flanges - D = 160 mm | C53: m | D53: 148.6562
A54: M0068 | B54: Caibro de pinho - L = 7,5 cm e E = 10,0 cm | C54: m | D54: 26.7857
A55: M0069 | B55: Arame farpado em aço galvanizado - D = 1,60 mm | C55: m | D55: 0.7283
A56: M0071 | B56: Contêiner com 3 janelas para guarita - L = 2,44 m e C = 3,05 m (1/2 TEU) | C56: un | D56: 51409.5321
A57: M0072 | B57: Arame liso em aço galvanizado - D = 2,10 mm (14 BWG) | C57: kg | D57: 15.5237
A58: M0073 | B58: Muda de árvore com altura de 0,30 a 0,80 m | C58: un | D58: 19.548
A59: M0074 | B59: Muda de arbusto com altura até 0,50 m | C59: un | D59: 22.5979
A60: M0075 | B60: Arame liso recozido em aço-carbono - D = 1,24 mm (18 BWG) | C60: kg | D60: 9.2649
A61: M0076 | B61: Disco de corte abrasivo para policorte - D = 300 mm | C61: un | D61: 21.1732
A62: M0080 | B62: Areia fina | C62: m³ | D62: 98.5726
A63: M0081 | B63: Areia grossa | C63: m³ | D63: 80.8117
A64: M0082 | B64: Areia média lavada | C64: m³ | D64: 93.769
A65: M0083 | B65: Argamassa pré-dosada para grauteamento | C65: kg | D65: 2.1043
A66: M0084 | B66: Argamassa pré-dosada autoadensável para grauteamento | C66: kg | D66: 2.1743
A67: M0085 | B67: Ancoragem ativa para 4 cordoalhas - D = 12,7 mm | C67: un | D67: 382.2856
A68: M0086 | B68: Ancoragem ativa para 6 cordoalhas - D = 12,7 mm | C68: un | D68: 494.7457
A69: M0087 | B69: Ancoragem ativa para 7 cordoalhas - D = 12,7 mm | C69: un | D69: 571.4852
A70: M0088 | B70: Ancoragem ativa para 8 cordoalhas - D = 12,7 mm | C70: un | D70: 740.5846
A71: M0089 | B71: Ancoragem ativa para 9 cordoalhas - D = 12,7 mm | C71: un | D71: 754.1917
A72: M0091 | B72: Ancoragem ativa para 10 cordoalhas - D = 12,7 mm | C72: un | D72: 838.2388
A73: M0092 | B73: Ancoragem ativa para 12 cordoalhas - D = 12,7 mm | C73: un | D73: 1008.2853
A74: M0093 | B74: Ancoragem ativa para 15 cordoalhas - D = 12,7 mm | C74: un | D74: 1469.997
A75: M0094 | B75: Ancoragem ativa para 19 cordoalhas - D = 12,7 mm | C75: un | D75: 1868.5391
A76: M0098 | B76: Bambu com diâmetro médio de 10 cm | C76: m | D76: 25.0201
A77: M0099 | B77: Equipamentos para a fábrica de dormentes de concreto protendido | C77: ISF | D77: 584.689
A78: M0100 | B78: Ancoragem ativa para 22 cordoalhas - D = 12,7 mm | C78: un | D78: 2419.8734
A79: M0101 | B79: Ancoragem ativa para 27 cordoalhas - D = 12,7 mm | C79: un | D79: 2959.6705
A80: M0102 | B80: Ancoragem ativa para 31 cordoalhas - D = 12,7 mm | C80: un | D80: 3008.998
A81: M0103 | B81: Aditivo acelerador de pega para concreto e argamassa projetados | C81: kg | D81: 8.7014
A82: M0104 | B82: Asfalto diluído de petróleo - CM-30 | C82: t | D82: -
A83: M0105 | B83: Ancoragem ativa para 4 cordoalhas - D = 15,2 mm | C83: un | D83: 540.5815
A84: M0106 | B84: Ancoragem ativa para 6 cordoalhas - D = 15,2 mm | C84: un | D84: 631.5327
A85: M0107 | B85: Geocomposto para drenagem | C85: m² | D85: 50.1041
A86: M0108 | B86: Ancoragem ativa para 7 cordoalhas - D = 15,2 mm | C86: un | D86: 713.7664
A87: M0109 | B87: Geodreno vertical - L = 10 cm e E = 5 mm | C87: m | D87: 5.18
A88: M0110 | B88: Ancoragem ativa para 10 cordoalhas - D = 15,2 mm | C88: un | D88: 1147.6328
A89: M0111 | B89: Ancoragem ativa para 9 cordoalhas - D = 15,2 mm | C89: un | D89: 1023.0803
A90: M0112 | B90: Disco diamantado segmentado para corte de pavimento - D = 1.000 mm | C90: un | D90: 5881.0277
A91: M0113 | B91: Ancoragem ativa para 12 cordoalhas - D = 15,2 mm | C91: un | D91: 1347.1292
A92: M0114 | B92: Disco diamantado segmentado para corte de pavimento - D = 1.500 mm | C92: un | D92: 26165.5741
A93: M0115 | B93: Biomanta vegetal de fibras de coco entrelaçadas com fios de polipropileno biodegradáveis - densidade 0,4 kg/m² | C93: m² | D93: 6.5
A94: M0116 | B94: Mangote flangeado de borracha reforçada com lonas sintéticas - C = 1,80 m e D = 0,30 m | C94: un | D94: 10555.9813
A95: M0117 | B95: Mangote flangeado de borracha reforçada com lonas sintéticas - C = 1,80 m e D = 0,40 m | C95: un | D95: 18262.0736
A96: M0118 | B96: Mangote flangeado de borracha reforçada com lonas sintéticas - C = 1,80 m e D = 0,45 m | C96: un | D96: 25385.853
A97: M0119 | B97: Mangote flangeado de borracha reforçada com lonas sintéticas - C = 1,80 m e D = 0,50 m | C97: un | D97: 30042.146
A98: M0120 | B98: Tubo PEAD PE 100 PN 8 com flanges - D = 250 mm | C98: m | D98: 327.3507
A99: M0121 | B99: Tubo PEAD PE 100 PN 8 com flanges - D = 400 mm | C99: m | D99: 2101.7656
A100: M0122 | B100: Tubo PEAD PE 100 PN 8 com flanges - D = 450 mm | C100: m | D100: 2639.8971
A101: M0123 | B101: Tubo PEAD PE 100 PN 8 com flanges - D = 500 mm | C101: m | D101: 2956.034
A102: M0124 | B102: Flutuador bipartido em polietileno com núcleo de espuma em poliuretano para tubos - D = 0,30 m | C102: un | D102: 4823.7733
A103: M0125 | B103: Flutuador bipartido em polietileno com núcleo de espuma em poliuretano para tubos - D = 0,40 m | C103: un | D103: 6672.8777
A104: M0126 | B104: Flutuador bipartido em polietileno com núcleo de espuma em poliuretano para tubos - D = 0,45 m | C104: un | D104: 7676.4675
A105: M0127 | B105: Flutuador bipartido em polietileno com núcleo de espuma em poliuretano para tubos - D = 0,50 m | C105: un | D105: 8281.1957
A106: M0128 | B106: Biomanta vegetal de fibras de palha entrelaçadas com fios de polipropileno biodegradáveis - densidade 0,6 kg/m² | C106: m² | D106: 5.9
A107: M0129 | B107: Retentor de sedimento em fibras vegetais - D = 20 cm | C107: m | D107: 66.5409
A108: M0130 | B108: Ancoragem ativa para 15 cordoalhas - D = 15,2 mm | C108: un | D108: 1789.5534
A109: M0131 | B109: Tubo PEAD corrugado com paredes estruturadas para drenagem - D = 400 mm | C109: m | D109: 247.4086
A110: M0132 | B110: Tubo PEAD corrugado com paredes estruturadas para drenagem - D = 450 mm | C110: m | D110: 311.9123
A111: M0133 | B111: Tubo PEAD corrugado com paredes estruturadas para drenagem - D = 500 mm | C111: m | D111: 407.4463
A112: M0134 | B112: Tubo PEAD corrugado com paredes estruturadas para drenagem - D = 600 mm | C112: m | D112: 593.8368
A113: M0135 | B113: Tubo PEAD corrugado com paredes estruturadas para drenagem - D = 750 mm | C113: m | D113: 840.6907
A114: M0136 | B114: Tubo PEAD corrugado com paredes estruturadas para drenagem - D = 800 mm | C114: m | D114: 886.1224
A115: M0137 | B115: Tubo PEAD corrugado com paredes estruturadas para drenagem - D = 900 mm | C115: m | D115: 1191.1433
A116: M0138 | B116: Ancoragem ativa para 19 cordoalhas - D = 15,2 mm | C116: un | D116: 2337.2214
A117: M0139 | B117: Tubo PEAD corrugado com paredes estruturadas para drenagem - D = 1.000 mm | C117: m | D117: 1555.3427
A118: M0140 | B118: Bentonita | C118: kg | D118: 3.6404
A119: M0141 | B119: Tubo PEAD corrugado com paredes estruturadas para drenagem - D = 1.050 mm | C119: m | D119: 1615.3582
A120: M0142 | B120: Tubo PEAD corrugado com paredes estruturadas para drenagem - D = 1.200 mm | C120: m | D120: 2184.9213
A121: M0143 | B121: Tubo PEAD corrugado com paredes estruturadas para drenagem - D = 1.500 mm | C121: m | D121: 2786.3984
A122: M0145 | B122: Ancoragem ativa para 22 cordoalhas - D = 15,2 mm | C122: un | D122: 3014.6317
A123: M0146 | B123: Ancoragem ativa para 27 cordoalhas - D = 15,2 mm | C123: un | D123: 3955.9977
A124: M0148 | B124: Ancoragem ativa para lajes para 1 cordoalha - D = 12,7 mm | C124: un | D124: 81.7799
A125: M0151 | B125: Ancoragem ativa para lajes para 2 cordoalhas - D = 12,7 mm | C125: un | D125: 159.3872
A126: M0152 | B126: Ancoragem ativa para lajes para 3 cordoalhas - D = 12,7 mm | C126: un | D126: 219.2865
A127: M0153 | B127: Ancoragem ativa para lajes para 4 cordoalhas - D = 12,7 mm | C127: un | D127: 301.974
A128: M0156 | B128: Bloco de concreto - L = 19 cm, A = 19 cm e C = 39 cm | C128: un | D128: 4.7
A129: M0158 | B129: Tela metálica galvanizada dobrada em L - C = 2,0 m, L = 0,4 m e H = 0,4 m | C129: un | D129: 465.7743
A130: M0160 | B130: Extintor de incêndio tipo espuma mecânica - V = 10 l | C130: un | D130: 638.0132
A131: M0161 | B131: Barra de fibra de vidro (vergalhão) - D = 25,0 mm | C131: m | D131: 58.5743
A132: M0162 | B132: Corrente de elo soldado em aço galvanizado com acabamento polido - D = 3,18 mm (1/8") | C132: m | D132: 7.3698
A133: M0163 | B133: Gonzo com aba em aço galvanizado - D = 12,7 mm (1/2") | C133: un | D133: 2.4246
A134: M0164 | B134: Tubo em aço galvanizado - E = 1,50 mm e seção de 20 x 20 mm | C134: m | D134: 11.9452
A135: M0166 | B135: Tubo em aço galvanizado - E = 2,25 mm e D = 20 mm (3/4") | C135: m | D135: 27.8456
A136: M0167 | B136: Tela de poliamida industrial - E = 0,40 mm e malha de 1,6 mm | C136: m² | D136: 14.3307
A137: M0168 | B137: Abraçadeira de poliamida - E = 3,6 mm e C = 200 mm | C137: un | D137: 0.2082
A138: M0169 | B138: Roda em aço e pneu com câmara de ar 83/203 mm (3,25"/8") para carrinho de mão | C138: un | D138: 75.155
A139: M0173 | B139: Ancoragem ativa para lajes para 1 cordoalha - D = 15,2 mm | C139: un | D139: 95.7231
A140: M0178 | B140: Ancoragem ativa para lajes para 2 cordoalhas - D = 15,2 mm | C140: un | D140: 207.6619
A141: M0181 | B141: Ancoragem ativa para lajes para 3 cordoalhas - D = 15,2 mm | C141: un | D141: 261.7385
A142: M0184 | B142: Ancoragem ativa para lajes para 4 cordoalhas - D = 15,2 mm | C142: un | D142: 363.2585
A143: M0191 | B143: Brita 1 | C143: m³ | D143: 170.2025
A144: M0192 | B144: Brita 2 | C144: m³ | D144: 159.7788
A145: M0193 | B145: Brita 3 | C145: m³ | D145: 153.0019
A146: M0194 | B146: Escória de aciaria | C146: m³ | D146: 14.7062
A147: M0198 | B147: Parafuso de cabeça chata em aço - D = 4,5 mm e bucha plástica - D = 8 mm (S8) | C147: un | D147: 0.3443
A148: M0199 | B148: Coroa de botões cruzados linha R32 - D = 43 mm (1 11/16’’) | C148: un | D148: 339.7643
A149: M0201 | B149: Coroa de botões esféricos linha T38 - D = 89 mm (3 1/2") | C149: un | D149: 869.6048
A150: M0202 | B150: Coroa de botões esféricos linha T45 - D = 76 mm (3") | C150: un | D150: 781.2902
A151: M0204 | B151: Instalações físicas para a central de pré-moldagem de dormentes de concreto protendido | C151: CMCC | D151: 1851.56
A152: M0217 | B152: Enxofre | C152: kg | D152: 3.5083
A153: M0220 | B153: Adubo à base de nitrogênio, fósforo e potássio (NPK) | C153: kg | D153: 2.8992
A154: M0222 | B154: Filer calcário | C154: kg | D154: 0.2017
A155: M0223 | B155: Sementes para hidrossemeadura | C155: kg | D155: 30.1158
A156: M0224 | B156: Guia-chapéu pré-moldada - C = 120 cm | C156: un | D156: 58.616
A157: M0225 | B157: Adubo orgânico composto | C157: kg | D157: 0.2624
A158: M0229 | B158: Gabião tipo colchão em liga de zinco e alumínio revestido com polímero de malha hexagonal - E = 0,17 m | C158: m² | D158: 171.2378
A159: M0230 | B159: Gabião tipo caixa em liga de zinco e alumínio de malha hexagonal - C = 2,00 m, L = 1,00 m e H = 0,50 m | C159: un | D159: 540.3141
A160: M0231 | B160: Gabião tipo caixa em liga de zinco e alumínio de malha hexagonal - C = 2,00 m, L = 1,00 m e H = 1,00 m | C160: un | D160: 816.0964
A161: M0232 | B161: Gabião tipo caixa em liga de zinco e alumínio revestido com polímero de malha hexagonal - C = 2,00 m, L = 1,00 m e H = 0,50 m | C161: un | D161: 663.7188
A162: M0233 | B162: Gabião tipo caixa em liga de zinco e alumínio revestido com polímero de malha hexagonal - C = 2,00 m, L = 1,00 m e H = 1,00 m | C162: un | D162: 965.8171
A163: M0234 | B163: Gabião tipo saco em liga de zinco e alumínio revestido com polímero de malha hexagonal - D = 0,65 m | C163: m³ | D163: 492.6243
A164: M0235 | B164: Gabião tipo colchão em liga de zinco e alumínio revestido com polímero de malha hexagonal - E = 0,23 m | C164: m² | D164: 179.0891
A165: M0236 | B165: Gabião tipo colchão em liga de zinco e alumínio revestido com polímero de malha hexagonal - E = 0,30 m | C165: m² | D165: 205.4272
A166: M0237 | B166: Energia elétrica | C166: kWh | D166: 1.1186
A167: M0253 | B167: Cabo de cobre flexível antichama isolado em PVC - tensão de 450/750 V e seção de 16 mm² | C167: m | D167: 14.3675
A168: M0254 | B168: Mistura gasosa de argônio e dióxido de carbono para solda MIG/MAG | C168: m³ | D168: 55.4265
A169: M0256 | B169: Tinta à base de etil silicato de zinco bicomponente para fundo preparador de pintura | C169: l | D169: 251.4673
A170: M0257 | B170: Diluente para tinta à base de etil silicato de zinco | C170: l | D170: 37.1064
A171: M0260 | B171: Cabo de cobre PP flexível isolado em PVC - tensão de 300/500 V e seção de 3 x 1,5 mm² | C171: m | D171: 4.9743
A172: M0264 | B172: Bomba de combustível industrial eletrônica simples | C172: un | D172: 30953.5435
A173: M0265 | B173: Tanque de combustível aéreo horizontal com escada para visita - capacidade de 5.000 l | C173: un | D173: 19210.3081
A174: M0266 | B174: Cabo de cobre flexível antichama isolado em PVC - tensão de 0,6/1,0 kV e seção de 240 mm² | C174: m | D174: 189.6445
A175: M0267 | B175: Módulo de torre de elevador de cremalheira | C175: un | D175: 3642.4726
A176: M0268 | B176: Módulo de ancoragem de torre de elevador de cremalheira | C176: un | D176: 2838.8312
A177: M0269 | B177: Cabo de cobre flexível antichama isolado em PVC - tensão de 0,6/1,0 kV e seção de 50 mm² | C177: m | D177: 39.6098
A178: M0284 | B178: Caibro de pinho - L = 7,5 cm e E = 7,5 cm | C178: m | D178: 20.0893
A179: M0285 | B179: Pontalete para escoramento - D = 15 cm | C179: m | D179: 7.6074
A180: M0286 | B180: Tábua - E = 2,5 cm e L = 30 cm | C180: m | D180: 17.0556
A181: M0289 | B181: Tábua - E = 2,5 cm e L = 15 cm | C181: m | D181: 8.0085
A182: M0290 | B182: Tábua - E = 2,5 cm e L = 10 cm | C182: m | D182: 5.1695
A183: M0291 | B183: Estrutura modular com 2 banheiros - L = 2,44 m e C = 6,06 m (1 TEU) | C183: un | D183: 81188.9442
A184: M0292 | B184: Estrutura modular com janela - L = 2,44 m e C = 6,06 m (1 TEU) | C184: un | D184: 66172.0635
A185: M0293 | B185: Estrutura modular com janela - L = 4,88 m e C = 6,06 m (1 TEU duplo) | C185: un | D185: 134116.8606
A186: M0294 | B186: Estrutura modular com janela e 2 banheiros - L = 4,88 m e C = 6,06 m (1 TEU duplo) | C186: un | D186: 134665.8936
A187: M0295 | B187: Estrutura modular com revestimento térmico, janela e banheiro - L = 2,44 m e C = 6,06 m (1 TEU) | C187: un | D187: 74381.6185
A188: M0296 | B188: Estrutura modular com revestimento térmico, janela e banheiro - L = 2,44 m e C = 12,19 m (2 TEU) | C188: un | D188: 141856.5791
A189: M0297 | B189: Estrutura modular com 3 janelas para guarita - L = 2,44 m e C = 3,05 m (1/2 TEU) | C189: un | D189: 41145.1367
A190: M0301 | B190: Pontalete para escoramento - D = 10 cm | C190: m | D190: 3.3827
A191: M0310 | B191: Peça de madeira - L = 7,5 cm e E = 2,5 cm | C191: m | D191: 7.1428
A192: M0311 | B192: Filtro de aspiração de ar externo com capacidade 3,58 l/s para compressor de ar respirável | C192: un | D192: 333.7865
A193: M0312 | B193: Filtro de purificação de ar comprimido com capacidade de 35 MPa para compressor de ar respirável | C193: un | D193: 317.0398
A194: M0344 | B194: Cal hidratada - a granel | C194: kg | D194: 0.5377
A195: M0345 | B195: Cal hidratada - saco | C195: kg | D195: 0.8
A196: M0346 | B196: Disco de aço para bomba de projeção via seca | C196: un | D196: 372.0742
A197: M0347 | B197: Disco de aço para bomba de projeção via úmida | C197: un | D197: 1560.3421
A198: M0348 | B198: Disco de borracha para bomba de projeção via seca | C198: un | D198: 301.3821
A199: M0349 | B199: Disco de borracha para bomba de projeção via úmida | C199: un | D199: 702.4987
A200: M0350 | B200: Bico para bomba de projeção | C200: un | D200: 296.6728
... 6292 more rows

Sheet Pessoal Sicro
A1: CGCIT | B1: SISTEMA DE CUSTOS REFERENCIAIS DE OBRAS - SICRO | G1: DNIT
A3: Piauí - Julho/2025
A4: Sem desoneração
A5: Código | B5: Descrição | C5: Unidade | D5: Salário (R$) | E5: Encargos Totais | F5: Custo (R$) | G5: Periculosidade/ Insalubridade
A6: P9801 | B6: Ajudante | C6: h | F6: 22.5682 | G6: 0
A7: P9802 | B7: Ajudante especializado | C7: h | F7: 26.2037 | G7: 0
A8: P9803 | B8: Almoxarife | C8: mês | F8: 6537.3285 | G8: 0
A9: P9804 | B9: Apontador | C9: mês | F9: 5124.1419 | G9: 0
A10: P9805 | B10: Armador | C10: h | F10: 32.8986 | G10: 0
A11: P9806 | B11: Auxiliar administrativo | C11: mês | F11: 5091.0802 | G11: 0
A12: P9807 | B12: Bombeiro hidráulico | C12: h | F12: 33.4507 | G12: 0
A13: P9808 | B13: Carpinteiro | C13: h | F13: 27.7951 | G13: 0
A14: P9809 | B14: Encarregado administrativo | C14: mês | F14: 7783.8336 | G14: 0
A15: P9810 | B15: Eletricista | C15: h | F15: 29.2891 | G15: 0
A16: P9811 | B16: Encarregado especializado | C16: mês | F16: 8281.7942 | G16: 0
A17: P9812 | B17: Engenheiro | C17: mês | F17: 27135.6365 | G17: 0
A18: P9814 | B18: Operacional | C18: mês | F18: 4267.0177 | G18: 0
A19: P9815 | B19: Jardineiro | C19: h | F19: 29.427 | G19: 0
A20: P9819 | B20: Engenheiro supervisor | C20: mês | F20: 27135.6365 | G20: 0
A21: P9821 | B21: Pedreiro | C21: h | F21: 27.7755 | G21: 0
A22: P9822 | B22: Pintor | C22: h | F22: 32.8797 | G22: 0
A23: P9823 | B23: Serralheiro | C23: h | F23: 29.3158 | G23: 0
A24: P9824 | B24: Servente | C24: h | F24: 22.1067 | G24: 0
A25: P9825 | B25: Soldador | C25: h | F25: 36.3411 | G25: 0
A26: P9826 | B26: Chefe setor de finanças | C26: mês | F26: 25003.5875 | G26: 0
A27: P9827 | B27: Vigia | C27: mês | F27: 5190.1176 | G27: 0
A28: P9830 | B28: Montador | C28: h | F28: 33.4951 | G28: 0
A29: P9833 | B29: Auxiliar de laboratório | C29: mês | F29: 6036.3052 | G29: 0
A30: P9837 | B30: Oceanógrafo | C30: mês | F30: 13314.3975 | G30: 0
A31: P9840 | B31: Encarregado geral | C31: mês | F31: 11501.5121 | G31: 0
A32: P9842 | B32: Faxineiro | C32: mês | F32: 4353.3801 | G32: 0
A33: P9843 | B33: Operador de equipamento leve | C33: h | F33: 27.6724 | G33: 0
A34: P9845 | B34: Operador de equipamento pesado | C34: h | F34: 34.2551 | G34: 0
A35: P9846 | B35: Operador de equipamento especial | C35: h | F35: 43.836 | G35: 0
A36: P9847 | B36: Perfurador de tubulão | C36: h | F36: 22.5481 | G36: 0
A37: P9848 | B37: Desenhista | C37: mês | F37: 8117.894 | G37: 0
A38: P9849 | B38: Condutor maquinista fluvial | C38: mês | F38: 5820.8436 | G38: 0
A39: P9850 | B39: Copeiro | C39: mês | F39: 4476.2176 | G39: 0
A40: P9851 | B40: Médico do trabalho | C40: mês | F40: 18672.6242 | G40: 0
A41: P9852 | B41: Blaster | C41: h | F41: 42.4395 | G41: 0
A42: P9853 | B42: Pré-marcador | C42: h | F42: 22.4341 | G42: 0
A43: P9854 | B43: Recepcionista | C43: mês | F43: 4311.0482 | G43: 0
A44: P9855 | B44: Marinheiro de máquinas | C44: mês | F44: 5466.9425 | G44: 0
A45: P9856 | B45: Marinheiro de convés | C45: h | F45: 29.463 | G45: 0
A46: P9857 | B46: Marinheiro de convés - mensalista | C46: mês | F46: 5419.4888 | G46: 0
A47: P9858 | B47: Laboratorista | C47: mês | F47: 7946.5291 | G47: 0
A48: P9859 | B48: Trabalhador de via | C48: h | F48: 22.0739 | G48: 0
A49: P9861 | B49: Selecionador de material pétreo | C49: h | F49: 22.4792 | G49: 0
A50: P9864 | B50: Engenheiro de segurança do trabalho | C50: mês | F50: 24956.0135 | G50: 0
A51: P9866 | B51: Motorista de caminhão | C51: h | F51: 29.1252 | G51: 0
A52: P9867 | B52: Técnico especializado - mensalista | C52: mês | F52: 7358.7329 | G52: 0
A53: P9869 | B53: Encarregado de obras de artes especiais | C53: mês | F53: 8281.7942 | G53: 0
A54: P9870 | B54: Motorista de veículo leve | C54: h | F54: 32.5686 | G54: 0
A55: P9871 | B55: Motorista de veículo especial | C55: h | F55: 33.8732 | G55: 0
A56: P9875 | B56: Encarregado de turma | C56: mês | F56: 5996.5848 | G56: 0
A57: P9876 | B57: Técnico de segurança do trabalho | C57: mês | F57: 7792.2539 | G57: 0
A58: P9878 | B58: Secretária | C58: mês | F58: 6830.99 | G58: 0
A59: P9880 | B59: Piloto fluvial | C59: mês | F59: 7686.6716 | G59: 0
A60: P9882 | B60: Técnico especializado | C60: h | F60: 39.832 | G60: 0
A61: P9883 | B61: Chefe do setor administrativo | C61: mês | F61: 7783.947 | G61: 0
A62: P9884 | B62: Encarregado de terraplenagem | C62: mês | F62: 8281.7942 | G62: 0
A63: P9885 | B63: Frentista de túnel | C63: h | F63: 22.9275 | G63: 0
A64: P9889 | B64: Técnico da qualidade | C64: mês | F64: 8089.3862 | G64: 0
A65: P9892 | B65: Auxiliar de blaster | C65: h | F65: 37.107 | G65: 0
A66: P9893 | B66: Encarregado de pavimentação | C66: mês | F66: 8281.7942 | G66: 0
A67: P9896 | B67: Porteiro | C67: mês | F67: 4344.2089 | G67: 0
A68: P9897 | B68: Técnico de meio ambiente | C68: mês | F68: 8048.5412 | G68: 0
A69: P9900 | B69: Comprador | C69: mês | F69: 7519.8298 | G69: 0
A70: P9901 | B70: Encarregado de superestrutura ferroviária | C70: mês | F70: 8281.7942 | G70: 0
A71: P9903 | B71: Auxiliar técnico | C71: mês | F71: 4875.3669 | G71: 0
A72: P9907 | B72: Comandante de longo curso | C72: mês | F72: 20335.0586 | G72: 0
A73: P9908 | B73: Imediato | C73: mês | F73: 16623.3997 | G73: 0
A74: P9909 | B74: Oficial de náutica | C74: mês | F74: 6857.484 | G74: 0
A75: P9910 | B75: Oficial de máquinas | C75: mês | F75: 6653.343 | G75: 0
A76: P9913 | B76: Draguista | C76: mês | F76: 6435.4692 | G76: 0
A77: P9915 | B77: Maquinista | C77: h | F77: 35.0133 | G77: 0
A78: P9916 | B78: Encarregado de conservação rodoviária | C78: mês | F78: 8281.7942 | G78: 0
A79: P9920 | B79: Mestre fluvial | C79: mês | F79: 8372.6355 | G79: 0
A80: P9921 | B80: Mergulhador raso autônomo de emergência | C80: h | F80: 40.5389 | G80: 0
A81: P9922 | B81: Mergulhador raso dependente de emergência | C81: h | F81: 42.3701 | G81: 0
A82: P9924 | B82: Mergulhador raso dependente | C82: h | F82: 58.1127 | G82: 0
A83: P9925 | B83: Mergulhador raso autônomo | C83: h | F83: 54.1204 | G83: 0
A84: P9926 | B84: Mergulhador raso auxiliar de superfície | C84: h | F84: 37.5205 | G84: 0
A85: P9927 | B85: Frentista de túnel com periculosidade | C85: h | F85: 27.4505 | G85: 0
A86: P9930 | B86: Eletricista com periculosidade | C86: h | F86: 35.7069 | G86: 0
A87: P9931 | B87: Operador de equipamento de mergulho | C87: h | F87: 57.7437 | G87: 0
A88: P9932 | B88: Operador de equipamento pesado com periculosidade | C88: h | F88: 42.3108 | G88: 0
A89: P9933 | B89: Supervisor de mergulho raso | C89: mês | F89: 10647.4163 | G89: 0
A90: P9934 | B90: Motorista de veículo especial com periculosidade | C90: h | F90: 41.8408 | G90: 0
A91: P9938 | B91: Operador de equipamento leve com periculosidade | C91: h | F91: 33.7489 | G91: 0
A92: P9939 | B92: Operador de equipamento leve com insalubridade | C92: h | F92: 35.4678 | G92: 0
A93: P9942 | B93: Marinheiro de convés com periculosidade | C93: h | F93: 36.3415 | G93: 0
A94: P9944 | B94: Operador de equipamento especial com periculosidade | C94: h | F94: 54.7914 | G94: 0
A95: P9946 | B95: Engenheiro auxiliar | C95: mês | F95: 24874.8163 | G95: 0
A96: P9947 | B96: Técnico florestal | C96: mês | F96: 8048.5412 | G96: 0
A97: P9948 | B97: Motorista de veículo leve - mensalista | C97: mês | F97: 6008.0336 | G97: 0
A98: P9949 | B98: Topógrafo | C98: mês | F98: 9340.8044 | G98: 0
A99: P9950 | B99: Auxiliar de topografia | C99: mês | F99: 6055.7508 | G99: 0
A100: P9951 | B100: Médico de câmara hiperbárica | C100: mês | F100: 21262.3001 | G100: 0
A101: P9952 | B101: Pedreiro - mensalista | C101: mês | F101: 5136.466 | G101: 0
A102: P9953 | B102: Eletricista - mensalista | C102: mês | F102: 5406.8028 | G102: 0
A103: P9954 | B103: Servente - mensalista | C103: mês | F103: 4093.0918 | G103: 0
A104: P9955 | B104: Engenheiro chefe | C104: mês | F104: 34473.2594 | G104: 0
A105: P9956 | B105: Motorista de caminhão com periculosidade | C105: h | F105: 35.6684 | G105: 0
A106: P9957 | B106: Motorista de ônibus | C106: h | F106: 35.4794 | G106: 0
A107: P9958 | B107: Motorista de ônibus - mensalista | C107: mês | F107: 6684.3694
A108: P9959 | B108: Motorista de veículo especial com periculosidade - mensalista | C108: mês | F108: 7777.9822
A109: P9972 | B109: Técnico de batimetria | C109: mês | F109: 6693.6238

Sheet INSUMOS SINAPI
A1: SINAPI - Sistema Nacional de Pesquisa de Custos e Índices da Construção Civil
A2: RELATÓRIO DE PREÇOS DE INSUMOS - ENGARGOS SOCIAIS SEM DESONERAÇÃO
A3: Mês de Referência: | B3: 08/2025 | E3: Encargos sociais sobre a mão de obra:
A4: Data de emissão: | B4: 10/09/2025 | E4: (SEM DESONERAÇÃO) | F4: PI
E5: Localidade | F5: TERESINA
A6: Origem de preço: | B6: C = COLETADO | C6: CR = COEFICIENTE DE REPRESENTATIVIDADE | E6: Horista | F6: 1.1333
A7: Preço em branco para determinado estado significa que não houve coleta mínima de preços no mês de referência | E7: Mensalista | F7: 0.7112
A9: Acessar Fichas de Especificação Técnico dos Insumos | E9: Preços Medianos (R$):
A10: Código do Insumo | B10: Descrição do Insumo | C10: Unidade | D10: Origem de Preço | E10: PI
A11: 45333 | B11: ABERTURA PARA ENCAIXE DE CUBA OU LAVATORIO EM BANCADA DE MARMORE/ GRANITO OU OUTRO TIPO DE PEDRA NATURAL | C11: UN | D11: CR | E11: 177.69
A12: 11270 | B12: ABRACADEIRA DE LATAO PARA FIXACAO DE CABO PARA-RAIO, DIMENSOES 32 X 24 X 24 MM | C12: UN | D12: CR
A13: 412 | B13: ABRACADEIRA DE NYLON PARA AMARRACAO DE CABOS, COMPRIMENTO DE *230* X *7,6* MM | C13: UN | D13: CR | E13: 1.28
A14: 414 | B14: ABRACADEIRA DE NYLON PARA AMARRACAO DE CABOS, COMPRIMENTO DE 100 X 2,5 MM | C14: UN | D14: CR | E14: 0.08
A15: 410 | B15: ABRACADEIRA DE NYLON PARA AMARRACAO DE CABOS, COMPRIMENTO DE 150 X *3,6* MM | C15: UN | D15: CR | E15: 0.19
A16: 411 | B16: ABRACADEIRA DE NYLON PARA AMARRACAO DE CABOS, COMPRIMENTO DE 200 X *4,6* MM | C16: UN | D16: C | E16: 0.25
A17: 408 | B17: ABRACADEIRA DE NYLON PARA AMARRACAO DE CABOS, COMPRIMENTO DE 390 X *4,6* MM | C17: UN | D17: CR | E17: 1.24
A18: 39131 | B18: ABRACADEIRA EM ACO PARA AMARRACAO DE ELETRODUTOS, TIPO D, COM 1 1/2" E CUNHA DE FIXACAO | C18: UN | D18: CR | E18: 5.1
A19: 394 | B19: ABRACADEIRA EM ACO PARA AMARRACAO DE ELETRODUTOS, TIPO D, COM 1 1/2" E PARAFUSO DE FIXACAO | C19: UN | D19: CR | E19: 5.17
A20: 39130 | B20: ABRACADEIRA EM ACO PARA AMARRACAO DE ELETRODUTOS, TIPO D, COM 1 1/4" E CUNHA DE FIXACAO | C20: UN | D20: CR | E20: 4.65
A21: 395 | B21: ABRACADEIRA EM ACO PARA AMARRACAO DE ELETRODUTOS, TIPO D, COM 1 1/4" E PARAFUSO DE FIXACAO | C21: UN | D21: CR | E21: 4.97
A22: 39129 | B22: ABRACADEIRA EM ACO PARA AMARRACAO DE ELETRODUTOS, TIPO D, COM 1" E CUNHA DE FIXACAO | C22: UN | D22: CR | E22: 2.87
A23: 393 | B23: ABRACADEIRA EM ACO PARA AMARRACAO DE ELETRODUTOS, TIPO D, COM 1" E PARAFUSO DE FIXACAO | C23: UN | D23: C | E23: 3
A24: 39127 | B24: ABRACADEIRA EM ACO PARA AMARRACAO DE ELETRODUTOS, TIPO D, COM 1/2" E CUNHA DE FIXACAO | C24: UN | D24: CR | E24: 2.45
A25: 392 | B25: ABRACADEIRA EM ACO PARA AMARRACAO DE ELETRODUTOS, TIPO D, COM 1/2" E PARAFUSO DE FIXACAO | C25: UN | D25: CR | E25: 2.52
A26: 39133 | B26: ABRACADEIRA EM ACO PARA AMARRACAO DE ELETRODUTOS, TIPO D, COM 2 1/2" E CUNHA DE FIXACAO | C26: UN | D26: CR | E26: 6.7
A27: 397 | B27: ABRACADEIRA EM ACO PARA AMARRACAO DE ELETRODUTOS, TIPO D, COM 2 1/2" E PARAFUSO DE FIXACAO | C27: UN | D27: CR | E27: 7.4
A28: 39132 | B28: ABRACADEIRA EM ACO PARA AMARRACAO DE ELETRODUTOS, TIPO D, COM 2" E CUNHA DE FIXACAO | C28: UN | D28: CR | E28: 5.36
A29: 396 | B29: ABRACADEIRA EM ACO PARA AMARRACAO DE ELETRODUTOS, TIPO D, COM 2" E PARAFUSO DE FIXACAO | C29: UN | D29: CR | E29: 5.74
A30: 39135 | B30: ABRACADEIRA EM ACO PARA AMARRACAO DE ELETRODUTOS, TIPO D, COM 3 1/2" E CUNHA DE FIXACAO | C30: UN | D30: CR | E30: 10.72
A31: 39134 | B31: ABRACADEIRA EM ACO PARA AMARRACAO DE ELETRODUTOS, TIPO D, COM 3" E CUNHA DE FIXACAO | C31: UN | D31: CR | E31: 8.93
A32: 398 | B32: ABRACADEIRA EM ACO PARA AMARRACAO DE ELETRODUTOS, TIPO D, COM 3" E PARAFUSO DE FIXACAO | C32: UN | D32: CR | E32: 8.23
A33: 39128 | B33: ABRACADEIRA EM ACO PARA AMARRACAO DE ELETRODUTOS, TIPO D, COM 3/4" E CUNHA DE FIXACAO | C33: UN | D33: CR | E33: 2.68
A34: 400 | B34: ABRACADEIRA EM ACO PARA AMARRACAO DE ELETRODUTOS, TIPO D, COM 3/4" E PARAFUSO DE FIXACAO | C34: UN | D34: CR | E34: 2.61
A35: 39125 | B35: ABRACADEIRA EM ACO PARA AMARRACAO DE ELETRODUTOS, TIPO D, COM 3/8" E PARAFUSO DE FIXACAO | C35: UN | D35: CR | E35: 2.68
A36: 39126 | B36: ABRACADEIRA EM ACO PARA AMARRACAO DE ELETRODUTOS, TIPO D, COM 4" E CUNHA DE FIXACAO | C36: UN | D36: CR | E36: 12.06
A37: 399 | B37: ABRACADEIRA EM ACO PARA AMARRACAO DE ELETRODUTOS, TIPO D, COM 4" E PARAFUSO DE FIXACAO | C37: UN | D37: CR | E37: 10.62
A38: 39158 | B38: ABRACADEIRA EM ACO PARA AMARRACAO DE ELETRODUTOS, TIPO ECONOMICA (GOTA), COM 8" | C38: UN | D38: CR | E38: 28.53
A39: 39141 | B39: ABRACADEIRA EM ACO PARA AMARRACAO DE ELETRODUTOS, TIPO U SIMPLES, COM 1 1/2" | C39: UN | D39: CR | E39: 2.07
A40: 39140 | B40: ABRACADEIRA EM ACO PARA AMARRACAO DE ELETRODUTOS, TIPO U SIMPLES, COM 1 1/4" | C40: UN | D40: CR | E40: 1.88
A41: 39139 | B41: ABRACADEIRA EM ACO PARA AMARRACAO DE ELETRODUTOS, TIPO U SIMPLES, COM 1" | C41: UN | D41: CR | E41: 1.56
A42: 39137 | B42: ABRACADEIRA EM ACO PARA AMARRACAO DE ELETRODUTOS, TIPO U SIMPLES, COM 1/2" | C42: UN | D42: CR | E42: 1.08
A43: 39143 | B43: ABRACADEIRA EM ACO PARA AMARRACAO DE ELETRODUTOS, TIPO U SIMPLES, COM 2 1/2" | C43: UN | D43: CR | E43: 4.27
A44: 39142 | B44: ABRACADEIRA EM ACO PARA AMARRACAO DE ELETRODUTOS, TIPO U SIMPLES, COM 2" | C44: UN | D44: CR | E44: 3.06
A45: 39144 | B45: ABRACADEIRA EM ACO PARA AMARRACAO DE ELETRODUTOS, TIPO U SIMPLES, COM 3" | C45: UN | D45: CR | E45: 4.97
A46: 39138 | B46: ABRACADEIRA EM ACO PARA AMARRACAO DE ELETRODUTOS, TIPO U SIMPLES, COM 3/4" | C46: UN | D46: CR | E46: 1.14
A47: 39136 | B47: ABRACADEIRA EM ACO PARA AMARRACAO DE ELETRODUTOS, TIPO U SIMPLES, COM 3/8" | C47: UN | D47: CR | E47: 0.76
A48: 39145 | B48: ABRACADEIRA EM ACO PARA AMARRACAO DE ELETRODUTOS, TIPO U SIMPLES, COM 4" | C48: UN | D48: CR | E48: 8.2
A49: 12615 | B49: ABRACADEIRA PVC, PARA CALHA PLUVIAL, DIAMETRO ENTRE *80 E 100* MM, PARA DRENAGEM PLUVIAL PREDIAL | C49: UN | D49: CR | E49: 11.68
A50: 11927 | B50: ABRACADEIRA, GALVANIZADA/ZINCADA, ROSCA SEM FIM, PARAFUSO INOX, LARGURA FITA *12,6 A *14 MM, D = 2" A 2 1/2" | C50: UN | D50: CR
A51: 11928 | B51: ABRACADEIRA, GALVANIZADA/ZINCADA, ROSCA SEM FIM, PARAFUSO INOX, LARGURA FITA *12,6 A *14 MM, D = 3" A 3 3/4" | C51: UN | D51: CR
A52: 11929 | B52: ABRACADEIRA, GALVANIZADA/ZINCADA, ROSCA SEM FIM, PARAFUSO INOX, LARGURA FITA *12,6 A *14 MM, D = 4" A 4 3/4" | C52: UN | D52: CR
A53: 36801 | B53: ACABAMENTO DE METAL CROMADO PARA REGISTRO PEQUENO, DE PAREDE, 1/2" OU 3/4" | C53: UN | D53: CR | E53: 41.31
A54: 36246 | B54: ACABAMENTO SIMPLES/CONVENCIONAL PARA FORRO PVC, TIPO "U" OU "C", COR BRANCA, COMPRIMENTO 6 M | C54: M | D54: CR | E54: 4.5
A55: 37600 | B55: ACESSORIO DE LIGACAO NAO ELETRICO PARA CARGAS EXPLOSIVAS, TUBO DE 6 M | C55: UN | D55: CR
A56: 37599 | B56: ACESSORIO INICIADOR NAO ELETRICO, TUBO DE 6 M, TEMPO DE RETARDO DE *160* MS | C56: UN | D56: CR
A57: 1 | B57: ACETILENO - RECARGA DE GAS PARA CILINDRO (NAO INCLUI TROCA/MANUTENCAO DO CILINDRO) | C57: KG | D57: C
A58: 3 | B58: ACIDO CLORIDRICO / ACIDO MURIATICO, DILUICAO 10% A 12% PARA USO EM LIMPEZA | C58: L | D58: CR | E58: 24.24
A59: 43054 | B59: ACO CA-25, 10,0 MM, OU 12,5 MM, OU 16,0 MM, OU 20,0 MM, OU 25,0 MM, VERGALHAO | C59: KG | D59: CR | E59: 7.39
A60: 42402 | B60: ACO CA-25, 16,0 MM, BARRA DE TRANSFERENCIA | C60: KG | D60: CR | E60: 7.06
A61: 42403 | B61: ACO CA-25, 20,0 MM, BARRA DE TRANSFERENCIA | C61: KG | D61: CR | E61: 9.06
A62: 42404 | B62: ACO CA-25, 25,0 MM, BARRA DE TRANSFERENCIA | C62: KG | D62: CR | E62: 9.01
A63: 42405 | B63: ACO CA-25, 32,0 MM, BARRA DE TRANSFERENCIA | C63: KG | D63: CR | E63: 9.6
A64: 34341 | B64: ACO CA-25, 32,0 MM, VERGALHAO | C64: KG | D64: CR | E64: 8.33
A65: 43053 | B65: ACO CA-25, 6,3 MM OU 8,0 MM, VERGALHAO | C65: KG | D65: CR | E65: 6.6
A66: 43058 | B66: ACO CA-50, 10,0 MM, OU 12,5 MM, OU 16,0 MM, OU 20,0 MM, DOBRADO E CORTADO | C66: KG | D66: CR | E66: 6.84
A67: 34 | B67: ACO CA-50, 10,0 MM, VERGALHAO | C67: KG | D67: CR | E67: 6.88
A68: 43055 | B68: ACO CA-50, 12,5 MM OU 16,0 MM, VERGALHAO | C68: KG | D68: C | E68: 5.96
A69: 43056 | B69: ACO CA-50, 20,0 MM OU 25,0 MM, VERGALHAO | C69: KG | D69: CR | E69: 6.87
A70: 43057 | B70: ACO CA-50, 32,0 MM, VERGALHAO | C70: KG | D70: CR | E70: 7.55
A71: 34449 | B71: ACO CA-50, 6,3 MM, DOBRADO E CORTADO | C71: KG | D71: CR | E71: 8.07
A72: 32 | B72: ACO CA-50, 6,3 MM, VERGALHAO | C72: KG | D72: CR | E72: 7.26
A73: 33 | B73: ACO CA-50, 8,0 MM, VERGALHAO | C73: KG | D73: CR | E73: 7.3
A74: 43061 | B74: ACO CA-60, 4,2 MM OU 5,0 MM, DOBRADO E CORTADO | C74: KG | D74: CR | E74: 6.82
A75: 43059 | B75: ACO CA-60, 4,2 MM, OU 5,0 MM, OU 6,0 MM, OU 7,0 MM, VERGALHAO | C75: KG | D75: CR | E75: 6.51
A76: 43062 | B76: ACO CA-60, 6,0 MM OU 7,0 MM, DOBRADO E CORTADO | C76: KG | D76: CR | E76: 7.21
A77: 43060 | B77: ACO CA-60, 8,0 MM OU 9,5 MM, VERGALHAO | C77: KG | D77: CR | E77: 5.67
A78: 40410 | B78: ACOPLAMENTO RIGIDO EM FERRO FUNDIDO PARA SISTEMA DE TUBULACAO RANHURADA, DN 50 MM (2") | C78: UN | D78: C
A79: 40411 | B79: ACOPLAMENTO RIGIDO EM FERRO FUNDIDO PARA SISTEMA DE TUBULACAO RANHURADA, DN 65 MM (2 1/2") | C79: UN | D79: CR
A80: 40412 | B80: ACOPLAMENTO RIGIDO EM FERRO FUNDIDO PARA SISTEMA DE TUBULACAO RANHURADA, DN 80 MM (3") | C80: UN | D80: CR
A81: 44254 | B81: ADAPTADOR CPVC, ROSCAVEL, COM FLANGES E ANEL DE VEDACAO, 15 MM, CAIXA D'AGUA PARA AGUA QUENTE | C81: UN | D81: CR
A82: 44255 | B82: ADAPTADOR CPVC, ROSCAVEL, COM FLANGES E ANEL DE VEDACAO, 22 MM, CAIXA D'AGUA PARA AGUA QUENTE | C82: UN | D82: CR
A83: 44256 | B83: ADAPTADOR CPVC, ROSCAVEL, COM FLANGES E ANEL DE VEDACAO, 28 MM, CAIXA D'AGUA PARA AGUA QUENTE | C83: UN | D83: CR
A84: 44257 | B84: ADAPTADOR CPVC, ROSCAVEL, COM FLANGES E ANEL DE VEDACAO, 35 MM, CAIXA D'AGUA PARA AGUA QUENTE | C84: UN | D84: CR
A85: 44258 | B85: ADAPTADOR CPVC, ROSCAVEL, COM FLANGES E ANEL DE VEDACAO, 42 MM, CAIXA D'AGUA PARA AGUA QUENTE | C85: UN | D85: CR
A86: 44259 | B86: ADAPTADOR CPVC, ROSCAVEL, COM FLANGES E ANEL DE VEDACAO, 54 MM, CAIXA D'AGUA PARA AGUA QUENTE | C86: UN | D86: CR
A87: 37997 | B87: ADAPTADOR CPVC, SOLDAVEL, 15 MM, PARA AGUA QUENTE | C87: UN | D87: CR
A88: 37998 | B88: ADAPTADOR CPVC, SOLDAVEL, 22 MM, PARA AGUA QUENTE | C88: UN | D88: CR
A89: 55 | B89: ADAPTADOR DE COMPRESSAO EM POLIPROPILENO (PP), PARA TUBO EM PEAD, 20 MM X 1/2", PARA LIGACAO PREDIAL DE AGUA (NTS 179) | C89: UN | D89: C
A90: 61 | B90: ADAPTADOR DE COMPRESSAO EM POLIPROPILENO (PP), PARA TUBO EM PEAD, 20 MM X 3/4", PARA LIGACAO PREDIAL DE AGUA (NTS 179) | C90: UN | D90: CR
A91: 62 | B91: ADAPTADOR DE COMPRESSAO EM POLIPROPILENO (PP), PARA TUBO EM PEAD, 32 MM X 1", PARA LIGACAO PREDIAL DE AGUA (NTS 179) | C91: UN | D91: CR
A92: 10899 | B92: ADAPTADOR EM LATAO, ENGATE RAPIDO 2 1/2" X ROSCA INTERNA 5 FIOS 2 1/2", PARA INSTALACAO PREDIAL DE COMBATE A INCENDIO | C92: UN | D92: CR | E92: 74.25
A93: 10900 | B93: ADAPTADOR EM LATAO, ENGATE RAPIDO1 1/2" X ROSCA INTERNA 5 FIOS 2 1/2", PARA INSTALACAO PREDIAL DE COMBATE A INCENDIO | C93: UN | D93: CR | E93: 58.11
A94: 47 | B94: ADAPTADOR PVC PBA, BOLSA/ROSCA, JE, DN 100 / DE 110 MM | C94: UN | D94: CR | E94: 111.36
A95: 48 | B95: ADAPTADOR PVC PBA, BOLSA/ROSCA, JE, DN 50 / DE 60 MM | C95: UN | D95: CR | E95: 29.05
A96: 46 | B96: ADAPTADOR PVC PBA, BOLSA/ROSCA, JE, DN 75 / DE 85 MM | C96: UN | D96: CR | E96: 65.13
A97: 52 | B97: ADAPTADOR PVC PBA, PONTA/ROSCA, JE, DN 50 / DE 60 MM | C97: UN | D97: CR | E97: 22.07
A98: 43 | B98: ADAPTADOR PVC PBA, PONTA/ROSCA, JE, DN 75 / DE 85 MM | C98: UN | D98: CR | E98: 74.48
A99: 103 | B99: ADAPTADOR PVC SOLDAVEL CURTO COM BOLSA E ROSCA, 110 MM X 4", PARA AGUA FRIA | C99: UN | D99: CR | E99: 44.26
A100: 107 | B100: ADAPTADOR PVC SOLDAVEL CURTO COM BOLSA E ROSCA, 20 MM X 1/2", PARA AGUA FRIA | C100: UN | D100: CR | E100: 0.83
A101: 65 | B101: ADAPTADOR PVC SOLDAVEL CURTO COM BOLSA E ROSCA, 25 MM X 3/4", PARA AGUA FRIA | C101: UN | D101: CR | E101: 0.91
A102: 108 | B102: ADAPTADOR PVC SOLDAVEL CURTO COM BOLSA E ROSCA, 32 MM X 1", PARA AGUA FRIA | C102: UN | D102: CR | E102: 1.83
A103: 110 | B103: ADAPTADOR PVC SOLDAVEL CURTO COM BOLSA E ROSCA, 40 MM X 1 1/2", PARA AGUA FRIA | C103: UN | D103: CR | E103: 6.37
A104: 109 | B104: ADAPTADOR PVC SOLDAVEL CURTO COM BOLSA E ROSCA, 40 MM X 1 1/4", PARA AGUA FRIA | C104: UN | D104: CR | E104: 3.79
A105: 111 | B105: ADAPTADOR PVC SOLDAVEL CURTO COM BOLSA E ROSCA, 50 MM X 1 1/4", PARA AGUA FRIA | C105: UN | D105: CR | E105: 8.61
A106: 112 | B106: ADAPTADOR PVC SOLDAVEL CURTO COM BOLSA E ROSCA, 50 MM X1 1/2", PARA AGUA FRIA | C106: UN | D106: CR | E106: 4.56
A107: 113 | B107: ADAPTADOR PVC SOLDAVEL CURTO COM BOLSA E ROSCA, 60 MM X 2", PARA AGUA FRIA | C107: UN | D107: CR | E107: 11.43
A108: 104 | B108: ADAPTADOR PVC SOLDAVEL CURTO COM BOLSA E ROSCA, 75 MM X 2 1/2", PARA AGUA FRIA | C108: UN | D108: CR | E108: 19.89
A109: 102 | B109: ADAPTADOR PVC SOLDAVEL CURTO COM BOLSA E ROSCA, 85 MM X 3", PARA AGUA FRIA | C109: UN | D109: CR | E109: 27.43
A110: 95 | B110: ADAPTADOR PVC SOLDAVEL, COM FLANGE E ANEL DE VEDACAO, 20 MM X 1/2", PARA CAIXA D'AGUA | C110: UN | D110: CR | E110: 11.59
A111: 96 | B111: ADAPTADOR PVC SOLDAVEL, COM FLANGE E ANEL DE VEDACAO, 25 MM X 3/4", PARA CAIXA D'AGUA | C111: UN | D111: CR | E111: 12.61
A112: 97 | B112: ADAPTADOR PVC SOLDAVEL, COM FLANGE E ANEL DE VEDACAO, 32 MM X 1", PARA CAIXA D'AGUA | C112: UN | D112: CR | E112: 18.97
A113: 98 | B113: ADAPTADOR PVC SOLDAVEL, COM FLANGE E ANEL DE VEDACAO, 40 MM X 1 1/4", PARA CAIXA D'AGUA | C113: UN | D113: CR | E113: 28.39
A114: 99 | B114: ADAPTADOR PVC SOLDAVEL, COM FLANGE E ANEL DE VEDACAO, 50 MM X 1 1/2", PARA CAIXA D'AGUA | C114: UN | D114: CR | E114: 26.84
A115: 60 | B115: ADAPTADOR PVC, COM REGISTRO, PARA PEAD, 20 MM X 3/4", PARA LIGACAO PREDIAL DE AGUA | C115: UN | D115: CR
A116: 72 | B116: ADAPTADOR PVC, ROSCAVEL, COM FLANGES E ANEL DE VEDACAO, 1 1/2", PARA CAIXA D'AGUA | C116: UN | D116: CR | E116: 51.47
A117: 71 | B117: ADAPTADOR PVC, ROSCAVEL, COM FLANGES E ANEL DE VEDACAO, 1", PARA CAIXA D'AGUA | C117: UN | D117: CR | E117: 31.79
A118: 67 | B118: ADAPTADOR PVC, ROSCAVEL, COM FLANGES E ANEL DE VEDACAO, 1/2", PARA CAIXA D'AGUA | C118: UN | D118: CR | E118: 16.64
A119: 73 | B119: ADAPTADOR PVC, ROSCAVEL, COM FLANGES E ANEL DE VEDACAO, 3/4", PARA CAIXA D'AGUA | C119: UN | D119: CR | E119: 15.92
A120: 100 | B120: ADAPTADOR PVC, SOLDAVEL, COM FLANGES E ANEL DE VEDACAO, 60 MM X 2", PARA CAIXA D'AGUA | C120: UN | D120: CR | E120: 46.89
A121: 75 | B121: ADAPTADOR PVC, SOLDAVEL, COM FLANGES LIVRES, 110 MM X 4", PARA CAIXA D'AGUA | C121: UN | D121: CR | E121: 273.36
A122: 83 | B122: ADAPTADOR PVC, SOLDAVEL, COM FLANGES LIVRES, 75 MM X 2 1/2", PARA CAIXA D'AGUA | C122: UN | D122: CR | E122: 218.54
A123: 74 | B123: ADAPTADOR PVC, SOLDAVEL, COM FLANGES LIVRES, 85 MM X 3", PARA CAIXA D'AGUA | C123: UN | D123: CR | E123: 312.46
A124: 106 | B124: ADAPTADOR PVC, SOLDAVEL, LONGO, COM FLANGE LIVRE, 110 MM X 4", PARA CAIXA D'AGUA | C124: UN | D124: CR | E124: 395.11
A125: 88 | B125: ADAPTADOR PVC, SOLDAVEL, LONGO, COM FLANGE LIVRE, 32 MM X 1", PARA CAIXA D'AGUA | C125: UN | D125: CR | E125: 11.1
A126: 82 | B126: ADAPTADOR PVC, SOLDAVEL, LONGO, COM FLANGE LIVRE, 75 MM X 2 1/2", PARA CAIXA D'AGUA | C126: UN | D126: CR | E126: 207.93
A127: 105 | B127: ADAPTADOR PVC, SOLDAVEL, LONGO, COM FLANGE LIVRE, 85 MM X 3", PARA CAIXA D'AGUA | C127: UN | D127: CR | E127: 294.63
A128: 39719 | B128: ADESIVO / COLA DE CONTATO LIQUIDO, A BASE DE RESINAS, PARA COLAGEM DE ESPUMA PARA ISOLAMENTO TERMICO FLEXIVEL | C128: L | D128: CR | E128: 177.14
A129: 3410 | B129: ADESIVO / COLA PARA EPS (ISOPOR) E OUTROS MATERIAIS | C129: KG | D129: CR | E129: 39.84
A130: 4791 | B130: ADESIVO ACRILICO DE BASE AQUOSA / COLA DE CONTATO | C130: KG | D130: CR | E130: 47.65
A131: 157 | B131: ADESIVO ESTRUTURAL A BASE DE RESINA EPOXI PARA INJECAO EM TRINCAS, BICOMPONENTE, BAIXA VISCOSIDADE | C131: KG | D131: CR | E131: 232.3
A132: 156 | B132: ADESIVO ESTRUTURAL A BASE DE RESINA EPOXI, BICOMPONENTE, FLUIDO | C132: KG | D132: CR | E132: 82.71
A133: 131 | B133: ADESIVO ESTRUTURAL A BASE DE RESINA EPOXI, BICOMPONENTE, PASTOSO (TIXOTROPICO) | C133: KG | D133: CR | E133: 70.73
A134: 21114 | B134: ADESIVO PARA TUBOS CPVC, *75* G | C134: UN | D134: CR | E134: 34.92
A135: 119 | B135: ADESIVO PLASTICO PARA PVC, BISNAGA COM 75 GR | C135: UN | D135: C | E135: 8.85
A136: 122 | B136: ADESIVO PLASTICO PARA PVC, FRASCO COM *850* GR | C136: UN | D136: CR | E136: 68.09
A137: 20080 | B137: ADESIVO PLASTICO PARA PVC, FRASCO COM 175 GR | C137: UN | D137: CR | E137: 22.22
A138: 124 | B138: ADITIVO ACELERADOR DE PEGA E ENDURECIMENTO PARA ARGAMASSAS E CONCRETOS, LIQUIDO E ISENTO DE CLORETOS | C138: L | D138: CR | E138: 27.28
A139: 7334 | B139: ADITIVO ADESIVO LIQUIDO PARA ARGAMASSAS DE REVESTIMENTOS CIMENTICIOS | C139: L | D139: CR | E139: 20.31
A140: 45146 | B140: ADITIVO IMPERMEABILIZANTE CRISTALIZANTE PARA CONCRETO | C140: KG | D140: CR | E140: 52.3
A141: 123 | B141: ADITIVO IMPERMEABILIZANTE DE PEGA NORMAL PARA ARGAMASSAS E CONCRETOS SEM ARMACAO, LIQUIDO E ISENTO DE CLORETOS | C141: L | D141: C | E141: 11.16
A142: 127 | B142: ADITIVO IMPERMEABILIZANTE DE PEGA ULTRARRAPIDA, LIQUIDO E ISENTO DE CLORETOS | C142: L | D142: CR | E142: 26.64
A143: 133 | B143: ADITIVO LIQUIDO INCORPORADOR DE AR PARA CONCRETO E ARGAMASSA, LIQUIDO E ISENTO DE CLORETOS | C143: L | D143: CR | E143: 11.06
A144: 43617 | B144: ADITIVO PLASTIFICANTE E ESTABILIZADOR PARA ARGAMASSAS DE ASSENTAMENTO E REBOCO, LIQUIDO E ISENTO DE CLORETOS | C144: L | D144: CR | E144: 12.36
A145: 132 | B145: ADITIVO PLASTIFICANTE RETARDADOR DE PEGA E REDUTOR DE AGUA PARA CONCRETO, LIQUIDO E ISENTO DE CLORETOS | C145: L | D145: CR | E145: 11.47
A146: 43618 | B146: ADITIVO SUPERPLASTIFICANTE DE PEGA NORMAL PARA CONCRETO, LIQUIDO E ISENTO DE CLORETOS | C146: KG | D146: CR | E146: 28.88
A147: 37476 | B147: ADUELA/ GALERIA PRE-MOLDADA DE CONCRETO ARMADO, SECAO QUADRADA INTERNA DE 1,50 X 1,50 M (L X A), MISULA DE 20 X 20 CM, C = 1,00 M, ESPESSURA MIN = 15 CM, TB-45 E FCK DO CONCRETO = 30 MPA | C147: UN | D147: CR | E147: 3660.5
A148: 37478 | B148: ADUELA/ GALERIA PRE-MOLDADA DE CONCRETO ARMADO, SECAO RETANGULAR INTERNA DE 2,00 X 2,00 M (L X A), MISULA DE 20 X 20 CM, C = 1,00 M, ESPESSURA MIN = 15 CM, TB-45 E FCK DO CONCRETO = 30 MPA | C148: UN | D148: CR | E148: 4584.87
A149: 37477 | B149: ADUELA/ GALERIA PRE-MOLDADA DE CONCRETO ARMADO, SECAO RETANGULAR INTERNA DE 2,50 X 2,50 M (L X A), MISULA DE 20 X 20 CM, C = 1,00 M, ESPESSURA MIN = 15 CM, TB-45 E FCK DO CONCRETO = 30 MPA | C149: UN | D149: CR | E149: 6211.76
A150: 37479 | B150: ADUELA/ GALERIA PRE-MOLDADA DE CONCRETO ARMADO, SECAO RETANGULAR INTERNA DE 3,00 X 3,00 M (L X A), MISULA DE 20 X 20 CM, C = 1.00 M, ESPESSURA MIN = 20 CM, TB-45 E FCK DO CONCRETO = 30 MPA | C150: UN | D150: CR | E150: 7367.22
A151: 4319 | B151: AFASTADOR PARA TELHA DE FIBROCIMENTO CANALETE 90 OU KALHETAO | C151: UN | D151: CR | E151: 2.43
A152: 42409 | B152: AGENTE DE CURA, PROTETOR DA EVAPORACAO DA AGUA DE HIDRATACAO DO CONCRETO | C152: KG | D152: CR | E152: 18.19
A153: 40553 | B153: AGREGADO RECICLADO, TIPO RACHAO RECICLADO CINZA, CLASSE A | C153: M3 | D153: C
A154: 6114 | B154: AJUDANTE DE ARMADOR (HORISTA) | C154: H | D154: CR | E154: 15.57
A155: 40912 | B155: AJUDANTE DE ARMADOR (MENSALISTA) | C155: MES | D155: CR | E155: 2749.89
A156: 247 | B156: AJUDANTE DE ELETRICISTA (HORISTA) | C156: H | D156: CR | E156: 15.57
A157: 40919 | B157: AJUDANTE DE ELETRICISTA (MENSALISTA) | C157: MES | D157: CR | E157: 2749.89
A158: 44499 | B158: AJUDANTE DE ESTRUTURAS METALICAS (HORISTA) | C158: H | D158: CR | E158: 15.57
A159: 40984 | B159: AJUDANTE DE ESTRUTURAS METALICAS (MENSALISTA) | C159: MES | D159: CR | E159: 2749.89
A160: 248 | B160: AJUDANTE DE OPERACAO EM GERAL (HORISTA) | C160: H | D160: CR | E160: 15.91
A161: 41086 | B161: AJUDANTE DE OPERACAO EM GERAL (MENSALISTA) | C161: MES | D161: CR | E161: 2809.46
A162: 34466 | B162: AJUDANTE DE PINTOR (HORISTA) | C162: H | D162: CR | E162: 15.57
A163: 41083 | B163: AJUDANTE DE PINTOR (MENSALISTA) | C163: MES | D163: CR | E163: 2749.89
A164: 252 | B164: AJUDANTE DE SERRALHEIRO (HORISTA) | C164: H | D164: CR | E164: 15.57
A165: 40909 | B165: AJUDANTE DE SERRALHEIRO (MENSALISTA) | C165: MES | D165: CR | E165: 2749.89
A166: 242 | B166: AJUDANTE ESPECIALIZADO (HORISTA) | C166: H | D166: CR | E166: 15.91
A167: 41085 | B167: AJUDANTE ESPECIALIZADO (MENSALISTA) | C167: MES | D167: CR | E167: 2809.46
A168: 427 | B168: ALCA PREFORMADA DE CONTRA POSTE, EM ACO GALVANIZADO, PARA CABO 3/16", COMPRIMENTO *860* MM | C168: UN | D168: CR | E168: 9.23
A169: 417 | B169: ALCA PREFORMADA DE DISTRIBUICAO, EM ACO GALVANIZADO, PARA CABO DE ALUMINIO DIAMETRO 16 A 25 MM | C169: UN | D169: CR | E169: 4.35
A170: 11273 | B170: ALCA PREFORMADA DE DISTRIBUICAO, EM ACO GALVANIZADO, PARA CONDUTORES DE ALUMINIO AWG 1/0 (CAA 6/1 OU CA 7 FIOS) | C170: UN | D170: CR | E170: 13.5
A171: 11272 | B171: ALCA PREFORMADA DE DISTRIBUICAO, EM ACO GALVANIZADO, PARA CONDUTORES DE ALUMINIO AWG 2 (CAA 6/1 OU CA 7 FIOS) | C171: UN | D171: CR | E171: 8.15
A172: 11275 | B172: ALCA PREFORMADA DE SERVICO, EM ACO GALVANIZADO, PARA CONDUTORES DE ALUMINIO AWG 4 (CAA 6/1) | C172: UN | D172: CR | E172: 3.27
A173: 11274 | B173: ALCA PREFORMADA DE SERVICO, EM ACO GALVANIZADO, PARA CONDUTORES DE ALUMINIO AWG 6 (CAA 6/1) | C173: UN | D173: CR | E173: 2.49
A174: 45208 | B174: ALICATE AMPERIMETRO, TENSAO AC/DC, CAPACIDADE MAXIMA 1000 A | C174: UN | D174: CR
A175: 45250 | B175: ALICATE BICO LONGO (MEIA CANA) 6", COM ISOLAMENTO ATE 1000 V | C175: UN | D175: CR | E175: 66.57
A176: 38470 | B176: ALICATE DE CORTE DIAGONAL 6" COM ISOLAMENTO | C176: UN | D176: CR | E176: 68.15
A177: 38547 | B177: ALICATE DE CRIMPAR RJ11, RJ12 E RJ45, COM CATRACA | C177: UN | D177: CR | E177: 452.42
A178: 38467 | B178: ALICATE DE PRESSAO 11" PARA SOLDA, TIPO C | C178: UN | D178: CR | E178: 146.32
A179: 38468 | B179: ALICATE DE PRESSAO 11" PARA SOLDA, TIPO U | C179: UN | D179: CR | E179: 182.64
A180: 38469 | B180: ALICATE DE PRESSAO PARA SOLDA DE CHAPA 18" | C180: UN | D180: CR | E180: 431.99
A181: 45197 | B181: ALICATE DESENCAPADOR AUTOMATICO 8" | C181: UN | D181: CR | E181: 344.52
A182: 38471 | B182: ALICATE PARA ANEIS DE PISTAO, CAPACIDADE *50* A 100 MM | C182: UN | D182: CR | E182: 462.02
A183: 45206 | B183: ALICATE PROFISSIONAL 8", UNIVERSAL, COM ISOLAMENTO ATE 1000 V | C183: UN | D183: CR | E183: 91.28
A184: 37370 | B184: ALIMENTACAO - HORISTA (COLETADO CAIXA - ENCARGOS COMPLEMENTARES) | C184: H | D184: C | E184: 2.46
A185: 40862 | B185: ALIMENTACAO - MENSALISTA (COLETADO CAIXA - ENCARGOS COMPLEMENTARES) | C185: MES | D185: C | E185: 463.06
A186: 10658 | B186: ALISADORA DE CONCRETO COM MOTOR A GASOLINA DE 5,5 HP, PESO COM MOTOR DE 78 KG, 4 PAS | C186: UN | D186: C
A187: 253 | B187: ALMOXARIFE (HORISTA) | C187: H | D187: C | E187: 20.33
A188: 40809 | B188: ALMOXARIFE (MENSALISTA) | C188: MES | D188: CR | E188: 3587.7
A189: 42428 | B189: ALONGADOR COM TRES ALTURAS, EM TUBO DE ACO CARBONO, PINTURA NO PROCESSO ELETROSTATICO - EQUIPAMENTO DE GINASTICA PARA ACADEMIA AO AR LIVRE / ACADEMIA DA TERCEIRA IDADE - ATI | C189: UN | D189: C
A190: 301 | B190: ANEL BORRACHA PARA TUBO ESGOTO PREDIAL, DN 100 MM (NBR 5688) | C190: UN | D190: C | E190: 3.79
A191: 296 | B191: ANEL BORRACHA PARA TUBO ESGOTO PREDIAL, DN 50 MM (NBR 5688) | C191: UN | D191: CR | E191: 2.14
A192: 297 | B192: ANEL BORRACHA PARA TUBO ESGOTO PREDIAL, DN 75 MM (NBR 5688) | C192: UN | D192: CR | E192: 3.15
A193: 299 | B193: ANEL BORRACHA, DN 100 MM, PARA TUBO SERIE REFORCADA ESGOTO PREDIAL | C193: UN | D193: CR | E193: 4.45
A194: 300 | B194: ANEL BORRACHA, DN 150 MM, PARA TUBO SERIE REFORCADA ESGOTO PREDIAL | C194: UN | D194: CR | E194: 15.38
A195: 20085 | B195: ANEL BORRACHA, DN 50 MM, PARA TUBO SERIE REFORCADA ESGOTO PREDIAL | C195: UN | D195: CR | E195: 2.81
A196: 298 | B196: ANEL BORRACHA, DN 75 MM, PARA TUBO SERIE REFORCADA ESGOTO PREDIAL | C196: UN | D196: CR | E196: 3.42
A197: 311 | B197: ANEL BORRACHA, PARA TUBO PVC DEFOFO, DN 100 MM (NBR 7665) | C197: UN | D197: CR | E197: 12.69
A198: 318 | B198: ANEL BORRACHA, PARA TUBO PVC DEFOFO, DN 150 MM (NBR 7665) | C198: UN | D198: CR | E198: 25.55
A199: 319 | B199: ANEL BORRACHA, PARA TUBO PVC DEFOFO, DN 200 MM (NBR 7665) | C199: UN | D199: CR | E199: 40.06
